Workbook

Sheet List of Sheets
C3: Sheet Tab | D3: Description | E3: Author
B4: 1 | C4: List of Sheets
B5: 2 | C5: Dashboard
B6: 3 | C6: Timing and Operations
B7: 4 | C7: Tax Assumptions
B8: 5 | C8: Debt Financing Assumptions
B9: 6 | C9: S-Curve Assumptions
B10: 7 | C10: EBITDA
B11: 8 | C11: Debt and Cash Waterfall (SA)
B12: 9 | C12: Annual Cash Flows
B13: 10 | C13: Value and Re-finance
B14: 11 | C14: Integrity
B15: 13 | C15: Sensitivities
B16: 14 | C16: Tornado Chart
B17: 15 | C17: Misc1
B19: File Name: | D19: C:\Users\Gebruiker\Course Materials\Chapter 1. Models and Analysis\2. Project Finance Models and Exercises\Featured Project Finance Models\On Shore Wind Model Example.xlsm
B21: Colour Codes
B23: Last Save Date | D23: 2015-07-01T01:12:21
B24: Last Save By | D24: Tanya Harding

Sheet Dashboard
C1: =IF(structure_mode=1,"Structure Mode","Risk Mode") -> Structure Mode | J1: Model Test | L1: =Integrity!E15 -> Model OK | R1: 1
A2: Project Characteristics | G2: Operating/Scenario
B3: Size of Turbine (MW) | C3: ='Timing and Operations'!E22 -> 2.5 | H3: Bid Price (US/MWH) | J3: ='Timing and Operations'!F15 -> 91
B4: No of Turbines | C4: ='Timing and Operations'!E23 -> 30 | H4: Capacity (MW) | J4: ='Timing and Operations'!E24 -> 75
B5: Size of Windfarm (MW) | C5: ='Timing and Operations'!E24 -> 75 | H5: Capacity Factor | J5: =EBITDA!H51 -> 0.3202918681
C6: Total Cost | D6: Per kW | E6: Pct of Total | H6: Levelised O&M Cost per MWH | J6: =EBITDA!I145 -> 16.22831516 | K6: =Sensitivities!$F$38 -> 1
B7: Turbine Cost | C7: ='Timing and Operations'!E27 -> 81252000 | D7: ='Timing and Operations'!F27 -> 1083.36 | E7: ='Timing and Operations'!G27 -> 0.4575448085 | H7: Levelised O&M Cost per kW Yr | J7: =EBITDA!I146 -> 45.31833585 | K7: =Sensitivities!F38 -> 1
B8: Development costs | C8: ='Timing and Operations'!E28 -> 18259876.8 | D8: ='Timing and Operations'!F28 -> 243.465024 | E8: ='Timing and Operations'!G28 -> 0.1028246915 | H8: Plant Cost Sensitivity (USD/kW) | J8: =L24 -> 2478.656501 | K8: =Sensitivities!$E$38 -> 1
B9: Legal Costs | C9: ='Timing and Operations'!E29 -> 1440000 | D9: ='Timing and Operations'!F29 -> 19.2 | E9: ='Timing and Operations'!G29 -> 0.008108902233
B10: Land Acquisition Cost | C10: ='Timing and Operations'!E30 -> 11250000 | D10: ='Timing and Operations'!F30 -> 150 | E10: ='Timing and Operations'!G30 -> 0.06335079869 | H10: Returns | J10: Nominal | K10: Real
B11: Engineering Cost | C11: ='Timing and Operations'!E31 -> 11772000 | D11: ='Timing and Operations'!F31 -> 156.96 | E11: ='Timing and Operations'!G31 -> 0.06629027575 | I11: Pre-tax Project IRR | J11: ='Debt and Cash Waterfall (SA)'!E29 -> 0.0878556639 | K11: ='Debt and Cash Waterfall (SA)'!E36 -> 0.06576030552
B12: Grid Connection supply | C12: ='Timing and Operations'!E32 -> 3044520 | D12: ='Timing and Operations'!F32 -> 40.5936 | E12: ='Timing and Operations'!G32 -> 0.01714424655 | I12: Project IRR | J12: ='Debt and Cash Waterfall (SA)'!E76 -> 0.08230179846 | K12: ='Debt and Cash Waterfall (SA)'!E79 -> 0.05761000812
B13: Civil Works | C13: ='Timing and Operations'!E33 -> 12024000 | D13: ='Timing and Operations'!F33 -> 160.32 | E13: ='Timing and Operations'!G33 -> 0.06770933364 | I13: All-in Debt Cost Pre-tax | J13: ='Debt and Cash Waterfall (SA)'!E439 -> 0.04117054641 | K13: ='Debt and Cash Waterfall (SA)'!E440 -> 0.01830545962
B14: Land Purchase (Access) | C14: ='Timing and Operations'!E34 -> 16084800 | D14: ='Timing and Operations'!F34 -> 214.464 | E14: ='Timing and Operations'!G34 -> 0.09057643794 | I14: All-in Debt Cost After Tax | J14: ='Debt and Cash Waterfall (SA)'!E443 -> 0.03593582213 | K14: ='Debt and Cash Waterfall (SA)'!E444 -> 0.01315311491
B15: Other Misc | C15: ='Timing and Operations'!E35 -> 22455410.4 | D15: ='Timing and Operations'!F35 -> 299.405472 | E15: ='Timing and Operations'!G35 -> 0.1264505052 | I15: All-in Subdebt After Tax | J15: ='Debt and Cash Waterfall (SA)'!E448 ->  | K15: ='Debt and Cash Waterfall (SA)'!E449 -> 
B16: Total | C16: =SUM(C7:C15) -> 177582607.2 | D16: =SUM(D7:D15) -> 2367.768096 | E16: =SUM(E7:E15) -> 1 | I16: Equity IRR | J16: ='Debt and Cash Waterfall (SA)'!E410 -> 0.1469002783 | K16: ='Debt and Cash Waterfall (SA)'!E411 -> 0.1205013573
H18: Senior Debt Coverage | J18: MIN | K18: Average
A19: Debt and Fee Structuring | I19: Annual Debt Service Cover Ratio | J19: ='Debt and Cash Waterfall (SA)'!F416 -> 1.32 | K19: ='Debt and Cash Waterfall (SA)'!H416 -> 1.32
B20: Target DSCR | C20: ='Debt Financing Assumptions'!$F$4 -> 1.32 | I20: Project Life Cover Ratio | J20: ='Debt and Cash Waterfall (SA)'!E426 -> 2.044826511
B21: Gearing Ratio | C21: ='Debt Financing Assumptions'!$F$5 -> 0.8 | I21: Loan life Cover Ratio | J21: ='Debt and Cash Waterfall (SA)'!E422 -> 1.376507676 | M21: Nominal LCOE | N21: =EBITDA!H70 -> 113.1002765
B22: Size from Gearing Ratio | C22: ='Debt Financing Assumptions'!F6 -> FALSE | M22: Real LCOE | N22: =EBITDA!H71 -> 97.54515512
B23: Debt Tenor | C23: ='Debt Financing Assumptions'!$F$14 -> 16 | H23: Total Uses of Funds | J23: Amount | K23: Percent | L23: USD/kW
B24: DSRA Months | C24: ='Debt Financing Assumptions'!F33 -> 6 | I24: Total Capital Expenditures | J24: ='Debt and Cash Waterfall (SA)'!G123 -> 185899237.6 | K24: =J24/$J$30 -> 0.9252320284 | L24: =J24/$J$4/1000 -> 2478.656501
B25: Repayment | I25: Development Fees | J25: ='Debt and Cash Waterfall (SA)'!G126 -> 0 | K25: 0 | L25: 0
B26: Cash Sweep Percent | C26: ='Debt Financing Assumptions'!F37 -> 0 | I26: Total IDC (Interest during construction) | J26: =SUM('Debt and Cash Waterfall (SA)'!G128:G129)+'Debt and Cash Waterfall (SA)'!G131 -> 4541285.602 | K26: 0.02260225994 | L26: 60.5504747
B27: Cash Trap Covenant | C27: ='Debt Financing Assumptions'!F36 -> 1.15 | I27: Total Fees (up-front and commitment) | J27: ='Debt and Cash Waterfall (SA)'!G130 -> 3599211.46 | K27: 0.01791349853 | L27: 47.98948613
B28: Funding Method | I28: Debt Service Reserve Account | J28: ='Debt and Cash Waterfall (SA)'!G132 -> 6882014.585 | K28: 0.03425221317 | L28: 91.76019446
B29: Capitalize Int and Fees | I29: Subtotal Transactional Cost related to Debt | J29: ='Debt and Cash Waterfall (SA)'!G133 -> 15022511.65 | K29: 0.07476797164 | L29: 200.3001553
B30: Development Fee | C30: ='Debt Financing Assumptions'!$F$55 -> 0 | I30: Total Project Cost | J30: ='Debt and Cash Waterfall (SA)'!G134 -> 200921749.2 | K30: 1 | L30: 2678.956656
H31: Total Sources of Funds
I32: Senior Debt | J32: ='Debt and Cash Waterfall (SA)'!G138 -> 167643524 | K32: =J32/$J$35 -> 0.8343722105
I33: Subordinated Debt | J33: ='Debt and Cash Waterfall (SA)'!G139 -> 0 | K33: =J33/$J$35 -> 0
I34: Equity | J34: ='Debt and Cash Waterfall (SA)'!G140 -> 33278225.19 | K34: =J34/$J$35 -> 0.1656277895
I35: Total | J35: ='Debt and Cash Waterfall (SA)'!G141 -> 200921749.2 | K35: =J35/$J$35 -> 1

Sheet Value and Re-finance
E1: Model Test | H1: =Dashboard!L1 -> Model OK
B3: No-Project Sale | G3: Re-Financing Analysis
H4: Re-Financing Turned On
C5: Pre-Tax IRR | D5: =Dashboard!J11 -> 0.0878556639 | H5: Date of Re-financing | I5: ='Debt Financing Assumptions'!$F$91 -> 2019-06-01
C6: Post-Tax IRR | D6: =Dashboard!J12 -> 0.08230179846 | H6: DSCR to Size Re-financing | I6: ='Debt Financing Assumptions'!$F$92 -> 1.29
C7: Equity IRR | D7: =Dashboard!J16 -> 0.1469002783 | H7: Amount of Re-financing | I7: ='Debt and Cash Waterfall (SA)'!F236 -> 0
H8: Tail of Re-financing | I8: ='Debt Financing Assumptions'!$F$93 -> 3
B9: With Sale | H9: Tenor of Re-financing | I9: ='Debt Financing Assumptions'!F97 -> 23
C10: Sale Date | D10: ='Debt Financing Assumptions'!F87 -> 2031-06-01 | H10: Re-financing Interest Rate | I10: ='Debt Financing Assumptions'!F94 -> 0.041
C11: Post-Tax IRR | D11: ='Debt and Cash Waterfall (SA)'!E465 -> 0.08396510184
C12: Equity IRR | D12: ='Debt and Cash Waterfall (SA)'!E459 -> 0.1600995839 | G12: Sources and Uses
H13: New Debt | I13: =SUM('Debt and Cash Waterfall (SA)'!K236:DU236) -> 0
B14: Discount Rate Evolution | D14: Equity | E14: Project
C15: Pre-construction | D15: ='Debt Financing Assumptions'!G79 -> 0.17 | E15: ='Debt Financing Assumptions'!H79 -> 0.14 | H15: Retirement of Existing Debt | I15: =SUM('Debt and Cash Waterfall (SA)'!K239:DU239) -> 0
C16: Post-Construction | D16: ='Debt Financing Assumptions'!G80 -> 0.13 | E16: ='Debt Financing Assumptions'!H80 -> 0.11 | H16: Fees on New Debt | I16: =SUM('Debt and Cash Waterfall (SA)'!K240:DU240) -> 0
C17: Initial Operations (Yrs 1 -3) | D17: ='Debt Financing Assumptions'!G81 -> 0.11 | E17: ='Debt Financing Assumptions'!H81 -> 0.09 | H17: Breakage Fee | I17: =SUM('Debt and Cash Waterfall (SA)'!K241:DU241) -> 0
C18: Initial Operations Mature | D18: ='Debt Financing Assumptions'!G82 -> 0.09 | E18: ='Debt Financing Assumptions'!H82 -> 0.07 | H18: Super Dividends | I18: =SUM('Debt and Cash Waterfall (SA)'!K242:DU242) -> 0
I22: Sub Debt | J22: ='Debt Financing Assumptions'!F43 -> 0
I23: Interest | J23: ='Debt Financing Assumptions'!F50 -> 0.07

Sheet Timing and Operations
A1: Timing | I1: Model Integrity | J1: =Dashboard!L1 -> Model OK
C2: Model Start | E2: Date | F2: 2015-01-01
C3: Beginning of Construction | E3: Date | F3: 2015-10-01 | I3: Pre-tax IRR | J3: =Dashboard!J11 -> 0.0878556639
C4: End of Construction | E4: Date | F4: =EDATE($F$3,F8)-1 -> 2017-05-31 | I4: Project IRR | J4: =Dashboard!J12 -> 0.08230179846
C5: Commercial Operation Date | E5: Date | F5: =EDATE(F4,G155)+1 -> 2017-06-01
C6: Decommissioning | E6: Date | F6: =EDATE(F5,$G$157*F10)-1 -> 2042-05-31
C8: Construction Period | E8: Months | F8: 20
C9: Semi Annual Periods | E9: Periods | F9: =F8/6 -> 3.333333333
C10: Operating Life | E10: Years | F10: 25
C11: Months in Period after COD | E11: Months | F11: 6
C12: Periods per Year after COD | E12: Periods | F12: =12/F11 -> 2
A14: Purchase Price Agreement Assumptions
C15: Initial Bid Price | E15: (USD/MWH) | F15: 91 | BD15: =AS15+1 -> 1 | BE15: =BD15+1 -> 2 | BF15: 3 | BG15: 4 | BH15: 5 | BI15: 6 | BJ15: 7 | BK15: 8
C16: PPA Years | E16: Years | F16: 25
C17: PPA Start Date (COD) | E17: Date | F17: =F5 -> 2017-06-01
C18: PPA End Date | E18: Date | F18: =EDATE(F17,F16*G157)-1 -> 2042-05-31
C19: Transmission Loss Factor Charge | E19: Percent | F19: 0.02
A21: Project Size
B22: Size of Turbine (MW) | E22: 2.5
B23: No of Turbines | E23: 30
B24: Size of Windfarm | E24: =E22*E23 -> 75
A26: Construction Costs | E26: Total Cost | F26: Per kW | G26: Pct of Total
B27: Turbine Cost | E27: =F27*$E$24*1000 -> 81252000 | F27: 1083.36 | G27: =F27/$F$36 -> 0.4575448085
B28: Development costs | E28: 18259876.8 | F28: 243.465024 | G28: 0.1028246915
B29: Legal Costs | E29: 1440000 | F29: 19.2 | G29: 0.008108902233
B30: Land Acquisition Cost | E30: 11250000 | F30: 150 | G30: 0.06335079869
B31: Engineering Cost | E31: 11772000 | F31: 156.96 | G31: 0.06629027575
B32: Grid Connection supply | E32: 3044520 | F32: 40.5936 | G32: 0.01714424655
B33: Civil Works | E33: 12024000 | F33: 160.32 | G33: 0.06770933364
B34: Land Purchase (Access) | E34: 16084800 | F34: 214.464 | G34: 0.09057643794
B35: Other Misc | E35: 22455410.4 | F35: 299.405472 | G35: 0.1264505052
C36: Total | E36: =SUM(E27:E35) -> 177582607.2 | F36: =E36/$E$24/1000 -> 2367.768096 | G36: 1
A38: Capacity Factor and Production | E38: Capacity Fac | F38: Generation | G38: Half Year
B39: P50 Case | E39: 0.3543378995 | F39: =E39*8760*$E$24 -> 232800 | G39: =F39/2 -> 116400
B40: P75 Case | E40: 0.3305936073 | F40: =E40*8760*$E$24 -> 217200 | G40: =F40/2 -> 108600
B41: P90 Case | E41: 0.3105022831 | F41: =E41*8760*$E$24 -> 204000 | G41: =F41/2 -> 102000
B42: P99 Case | E42: 0.2794520548 | F42: =E42*8760*$E$24 -> 183600 | G42: =F42/2 -> 91800
C44: Service & Availability | E44: From | F44: To | G44: Price
D45: Price per period 1 | E45: 2015-01-01 | F45: 2019-12-31 | G45: 8.367040369
D46: Price per period 2 | E46: 2020-01-01 | F46: 2024-12-31 | G46: 10
D47: Price per period 3 | E47: 2025-01-01 | F47: 2029-12-31 | G47: 12
D48: Price per period 4 | E48: 2030-01-01 | F48: 2034-12-31 | G48: 12
D49: Price per period 5 | E49: 2035-01-01 | F49: 2039-12-31 | G49: 12
C51: Maintenance & services | E51: From | F51: To
D52: Price for Maintenance & services - Phase I | E52: ='Timing and Operations'!$F$5 -> 2017-06-01 | F52: =EDATE(E52,'Timing and Operations'!$G$157*3)-1 -> 2020-05-31 | G52: 0
D53: Price for Maintenance & services - Phase II | E53: =F52+1 -> 2020-06-01 | F53: =EDATE(E53,'Timing and Operations'!$G$157*7)-1 -> 2027-05-31 | G53: 0
D54: Price for Maintenance & services - Phase III | E54: =F53+1 -> 2027-06-01 | F54: =EDATE(E54,'Timing and Operations'!$G$157*10)-1 -> 2037-05-31 | G54: 0
C56: Operation and Maintenance
D57: Annual BOP Maintenance cost per MW in euros | E57: 6000
D58: Annual Insurance per MW in euros | E58: 2000
D59: Annual Business rates per MW in euros | E59: 6600
D60: Annual Line O & M per MW in euros | E60: 4500
D61: Annual Contingency costs per MW in euros | E61: 573
D62: Contingency percentage | E62: 0.03
D63: Annual Community Fund per MW euros | E63: 1000
C65: Curtailment | G65: PPA 1 | H65: PPA 1
G66: Line 1 | H66: Line 2
G67: P90 | H67: P50
E68: From | F68: To | G68: P99 | H68: P75
E70: ='Timing and Operations'!F2 -> 2015-01-01 | F70: 2015-12-31 | G70: 0.0495 | H70: 0.0495
E71: =F70+1 -> 2016-01-01 | F71: 2016-12-31 | G71: 0.057 | H71: 0.057
E72: 2017-01-01 | F72: 2017-12-31 | G72: 0.02 | H72: 0.02
E73: 2018-01-01 | F73: 2018-12-31 | G73: 0.031 | H73: 0.0315
E74: 2019-01-01 | F74: 2019-12-31 | G74: 0.031 | H74: 0.0315
E75: 2020-01-01 | F75: 2020-12-31 | G75: 0.037 | H75: 0.0365
E76: 2021-01-01 | F76: 2021-12-31 | G76: 0.037 | H76: 0.0365
E77: 2022-01-01 | F77: 2022-12-31 | G77: 0.037 | H77: 0.0365
E78: 2023-01-01 | F78: 2039-12-31 | G78: 0.037 | H78: 0.0365
A81: Working Capital Assumptions
C82: Working Capital
D83: Accounts Receivable Days | E83: Days | G83: 0
D84: Accounts Payable Days | E84: Days | G84: 0
A86: General Economic Variables
B87: Inflation Rates
D88: Start of inflation | E88: Date | G88: 2015-01-01
D89: No of month in a year where inflation is applied (January) | E89: Date | G89: 1 | H89: 2013-07-01 | I89: 2014-01-01 | J89: 2014-07-01 | K89: 2015-01-01 | L89: 2015-07-01 | M89: 2016-01-01 | N89: 2016-07-01 | O89: 2017-01-01 | P89: 2017-07-01 | Q89: 2018-01-01 | R89: 2018-07-01 | S89: 2019-01-01 | T89: 2019-07-01 | U89: 2020-01-01 | V89: 2020-07-01 | W89: 2021-01-01 | X89: 2021-07-01 | Y89: 2022-01-01 | Z89: 2022-07-01 | AA89: 2023-01-01 | AB89: 2023-07-01 | AC89: 2024-01-01 | AD89: 2024-07-01 | AE89: 2025-01-01 | AF89: 2025-07-01 | AG89: 2026-01-01 | AH89: 2026-07-01 | AI89: 2027-01-01 | AJ89: 2027-07-01 | AK89: 2028-01-01 | AL89: 2028-07-01 | AM89: 2029-01-01 | AN89: 2029-07-01 | AO89: 2030-01-01 | AP89: 2030-07-01 | AQ89: 2031-01-01 | AR89: 2031-07-01 | AS89: 2032-01-01 | AT89: 2032-07-01 | AU89: 2033-01-01 | AV89: 2033-07-01 | AW89: 2034-01-01 | AX89: 2034-07-01 | AY89: 2035-01-01 | AZ89: 2035-07-01 | BA89: 2036-01-01 | BB89: 2036-07-01 | BC89: 2037-01-01 | BD89: 2037-07-01 | BE89: 2038-01-01 | BF89: 2038-07-01 | BG89: 2039-01-01 | BH89: 2039-07-01 | BI89: 2040-01-01 | BJ89: 2040-07-01 | BK89: 2041-01-01 | BL89: 2041-07-01 | BM89: 2042-01-01 | BN89: 2042-07-01
C91: Cost Inflation Rate | E91: Code Number | F91: =Sensitivities!K38 -> 2
C92: 1 | D92: Low Inflation | E92: % | G92: 0.01 | H92: 0.01 | I92: 0.01 | J92: 0.01 | K92: 0.01 | L92: 0.01 | M92: 0.01 | N92: 0.01 | O92: 0.01 | P92: 0.01 | Q92: 0.01 | R92: 0.01 | S92: 0.01 | T92: 0.01 | U92: 0.01 | V92: 0.01 | W92: 0.01 | X92: 0.01 | Y92: 0.01 | Z92: 0.01 | AA92: 0.01 | AB92: 0.01 | AC92: 0.01 | AD92: 0.01 | AE92: 0.01 | AF92: 0.01 | AG92: 0.01 | AH92: 0.01 | AI92: 0.01 | AJ92: 0.01 | AK92: 0.01 | AL92: 0.01 | AM92: 0.01 | AN92: 0.01 | AO92: 0.01 | AP92: 0.01 | AQ92: 0.01 | AR92: 0.01 | AS92: 0.01 | AT92: 0.01 | AU92: 0.01 | AV92: 0.01 | AW92: 0.01 | AX92: 0.01 | AY92: 0.01 | AZ92: 0.01 | BA92: 0.01 | BB92: 0.01 | BC92: 0.01 | BD92: 0.01 | BE92: 0.01 | BF92: 0.01 | BG92: 0.01 | BH92: 0.01 | BI92: 0.01 | BJ92: 0.01 | BK92: 0.01 | BL92: 0.01 | BM92: 0.01 | BN92: 0.01
C93: 2 | D93: Expected Case | E93: % | G93: =1.73%+2.6% -> 0.0433 | H93: =1.73%+2.6% -> 0.0433 | I93: 0.0195 | J93: 0.0195 | K93: 0.0206 | L93: 0.0206 | M93: 0.0206 | N93: 0.0206 | O93: 0.0206 | P93: 0.0206 | Q93: 0.02101425658 | R93: 0.02101425658 | S93: 0.02143679829 | T93: 0.02143679829 | U93: 0.02186779083 | V93: 0.02186779083 | W93: 0.02230740323 | X93: 0.02230740323 | Y93: 0.02275580787 | Z93: 0.02275580787 | AA93: 0.0232131806 | AB93: 0.0232131806 | AC93: 0.02367970079 | AD93: 0.02367970079 | AE93: 0.02415555139 | AF93: 0.02415555139 | AG93: 0.02464091899 | AH93: 0.02464091899 | AI93: 0.02513599395 | AJ93: 0.02513599395 | AK93: 0.02564097041 | AL93: 0.02564097041 | AM93: 0.02615604639 | AN93: 0.02615604639 | AO93: 0.0266814239 | AP93: 0.0266814239 | AQ93: 0.02721730895 | AR93: 0.02721730895 | AS93: 0.02776391171 | AT93: 0.02776391171 | AU93: 0.02832144652 | AV93: 0.02832144652 | AW93: 0.02889013203 | AX93: 0.02889013203 | AY93: 0.02947019125 | AZ93: 0.02947019125 | BA93: 0.03006185165 | BB93: 0.03006185165 | BC93: 0.03066534526 | BD93: 0.03066534526 | BE93: 0.03128090874 | BF93: 0.03128090874 | BG93: 0.03128090874 | BH93: 0.03128090874 | BI93: 0.03128090874 | BJ93: 0.03128090874 | BK93: 0.03128090874 | BL93: 0.03128090874 | BM93: 0.03128090874 | BN93: 0.03128090874
C94: 3 | D94: High Inflation Case | E94: % | G94: =1.73%+2.6% -> 0.0433 | H94: =1.73%+2.6% -> 0.0433 | I94: 0.025 | J94: 0.025 | K94: 0.025 | L94: 0.025 | M94: 0.025 | N94: 0.025 | O94: 0.025 | P94: 0.025 | Q94: 0.025 | R94: 0.025 | S94: 0.025 | T94: 0.025 | U94: 0.025 | V94: 0.025 | W94: 0.025 | X94: 0.025 | Y94: 0.025 | Z94: 0.025 | AA94: 0.025 | AB94: 0.025 | AC94: 0.025 | AD94: 0.025 | AE94: 0.03 | AF94: 0.03 | AG94: 0.03 | AH94: 0.03 | AI94: 0.03 | AJ94: 0.03 | AK94: 0.03 | AL94: 0.03 | AM94: 0.03 | AN94: 0.03 | AO94: 0.03 | AP94: 0.03 | AQ94: 0.03 | AR94: 0.03 | AS94: 0.03 | AT94: 0.03 | AU94: 0.03 | AV94: 0.03 | AW94: 0.03 | AX94: 0.03 | AY94: 0.03 | AZ94: 0.03 | BA94: 0.03 | BB94: 0.03 | BC94: 0.03 | BD94: 0.03 | BE94: 0.03 | BF94: 0.03 | BG94: 0.03 | BH94: 0.03 | BI94: 0.03 | BJ94: 0.03 | BK94: 0.03 | BL94: 0.03 | BM94: 0.03 | BN94: 0.03
D95: =INDEX(D92:D94,$F$91) -> Expected Case | E95: % | G95: =INDEX(G92:G94,$F$91) -> 0.0433 | H95: 0.0433 | I95: 0.0195 | J95: 0.0195 | K95: 0.0206 | L95: 0.0206 | M95: 0.0206 | N95: 0.0206 | O95: 0.0206 | P95: 0.0206 | Q95: 0.02101425658 | R95: 0.02101425658 | S95: 0.02143679829 | T95: 0.02143679829 | U95: 0.02186779083 | V95: 0.02186779083 | W95: 0.02230740323 | X95: 0.02230740323 | Y95: 0.02275580787 | Z95: 0.02275580787 | AA95: 0.0232131806 | AB95: 0.0232131806 | AC95: 0.02367970079 | AD95: 0.02367970079 | AE95: 0.02415555139 | AF95: 0.02415555139 | AG95: 0.02464091899 | AH95: 0.02464091899 | AI95: 0.02513599395 | AJ95: 0.02513599395 | AK95: 0.02564097041 | AL95: 0.02564097041 | AM95: =INDEX(AM92:AM94,$F$91) -> 0.02615604639 | AN95: 0.02615604639 | AO95: 0.0266814239 | AP95: 0.0266814239 | AQ95: 0.02721730895 | AR95: 0.02721730895 | AS95: 0.02776391171 | AT95: 0.02776391171 | AU95: 0.02832144652 | AV95: 0.02832144652 | AW95: 0.02889013203 | AX95: 0.02889013203 | AY95: 0.02947019125 | AZ95: 0.02947019125 | BA95: 0.03006185165 | BB95: 0.03006185165 | BC95: 0.03066534526 | BD95: 0.03066534526 | BE95: 0.03128090874 | BF95: 0.03128090874 | BG95: 0.03128090874 | BH95: 0.03128090874 | BI95: 0.03128090874 | BJ95: 0.03128090874 | BK95: 0.03128090874 | BL95: 0.03128090874 | BM95: 0.03128090874 | BN95: 0.03128090874
C97: Revenue Inflation Rate | E97: Code Number | F97: =Sensitivities!J38 -> 2
C98: 1 | D98: Low Inflation | E98: % | G98: 0.01 | H98: 0.01 | I98: 0.01 | J98: 0.01 | K98: 0.01 | L98: 0.01 | M98: 0.01 | N98: 0.01 | O98: 0.01 | P98: 0.01 | Q98: 0.01 | R98: 0.01 | S98: 0.01 | T98: 0.01 | U98: 0.01 | V98: 0.01 | W98: 0.01 | X98: 0.01 | Y98: 0.01 | Z98: 0.01 | AA98: 0.01 | AB98: 0.01 | AC98: 0.01 | AD98: 0.01 | AE98: 0.01 | AF98: 0.01 | AG98: 0.01 | AH98: 0.01 | AI98: 0.01 | AJ98: 0.01 | AK98: 0.01 | AL98: 0.01 | AM98: 0.01 | AN98: 0.01 | AO98: 0.01 | AP98: 0.01 | AQ98: 0.01 | AR98: 0.01 | AS98: 0.01 | AT98: 0.01 | AU98: 0.01 | AV98: 0.01 | AW98: 0.01 | AX98: 0.01 | AY98: 0.01 | AZ98: 0.01 | BA98: 0.01 | BB98: 0.01 | BC98: 0.01 | BD98: 0.01 | BE98: 0.01 | BF98: 0.01 | BG98: 0.01 | BH98: 0.01 | BI98: 0.01 | BJ98: 0.01 | BK98: 0.01 | BL98: 0.01 | BM98: 0.01 | BN98: 0.01
C99: 2 | D99: Expected Case | E99: % | G99: =1.73%+2.6% -> 0.0433 | H99: =1.73%+2.6% -> 0.0433 | I99: 0.0195 | J99: 0.0195 | K99: 0.0206 | L99: 0.0206 | M99: 0.0206 | N99: 0.0206 | O99: 0.0206 | P99: 0.0206 | Q99: 0.02101425658 | R99: 0.02101425658 | S99: 0.02143679829 | T99: 0.02143679829 | U99: 0.02186779083 | V99: 0.02186779083 | W99: 0.02230740323 | X99: 0.02230740323 | Y99: 0.02275580787 | Z99: 0.02275580787 | AA99: 0.0232131806 | AB99: 0.0232131806 | AC99: 0.02367970079 | AD99: 0.02367970079 | AE99: 0.02415555139 | AF99: 0.02415555139 | AG99: 0.02464091899 | AH99: 0.02464091899 | AI99: 0.02513599395 | AJ99: 0.02513599395 | AK99: 0.02564097041 | AL99: 0.02564097041 | AM99: 0.02615604639 | AN99: 0.02615604639 | AO99: 0.0266814239 | AP99: 0.0266814239 | AQ99: 0.02721730895 | AR99: 0.02721730895 | AS99: 0.02776391171 | AT99: 0.02776391171 | AU99: 0.02832144652 | AV99: 0.02832144652 | AW99: 0.02889013203 | AX99: 0.02889013203 | AY99: 0.02947019125 | AZ99: 0.02947019125 | BA99: 0.03006185165 | BB99: 0.03006185165 | BC99: 0.03066534526 | BD99: 0.03066534526 | BE99: 0.03128090874 | BF99: 0.03128090874 | BG99: 0.03128090874 | BH99: 0.03128090874 | BI99: 0.03128090874 | BJ99: 0.03128090874 | BK99: 0.03128090874 | BL99: 0.03128090874 | BM99: 0.03128090874 | BN99: 0.03128090874
C100: 3 | D100: High Inflation Case | E100: % | G100: =1.73%+2.6% -> 0.0433 | H100: =1.73%+2.6% -> 0.0433 | I100: =I94 -> 0.025 | J100: 0.025 | K100: 0.025 | L100: 0.025 | M100: 0.025 | N100: 0.025 | O100: 0.025 | P100: 0.025 | Q100: 0.025 | R100: 0.025 | S100: 0.025 | T100: 0.025 | U100: 0.025 | V100: 0.025 | W100: 0.025 | X100: 0.025 | Y100: 0.025 | Z100: 0.025 | AA100: 0.025 | AB100: 0.025 | AC100: 0.025 | AD100: 0.025 | AE100: 0.03 | AF100: 0.03 | AG100: 0.03 | AH100: 0.03 | AI100: 0.03 | AJ100: 0.03 | AK100: 0.03 | AL100: 0.03 | AM100: 0.03 | AN100: 0.03 | AO100: =AO94 -> 0.03 | AP100: 0.03 | AQ100: 0.03 | AR100: 0.03 | AS100: 0.03 | AT100: 0.03 | AU100: 0.03 | AV100: 0.03 | AW100: 0.03 | AX100: 0.03 | AY100: 0.03 | AZ100: 0.03 | BA100: 0.03 | BB100: 0.03 | BC100: 0.03 | BD100: 0.03 | BE100: 0.03 | BF100: 0.03 | BG100: 0.03 | BH100: 0.03 | BI100: 0.03 | BJ100: 0.03 | BK100: 0.03 | BL100: 0.03 | BM100: 0.03 | BN100: 0.03
D101: Revenue Inflation Applied | E101: % | G101: =INDEX(G98:G100,$F$97) -> 0.0433 | H101: 0.0433 | I101: 0.0195 | J101: 0.0195 | K101: 0.0206 | L101: 0.0206 | M101: 0.0206 | N101: 0.0206 | O101: 0.0206 | P101: 0.0206 | Q101: 0.02101425658 | R101: 0.02101425658 | S101: 0.02143679829 | T101: 0.02143679829 | U101: 0.02186779083 | V101: 0.02186779083 | W101: 0.02230740323 | X101: 0.02230740323 | Y101: 0.02275580787 | Z101: 0.02275580787 | AA101: 0.0232131806 | AB101: 0.0232131806 | AC101: 0.02367970079 | AD101: 0.02367970079 | AE101: 0.02415555139 | AF101: 0.02415555139 | AG101: 0.02464091899 | AH101: 0.02464091899 | AI101: 0.02513599395 | AJ101: 0.02513599395 | AK101: 0.02564097041 | AL101: 0.02564097041 | AM101: =INDEX(AM98:AM100,$F$97) -> 0.02615604639 | AN101: 0.02615604639 | AO101: 0.0266814239 | AP101: 0.0266814239 | AQ101: 0.02721730895 | AR101: 0.02721730895 | AS101: 0.02776391171 | AT101: 0.02776391171 | AU101: 0.02832144652 | AV101: 0.02832144652 | AW101: 0.02889013203 | AX101: 0.02889013203 | AY101: 0.02947019125 | AZ101: 0.02947019125 | BA101: 0.03006185165 | BB101: 0.03006185165 | BC101: 0.03066534526 | BD101: 0.03066534526 | BE101: 0.03128090874 | BF101: 0.03128090874 | BG101: 0.03128090874 | BH101: 0.03128090874 | BI101: 0.03128090874 | BJ101: 0.03128090874 | BK101: 0.03128090874 | BL101: 0.03128090874 | BM101: 0.03128090874 | BN101: 0.03128090874
D154: half a period | E154: % | G154: 0.5
D155: Operational delay in months | E155: Months | G155: 0
D156: Last day of 1st Period in model | E156: Date
D157: No of Months in year | E157: Months | G157: 12
D158: Refit 2 (€/mwh) | E158: (€/mwh)
D160: Start of SEM | E160: Date | G160: =F18+1 -> 2042-06-01
D161: End of SEM | E161: Date | G161: =F6 -> 2042-05-31
D162: Bonus for refit 2 (€/mwh) | E162: % | G162: 0.1379 | H162: =G158*G162 -> 0
D163: Share of Bonus after Discount years 1-15 for Refit 2 | E163: % | G163: 0.707
D164: End of charge | G164: =F6 -> 2042-05-31
C166: TUoS
D167: Charge (€/MW/Month) | G167: 0
D168: End of charge | G168: =G164 -> 2042-05-31
D169: PPA Adjustment | E169: % | G169: 0
D170: Share of Bonus after Discount years 1-15 for Refit 1 | E170: % | G170: 1
A172: Merchant Period Assumptions
D173: Share of Market Prices Post PPA | E173: % | G173: 1
C175: Market Clearing Prices | I175: 2013-01-01 | J175: 2013-07-01 | K175: 2014-01-01 | L175: 2014-07-01 | M175: 2015-01-01 | N175: 2015-07-01 | O175: 2016-01-01 | P175: 2016-07-01 | Q175: 2017-01-01 | R175: 2017-07-01 | S175: 2018-01-01 | T175: 2018-07-01 | U175: 2019-01-01 | V175: 2019-07-01 | W175: 2020-01-01 | X175: 2020-07-01 | Y175: 2021-01-01 | Z175: 2021-07-01 | AA175: 2022-01-01 | AB175: 2022-07-01 | AC175: 2023-01-01 | AD175: 2023-07-01 | AE175: 2024-01-01 | AF175: 2024-07-01 | AG175: 2025-01-01 | AH175: 2025-07-01 | AI175: 2026-01-01 | AJ175: 2026-07-01 | AK175: 2027-01-01 | AL175: 2027-07-01 | AM175: 2028-01-01 | AN175: 2028-07-01 | AO175: 2029-01-01 | AP175: 2029-07-01 | AQ175: 2030-01-01 | AR175: 2030-07-01 | AS175: 2031-01-01 | AT175: 2031-07-01 | AU175: 2032-01-01 | AV175: 2032-07-01 | AW175: 2033-01-01 | AX175: 2033-07-01 | AY175: 2034-01-01 | AZ175: 2034-07-01 | BA175: 2035-01-01 | BB175: 2035-07-01 | BC175: 2036-01-01 | BD175: 2036-07-01 | BE175: 2037-01-01 | BF175: 2037-07-01 | BG175: 2038-01-01 | BH175: 2038-07-01 | BI175: 2039-01-01 | BJ175: 2039-07-01 | BK175: 2040-01-01 | BL175: 2040-07-01 | BM175: 2041-01-01 | BN175: 2041-07-01 | BO175: 2042-01-01 | BP175: 2042-07-01
D176: Low SMP (€/mwh) | E176: (€/mwh) | I176: =I177*0.9 -> 54.17274566 | J176: =J177*0.9 -> 54.17274566 | K176: 55.87533946 | L176: 55.87533946 | M176: 55.30556999 | N176: 55.30556999 | O176: 55.6928181 | P176: 55.6928181 | Q176: 55.2988131 | R176: 55.2988131 | S176: 54.40814392 | T176: 54.40814392 | U176: 56.20560021 | V176: 56.20560021 | W176: 56.66168854 | X176: 56.66168854 | Y176: 57.69297758 | Z176: 57.69297758 | AA176: 58.13018757 | AB176: 58.13018757 | AC176: 59.29088682 | AD176: 59.29088682 | AE176: 60.91675265 | AF176: 60.91675265 | AG176: 61.66197663 | AH176: 61.66197663 | AI176: 62.44261243 | AJ176: 62.44261243 | AK176: 62.92331386 | AL176: 62.92331386 | AM176: 63.04612619 | AN176: 63.04612619 | AO176: 64.01755022 | AP176: 64.01755022 | AQ176: 65.04358285 | AR176: 65.04358285 | AS176: 65.61462742 | AT176: 65.61462742 | AU176: 66.80469424 | AV176: 66.80469424 | AW176: 68.78744349 | AX176: 68.78744349 | AY176: 70.3504137 | AZ176: 70.3504137 | BA176: 72.6213031 | BB176: 72.6213031 | BC176: 74.37030153 | BD176: 74.37030153 | BE176: 77.30395797 | BF176: 77.30395797 | BG176: 88.52617419 | BH176: 88.52617419 | BI176: 88.52617419 | BJ176: 88.52617419 | BK176: 88.52617419 | BL176: 88.52617419 | BM176: 88.52617419 | BN176: 88.52617419 | BO176: 88.52617419 | BP176: 88.52617419
D177: Central SMP (€/mwh) | E177: (€/mwh) | I177: 60.19193963 | J177: 60.19193963 | K177: 62.08371051 | L177: 62.08371051 | M177: 61.45063332 | N177: 61.45063332 | O177: 61.880909 | P177: 61.880909 | Q177: 61.44312567 | R177: 61.44312567 | S177: 60.45349324 | T177: 60.45349324 | U177: 62.45066689 | V177: 62.45066689 | W177: 62.95743171 | X177: 62.95743171 | Y177: 64.10330842 | Z177: 64.10330842 | AA177: 64.5890973 | AB177: 64.5890973 | AC177: 65.87876313 | AD177: 65.87876313 | AE177: 67.68528073 | AF177: 67.68528073 | AG177: 68.51330737 | AH177: 68.51330737 | AI177: 69.38068047 | AJ177: 69.38068047 | AK177: 69.91479318 | AL177: 69.91479318 | AM177: 70.05125132 | AN177: 70.05125132 | AO177: 71.13061135 | AP177: 71.13061135 | AQ177: 72.27064761 | AR177: 72.27064761 | AS177: 72.90514158 | AT177: 72.90514158 | AU177: 74.22743805 | AV177: 74.22743805 | AW177: 76.43049277 | AX177: 76.43049277 | AY177: 78.16712633 | AZ177: 78.16712633 | BA177: 80.69033678 | BB177: 80.69033678 | BC177: 82.63366837 | BD177: 82.63366837 | BE177: 85.89328663 | BF177: 85.89328663 | BG177: 98.36241576 | BH177: 98.36241576 | BI177: 98.36241576 | BJ177: 98.36241576 | BK177: 98.36241576 | BL177: 98.36241576 | BM177: 98.36241576 | BN177: 98.36241576 | BO177: 98.36241576 | BP177: 98.36241576
D178: High SMP (€/mwh) | E178: (€/mwh) | I178: =I177*1.1 -> 66.21113359 | J178: =J177*1.1 -> 66.21113359 | K178: 68.29208156 | L178: 68.29208156 | M178: 67.59569666 | N178: 67.59569666 | O178: 68.0689999 | P178: 68.0689999 | Q178: 67.58743823 | R178: 67.58743823 | S178: 66.49884256 | T178: 66.49884256 | U178: 68.69573358 | V178: 68.69573358 | W178: 69.25317488 | X178: 69.25317488 | Y178: 70.51363926 | Z178: 70.51363926 | AA178: 71.04800702 | AB178: 71.04800702 | AC178: 72.46663944 | AD178: 72.46663944 | AE178: 74.4538088 | AF178: 74.4538088 | AG178: 75.3646381 | AH178: 75.3646381 | AI178: 76.31874852 | AJ178: 76.31874852 | AK178: 76.9062725 | AL178: 76.9062725 | AM178: 77.05637645 | AN178: 77.05637645 | AO178: 78.24367249 | AP178: 78.24367249 | AQ178: 79.49771237 | AR178: 79.49771237 | AS178: 80.19565573 | AT178: 80.19565573 | AU178: 81.65018185 | AV178: 81.65018185 | AW178: 84.07354205 | AX178: 84.07354205 | AY178: 85.98383896 | AZ178: 85.98383896 | BA178: 88.75937045 | BB178: 88.75937045 | BC178: 90.8970352 | BD178: 90.8970352 | BE178: 94.4826153 | BF178: 94.4826153 | BG178: 108.1986573 | BH178: 108.1986573 | BI178: 108.1986573 | BJ178: 108.1986573 | BK178: 108.1986573 | BL178: 108.1986573 | BM178: 108.1986573 | BN178: 108.1986573 | BO178: 108.1986573 | BP178: 108.1986573
D180: Low Capacity (€/mwh) | E180: (€/mwh) | I180: 0 | J180: 0 | K180: 0 | L180: 0 | M180: 0 | N180: 0 | O180: 0 | P180: 0 | Q180: 0 | R180: 0 | S180: 0 | T180: 0 | U180: 0 | V180: 0 | W180: 0 | X180: 0 | Y180: 0 | Z180: 0 | AA180: 0 | AB180: 0 | AC180: 0 | AD180: 0 | AE180: 0 | AF180: 0 | AG180: 0 | AH180: 0 | AI180: 0 | AJ180: 0 | AK180: 0 | AL180: 0 | AM180: 0 | AN180: 0 | AO180: 0 | AP180: 0 | AQ180: 0 | AR180: 0 | AS180: 0 | AT180: 0 | AU180: 0 | AV180: 0 | AW180: 0 | AX180: 0 | AY180: 0 | AZ180: 0 | BA180: 0 | BB180: 0 | BC180: 0 | BD180: 0 | BE180: 0 | BF180: 0 | BG180: 0 | BH180: 0 | BI180: 0 | BJ180: 0 | BK180: 0 | BL180: 0 | BM180: 0 | BN180: 0 | BO180: 0 | BP180: 0
D181: Central Capacity (€/mwh) | E181: (€/mwh) | I181: 6.396538599 | J181: 6.396538599 | K181: 6.20049659 | L181: 6.20049659 | M181: 6.284250896 | N181: 6.284250896 | O181: 6.587131594 | P181: 6.587131594 | Q181: 6.626549522 | R181: 6.626549522 | S181: 6.629514019 | T181: 6.629514019 | U181: 6.647738814 | V181: 6.647738814 | W181: 6.915666891 | X181: 6.915666891 | Y181: 7.128805009 | Z181: 7.128805009 | AA181: 7.258532507 | AB181: 7.258532507 | AC181: 7.126471922 | AD181: 7.126471922 | AE181: 7.148294224 | AF181: 7.148294224 | AG181: 7.231009106 | AH181: 7.231009106 | AI181: 7.030252437 | AJ181: 7.030252437 | AK181: 7.080592206 | AL181: 7.080592206 | AM181: 7.095921671 | AN181: 7.095921671 | AO181: 7.185022741 | AP181: 7.185022741 | AQ181: 7.288069321 | AR181: 7.288069321 | AS181: 7.288069321 | AT181: 7.288069321 | AU181: 7.288069321 | AV181: 7.288069321 | AW181: 7.288069321 | AX181: 7.288069321 | AY181: 7.288069321 | AZ181: 7.288069321 | BA181: 7.288069321 | BB181: 7.288069321 | BC181: 7.288069321 | BD181: 7.288069321 | BE181: 7.288069321 | BF181: 7.288069321 | BG181: 7.288069321 | BH181: 7.288069321 | BI181: 7.288069321 | BJ181: 7.288069321 | BK181: 7.288069321 | BL181: 7.288069321 | BM181: 7.288069321 | BN181: 7.288069321 | BO181: 7.288069321 | BP181: 7.288069321
D182: High Capacity (€/mwh) | E182: (€/mwh) | I182: =I181*1.1 -> 7.036192458 | J182: =J181*1.1 -> 7.036192458 | K182: 6.820546249 | L182: 6.820546249 | M182: 6.912675986 | N182: 6.912675986 | O182: 7.245844753 | P182: 7.245844753 | Q182: 7.289204474 | R182: 7.289204474 | S182: 7.292465421 | T182: 7.292465421 | U182: 7.312512695 | V182: 7.312512695 | W182: 7.60723358 | X182: 7.60723358 | Y182: 7.84168551 | Z182: 7.84168551 | AA182: 7.984385757 | AB182: 7.984385757 | AC182: 7.839119114 | AD182: 7.839119114 | AE182: 7.863123646 | AF182: 7.863123646 | AG182: 7.954110016 | AH182: 7.954110016 | AI182: 7.73327768 | AJ182: 7.73327768 | AK182: 7.788651427 | AL182: 7.788651427 | AM182: 7.805513838 | AN182: 7.805513838 | AO182: 7.903525015 | AP182: 7.903525015 | AQ182: 8.016876253 | AR182: 8.016876253 | AS182: 8.016876253 | AT182: 8.016876253 | AU182: 8.016876253 | AV182: 8.016876253 | AW182: 8.016876253 | AX182: 8.016876253 | AY182: 8.016876253 | AZ182: 8.016876253 | BA182: 8.016876253 | BB182: 8.016876253 | BC182: 8.016876253 | BD182: 8.016876253 | BE182: 8.016876253 | BF182: 8.016876253 | BG182: 8.016876253 | BH182: 8.016876253 | BI182: 8.016876253 | BJ182: 8.016876253 | BK182: 8.016876253 | BL182: 8.016876253 | BM182: 8.016876253 | BN182: 8.016876253 | BO182: 8.016876253 | BP182: 8.016876253
D184: Total days in semi annual period | G184: 182.5
D318: Construction Monitoring Summary | I318: =CHOOSE($I$331,K318,M318,O318,P318) -> 0 | K318: 0
D319: Project Management & Co-ordination | I319: =CHOOSE($I$331,K319,M319,O319,P319) -> 0 | K319: 0
D320: Water monitoring (€) | I320: =CHOOSE($I$331,K320,M320,O320,P320) -> 0 | K320: 0
D321: Independent engineers (€) | I321: =CHOOSE($I$331,K321,M321,O321,P321) -> 0 | K321: 0
D322: Insurances (€) | I322: =CHOOSE($I$331,K322,M322,O322,P322) -> 0 | K322: 0
C324: Refit 2 Production
D325: P50 (mwh) semi annual | I325: 0 | K325: 0
D326: P75 (mwh) semi annual | I326: 0 | K326: 0
D327: P90 (mwh) semi annual | I327: 0 | K327: 0
D328: P99 (mwh) semi annual | I328: 0 | K328: 0
D331: Scenario Code | I331: 1
D332: Refit 1 | I332: ='Timing and Operations'!E24 -> 75
D333: Refit 2 | I333: 0
D334: Electrical engineering consultant (€) | I334: 0 | K334: 0
D335: Telecommunications (€) | I335: 0 | K335: 0
C338: Rent | G338: From | H338: To
D339: Rent years 1-5 | G339: 2015-01-01 | H339: 00:00:00 | I339: 0 | K339: 0
D340: Rent years 6-10 | G340: 00:00:00 | H340: 00:00:00 | I340: 0 | K340: 0
D341: Rent post year 10 | G341: 00:00:00 | H341: 00:00:00 | I341: 0 | K341: 0
D344: Annual Metering and Electrical input charge per MW in euros | E344: 0
D345: Annual Bank agency fees per MW in euros | E345: 0
D346: Annual SPV fee per MW in euros | E346: 0
D347: Annual Consultant fees per MW in euros | E347: 0
D348: Annual Other costs per MW in euros | E348: 0
D349: Annual Tax, Audit & Accounting costs per MW in euros | E349: 0
G352: PPA 2 | H352: PPA 3
G353: Line1 | H353: Line 2
G354: P50 | H354: P50
G355: P99 | H355: P75
G357: 0 | H357: 0
G358: 0 | H358: 0
G359: 0 | H359: 0
G360: 0 | H360: 0
G361: 0 | H361: 0
G362: 0 | H362: 0
G363: 0 | H363: 0
G364: 0 | H364: 0
G365: 0 | H365: 0

Sheet Tax Assumptions
A2: Profits Tax | H2: ='Value and Re-finance'!H1 -> Model OK
B3: Tax Charge | D3: 0.125
B4: Capital Allowance applied for no. Years | D4: 8
B5: Claim from operation start date | D5: ='Timing and Operations'!F5 -> 2017-06-01
B6: End of Claim | D6: =EDATE(D5,'Timing and Operations'!$G$157*$D$4)-1 -> 2025-05-31
A8: VAT
B9: Vat on turbines | D9: 0.1 | E9: 0.21
B10: Vat rate (average vat rate on other costs excluding vat on share consideration) | D10: 0.1 | E10: 0.15
B11: No. of months delay for vat receipts | D11: 2
A13: Fixed Assets
B14: Start of depreciation | D14: ='Timing and Operations'!F5 -> 2017-06-01
B15: Depreciation Period | D15: 20
B16: End of depreciation land & building | D16: =EDATE(D14,D15*12)-1 -> 2037-05-31
B17: no of period semi annual | D17: =D15*2 -> 40
B19: % of Fixed assets allowable for capital allowance | D19: 1
B20: Tax rate on deposits | D20: 0.25
B21: Tax paid in advance | D21: 0
B22: 1st tax payment (no of month) | D22: 6
B23: 2nd tax payment (no of month) | D23: 11
B24: Final tax payment (no of month) | D24: 9
B26: Total tax amount paid by 1st installment tax | D26: 0.5
B27: Total tax amount paid by 2nd installment tax | D27: 0.9
B28: Total tax amount paid by final installment | D28: 1

Sheet Debt Financing Assumptions
D1: =Integrity!E15 -> Model OK | E1: Equity IRR | F1: ='Debt and Cash Waterfall (SA)'!E410 -> 0.1469002783 | G1: SD% | H1: ='Debt and Cash Waterfall (SA)'!R138 -> 0.8343722105
A2: Senior Debt A
B3: Debt Size
D4: Target DSCR | E4: 132 | F4: =E4/100 -> 1.32
D5: Target Debt:Capital Ratio | E5: 80 | F5: =E5/100 -> 0.8
D6: Apply Scuplting | F6: FALSE
B8: Debt Draws
D9: Interest Capitalised (Rolled up to Debt) | F9: FALSE
D10: Start of Drawdown (Financial Close Date) | F10: ='Timing and Operations'!F3 -> 2015-10-01
D11: Draw Code (1-Pro-Rata; 2-Equity First; 3-Debt First) | F11: 2 | N11: Pro-Rata
N12: Equity First
B13: Debt Repayment
D14: Repayment period | F14: 16
D15: Start of Repayment (Construction Start Date) | F15: ='Timing and Operations'!$F$5 -> 2017-06-01 | N15: Equal Installment
D16: End of Repayment | F16: =EDATE(F15,F14*12) -> 2033-06-01 | N16: Annuity
D17: Repayment Style (1 - Level; 2 - Annuity; 3 - Sculpted) | F17: 3 | N17: Sculpted
B19: Interest and Fees
D20: Base rate | F20: 0.0155 | G20: 0.0155
D21: 18 year fixed rate swap spread | F21: 0
D22: Hedge percentage | F22: 1 | H22: Norm
D23: Construction Phase | F23: =F10 -> 2015-10-01 | G23: 0.0175 | H23: BBB credit spread | J23: 0.0175
D24: Initial margin (annual) | F24: =F15 -> 2017-06-01 | G24: 0.02 | J24: 0.02
D25: Years 5-10 margin(annual) | E25: 24 | F25: =EDATE(F24,E25) -> 2019-06-01 | G25: 0.0225 | J25: 0.0225
D26: Years 11-15 margin(annual) | E26: 36 | F26: =EDATE(F25,E26) -> 2022-06-01 | G26: 0.025 | H26: Higher margin here to protect bank on the downside | J26: 0.025
D28: Arrangement Fee (Upfront Fee) | F28: 0.015 | G28: 0.015
D29: Commitment Fee annual | F29: 0.0075 | G29: 0.0075 | H29: Fee for the amount you dont borrow, on the undrawn debt
D30: Fee Amortisation Period | E30: Years | F30: ='Tax Assumptions'!D4 -> 8
B32: Credit Enhancements | F32: 0.05
D33: DSRA Months | E33: Months | F33: 6 | H33: The amount of months of the annual Debt repayment needed to be retained
D34: DSRA Interest Rate | E34: % | F34: 0
D35: DRSA Funded with LOC | F35: FALSE | H35: Cash trap covenants - PV of CF/PV of Debt. Projection of the life of the project to project future CF's
D36: Cash Trap/Dividend Lockup Covenant | E36: DSCR X | F36: 1.15 | H36: You cannot pay a dividend on this
D37: Cash Sweep | F37: =G37/100 -> 0 | G37: 0 | H37: How much of the extra cashflow and pay off the debt / this is a % of CF after debt service
D39: Interest charge semi annual | F39: 0
A41: Subordinated Debt
C42: Debt Sizing
D43: Sub-debt % | F43: =G43/100 -> 0 | G43: 0
C44: Repayments
D45: Number of years before sub detb paid | F45: =F14 -> 16
D46: Start of Repayment | F46: =EDATE('Timing and Operations'!$F$5,F45*'Timing and Operations'!G157) -> 2033-06-01
D47: No of years for repayment | F47: 3
D48: End of Repayment | F48: =EDATE(F46,F47*'Timing and Operations'!$G$157)-1 -> 2036-05-31
C49: Interest and Fees
D50: Annual Coupon Rate - Construction | F50: =G50/100 -> 0.07 | G50: 7
D51: Annual Coupon Rate - Operations | F51: 0.07
D52: Sub Interest Tax Deductible | F52: TRUE
A54: Development Fee
C55: Development Fee Amount | F55: =G55*100000 -> 0 | G55: 0
C56: Percent of Construction | F56: =F55/'Debt and Cash Waterfall (SA)'!G127 -> 0
C57: Development Fee Date | F57: =F24 -> 2017-06-01
A59: MRA
D60: MRA required balance | F60: 0
D61: MRA required balance post yr 5 | F61: 0
D62: Length of period in mths | F62: 6
D63: % of semi annual period | F63: =F62/'Timing and Operations'!F11 -> 1
D64: Number of periods | F64: 4
D65: % of MRA balance built per period | F65: 0.25
D66: Start of 1st period of MRA balance build up | F66: ='Timing and Operations'!F5 -> 2017-06-01
D67: End of final period of MRA balance build up | F67: =EDATE(F66,F62*F64)-1 -> 2019-05-31
D68: Period post MRA build up | F68: =EDATE(F67+1,3) -> 2019-09-01
D69: End of MRA | F69: =F16 -> 2033-06-01
A71: VAT
D72: Interest rate on facilty | F72: 0.03 | H72: Low Risk - this should be low
D73: Arrangement fee | F73: 0
D74: Commitment fee | F74: 0
D76: Interest Capitalised | F76: FALSE
A78: Discount Rate (Return a Buyer Requires to invest in this project) | F78: Start Date | G78: Discount Rate - Equity | H78: Discount Rate - Project
D79: Pre-construction | F79: ='Timing and Operations'!F3 -> 2015-10-01 | G79: =J79/100 -> 0.17 | H79: =G79-3% -> 0.14 | J79: 17
D80: Post-Construction | F80: ='Timing and Operations'!F5 -> 2017-06-01 | G80: =J80/100 -> 0.13 | H80: =G80-2% -> 0.11 | J80: 13
D81: Initial Operations (Yrs 1 -3) | E81: 3 | F81: =EDATE(F80,E81*12) -> 2020-06-01 | G81: 0.11 | H81: =G81-2% -> 0.09 | J81: 11
D82: Initial Operations Mature | E82: 2 | F82: =EDATE(F81,E82*12) -> 2022-06-01 | G82: 0.09 | H82: 0.07 | J82: 9
D84: Risk Free Rate | F84: 0.035
D86: COD Month | F86: =MONTH('Timing and Operations'!F5) -> 6
D87: Assumed Sale Date | F87: =DATE(H87,F86,1) -> 2031-06-01 | H87: 2031
A89: Refinancing
D90: Include Re-Financing | F90: FALSE
D91: Assumed Date of Refinancing | F91: =DATE(H91,F86,1) -> 2019-06-01 | H91: 2019
D92: Assumed DSCR on Refinancing | F92: =H92/100 -> 1.29 | H92: 129
D93: Assumed Term (Tail) | F93: =H93 -> 3 | H93: 3
D94: Assumed Interest Rate | F94: =H94/1000 -> 0.041 | H94: 41
D95: End of Operations | F95: ='Timing and Operations'!F6+1 -> 2042-06-01
D96: Date of Repayment | F96: =EDATE(F95,-F93*12) -> 2039-06-01
D97: Tenor for Re-financing | F97: =DAYS360(F91,F95)/360 -> 23
D98: Fee on New Debt | F98: 0.015
D99: Breakage Fee | F99: 0.01
A101: LCOE Rates
D102: Discount Rate | F102: 0.1
D103: Inflation Rate | F103: =AVERAGE('Timing and Operations'!95:95) -> 0.02640268581
D104: Real | F104: =(1+F102)/(1+F103)-1 -> 0.07170413251
D105: Periodic | F105: =(1+F104)^(1/'Timing and Operations'!F12)-1 -> 0.0352314391
H111: Structuring
H112: Risk Analysis

Sheet S-Curve Assumptions
A1: Year | D1: ='Timing and Operations'!F2 -> 2015-01-01 | G1: =D1 -> 2015-01-01 | H1: =G2+1 -> 2015-02-01 | I1: =H2+1 -> 2015-03-01 | J1: 2015-04-01 | K1: 2015-05-01 | L1: 2015-06-01 | M1: 2015-07-01 | N1: 2015-08-01 | O1: 2015-09-01 | P1: 2015-10-01 | Q1: 2015-11-01 | R1: 2015-12-01 | S1: 2016-01-01 | T1: 2016-02-01 | U1: 2016-03-01 | V1: 2016-04-01 | W1: 2016-05-01 | X1: 2016-06-01 | Y1: 2016-07-01 | Z1: 2016-08-01 | AA1: 2016-09-01 | AB1: 2016-10-01 | AC1: 2016-11-01 | AD1: 2016-12-01 | AE1: 2017-01-01 | AF1: 2017-02-01 | AG1: 2017-03-01 | AH1: 2017-04-01 | AI1: 2017-05-01 | AJ1: 2017-06-01 | AK1: 2017-07-01 | AL1: 2017-08-01 | AM1: 2017-09-01 | AN1: 2017-10-01 | AO1: 2017-11-01 | AP1: 2017-12-01 | AQ1: 2018-01-01 | AR1: 2018-02-01 | AS1: 2018-03-01 | AT1: 2018-04-01 | AU1: 2018-05-01 | AV1: 2018-06-01 | AW1: 2018-07-01 | AX1: 2018-08-01 | AY1: 2018-09-01 | AZ1: 2018-10-01 | BA1: 2018-11-01 | BB1: 2018-12-01 | BC1: 2019-01-01 | BD1: 2019-02-01 | BE1: 2019-03-01 | BF1: =BE2+1 -> 2019-04-01 | BG1: 2019-05-01 | BH1: 2019-06-01 | BI1: 2019-07-01 | BJ1: 2019-08-01 | BK1: 2019-09-01 | BL1: 2019-10-01 | BM1: 2019-11-01 | BN1: 2019-12-01 | BO1: 2020-01-01 | BP1: 2020-02-01 | BQ1: 2020-03-01 | BR1: 2020-04-01 | BS1: 2020-05-01 | BT1: 2020-06-01 | BU1: 2020-07-01 | BV1: 2020-08-01 | BW1: 2020-09-01 | BX1: 2020-10-01 | BY1: 2020-11-01 | BZ1: 2020-12-01 | CA1: 2021-01-01 | CB1: 2021-02-01 | CC1: 2021-03-01 | CD1: 2021-04-01 | CE1: 2021-05-01 | CF1: 2021-06-01 | CG1: 2021-07-01 | CH1: 2021-08-01 | CI1: 2021-09-01 | CJ1: 2021-10-01 | CK1: 2021-11-01 | CL1: =CK2+1 -> 2021-12-01 | CM1: 2022-01-01 | CN1: 2022-02-01 | CO1: 2022-03-01 | CP1: 2022-04-01 | CQ1: 2022-05-01 | CR1: 2022-06-01 | CS1: 2022-07-01 | CT1: 2022-08-01 | CU1: 2022-09-01 | CV1: 2022-10-01 | CW1: 2022-11-01 | CX1: 2022-12-01 | CY1: 2023-01-01 | CZ1: 2023-02-01 | DA1: 2023-03-01 | DB1: 2023-04-01 | DC1: 2023-05-01 | DD1: 2023-06-01 | DE1: 2023-07-01 | DF1: 2023-08-01 | DG1: 2023-09-01 | DH1: 2023-10-01 | DI1: 2023-11-01 | DJ1: 2023-12-01 | DK1: 2024-01-01 | DL1: 2024-02-01 | DM1: 2024-03-01 | DN1: 2024-04-01 | DO1: 2024-05-01 | DP1: 2024-06-01 | DQ1: 2024-07-01 | DR1: 2024-08-01 | DS1: 2024-09-01 | DT1: 2024-10-01 | DU1: 2024-11-01 | DV1: 2024-12-01
A2: Last day of Period | G2: =EOMONTH(G1,0) -> 2015-01-31 | H2: =EOMONTH(H1,0) -> 2015-02-28 | I2: =EOMONTH(I1,0) -> 2015-03-31 | J2: 2015-04-30 | K2: 2015-05-31 | L2: 2015-06-30 | M2: 2015-07-31 | N2: 2015-08-31 | O2: 2015-09-30 | P2: 2015-10-31 | Q2: 2015-11-30 | R2: 2015-12-31 | S2: 2016-01-31 | T2: 2016-02-29 | U2: 2016-03-31 | V2: 2016-04-30 | W2: 2016-05-31 | X2: 2016-06-30 | Y2: 2016-07-31 | Z2: 2016-08-31 | AA2: 2016-09-30 | AB2: 2016-10-31 | AC2: 2016-11-30 | AD2: 2016-12-31 | AE2: 2017-01-31 | AF2: 2017-02-28 | AG2: 2017-03-31 | AH2: 2017-04-30 | AI2: 2017-05-31 | AJ2: 2017-06-30 | AK2: 2017-07-31 | AL2: =EOMONTH(AL1,0) -> 2017-08-31 | AM2: 2017-09-30 | AN2: 2017-10-31 | AO2: 2017-11-30 | AP2: 2017-12-31 | AQ2: 2018-01-31 | AR2: 2018-02-28 | AS2: 2018-03-31 | AT2: 2018-04-30 | AU2: 2018-05-31 | AV2: 2018-06-30 | AW2: 2018-07-31 | AX2: 2018-08-31 | AY2: 2018-09-30 | AZ2: 2018-10-31 | BA2: 2018-11-30 | BB2: 2018-12-31 | BC2: 2019-01-31 | BD2: 2019-02-28 | BE2: 2019-03-31 | BF2: =EOMONTH(BF1,0) -> 2019-04-30 | BG2: 2019-05-31 | BH2: 2019-06-30 | BI2: 2019-07-31 | BJ2: 2019-08-31 | BK2: 2019-09-30 | BL2: 2019-10-31 | BM2: 2019-11-30 | BN2: 2019-12-31 | BO2: 2020-01-31 | BP2: 2020-02-29 | BQ2: 2020-03-31 | BR2: 2020-04-30 | BS2: 2020-05-31 | BT2: 2020-06-30 | BU2: 2020-07-31 | BV2: 2020-08-31 | BW2: 2020-09-30 | BX2: 2020-10-31 | BY2: 2020-11-30 | BZ2: 2020-12-31 | CA2: 2021-01-31 | CB2: 2021-02-28 | CC2: 2021-03-31 | CD2: 2021-04-30 | CE2: 2021-05-31 | CF2: 2021-06-30 | CG2: 2021-07-31 | CH2: 2021-08-31 | CI2: 2021-09-30 | CJ2: 2021-10-31 | CK2: 2021-11-30 | CL2: =EOMONTH(CL1,0) -> 2021-12-31 | CM2: 2022-01-31 | CN2: 2022-02-28 | CO2: 2022-03-31 | CP2: 2022-04-30 | CQ2: 2022-05-31 | CR2: 2022-06-30 | CS2: 2022-07-31 | CT2: 2022-08-31 | CU2: 2022-09-30 | CV2: 2022-10-31 | CW2: 2022-11-30 | CX2: 2022-12-31 | CY2: 2023-01-31 | CZ2: 2023-02-28 | DA2: 2023-03-31 | DB2: 2023-04-30 | DC2: 2023-05-31 | DD2: 2023-06-30 | DE2: 2023-07-31 | DF2: 2023-08-31 | DG2: 2023-09-30 | DH2: 2023-10-31 | DI2: 2023-11-30 | DJ2: 2023-12-31 | DK2: 2024-01-31 | DL2: 2024-02-29 | DM2: 2024-03-31 | DN2: 2024-04-30 | DO2: 2024-05-31 | DP2: 2024-06-30 | DQ2: 2024-07-31 | DR2: =EOMONTH(DR1,0) -> 2024-08-31 | DS2: =EOMONTH(DS1,0) -> 2024-09-30 | DT2: =EOMONTH(DT1,0) -> 2024-10-31 | DU2: =EOMONTH(DU1,0) -> 2024-11-30 | DV2: =EOMONTH(DV1,0) -> 2024-12-31
B3: Period | G3: 1 | H3: =G3+1 -> 2 | I3: =H3+1 -> 3 | J3: 4 | K3: 5 | L3: 6 | M3: 7 | N3: 8 | O3: 9 | P3: 10 | Q3: 11 | R3: 12 | S3: 13 | T3: 14 | U3: 15 | V3: 16 | W3: 17 | X3: 18 | Y3: 19 | Z3: 20 | AA3: 21 | AB3: 22 | AC3: 23 | AD3: 24 | AE3: 25 | AF3: 26 | AG3: 27 | AH3: 28 | AI3: 29 | AJ3: 30 | AK3: 31 | AL3: =AK3+1 -> 32 | AM3: 33 | AN3: 34 | AO3: 35 | AP3: 36 | AQ3: 37 | AR3: 38 | AS3: 39 | AT3: 40 | AU3: 41 | AV3: 42 | AW3: 43 | AX3: 44 | AY3: 45 | AZ3: 46 | BA3: 47 | BB3: 48 | BC3: 49 | BD3: 50 | BE3: 51 | BF3: =BE3+1 -> 52 | BG3: 53 | BH3: 54 | BI3: 55 | BJ3: 56 | BK3: 57 | BL3: 58 | BM3: 59 | BN3: 60 | BO3: 61 | BP3: 62 | BQ3: 63 | BR3: 64 | BS3: 65 | BT3: 66 | BU3: 67 | BV3: 68 | BW3: 69 | BX3: 70 | BY3: 71 | BZ3: 72 | CA3: 73 | CB3: 74 | CC3: 75 | CD3: 76 | CE3: 77 | CF3: 78 | CG3: 79 | CH3: 80 | CI3: 81 | CJ3: 82 | CK3: 83 | CL3: =CK3+1 -> 84 | CM3: 85 | CN3: 86 | CO3: 87 | CP3: 88 | CQ3: 89 | CR3: 90 | CS3: 91 | CT3: 92 | CU3: 93 | CV3: 94 | CW3: 95 | CX3: 96 | CY3: 97 | CZ3: 98 | DA3: 99 | DB3: 100 | DC3: 101 | DD3: 102 | DE3: 103 | DF3: 104 | DG3: 105 | DH3: 106 | DI3: 107 | DJ3: 108 | DK3: 109 | DL3: 110 | DM3: 111 | DN3: 112 | DO3: 113 | DP3: 114 | DQ3: 115 | DR3: 116 | DS3: 117 | DT3: 118 | DU3: 119 | DV3: 120
B4: Construction Switch | D4: ='Timing and Operations'!F2 -> 2015-01-01 | E4: ='Timing and Operations'!F5 -> 2017-06-01 | G4: =AND(G1>=$D4,G1<$E4) -> TRUE | H4: TRUE | I4: TRUE | J4: TRUE | K4: TRUE | L4: TRUE | M4: TRUE | N4: TRUE | O4: TRUE | P4: TRUE | Q4: TRUE | R4: TRUE | S4: TRUE | T4: TRUE | U4: TRUE | V4: TRUE | W4: TRUE | X4: TRUE | Y4: TRUE | Z4: TRUE | AA4: TRUE | AB4: TRUE | AC4: TRUE | AD4: TRUE | AE4: TRUE | AF4: TRUE | AG4: TRUE | AH4: TRUE | AI4: TRUE | AJ4: FALSE | AK4: FALSE | AL4: FALSE | AM4: =AND(AM1>=$D4,AM1<$E4) -> FALSE | AN4: FALSE | AO4: FALSE | AP4: FALSE | AQ4: FALSE | AR4: FALSE | AS4: FALSE | AT4: FALSE | AU4: FALSE | AV4: FALSE | AW4: FALSE | AX4: FALSE | AY4: FALSE | AZ4: FALSE | BA4: FALSE | BB4: FALSE | BC4: FALSE | BD4: FALSE | BE4: FALSE | BF4: FALSE | BG4: FALSE | BH4: FALSE | BI4: FALSE | BJ4: FALSE | BK4: FALSE | BL4: FALSE | BM4: FALSE | BN4: FALSE | BO4: FALSE | BP4: FALSE | BQ4: FALSE | BR4: FALSE | BS4: =AND(BS1>=$D4,BS1<$E4) -> FALSE | BT4: FALSE | BU4: FALSE | BV4: FALSE | BW4: FALSE | BX4: FALSE | BY4: FALSE | BZ4: FALSE | CA4: FALSE | CB4: FALSE | CC4: FALSE | CD4: FALSE | CE4: FALSE | CF4: FALSE | CG4: FALSE | CH4: FALSE | CI4: FALSE | CJ4: FALSE | CK4: FALSE | CL4: FALSE | CM4: FALSE | CN4: FALSE | CO4: FALSE | CP4: FALSE | CQ4: FALSE | CR4: FALSE | CS4: FALSE | CT4: FALSE | CU4: FALSE | CV4: FALSE | CW4: FALSE | CX4: FALSE | CY4: =AND(CY1>=$D4,CY1<$E4) -> FALSE | CZ4: FALSE | DA4: FALSE | DB4: FALSE | DC4: FALSE | DD4: FALSE | DE4: FALSE | DF4: FALSE | DG4: FALSE | DH4: FALSE | DI4: FALSE | DJ4: FALSE | DK4: FALSE | DL4: FALSE | DM4: FALSE | DN4: FALSE | DO4: FALSE | DP4: FALSE | DQ4: FALSE | DR4: FALSE | DS4: FALSE | DT4: FALSE | DU4: FALSE | DV4: FALSE
B5: End of Construction | D5: =EDATE(E4,-1) -> 2017-05-01 | G5: =$D5=G1 -> FALSE | H5: FALSE | I5: FALSE | J5: FALSE | K5: FALSE | L5: FALSE | M5: FALSE | N5: FALSE | O5: FALSE | P5: FALSE | Q5: FALSE | R5: FALSE | S5: FALSE | T5: FALSE | U5: FALSE | V5: FALSE | W5: FALSE | X5: FALSE | Y5: FALSE | Z5: FALSE | AA5: FALSE | AB5: FALSE | AC5: FALSE | AD5: FALSE | AE5: FALSE | AF5: FALSE | AG5: FALSE | AH5: FALSE | AI5: TRUE | AJ5: FALSE | AK5: FALSE | AL5: FALSE | AM5: =$D5=AM1 -> FALSE | AN5: FALSE | AO5: FALSE | AP5: FALSE | AQ5: FALSE | AR5: FALSE | AS5: FALSE | AT5: FALSE | AU5: FALSE | AV5: FALSE | AW5: FALSE | AX5: FALSE | AY5: FALSE | AZ5: FALSE | BA5: FALSE | BB5: FALSE | BC5: FALSE | BD5: FALSE | BE5: FALSE | BF5: FALSE | BG5: FALSE | BH5: FALSE | BI5: FALSE | BJ5: FALSE | BK5: FALSE | BL5: FALSE | BM5: FALSE | BN5: FALSE | BO5: FALSE | BP5: FALSE | BQ5: FALSE | BR5: FALSE | BS5: =$D5=BS1 -> FALSE | BT5: FALSE | BU5: FALSE | BV5: FALSE | BW5: FALSE | BX5: FALSE | BY5: FALSE | BZ5: FALSE | CA5: FALSE | CB5: FALSE | CC5: FALSE | CD5: FALSE | CE5: FALSE | CF5: FALSE | CG5: FALSE | CH5: FALSE | CI5: FALSE | CJ5: FALSE | CK5: FALSE | CL5: FALSE | CM5: FALSE | CN5: FALSE | CO5: FALSE | CP5: FALSE | CQ5: FALSE | CR5: FALSE | CS5: FALSE | CT5: FALSE | CU5: FALSE | CV5: FALSE | CW5: FALSE | CX5: FALSE | CY5: =$D5=CY1 -> FALSE | CZ5: FALSE | DA5: FALSE | DB5: FALSE | DC5: FALSE | DD5: FALSE | DE5: FALSE | DF5: FALSE | DG5: FALSE | DH5: FALSE | DI5: FALSE | DJ5: FALSE | DK5: FALSE | DL5: FALSE | DM5: FALSE | DN5: FALSE | DO5: FALSE | DP5: FALSE | DQ5: FALSE | DR5: FALSE | DS5: FALSE | DT5: FALSE | DU5: FALSE | DV5: FALSE
A7: Base Construction Costs | E7: Total
B8: Sensitivity Factor | E8: =Sensitivities!E38 -> 1
B11: Development costs | D11: =SUM(G11:BN11) -> 1 | E11: ='Timing and Operations'!E28*Sensitivities!$E$38 -> 18259876.8 | G11: 0 | H11: 0 | I11: 0 | J11: 0 | K11: 0 | L11: 0 | M11: 0 | N11: 0 | O11: 0 | P11: 0 | Q11: 0 | R11: 0.15 | S11: 0.07 | T11: 0.07 | U11: 0.071 | V11: 0.071 | W11: 0.071 | X11: 0.071 | Y11: 0.071 | Z11: 0.071 | AA11: 0.071 | AB11: 0.071 | AC11: 0.071 | AD11: 0.071 | AE11: 0 | AF11: 0 | AG11: 0 | AH11: 0 | AI11: 0 | AJ11: 0 | AK11: 0 | AL11: 0 | AM11: 0 | AN11: 0 | AO11: 0 | AP11: 0 | AQ11: 0 | AR11: 0 | AS11: 0 | AT11: 0 | AU11: 0 | AV11: 0 | AW11: 0 | AX11: 0 | AY11: 0 | AZ11: 0 | BA11: 0 | BB11: 0 | BC11: 0 | BD11: 0 | BE11: 0 | BF11: 0 | BG11: 0 | BH11: 0 | BI11: 0 | BJ11: 0 | BK11: 0 | BL11: 0 | BM11: 0 | BN11: 0
B12: Turbine Supply Contract | D12: =SUM(G12:BN12) -> 1 | E12: ='Timing and Operations'!E27*Sensitivities!$E$38 -> 81252000 | G12: 0 | H12: 0 | I12: 0 | J12: 0 | K12: 0 | L12: 0 | M12: 0 | N12: 0 | O12: 0 | P12: 0 | Q12: 0 | R12: 0 | S12: 0.15 | T12: 0 | U12: 0 | V12: 0 | W12: 0.1 | X12: 0 | Y12: 0.1 | Z12: 0.05 | AA12: 0.05 | AB12: 0.05 | AC12: 0.15 | AD12: 0.35 | AE12: 0 | AF12: 0 | AG12: 0 | AH12: 0 | AI12: 0 | AJ12: 0 | AK12: 0 | AL12: 0 | AM12: 0 | AN12: 0 | AO12: 0 | AP12: 0 | AQ12: 0 | AR12: 0 | AS12: 0 | AT12: 0 | AU12: 0 | AV12: 0 | AW12: 0 | AX12: 0 | AY12: 0 | AZ12: 0 | BA12: 0 | BB12: 0 | BC12: 0 | BD12: 0 | BE12: 0 | BF12: 0 | BG12: 0 | BH12: 0 | BI12: 0 | BJ12: 0 | BK12: 0 | BL12: 0 | BM12: 0 | BN12: 0
B13: Finance/Legal / Banking | D13: 1 | E13: ='Timing and Operations'!E29*Sensitivities!$E$38 -> 1440000 | G13: 0 | H13: 0 | I13: 0 | J13: 0 | K13: 0 | L13: 0 | M13: 0 | N13: 0 | O13: 0 | P13: 0 | Q13: 0 | R13: 0.2 | S13: 0 | T13: 0 | U13: 0 | V13: 0 | W13: 0 | X13: 0 | Y13: 0 | Z13: 0 | AA13: 0 | AB13: 0 | AC13: 0 | AD13: 0.8 | AE13: 0 | AF13: 0 | AG13: 0 | AH13: 0 | AI13: 0 | AJ13: 0 | AK13: 0 | AL13: 0 | AM13: 0 | AN13: 0 | AO13: 0 | AP13: 0 | AQ13: 0 | AR13: 0 | AS13: 0 | AT13: 0 | AU13: 0 | AV13: 0 | AW13: 0 | AX13: 0 | AY13: 0 | AZ13: 0 | BA13: 0 | BB13: 0 | BC13: 0 | BD13: 0 | BE13: 0 | BF13: 0 | BG13: 0 | BH13: 0 | BI13: 0 | BJ13: 0 | BK13: 0 | BL13: 0 | BM13: 0 | BN13: 0
B14: Acquisition Cost | D14: 1 | E14: ='Timing and Operations'!E30*Sensitivities!$E$38 -> 11250000 | G14: 0 | H14: 0 | I14: 0 | J14: 0 | K14: 0 | L14: 0 | M14: 0 | N14: 0 | O14: 0 | P14: 1 | Q14: 0 | R14: 0 | S14: 0 | T14: 0 | U14: 0 | V14: 0 | W14: 0 | X14: 0 | Y14: 0 | Z14: 0 | AA14: 0 | AB14: 0 | AC14: 0 | AD14: 0 | AE14: 0 | AF14: 0 | AG14: 0 | AH14: 0 | AI14: 0 | AJ14: 0 | AK14: 0 | AL14: 0 | AM14: 0 | AN14: 0 | AO14: 0 | AP14: 0 | AQ14: 0 | AR14: 0 | AS14: 0 | AT14: 0 | AU14: 0 | AV14: 0 | AW14: 0 | AX14: 0 | AY14: 0 | AZ14: 0 | BA14: 0 | BB14: 0 | BC14: 0 | BD14: 0 | BE14: 0 | BF14: 0 | BG14: 0 | BH14: 0 | BI14: 0 | BJ14: 0 | BK14: 0 | BL14: 0 | BM14: 0 | BN14: 0
B15: Construction Monitoring Summary | D15: =SUM(G15:BN15) -> 0 | E15: ='Timing and Operations'!I318*Sensitivities!$E$38 -> 0 | G15: 0 | H15: 0 | I15: 0 | J15: 0 | K15: 0 | L15: 0 | M15: 0 | N15: 0 | O15: 0 | P15: 0 | Q15: 0 | R15: 0 | S15: 0 | T15: 0 | U15: 0 | V15: 0 | W15: 0 | X15: 0 | Y15: 0 | Z15: 0 | AA15: 0 | AB15: 0 | AC15: 0 | AD15: 0 | AE15: 0 | AF15: 0 | AG15: 0 | AH15: 0 | AI15: 0 | AJ15: 0 | AK15: 0 | AL15: 0 | AM15: 0 | AN15: 0 | AO15: 0 | AP15: 0 | AQ15: 0 | AR15: 0 | AS15: 0 | AT15: 0 | AU15: 0 | AV15: 0 | AW15: 0 | AX15: 0 | AY15: 0 | AZ15: 0 | BA15: 0 | BB15: 0 | BC15: 0 | BD15: 0 | BE15: 0 | BF15: 0 | BG15: 0 | BH15: 0 | BI15: 0 | BJ15: 0 | BK15: 0 | BL15: 0 | BM15: 0 | BN15: 0
B16: Project Management & Co-ordination | D16: 0 | E16: ='Timing and Operations'!I319*Sensitivities!$E$38 -> 0 | G16: 0 | H16: 0 | I16: 0 | J16: 0 | K16: 0 | L16: 0 | M16: 0 | N16: 0 | O16: 0 | P16: 0 | Q16: 0 | R16: 0 | S16: 0 | T16: 0 | U16: 0 | V16: 0 | W16: 0 | X16: 0 | Y16: 0 | Z16: 0 | AA16: 0 | AB16: 0 | AC16: 0 | AD16: 0 | AE16: 0 | AF16: 0 | AG16: 0 | AH16: 0 | AI16: 0 | AJ16: 0 | AK16: 0 | AL16: 0 | AM16: 0 | AN16: 0 | AO16: 0 | AP16: 0 | AQ16: 0 | AR16: 0 | AS16: 0 | AT16: 0 | AU16: 0 | AV16: 0 | AW16: 0 | AX16: 0 | AY16: 0 | AZ16: 0 | BA16: 0 | BB16: 0 | BC16: 0 | BD16: 0 | BE16: 0 | BF16: 0 | BG16: 0 | BH16: 0 | BI16: 0 | BJ16: 0 | BK16: 0 | BL16: 0 | BM16: 0 | BN16: 0
B17: Water monitoring | D17: 0 | E17: ='Timing and Operations'!I320*Sensitivities!$E$38 -> 0 | G17: 0 | H17: 0 | I17: 0 | J17: 0 | K17: 0 | L17: 0 | M17: 0 | N17: 0 | O17: 0 | P17: 0 | Q17: 0 | R17: 0 | S17: 0 | T17: 0 | U17: 0 | V17: 0 | W17: 0 | X17: 0 | Y17: 0 | Z17: 0 | AA17: 0 | AB17: 0 | AC17: 0 | AD17: 0 | AE17: 0 | AF17: 0 | AG17: 0 | AH17: 0 | AI17: 0 | AJ17: 0 | AK17: 0 | AL17: 0 | AM17: 0 | AN17: 0 | AO17: 0 | AP17: 0 | AQ17: 0 | AR17: 0 | AS17: 0 | AT17: 0 | AU17: 0 | AV17: 0 | AW17: 0 | AX17: 0 | AY17: 0 | AZ17: 0 | BA17: 0 | BB17: 0 | BC17: 0 | BD17: 0 | BE17: 0 | BF17: 0 | BG17: 0 | BH17: 0 | BI17: 0 | BJ17: 0 | BK17: 0 | BL17: 0 | BM17: 0 | BN17: 0
B18: Independent engineers | D18: 0 | E18: ='Timing and Operations'!I321*Sensitivities!$E$38 -> 0 | G18: 0 | H18: 0 | I18: 0 | J18: 0 | K18: 0 | L18: 0 | M18: 0 | N18: 0 | O18: 0 | P18: 0 | Q18: 0 | R18: 0 | S18: 0 | T18: 0 | U18: 0 | V18: 0 | W18: 0 | X18: 0 | Y18: 0 | Z18: 0 | AA18: 0 | AB18: 0 | AC18: 0 | AD18: 0 | AE18: 0 | AF18: 0 | AG18: 0 | AH18: 0 | AI18: 0 | AJ18: 0 | AK18: 0 | AL18: 0 | AM18: 0 | AN18: 0 | AO18: 0 | AP18: 0 | AQ18: 0 | AR18: 0 | AS18: 0 | AT18: 0 | AU18: 0 | AV18: 0 | AW18: 0 | AX18: 0 | AY18: 0 | AZ18: 0 | BA18: 0 | BB18: 0 | BC18: 0 | BD18: 0 | BE18: 0 | BF18: 0 | BG18: 0 | BH18: 0 | BI18: 0 | BJ18: 0 | BK18: 0 | BL18: 0 | BM18: 0 | BN18: 0
B19: Insurances | D19: 0 | E19: ='Timing and Operations'!I322*Sensitivities!$E$38 -> 0 | G19: 0 | H19: 0 | I19: 0 | J19: 0 | K19: 0 | L19: 0 | M19: 0 | N19: 0 | O19: 0 | P19: 0 | Q19: 0 | R19: 0 | S19: 0 | T19: 0 | U19: 0 | V19: 0 | W19: 0 | X19: 0 | Y19: 0 | Z19: 0 | AA19: 0 | AB19: 0 | AC19: 0 | AD19: 0 | AE19: 0 | AF19: 0 | AG19: 0 | AH19: 0 | AI19: 0 | AJ19: 0 | AK19: 0 | AL19: 0 | AM19: 0 | AN19: 0 | AO19: 0 | AP19: 0 | AQ19: 0 | AR19: 0 | AS19: 0 | AT19: 0 | AU19: 0 | AV19: 0 | AW19: 0 | AX19: 0 | AY19: 0 | AZ19: 0 | BA19: 0 | BB19: 0 | BC19: 0 | BD19: 0 | BE19: 0 | BF19: 0 | BG19: 0 | BH19: 0 | BI19: 0 | BJ19: 0 | BK19: 0 | BL19: 0 | BM19: 0 | BN19: 0
B20: Electrical engineering infrastructure | D20: 1 | E20: ='Timing and Operations'!E31*Sensitivities!$E$38 -> 11772000 | G20: 0 | H20: 0 | I20: 0 | J20: 0 | K20: 0 | L20: 0 | M20: 0 | N20: 0 | O20: 0 | P20: 0 | Q20: 0 | R20: 0.7 | S20: 0 | T20: 0 | U20: 0 | V20: 0 | W20: 0 | X20: 0 | Y20: 0 | Z20: 0 | AA20: 0 | AB20: 0 | AC20: 0 | AD20: 0.3 | AE20: 0 | AF20: 0 | AG20: 0 | AH20: 0 | AI20: 0 | AJ20: 0 | AK20: 0 | AL20: 0 | AM20: 0 | AN20: 0 | AO20: 0 | AP20: 0 | AQ20: 0 | AR20: 0 | AS20: 0 | AT20: 0 | AU20: 0 | AV20: 0 | AW20: 0 | AX20: 0 | AY20: 0 | AZ20: 0 | BA20: 0 | BB20: 0 | BC20: 0 | BD20: 0 | BE20: 0 | BF20: 0 | BG20: 0 | BH20: 0 | BI20: 0 | BJ20: 0 | BK20: 0 | BL20: 0 | BM20: 0 | BN20: 0
B21: Electrical engineering consultant | D21: 0 | E21: ='Timing and Operations'!I334*Sensitivities!$E$38 -> 0 | G21: 0 | H21: 0 | I21: 0 | J21: 0 | K21: 0 | L21: 0 | M21: 0 | N21: 0 | O21: 0 | P21: 0 | Q21: 0 | R21: 0 | S21: 0 | T21: 0 | U21: 0 | V21: 0 | W21: 0 | X21: 0 | Y21: 0 | Z21: 0 | AA21: 0 | AB21: 0 | AC21: 0 | AD21: 0 | AE21: 0 | AF21: 0 | AG21: 0 | AH21: 0 | AI21: 0 | AJ21: 0 | AK21: 0 | AL21: 0 | AM21: 0 | AN21: 0 | AO21: 0 | AP21: 0 | AQ21: 0 | AR21: 0 | AS21: 0 | AT21: 0 | AU21: 0 | AV21: 0 | AW21: 0 | AX21: 0 | AY21: 0 | AZ21: 0 | BA21: 0 | BB21: 0 | BC21: 0 | BD21: 0 | BE21: 0 | BF21: 0 | BG21: 0 | BH21: 0 | BI21: 0 | BJ21: 0 | BK21: 0 | BL21: 0 | BM21: 0 | BN21: 0
B22: Grid Connection supply | D22: 1 | E22: ='Timing and Operations'!E32*Sensitivities!$E$38 -> 3044520 | G22: 0 | H22: 0 | I22: 0 | J22: 0 | K22: 0 | L22: 0 | M22: 0 | N22: 0 | O22: 0 | P22: 0 | Q22: 0 | R22: 0 | S22: 0 | T22: 0 | U22: 0 | V22: 0 | W22: 0 | X22: 0 | Y22: 0 | Z22: 0 | AA22: 0.5 | AB22: 0 | AC22: 0 | AD22: 0.5 | AE22: 0 | AF22: 0 | AG22: 0 | AH22: 0 | AI22: 0 | AJ22: 0 | AK22: 0 | AL22: 0 | AM22: 0 | AN22: 0 | AO22: 0 | AP22: 0 | AQ22: 0 | AR22: 0 | AS22: 0 | AT22: 0 | AU22: 0 | AV22: 0 | AW22: 0 | AX22: 0 | AY22: 0 | AZ22: 0 | BA22: 0 | BB22: 0 | BC22: 0 | BD22: 0 | BE22: 0 | BF22: 0 | BG22: 0 | BH22: 0 | BI22: 0 | BJ22: 0 | BK22: 0 | BL22: 0 | BM22: 0 | BN22: 0
B23: Civil works contract | D23: 1 | E23: ='Timing and Operations'!E33*Sensitivities!$E$38 -> 12024000 | G23: 0 | H23: 0 | I23: 0 | J23: 0 | K23: 0 | L23: 0 | M23: 0 | N23: 0 | O23: 0 | P23: 0 | Q23: 0 | R23: 0 | S23: 0 | T23: 0.1 | U23: 0.2 | V23: 0.2 | W23: 0.3 | X23: 0.2 | Y23: 0 | Z23: 0 | AA23: 0 | AB23: 0 | AC23: 0 | AD23: 0 | AE23: 0 | AF23: 0 | AG23: 0 | AH23: 0 | AI23: 0 | AJ23: 0 | AK23: 0 | AL23: 0 | AM23: 0 | AN23: 0 | AO23: 0 | AP23: 0 | AQ23: 0 | AR23: 0 | AS23: 0 | AT23: 0 | AU23: 0 | AV23: 0 | AW23: 0 | AX23: 0 | AY23: 0 | AZ23: 0 | BA23: 0 | BB23: 0 | BC23: 0 | BD23: 0 | BE23: 0 | BF23: 0 | BG23: 0 | BH23: 0 | BI23: 0 | BJ23: 0 | BK23: 0 | BL23: 0 | BM23: 0 | BN23: 0
B24: Telecommunications | D24: 0 | E24: ='Timing and Operations'!I335*Sensitivities!$E$38 -> 0 | G24: 0 | H24: 0 | I24: 0 | J24: 0 | K24: 0 | L24: 0 | M24: 0 | N24: 0 | O24: 0 | P24: 0 | Q24: 0 | R24: 0 | S24: 0 | T24: 0 | U24: 0 | V24: 0 | W24: 0 | X24: 0 | Y24: 0 | Z24: 0 | AA24: 0 | AB24: 0 | AC24: 0 | AD24: 0 | AE24: 0 | AF24: 0 | AG24: 0 | AH24: 0 | AI24: 0 | AJ24: 0 | AK24: 0 | AL24: 0 | AM24: 0 | AN24: 0 | AO24: 0 | AP24: 0 | AQ24: 0 | AR24: 0 | AS24: 0 | AT24: 0 | AU24: 0 | AV24: 0 | AW24: 0 | AX24: 0 | AY24: 0 | AZ24: 0 | BA24: 0 | BB24: 0 | BC24: 0 | BD24: 0 | BE24: 0 | BF24: 0 | BG24: 0 | BH24: 0 | BI24: 0 | BJ24: 0 | BK24: 0 | BL24: 0 | BM24: 0 | BN24: 0
B25: Landscaping | D25: 1 | E25: ='Timing and Operations'!E34*Sensitivities!$E$38 -> 16084800 | G25: 0 | H25: 0 | I25: 0 | J25: 0 | K25: 0 | L25: 0 | M25: 0 | N25: 0 | O25: 0 | P25: 0 | Q25: 0 | R25: 0 | S25: 0 | T25: 1 | U25: 0 | V25: 0 | W25: 0 | X25: 0 | Y25: 0 | Z25: 0 | AA25: 0 | AB25: 0 | AC25: 0 | AD25: 0 | AE25: 0 | AF25: 0 | AG25: 0 | AH25: 0 | AI25: 0 | AJ25: 0 | AK25: 0 | AL25: 0 | AM25: 0 | AN25: 0 | AO25: 0 | AP25: 0 | AQ25: 0 | AR25: 0 | AS25: 0 | AT25: 0 | AU25: 0 | AV25: 0 | AW25: 0 | AX25: 0 | AY25: 0 | AZ25: 0 | BA25: 0 | BB25: 0 | BC25: 0 | BD25: 0 | BE25: 0 | BF25: 0 | BG25: 0 | BH25: 0 | BI25: 0 | BJ25: 0 | BK25: 0 | BL25: 0 | BM25: 0 | BN25: 0
B26: Miscellaneous | D26: 1 | E26: ='Timing and Operations'!E35*Sensitivities!$E$38 -> 22455410.4 | G26: 0 | H26: 0 | I26: 0 | J26: 0 | K26: 0 | L26: 0 | M26: 0 | N26: 0 | O26: 0 | P26: 0 | Q26: 0 | R26: 0 | S26: 0 | T26: 1 | U26: 0 | V26: 0 | W26: 0 | X26: 0 | Y26: 0 | Z26: 0 | AA26: 0 | AB26: 0 | AC26: 0 | AD26: 0 | AE26: 0 | AF26: 0 | AG26: 0 | AH26: 0 | AI26: 0 | AJ26: 0 | AK26: 0 | AL26: 0 | AM26: 0 | AN26: 0 | AO26: 0 | AP26: 0 | AQ26: 0 | AR26: 0 | AS26: 0 | AT26: 0 | AU26: 0 | AV26: 0 | AW26: 0 | AX26: 0 | AY26: 0 | AZ26: 0 | BA26: 0 | BB26: 0 | BC26: 0 | BD26: 0 | BE26: 0 | BF26: 0 | BG26: 0 | BH26: 0 | BI26: 0 | BJ26: 0 | BK26: 0 | BL26: 0 | BM26: 0 | BN26: 0
B27: Contingency | C27: 0.05 | D27: 1 | E27: =(SUM(E15:E26)+SUM(E11:E13))*$C$27 -> 8316630.36 | G27: 0 | H27: 0 | I27: 0 | J27: 0 | K27: 0 | L27: 0 | M27: 0 | N27: 0 | O27: 0 | P27: 0 | Q27: 0 | R27: 0 | S27: 0.0837 | T27: 0.0833 | U27: 0.0833 | V27: 0.0833 | W27: 0.0833 | X27: 0.0833 | Y27: 0.0833 | Z27: 0.0833 | AA27: 0.0833 | AB27: 0.0833 | AC27: 0.0833 | AD27: 0.0833 | AE27: 0 | AF27: 0 | AG27: 0 | AH27: 0 | AI27: 0 | AJ27: 0 | AK27: 0 | AL27: 0 | AM27: 0 | AN27: 0 | AO27: 0 | AP27: 0 | AQ27: 0 | AR27: 0 | AS27: 0 | AT27: 0 | AU27: 0 | AV27: 0 | AW27: 0 | AX27: 0 | AY27: 0 | AZ27: 0 | BA27: 0 | BB27: 0 | BC27: 0 | BD27: 0 | BE27: 0 | BF27: 0 | BG27: 0 | BH27: 0 | BI27: 0 | BJ27: 0 | BK27: 0 | BL27: 0 | BM27: 0 | BN27: 0
B28: Acquisition fee | D28: 0 | E28: ='Timing and Operations'!$E$24*$E$81 -> 0 | G28: 0 | H28: 0 | I28: 0 | J28: 0 | K28: 0 | L28: 0 | M28: 0 | N28: 0 | O28: 0 | P28: 0 | Q28: 0 | R28: 0 | S28: 0 | T28: 0 | U28: 0 | V28: 0 | W28: 0 | X28: 0 | Y28: 0 | Z28: 0 | AA28: 0 | AB28: 0 | AC28: 0 | AD28: 0 | AE28: 0 | AF28: 0 | AG28: 0 | AH28: 0 | AI28: 0 | AJ28: 0 | AK28: 0 | AL28: 0 | AM28: 0 | AN28: 0 | AO28: 0 | AP28: 0 | AQ28: 0 | AR28: 0 | AS28: 0 | AT28: 0 | AU28: 0 | AV28: 0 | AW28: 0 | AX28: 0 | AY28: 0 | AZ28: 0 | BA28: 0 | BB28: 0 | BC28: 0 | BD28: 0 | BE28: 0 | BF28: 0 | BG28: 0 | BH28: 0 | BI28: 0 | BJ28: 0 | BK28: 0 | BL28: 0 | BM28: 0 | BN28: 0
B30: Total Cost | E30: =SUM(E11:E28) -> 185899237.6
A32: VAT Costs
B33: Development costs | E33: =SUM(G33:DV33) -> 18259876.8 | G33: =$E$11*G$11 -> 0 | H33: =$E$11*H$11 -> 0 | I33: 0 | J33: 0 | K33: 0 | L33: 0 | M33: 0 | N33: 0 | O33: 0 | P33: 0 | Q33: 0 | R33: 2738981.52 | S33: 1278191.376 | T33: 1278191.376 | U33: 1296451.253 | V33: 1296451.253 | W33: 1296451.253 | X33: 1296451.253 | Y33: 1296451.253 | Z33: 1296451.253 | AA33: 1296451.253 | AB33: 1296451.253 | AC33: 1296451.253 | AD33: 1296451.253 | AE33: 0 | AF33: 0 | AG33: 0 | AH33: 0 | AI33: 0 | AJ33: 0 | AK33: 0 | AL33: 0 | AM33: 0 | AN33: 0 | AO33: 0 | AP33: 0 | AQ33: 0 | AR33: 0 | AS33: 0 | AT33: 0 | AU33: 0 | AV33: 0 | AW33: 0 | AX33: 0 | AY33: 0 | AZ33: 0 | BA33: 0 | BB33: 0 | BC33: 0 | BD33: 0 | BE33: 0 | BF33: 0 | BG33: 0 | BH33: 0 | BI33: 0 | BJ33: 0 | BK33: 0 | BL33: 0 | BM33: 0 | BN33: 0 | BO33: 0 | BP33: 0 | BQ33: 0 | BR33: 0 | BS33: 0 | BT33: =$E$11*BT$11 -> 0 | BU33: 0 | BV33: 0 | BW33: 0 | BX33: 0 | BY33: 0 | BZ33: 0 | CA33: 0 | CB33: 0 | CC33: 0 | CD33: 0 | CE33: 0 | CF33: 0 | CG33: 0 | CH33: 0 | CI33: 0 | CJ33: 0 | CK33: 0 | CL33: 0 | CM33: 0 | CN33: 0 | CO33: 0 | CP33: 0 | CQ33: 0 | CR33: 0 | CS33: 0 | CT33: 0 | CU33: 0 | CV33: 0 | CW33: 0 | CX33: 0 | CY33: 0 | CZ33: 0 | DA33: 0 | DB33: 0 | DC33: 0 | DD33: 0 | DE33: 0 | DF33: 0 | DG33: 0 | DH33: 0 | DI33: 0 | DJ33: 0 | DK33: 0 | DL33: 0 | DM33: 0 | DN33: 0 | DO33: 0 | DP33: 0 | DQ33: 0 | DR33: 0 | DS33: 0 | DT33: 0 | DU33: 0 | DV33: 0
B34: Turbine Supply Contract | E34: =SUM(G34:DV34) -> 81252000 | G34: =$E$12*G$12 -> 0 | H34: =$E$12*H$12 -> 0 | I34: 0 | J34: 0 | K34: 0 | L34: 0 | M34: 0 | N34: 0 | O34: 0 | P34: 0 | Q34: 0 | R34: 0 | S34: 12187800 | T34: 0 | U34: 0 | V34: 0 | W34: 8125200 | X34: 0 | Y34: 8125200 | Z34: 4062600 | AA34: 4062600 | AB34: 4062600 | AC34: 12187800 | AD34: 28438200 | AE34: 0 | AF34: 0 | AG34: 0 | AH34: 0 | AI34: 0 | AJ34: 0 | AK34: 0 | AL34: 0 | AM34: 0 | AN34: 0 | AO34: 0 | AP34: 0 | AQ34: 0 | AR34: 0 | AS34: 0 | AT34: 0 | AU34: 0 | AV34: 0 | AW34: 0 | AX34: 0 | AY34: 0 | AZ34: 0 | BA34: 0 | BB34: 0 | BC34: 0 | BD34: 0 | BE34: 0 | BF34: 0 | BG34: 0 | BH34: 0 | BI34: 0 | BJ34: 0 | BK34: 0 | BL34: 0 | BM34: 0 | BN34: 0 | BO34: 0 | BP34: 0 | BQ34: 0 | BR34: 0 | BS34: 0 | BT34: =$E$12*BT$12 -> 0 | BU34: 0 | BV34: 0 | BW34: 0 | BX34: 0 | BY34: 0 | BZ34: 0 | CA34: 0 | CB34: 0 | CC34: 0 | CD34: 0 | CE34: 0 | CF34: 0 | CG34: 0 | CH34: 0 | CI34: 0 | CJ34: 0 | CK34: 0 | CL34: 0 | CM34: 0 | CN34: 0 | CO34: 0 | CP34: 0 | CQ34: 0 | CR34: 0 | CS34: 0 | CT34: 0 | CU34: 0 | CV34: 0 | CW34: 0 | CX34: 0 | CY34: 0 | CZ34: 0 | DA34: 0 | DB34: 0 | DC34: 0 | DD34: 0 | DE34: 0 | DF34: 0 | DG34: 0 | DH34: 0 | DI34: 0 | DJ34: 0 | DK34: 0 | DL34: 0 | DM34: 0 | DN34: 0 | DO34: 0 | DP34: 0 | DQ34: 0 | DR34: 0 | DS34: 0 | DT34: 0 | DU34: 0 | DV34: 0
B35: Finance/Legal / Banking | E35: 1440000 | G35: =$E$13*G13 -> 0 | H35: =$E$13*H13 -> 0 | I35: 0 | J35: 0 | K35: 0 | L35: 0 | M35: 0 | N35: 0 | O35: 0 | P35: 0 | Q35: 0 | R35: 288000 | S35: 0 | T35: 0 | U35: 0 | V35: 0 | W35: 0 | X35: 0 | Y35: 0 | Z35: 0 | AA35: 0 | AB35: 0 | AC35: 0 | AD35: 1152000 | AE35: 0 | AF35: 0 | AG35: 0 | AH35: 0 | AI35: 0 | AJ35: 0 | AK35: 0 | AL35: 0 | AM35: 0 | AN35: 0 | AO35: 0 | AP35: 0 | AQ35: 0 | AR35: 0 | AS35: 0 | AT35: 0 | AU35: 0 | AV35: 0 | AW35: 0 | AX35: 0 | AY35: 0 | AZ35: 0 | BA35: 0 | BB35: 0 | BC35: 0 | BD35: 0 | BE35: 0 | BF35: 0 | BG35: 0 | BH35: 0 | BI35: 0 | BJ35: 0 | BK35: 0 | BL35: 0 | BM35: 0 | BN35: 0 | BO35: 0 | BP35: 0 | BQ35: 0 | BR35: 0 | BS35: 0 | BT35: =$E$13*BT13 -> 0 | BU35: 0 | BV35: 0 | BW35: 0 | BX35: 0 | BY35: 0 | BZ35: 0 | CA35: 0 | CB35: 0 | CC35: 0 | CD35: 0 | CE35: 0 | CF35: 0 | CG35: 0 | CH35: 0 | CI35: 0 | CJ35: 0 | CK35: 0 | CL35: 0 | CM35: 0 | CN35: 0 | CO35: 0 | CP35: 0 | CQ35: 0 | CR35: 0 | CS35: 0 | CT35: 0 | CU35: 0 | CV35: 0 | CW35: 0 | CX35: 0 | CY35: 0 | CZ35: 0 | DA35: 0 | DB35: 0 | DC35: 0 | DD35: 0 | DE35: 0 | DF35: 0 | DG35: 0 | DH35: 0 | DI35: 0 | DJ35: 0 | DK35: 0 | DL35: 0 | DM35: 0 | DN35: 0 | DO35: 0 | DP35: 0 | DQ35: 0 | DR35: 0 | DS35: 0 | DT35: 0 | DU35: 0 | DV35: 0
B36: ADDITIONAL PLANNING COSTS SUMMARY | E36: 11250000 | G36: =$E$14*G14 -> 0 | H36: =$E$14*H14 -> 0 | I36: 0 | J36: 0 | K36: 0 | L36: 0 | M36: 0 | N36: 0 | O36: 0 | P36: 11250000 | Q36: 0 | R36: 0 | S36: 0 | T36: 0 | U36: 0 | V36: 0 | W36: 0 | X36: 0 | Y36: 0 | Z36: 0 | AA36: 0 | AB36: 0 | AC36: 0 | AD36: 0 | AE36: 0 | AF36: 0 | AG36: 0 | AH36: 0 | AI36: 0 | AJ36: 0 | AK36: 0 | AL36: 0 | AM36: 0 | AN36: 0 | AO36: 0 | AP36: 0 | AQ36: 0 | AR36: 0 | AS36: 0 | AT36: 0 | AU36: 0 | AV36: 0 | AW36: 0 | AX36: 0 | AY36: 0 | AZ36: 0 | BA36: 0 | BB36: 0 | BC36: 0 | BD36: 0 | BE36: 0 | BF36: 0 | BG36: 0 | BH36: 0 | BI36: 0 | BJ36: 0 | BK36: 0 | BL36: 0 | BM36: 0 | BN36: 0 | BO36: 0 | BP36: 0 | BQ36: 0 | BR36: 0 | BS36: 0 | BT36: =$E$14*BT14 -> 0 | BU36: 0 | BV36: 0 | BW36: 0 | BX36: 0 | BY36: 0 | BZ36: 0 | CA36: 0 | CB36: 0 | CC36: 0 | CD36: 0 | CE36: 0 | CF36: 0 | CG36: 0 | CH36: 0 | CI36: 0 | CJ36: 0 | CK36: 0 | CL36: 0 | CM36: 0 | CN36: 0 | CO36: 0 | CP36: 0 | CQ36: 0 | CR36: 0 | CS36: 0 | CT36: 0 | CU36: 0 | CV36: 0 | CW36: 0 | CX36: 0 | CY36: 0 | CZ36: 0 | DA36: 0 | DB36: 0 | DC36: 0 | DD36: 0 | DE36: 0 | DF36: 0 | DG36: 0 | DH36: 0 | DI36: 0 | DJ36: 0 | DK36: 0 | DL36: 0 | DM36: 0 | DN36: 0 | DO36: 0 | DP36: 0 | DQ36: 0 | DR36: 0 | DS36: 0 | DT36: 0 | DU36: 0 | DV36: 0
B37: Construction Monitoring Summary | E37: 0 | G37: =$E$15*G$15 -> 0 | H37: =$E$15*H$15 -> 0 | I37: 0 | J37: 0 | K37: 0 | L37: 0 | M37: 0 | N37: 0 | O37: 0 | P37: 0 | Q37: 0 | R37: 0 | S37: 0 | T37: 0 | U37: 0 | V37: 0 | W37: 0 | X37: 0 | Y37: 0 | Z37: 0 | AA37: 0 | AB37: 0 | AC37: 0 | AD37: 0 | AE37: 0 | AF37: 0 | AG37: 0 | AH37: 0 | AI37: 0 | AJ37: 0 | AK37: 0 | AL37: 0 | AM37: 0 | AN37: 0 | AO37: 0 | AP37: 0 | AQ37: 0 | AR37: 0 | AS37: 0 | AT37: 0 | AU37: 0 | AV37: 0 | AW37: 0 | AX37: 0 | AY37: 0 | AZ37: 0 | BA37: 0 | BB37: 0 | BC37: 0 | BD37: 0 | BE37: 0 | BF37: 0 | BG37: 0 | BH37: 0 | BI37: 0 | BJ37: 0 | BK37: 0 | BL37: 0 | BM37: 0 | BN37: 0 | BO37: 0 | BP37: 0 | BQ37: 0 | BR37: 0 | BS37: 0 | BT37: =$E$15*BT$15 -> 0 | BU37: 0 | BV37: 0 | BW37: 0 | BX37: 0 | BY37: 0 | BZ37: 0 | CA37: 0 | CB37: 0 | CC37: 0 | CD37: 0 | CE37: 0 | CF37: 0 | CG37: 0 | CH37: 0 | CI37: 0 | CJ37: 0 | CK37: 0 | CL37: 0 | CM37: 0 | CN37: 0 | CO37: 0 | CP37: 0 | CQ37: 0 | CR37: 0 | CS37: 0 | CT37: 0 | CU37: 0 | CV37: 0 | CW37: 0 | CX37: 0 | CY37: 0 | CZ37: 0 | DA37: 0 | DB37: 0 | DC37: 0 | DD37: 0 | DE37: 0 | DF37: 0 | DG37: 0 | DH37: 0 | DI37: 0 | DJ37: 0 | DK37: 0 | DL37: 0 | DM37: 0 | DN37: 0 | DO37: 0 | DP37: 0 | DQ37: 0 | DR37: 0 | DS37: 0 | DT37: 0 | DU37: 0 | DV37: 0
B38: Project Management & Co-ordination | E38: 0 | G38: =$E$16*G16 -> 0 | H38: =$E$16*H16 -> 0 | I38: 0 | J38: 0 | K38: 0 | L38: 0 | M38: 0 | N38: 0 | O38: 0 | P38: 0 | Q38: 0 | R38: 0 | S38: 0 | T38: 0 | U38: 0 | V38: 0 | W38: 0 | X38: 0 | Y38: 0 | Z38: 0 | AA38: 0 | AB38: 0 | AC38: 0 | AD38: 0 | AE38: 0 | AF38: 0 | AG38: 0 | AH38: 0 | AI38: 0 | AJ38: 0 | AK38: 0 | AL38: 0 | AM38: 0 | AN38: 0 | AO38: 0 | AP38: 0 | AQ38: 0 | AR38: 0 | AS38: 0 | AT38: 0 | AU38: 0 | AV38: 0 | AW38: 0 | AX38: 0 | AY38: 0 | AZ38: 0 | BA38: 0 | BB38: 0 | BC38: 0 | BD38: 0 | BE38: 0 | BF38: 0 | BG38: 0 | BH38: 0 | BI38: 0 | BJ38: 0 | BK38: 0 | BL38: 0 | BM38: 0 | BN38: 0 | BO38: 0 | BP38: 0 | BQ38: 0 | BR38: 0 | BS38: 0 | BT38: =$E$16*BT16 -> 0 | BU38: 0 | BV38: 0 | BW38: 0 | BX38: 0 | BY38: 0 | BZ38: 0 | CA38: 0 | CB38: 0 | CC38: 0 | CD38: 0 | CE38: 0 | CF38: 0 | CG38: 0 | CH38: 0 | CI38: 0 | CJ38: 0 | CK38: 0 | CL38: 0 | CM38: 0 | CN38: 0 | CO38: 0 | CP38: 0 | CQ38: 0 | CR38: 0 | CS38: 0 | CT38: 0 | CU38: 0 | CV38: 0 | CW38: 0 | CX38: 0 | CY38: 0 | CZ38: 0 | DA38: 0 | DB38: 0 | DC38: 0 | DD38: 0 | DE38: 0 | DF38: 0 | DG38: 0 | DH38: 0 | DI38: 0 | DJ38: 0 | DK38: 0 | DL38: 0 | DM38: 0 | DN38: 0 | DO38: 0 | DP38: 0 | DQ38: 0 | DR38: 0 | DS38: 0 | DT38: 0 | DU38: 0 | DV38: 0
B39: Water monitoring | E39: 0 | G39: =$E$17*G17 -> 0 | H39: =$E$17*H17 -> 0 | I39: 0 | J39: 0 | K39: 0 | L39: 0 | M39: 0 | N39: 0 | O39: 0 | P39: 0 | Q39: 0 | R39: 0 | S39: 0 | T39: 0 | U39: 0 | V39: 0 | W39: 0 | X39: 0 | Y39: 0 | Z39: 0 | AA39: 0 | AB39: 0 | AC39: 0 | AD39: 0 | AE39: 0 | AF39: 0 | AG39: 0 | AH39: 0 | AI39: 0 | AJ39: 0 | AK39: 0 | AL39: 0 | AM39: 0 | AN39: 0 | AO39: 0 | AP39: 0 | AQ39: 0 | AR39: 0 | AS39: 0 | AT39: 0 | AU39: 0 | AV39: 0 | AW39: 0 | AX39: 0 | AY39: 0 | AZ39: 0 | BA39: 0 | BB39: 0 | BC39: 0 | BD39: 0 | BE39: 0 | BF39: 0 | BG39: 0 | BH39: 0 | BI39: 0 | BJ39: 0 | BK39: 0 | BL39: 0 | BM39: 0 | BN39: 0 | BO39: 0 | BP39: 0 | BQ39: 0 | BR39: 0 | BS39: 0 | BT39: =$E$17*BT17 -> 0 | BU39: 0 | BV39: 0 | BW39: 0 | BX39: 0 | BY39: 0 | BZ39: 0 | CA39: 0 | CB39: 0 | CC39: 0 | CD39: 0 | CE39: 0 | CF39: 0 | CG39: 0 | CH39: 0 | CI39: 0 | CJ39: 0 | CK39: 0 | CL39: 0 | CM39: 0 | CN39: 0 | CO39: 0 | CP39: 0 | CQ39: 0 | CR39: 0 | CS39: 0 | CT39: 0 | CU39: 0 | CV39: 0 | CW39: 0 | CX39: 0 | CY39: 0 | CZ39: 0 | DA39: 0 | DB39: 0 | DC39: 0 | DD39: 0 | DE39: 0 | DF39: 0 | DG39: 0 | DH39: 0 | DI39: 0 | DJ39: 0 | DK39: 0 | DL39: 0 | DM39: 0 | DN39: 0 | DO39: 0 | DP39: 0 | DQ39: 0 | DR39: 0 | DS39: 0 | DT39: 0 | DU39: 0 | DV39: 0
B40: Independent engineers | E40: 0 | G40: =$E$18*G18 -> 0 | H40: =$E$18*H18 -> 0 | I40: 0 | J40: 0 | K40: 0 | L40: 0 | M40: 0 | N40: 0 | O40: 0 | P40: 0 | Q40: 0 | R40: 0 | S40: 0 | T40: 0 | U40: 0 | V40: 0 | W40: 0 | X40: 0 | Y40: 0 | Z40: 0 | AA40: 0 | AB40: 0 | AC40: 0 | AD40: 0 | AE40: 0 | AF40: 0 | AG40: 0 | AH40: 0 | AI40: 0 | AJ40: 0 | AK40: 0 | AL40: 0 | AM40: 0 | AN40: 0 | AO40: 0 | AP40: 0 | AQ40: 0 | AR40: 0 | AS40: 0 | AT40: 0 | AU40: 0 | AV40: 0 | AW40: 0 | AX40: 0 | AY40: 0 | AZ40: 0 | BA40: 0 | BB40: 0 | BC40: 0 | BD40: 0 | BE40: 0 | BF40: 0 | BG40: 0 | BH40: 0 | BI40: 0 | BJ40: 0 | BK40: 0 | BL40: 0 | BM40: 0 | BN40: 0 | BO40: 0 | BP40: 0 | BQ40: 0 | BR40: 0 | BS40: 0 | BT40: =$E$18*BT18 -> 0 | BU40: 0 | BV40: 0 | BW40: 0 | BX40: 0 | BY40: 0 | BZ40: 0 | CA40: 0 | CB40: 0 | CC40: 0 | CD40: 0 | CE40: 0 | CF40: 0 | CG40: 0 | CH40: 0 | CI40: 0 | CJ40: 0 | CK40: 0 | CL40: 0 | CM40: 0 | CN40: 0 | CO40: 0 | CP40: 0 | CQ40: 0 | CR40: 0 | CS40: 0 | CT40: 0 | CU40: 0 | CV40: 0 | CW40: 0 | CX40: 0 | CY40: 0 | CZ40: 0 | DA40: 0 | DB40: 0 | DC40: 0 | DD40: 0 | DE40: 0 | DF40: 0 | DG40: 0 | DH40: 0 | DI40: 0 | DJ40: 0 | DK40: 0 | DL40: 0 | DM40: 0 | DN40: 0 | DO40: 0 | DP40: 0 | DQ40: 0 | DR40: 0 | DS40: 0 | DT40: 0 | DU40: 0 | DV40: 0
B41: Insurances | E41: 0 | G41: =$E$19*G19 -> 0 | H41: =$E$19*H19 -> 0 | I41: 0 | J41: 0 | K41: 0 | L41: 0 | M41: 0 | N41: 0 | O41: 0 | P41: 0 | Q41: 0 | R41: 0 | S41: 0 | T41: 0 | U41: 0 | V41: 0 | W41: 0 | X41: 0 | Y41: 0 | Z41: 0 | AA41: 0 | AB41: 0 | AC41: 0 | AD41: 0 | AE41: 0 | AF41: 0 | AG41: 0 | AH41: 0 | AI41: 0 | AJ41: 0 | AK41: 0 | AL41: 0 | AM41: 0 | AN41: 0 | AO41: 0 | AP41: 0 | AQ41: 0 | AR41: 0 | AS41: 0 | AT41: 0 | AU41: 0 | AV41: 0 | AW41: 0 | AX41: 0 | AY41: 0 | AZ41: 0 | BA41: 0 | BB41: 0 | BC41: 0 | BD41: 0 | BE41: 0 | BF41: 0 | BG41: 0 | BH41: 0 | BI41: 0 | BJ41: 0 | BK41: 0 | BL41: 0 | BM41: 0 | BN41: 0 | BO41: 0 | BP41: 0 | BQ41: 0 | BR41: 0 | BS41: 0 | BT41: =$E$19*BT19 -> 0 | BU41: 0 | BV41: 0 | BW41: 0 | BX41: 0 | BY41: 0 | BZ41: 0 | CA41: 0 | CB41: 0 | CC41: 0 | CD41: 0 | CE41: 0 | CF41: 0 | CG41: 0 | CH41: 0 | CI41: 0 | CJ41: 0 | CK41: 0 | CL41: 0 | CM41: 0 | CN41: 0 | CO41: 0 | CP41: 0 | CQ41: 0 | CR41: 0 | CS41: 0 | CT41: 0 | CU41: 0 | CV41: 0 | CW41: 0 | CX41: 0 | CY41: 0 | CZ41: 0 | DA41: 0 | DB41: 0 | DC41: 0 | DD41: 0 | DE41: 0 | DF41: 0 | DG41: 0 | DH41: 0 | DI41: 0 | DJ41: 0 | DK41: 0 | DL41: 0 | DM41: 0 | DN41: 0 | DO41: 0 | DP41: 0 | DQ41: 0 | DR41: 0 | DS41: 0 | DT41: 0 | DU41: 0 | DV41: 0
B42: Electrical engineering infrastructure | E42: 11772000 | G42: =$E$20*G20 -> 0 | H42: =$E$20*H20 -> 0 | I42: 0 | J42: 0 | K42: 0 | L42: 0 | M42: 0 | N42: 0 | O42: 0 | P42: 0 | Q42: 0 | R42: 8240400 | S42: 0 | T42: 0 | U42: 0 | V42: 0 | W42: 0 | X42: 0 | Y42: 0 | Z42: 0 | AA42: 0 | AB42: 0 | AC42: 0 | AD42: 3531600 | AE42: 0 | AF42: 0 | AG42: 0 | AH42: 0 | AI42: 0 | AJ42: 0 | AK42: 0 | AL42: 0 | AM42: 0 | AN42: 0 | AO42: 0 | AP42: 0 | AQ42: 0 | AR42: 0 | AS42: 0 | AT42: 0 | AU42: 0 | AV42: 0 | AW42: 0 | AX42: 0 | AY42: 0 | AZ42: 0 | BA42: 0 | BB42: 0 | BC42: 0 | BD42: 0 | BE42: 0 | BF42: 0 | BG42: 0 | BH42: 0 | BI42: 0 | BJ42: 0 | BK42: 0 | BL42: 0 | BM42: 0 | BN42: 0 | BO42: 0 | BP42: 0 | BQ42: 0 | BR42: 0 | BS42: 0 | BT42: =$E$20*BT20 -> 0 | BU42: 0 | BV42: 0 | BW42: 0 | BX42: 0 | BY42: 0 | BZ42: 0 | CA42: 0 | CB42: 0 | CC42: 0 | CD42: 0 | CE42: 0 | CF42: 0 | CG42: 0 | CH42: 0 | CI42: 0 | CJ42: 0 | CK42: 0 | CL42: 0 | CM42: 0 | CN42: 0 | CO42: 0 | CP42: 0 | CQ42: 0 | CR42: 0 | CS42: 0 | CT42: 0 | CU42: 0 | CV42: 0 | CW42: 0 | CX42: 0 | CY42: 0 | CZ42: 0 | DA42: 0 | DB42: 0 | DC42: 0 | DD42: 0 | DE42: 0 | DF42: 0 | DG42: 0 | DH42: 0 | DI42: 0 | DJ42: 0 | DK42: 0 | DL42: 0 | DM42: 0 | DN42: 0 | DO42: 0 | DP42: 0 | DQ42: 0 | DR42: 0 | DS42: 0 | DT42: 0 | DU42: 0 | DV42: 0
B43: Electrical engineering consultant | E43: 0 | G43: =$E$21*G21 -> 0 | H43: =$E$21*H21 -> 0 | I43: 0 | J43: 0 | K43: 0 | L43: 0 | M43: 0 | N43: 0 | O43: 0 | P43: 0 | Q43: 0 | R43: 0 | S43: 0 | T43: 0 | U43: 0 | V43: 0 | W43: 0 | X43: 0 | Y43: 0 | Z43: 0 | AA43: 0 | AB43: 0 | AC43: 0 | AD43: 0 | AE43: 0 | AF43: 0 | AG43: 0 | AH43: 0 | AI43: 0 | AJ43: 0 | AK43: 0 | AL43: 0 | AM43: 0 | AN43: 0 | AO43: 0 | AP43: 0 | AQ43: 0 | AR43: 0 | AS43: 0 | AT43: 0 | AU43: 0 | AV43: 0 | AW43: 0 | AX43: 0 | AY43: 0 | AZ43: 0 | BA43: 0 | BB43: 0 | BC43: 0 | BD43: 0 | BE43: 0 | BF43: 0 | BG43: 0 | BH43: 0 | BI43: 0 | BJ43: 0 | BK43: 0 | BL43: 0 | BM43: 0 | BN43: 0 | BO43: 0 | BP43: 0 | BQ43: 0 | BR43: 0 | BS43: 0 | BT43: =$E$21*BT21 -> 0 | BU43: 0 | BV43: 0 | BW43: 0 | BX43: 0 | BY43: 0 | BZ43: 0 | CA43: 0 | CB43: 0 | CC43: 0 | CD43: 0 | CE43: 0 | CF43: 0 | CG43: 0 | CH43: 0 | CI43: 0 | CJ43: 0 | CK43: 0 | CL43: 0 | CM43: 0 | CN43: 0 | CO43: 0 | CP43: 0 | CQ43: 0 | CR43: 0 | CS43: 0 | CT43: 0 | CU43: 0 | CV43: 0 | CW43: 0 | CX43: 0 | CY43: 0 | CZ43: 0 | DA43: 0 | DB43: 0 | DC43: 0 | DD43: 0 | DE43: 0 | DF43: 0 | DG43: 0 | DH43: 0 | DI43: 0 | DJ43: 0 | DK43: 0 | DL43: 0 | DM43: 0 | DN43: 0 | DO43: 0 | DP43: 0 | DQ43: 0 | DR43: 0 | DS43: 0 | DT43: 0 | DU43: 0 | DV43: 0
B44: Grid Connection supply | E44: 3044520 | G44: =$E$22*G22 -> 0 | H44: =$E$22*H22 -> 0 | I44: 0 | J44: 0 | K44: 0 | L44: 0 | M44: 0 | N44: 0 | O44: 0 | P44: 0 | Q44: 0 | R44: 0 | S44: 0 | T44: 0 | U44: 0 | V44: 0 | W44: 0 | X44: 0 | Y44: 0 | Z44: 0 | AA44: 1522260 | AB44: 0 | AC44: 0 | AD44: 1522260 | AE44: 0 | AF44: 0 | AG44: 0 | AH44: 0 | AI44: 0 | AJ44: 0 | AK44: 0 | AL44: 0 | AM44: 0 | AN44: 0 | AO44: 0 | AP44: 0 | AQ44: 0 | AR44: 0 | AS44: 0 | AT44: 0 | AU44: 0 | AV44: 0 | AW44: 0 | AX44: 0 | AY44: 0 | AZ44: 0 | BA44: 0 | BB44: 0 | BC44: 0 | BD44: 0 | BE44: 0 | BF44: 0 | BG44: 0 | BH44: 0 | BI44: 0 | BJ44: 0 | BK44: 0 | BL44: 0 | BM44: 0 | BN44: 0 | BO44: 0 | BP44: 0 | BQ44: 0 | BR44: 0 | BS44: 0 | BT44: =$E$22*BT22 -> 0 | BU44: 0 | BV44: 0 | BW44: 0 | BX44: 0 | BY44: 0 | BZ44: 0 | CA44: 0 | CB44: 0 | CC44: 0 | CD44: 0 | CE44: 0 | CF44: 0 | CG44: 0 | CH44: 0 | CI44: 0 | CJ44: 0 | CK44: 0 | CL44: 0 | CM44: 0 | CN44: 0 | CO44: 0 | CP44: 0 | CQ44: 0 | CR44: 0 | CS44: 0 | CT44: 0 | CU44: 0 | CV44: 0 | CW44: 0 | CX44: 0 | CY44: 0 | CZ44: 0 | DA44: 0 | DB44: 0 | DC44: 0 | DD44: 0 | DE44: 0 | DF44: 0 | DG44: 0 | DH44: 0 | DI44: 0 | DJ44: 0 | DK44: 0 | DL44: 0 | DM44: 0 | DN44: 0 | DO44: 0 | DP44: 0 | DQ44: 0 | DR44: 0 | DS44: 0 | DT44: 0 | DU44: 0 | DV44: 0
B45: Civil works contract | E45: 12024000 | G45: =$E$23*G23 -> 0 | H45: =$E$23*H23 -> 0 | I45: 0 | J45: 0 | K45: 0 | L45: 0 | M45: 0 | N45: 0 | O45: 0 | P45: 0 | Q45: 0 | R45: 0 | S45: 0 | T45: 1202400 | U45: 2404800 | V45: 2404800 | W45: 3607200 | X45: 2404800 | Y45: 0 | Z45: 0 | AA45: 0 | AB45: 0 | AC45: 0 | AD45: 0 | AE45: 0 | AF45: 0 | AG45: 0 | AH45: 0 | AI45: 0 | AJ45: 0 | AK45: 0 | AL45: 0 | AM45: 0 | AN45: 0 | AO45: 0 | AP45: 0 | AQ45: 0 | AR45: 0 | AS45: 0 | AT45: 0 | AU45: 0 | AV45: 0 | AW45: 0 | AX45: 0 | AY45: 0 | AZ45: 0 | BA45: 0 | BB45: 0 | BC45: 0 | BD45: 0 | BE45: 0 | BF45: 0 | BG45: 0 | BH45: 0 | BI45: 0 | BJ45: 0 | BK45: 0 | BL45: 0 | BM45: 0 | BN45: 0 | BO45: 0 | BP45: 0 | BQ45: 0 | BR45: 0 | BS45: 0 | BT45: =$E$23*BT23 -> 0 | BU45: 0 | BV45: 0 | BW45: 0 | BX45: 0 | BY45: 0 | BZ45: 0 | CA45: 0 | CB45: 0 | CC45: 0 | CD45: 0 | CE45: 0 | CF45: 0 | CG45: 0 | CH45: 0 | CI45: 0 | CJ45: 0 | CK45: 0 | CL45: 0 | CM45: 0 | CN45: 0 | CO45: 0 | CP45: 0 | CQ45: 0 | CR45: 0 | CS45: 0 | CT45: 0 | CU45: 0 | CV45: 0 | CW45: 0 | CX45: 0 | CY45: 0 | CZ45: 0 | DA45: 0 | DB45: 0 | DC45: 0 | DD45: 0 | DE45: 0 | DF45: 0 | DG45: 0 | DH45: 0 | DI45: 0 | DJ45: 0 | DK45: 0 | DL45: 0 | DM45: 0 | DN45: 0 | DO45: 0 | DP45: 0 | DQ45: 0 | DR45: 0 | DS45: 0 | DT45: 0 | DU45: 0 | DV45: 0
B46: Telecommunications | E46: 0 | G46: =$E$24*G24 -> 0 | H46: =$E$24*H24 -> 0 | I46: 0 | J46: 0 | K46: 0 | L46: 0 | M46: 0 | N46: 0 | O46: 0 | P46: 0 | Q46: 0 | R46: 0 | S46: 0 | T46: 0 | U46: 0 | V46: 0 | W46: 0 | X46: 0 | Y46: 0 | Z46: 0 | AA46: 0 | AB46: 0 | AC46: 0 | AD46: 0 | AE46: 0 | AF46: 0 | AG46: 0 | AH46: 0 | AI46: 0 | AJ46: 0 | AK46: 0 | AL46: 0 | AM46: 0 | AN46: 0 | AO46: 0 | AP46: 0 | AQ46: 0 | AR46: 0 | AS46: 0 | AT46: 0 | AU46: 0 | AV46: 0 | AW46: 0 | AX46: 0 | AY46: 0 | AZ46: 0 | BA46: 0 | BB46: 0 | BC46: 0 | BD46: 0 | BE46: 0 | BF46: 0 | BG46: 0 | BH46: 0 | BI46: 0 | BJ46: 0 | BK46: 0 | BL46: 0 | BM46: 0 | BN46: 0 | BO46: 0 | BP46: 0 | BQ46: 0 | BR46: 0 | BS46: 0 | BT46: =$E$24*BT24 -> 0 | BU46: 0 | BV46: 0 | BW46: 0 | BX46: 0 | BY46: 0 | BZ46: 0 | CA46: 0 | CB46: 0 | CC46: 0 | CD46: 0 | CE46: 0 | CF46: 0 | CG46: 0 | CH46: 0 | CI46: 0 | CJ46: 0 | CK46: 0 | CL46: 0 | CM46: 0 | CN46: 0 | CO46: 0 | CP46: 0 | CQ46: 0 | CR46: 0 | CS46: 0 | CT46: 0 | CU46: 0 | CV46: 0 | CW46: 0 | CX46: 0 | CY46: 0 | CZ46: 0 | DA46: 0 | DB46: 0 | DC46: 0 | DD46: 0 | DE46: 0 | DF46: 0 | DG46: 0 | DH46: 0 | DI46: 0 | DJ46: 0 | DK46: 0 | DL46: 0 | DM46: 0 | DN46: 0 | DO46: 0 | DP46: 0 | DQ46: 0 | DR46: 0 | DS46: 0 | DT46: 0 | DU46: 0 | DV46: 0
B47: Landscaping | E47: 16084800 | G47: =$E$25*G25 -> 0 | H47: =$E$25*H25 -> 0 | I47: 0 | J47: 0 | K47: 0 | L47: 0 | M47: 0 | N47: 0 | O47: 0 | P47: 0 | Q47: 0 | R47: 0 | S47: 0 | T47: 16084800 | U47: 0 | V47: 0 | W47: 0 | X47: 0 | Y47: 0 | Z47: 0 | AA47: 0 | AB47: 0 | AC47: 0 | AD47: 0 | AE47: 0 | AF47: 0 | AG47: 0 | AH47: 0 | AI47: 0 | AJ47: 0 | AK47: 0 | AL47: 0 | AM47: 0 | AN47: 0 | AO47: 0 | AP47: 0 | AQ47: 0 | AR47: 0 | AS47: 0 | AT47: 0 | AU47: 0 | AV47: 0 | AW47: 0 | AX47: 0 | AY47: 0 | AZ47: 0 | BA47: 0 | BB47: 0 | BC47: 0 | BD47: 0 | BE47: 0 | BF47: 0 | BG47: 0 | BH47: 0 | BI47: 0 | BJ47: 0 | BK47: 0 | BL47: 0 | BM47: 0 | BN47: 0 | BO47: 0 | BP47: 0 | BQ47: 0 | BR47: 0 | BS47: 0 | BT47: =$E$25*BT25 -> 0 | BU47: 0 | BV47: 0 | BW47: 0 | BX47: 0 | BY47: 0 | BZ47: 0 | CA47: 0 | CB47: 0 | CC47: 0 | CD47: 0 | CE47: 0 | CF47: 0 | CG47: 0 | CH47: 0 | CI47: 0 | CJ47: 0 | CK47: 0 | CL47: 0 | CM47: 0 | CN47: 0 | CO47: 0 | CP47: 0 | CQ47: 0 | CR47: 0 | CS47: 0 | CT47: 0 | CU47: 0 | CV47: 0 | CW47: 0 | CX47: 0 | CY47: 0 | CZ47: 0 | DA47: 0 | DB47: 0 | DC47: 0 | DD47: 0 | DE47: 0 | DF47: 0 | DG47: 0 | DH47: 0 | DI47: 0 | DJ47: 0 | DK47: 0 | DL47: 0 | DM47: 0 | DN47: 0 | DO47: 0 | DP47: 0 | DQ47: 0 | DR47: 0 | DS47: 0 | DT47: 0 | DU47: 0 | DV47: 0
B48: Miscellaneous | E48: 22455410.4 | G48: =$E$26*G26 -> 0 | H48: =$E$26*H26 -> 0 | I48: 0 | J48: 0 | K48: 0 | L48: 0 | M48: 0 | N48: 0 | O48: 0 | P48: 0 | Q48: 0 | R48: 0 | S48: 0 | T48: 22455410.4 | U48: 0 | V48: 0 | W48: 0 | X48: 0 | Y48: 0 | Z48: 0 | AA48: 0 | AB48: 0 | AC48: 0 | AD48: 0 | AE48: 0 | AF48: 0 | AG48: 0 | AH48: 0 | AI48: 0 | AJ48: 0 | AK48: 0 | AL48: 0 | AM48: 0 | AN48: 0 | AO48: 0 | AP48: 0 | AQ48: 0 | AR48: 0 | AS48: 0 | AT48: 0 | AU48: 0 | AV48: 0 | AW48: 0 | AX48: 0 | AY48: 0 | AZ48: 0 | BA48: 0 | BB48: 0 | BC48: 0 | BD48: 0 | BE48: 0 | BF48: 0 | BG48: 0 | BH48: 0 | BI48: 0 | BJ48: 0 | BK48: 0 | BL48: 0 | BM48: 0 | BN48: 0 | BO48: 0 | BP48: 0 | BQ48: 0 | BR48: 0 | BS48: 0 | BT48: =$E$26*BT26 -> 0 | BU48: 0 | BV48: 0 | BW48: 0 | BX48: 0 | BY48: 0 | BZ48: 0 | CA48: 0 | CB48: 0 | CC48: 0 | CD48: 0 | CE48: 0 | CF48: 0 | CG48: 0 | CH48: 0 | CI48: 0 | CJ48: 0 | CK48: 0 | CL48: 0 | CM48: 0 | CN48: 0 | CO48: 0 | CP48: 0 | CQ48: 0 | CR48: 0 | CS48: 0 | CT48: 0 | CU48: 0 | CV48: 0 | CW48: 0 | CX48: 0 | CY48: 0 | CZ48: 0 | DA48: 0 | DB48: 0 | DC48: 0 | DD48: 0 | DE48: 0 | DF48: 0 | DG48: 0 | DH48: 0 | DI48: 0 | DJ48: 0 | DK48: 0 | DL48: 0 | DM48: 0 | DN48: 0 | DO48: 0 | DP48: 0 | DQ48: 0 | DR48: 0 | DS48: 0 | DT48: 0 | DU48: 0 | DV48: 0
B49: Contingency | E49: 8316630.36 | G49: =$E$27*G27 -> 0 | H49: =$E$27*H27 -> 0 | I49: 0 | J49: 0 | K49: 0 | L49: 0 | M49: 0 | N49: 0 | O49: 0 | P49: 0 | Q49: 0 | R49: 0 | S49: 696101.9611 | T49: 692775.309 | U49: 692775.309 | V49: 692775.309 | W49: 692775.309 | X49: 692775.309 | Y49: 692775.309 | Z49: 692775.309 | AA49: 692775.309 | AB49: 692775.309 | AC49: 692775.309 | AD49: 692775.309 | AE49: 0 | AF49: 0 | AG49: 0 | AH49: 0 | AI49: 0 | AJ49: 0 | AK49: 0 | AL49: 0 | AM49: 0 | AN49: 0 | AO49: 0 | AP49: 0 | AQ49: 0 | AR49: 0 | AS49: 0 | AT49: 0 | AU49: 0 | AV49: 0 | AW49: 0 | AX49: 0 | AY49: 0 | AZ49: 0 | BA49: 0 | BB49: 0 | BC49: 0 | BD49: 0 | BE49: 0 | BF49: 0 | BG49: 0 | BH49: 0 | BI49: 0 | BJ49: 0 | BK49: 0 | BL49: 0 | BM49: 0 | BN49: 0 | BO49: 0 | BP49: 0 | BQ49: 0 | BR49: 0 | BS49: 0 | BT49: =$E$27*BT27 -> 0 | BU49: 0 | BV49: 0 | BW49: 0 | BX49: 0 | BY49: 0 | BZ49: 0 | CA49: 0 | CB49: 0 | CC49: 0 | CD49: 0 | CE49: 0 | CF49: 0 | CG49: 0 | CH49: 0 | CI49: 0 | CJ49: 0 | CK49: 0 | CL49: 0 | CM49: 0 | CN49: 0 | CO49: 0 | CP49: 0 | CQ49: 0 | CR49: 0 | CS49: 0 | CT49: 0 | CU49: 0 | CV49: 0 | CW49: 0 | CX49: 0 | CY49: 0 | CZ49: 0 | DA49: 0 | DB49: 0 | DC49: 0 | DD49: 0 | DE49: 0 | DF49: 0 | DG49: 0 | DH49: 0 | DI49: 0 | DJ49: 0 | DK49: 0 | DL49: 0 | DM49: 0 | DN49: 0 | DO49: 0 | DP49: 0 | DQ49: 0 | DR49: 0 | DS49: 0 | DT49: 0 | DU49: 0 | DV49: 0
B50: Acquisition fee | E50: 0 | G50: =$E$28*G28 -> 0 | H50: =$E$28*H28 -> 0 | I50: 0 | J50: 0 | K50: 0 | L50: 0 | M50: 0 | N50: 0 | O50: 0 | P50: 0 | Q50: 0 | R50: 0 | S50: 0 | T50: 0 | U50: 0 | V50: 0 | W50: 0 | X50: 0 | Y50: 0 | Z50: 0 | AA50: 0 | AB50: 0 | AC50: 0 | AD50: 0 | AE50: 0 | AF50: 0 | AG50: 0 | AH50: 0 | AI50: 0 | AJ50: 0 | AK50: 0 | AL50: 0 | AM50: 0 | AN50: 0 | AO50: 0 | AP50: 0 | AQ50: 0 | AR50: 0 | AS50: 0 | AT50: 0 | AU50: 0 | AV50: 0 | AW50: 0 | AX50: 0 | AY50: 0 | AZ50: 0 | BA50: 0 | BB50: 0 | BC50: 0 | BD50: 0 | BE50: 0 | BF50: 0 | BG50: 0 | BH50: 0 | BI50: 0 | BJ50: 0 | BK50: 0 | BL50: 0 | BM50: 0 | BN50: 0 | BO50: 0 | BP50: 0 | BQ50: 0 | BR50: 0 | BS50: 0 | BT50: =$E$28*BT28 -> 0 | BU50: 0 | BV50: 0 | BW50: 0 | BX50: 0 | BY50: 0 | BZ50: 0 | CA50: 0 | CB50: 0 | CC50: 0 | CD50: 0 | CE50: 0 | CF50: 0 | CG50: 0 | CH50: 0 | CI50: 0 | CJ50: 0 | CK50: 0 | CL50: 0 | CM50: 0 | CN50: 0 | CO50: 0 | CP50: 0 | CQ50: 0 | CR50: 0 | CS50: 0 | CT50: 0 | CU50: 0 | CV50: 0 | CW50: 0 | CX50: 0 | CY50: 0 | CZ50: 0 | DA50: 0 | DB50: 0 | DC50: 0 | DD50: 0 | DE50: 0 | DF50: 0 | DG50: 0 | DH50: 0 | DI50: 0 | DJ50: 0 | DK50: 0 | DL50: 0 | DM50: 0 | DN50: 0 | DO50: 0 | DP50: 0 | DQ50: 0 | DR50: 0 | DS50: 0 | DT50: 0 | DU50: 0 | DV50: 0
B52: Total Cost | E52: =SUM(G52:DV52) -> 185899237.6 | G52: =SUM(G33:G50) -> 0 | H52: =SUM(H33:H50) -> 0 | I52: 0 | J52: 0 | K52: 0 | L52: 0 | M52: 0 | N52: 0 | O52: 0 | P52: 11250000 | Q52: 0 | R52: 11267381.52 | S52: 14162093.34 | T52: 41713577.08 | U52: 4394026.562 | V52: 4394026.562 | W52: 13721626.56 | X52: 4394026.562 | Y52: 10114426.56 | Z52: 6051826.562 | AA52: 7574086.562 | AB52: 6051826.562 | AC52: 14177026.56 | AD52: 36633286.56 | AE52: 0 | AF52: 0 | AG52: 0 | AH52: 0 | AI52: 0 | AJ52: 0 | AK52: 0 | AL52: 0 | AM52: 0 | AN52: 0 | AO52: 0 | AP52: 0 | AQ52: 0 | AR52: 0 | AS52: 0 | AT52: 0 | AU52: 0 | AV52: 0 | AW52: 0 | AX52: 0 | AY52: 0 | AZ52: 0 | BA52: 0 | BB52: 0 | BC52: 0 | BD52: 0 | BE52: 0 | BF52: =SUM(BF33:BF50) -> 0 | BG52: 0 | BH52: 0 | BI52: 0 | BJ52: 0 | BK52: 0 | BL52: 0 | BM52: 0 | BN52: 0 | BO52: 0 | BP52: 0 | BQ52: 0 | BR52: 0 | BS52: 0 | BT52: 0 | BU52: 0 | BV52: 0 | BW52: 0 | BX52: 0 | BY52: 0 | BZ52: =SUM(BZ33:BZ50) -> 0 | CA52: 0 | CB52: 0 | CC52: 0 | CD52: 0 | CE52: 0 | CF52: 0 | CG52: 0 | CH52: 0 | CI52: 0 | CJ52: 0 | CK52: 0 | CL52: 0 | CM52: 0 | CN52: 0 | CO52: 0 | CP52: 0 | CQ52: 0 | CR52: 0 | CS52: 0 | CT52: 0 | CU52: 0 | CV52: 0 | CW52: 0 | CX52: 0 | CY52: =SUM(CY33:CY50) -> 0 | CZ52: 0 | DA52: 0 | DB52: 0 | DC52: 0 | DD52: 0 | DE52: 0 | DF52: 0 | DG52: 0 | DH52: 0 | DI52: 0 | DJ52: 0 | DK52: 0 | DL52: 0 | DM52: 0 | DN52: 0 | DO52: 0 | DP52: =SUM(DP33:DP50) -> 0 | DQ52: 0 | DR52: 0 | DS52: 0 | DT52: 0 | DU52: 0 | DV52: =SUM(DV33:DV50) -> 0
M53: =SUM(M33:M49) -> 0 | N53: =SUM(N33:N49) -> 0 | O53: =SUM(O33:O49) -> 0
A54: VAT
B56: Development costs | D56: ='Tax Assumptions'!$D$10 -> 0.1 | E56: =SUM(G56:DV56) -> 1825987.68 | G56: =G33*$D56 -> 0 | H56: =H33*$D56 -> 0 | I56: 0 | J56: 0 | K56: 0 | L56: 0 | M56: 0 | N56: 0 | O56: 0 | P56: 0 | Q56: 0 | R56: 273898.152 | S56: 127819.1376 | T56: 127819.1376 | U56: 129645.1253 | V56: 129645.1253 | W56: 129645.1253 | X56: 129645.1253 | Y56: 129645.1253 | Z56: 129645.1253 | AA56: 129645.1253 | AB56: 129645.1253 | AC56: 129645.1253 | AD56: 129645.1253 | AE56: 0 | AF56: 0 | AG56: 0 | AH56: 0 | AI56: 0 | AJ56: 0 | AK56: 0 | AL56: 0 | AM56: 0 | AN56: 0 | AO56: 0 | AP56: 0 | AQ56: 0 | AR56: 0 | AS56: 0 | AT56: 0 | AU56: 0 | AV56: 0 | AW56: 0 | AX56: 0 | AY56: 0 | AZ56: 0 | BA56: 0 | BB56: 0 | BC56: 0 | BD56: 0 | BE56: 0 | BF56: 0 | BG56: 0 | BH56: 0 | BI56: 0 | BJ56: 0 | BK56: 0 | BL56: 0 | BM56: 0 | BN56: 0 | BO56: 0 | BP56: 0 | BQ56: 0 | BR56: 0 | BS56: 0 | BT56: =BT33*$D56 -> 0 | BU56: 0 | BV56: 0 | BW56: 0 | BX56: 0 | BY56: 0 | BZ56: 0 | CA56: 0 | CB56: 0 | CC56: 0 | CD56: 0 | CE56: 0 | CF56: 0 | CG56: 0 | CH56: 0 | CI56: 0 | CJ56: 0 | CK56: 0 | CL56: 0 | CM56: 0 | CN56: 0 | CO56: 0 | CP56: 0 | CQ56: 0 | CR56: 0 | CS56: 0 | CT56: 0 | CU56: 0 | CV56: 0 | CW56: 0 | CX56: 0 | CY56: 0 | CZ56: 0 | DA56: 0 | DB56: 0 | DC56: 0 | DD56: 0 | DE56: 0 | DF56: 0 | DG56: 0 | DH56: 0 | DI56: 0 | DJ56: 0 | DK56: 0 | DL56: 0 | DM56: 0 | DN56: 0 | DO56: 0 | DP56: 0 | DQ56: 0 | DR56: 0 | DS56: 0 | DT56: 0 | DU56: 0 | DV56: 0
B57: Turbine Supply Contract | D57: ='Tax Assumptions'!$D$9 -> 0.1 | E57: =SUM(G57:DV57) -> 8125200 | G57: =G34*$D57 -> 0 | H57: 0 | I57: 0 | J57: 0 | K57: 0 | L57: 0 | M57: 0 | N57: 0 | O57: 0 | P57: 0 | Q57: 0 | R57: 0 | S57: 1218780 | T57: 0 | U57: 0 | V57: 0 | W57: 812520 | X57: 0 | Y57: 812520 | Z57: 406260 | AA57: 406260 | AB57: 406260 | AC57: 1218780 | AD57: 2843820 | AE57: 0 | AF57: 0 | AG57: 0 | AH57: 0 | AI57: 0 | AJ57: 0 | AK57: 0 | AL57: 0 | AM57: 0 | AN57: 0 | AO57: 0 | AP57: 0 | AQ57: 0 | AR57: 0 | AS57: 0 | AT57: 0 | AU57: 0 | AV57: 0 | AW57: 0 | AX57: 0 | AY57: 0 | AZ57: 0 | BA57: 0 | BB57: 0 | BC57: 0 | BD57: 0 | BE57: 0 | BF57: 0 | BG57: 0 | BH57: 0 | BI57: 0 | BJ57: 0 | BK57: 0 | BL57: 0 | BM57: 0 | BN57: 0 | BO57: 0 | BP57: 0 | BQ57: 0 | BR57: 0 | BS57: =BS34*$D57 -> 0 | BT57: 0 | BU57: 0 | BV57: 0 | BW57: 0 | BX57: 0 | BY57: 0 | BZ57: 0 | CA57: 0 | CB57: 0 | CC57: 0 | CD57: 0 | CE57: 0 | CF57: 0 | CG57: 0 | CH57: 0 | CI57: 0 | CJ57: 0 | CK57: 0 | CL57: 0 | CM57: 0 | CN57: 0 | CO57: 0 | CP57: 0 | CQ57: 0 | CR57: 0 | CS57: 0 | CT57: 0 | CU57: 0 | CV57: 0 | CW57: 0 | CX57: 0 | CY57: 0 | CZ57: 0 | DA57: 0 | DB57: 0 | DC57: 0 | DD57: 0 | DE57: 0 | DF57: 0 | DG57: 0 | DH57: 0 | DI57: 0 | DJ57: 0 | DK57: 0 | DL57: 0 | DM57: 0 | DN57: 0 | DO57: 0 | DP57: 0 | DQ57: 0 | DR57: 0 | DS57: 0 | DT57: 0 | DU57: 0 | DV57: 0
B58: Finance/Legal / Banking | D58: ='Tax Assumptions'!$D$10 -> 0.1 | E58: 144000 | G58: =G35*$D58 -> 0 | H58: 0 | I58: 0 | J58: 0 | K58: 0 | L58: 0 | M58: 0 | N58: 0 | O58: 0 | P58: 0 | Q58: 0 | R58: 28800 | S58: 0 | T58: 0 | U58: 0 | V58: 0 | W58: 0 | X58: 0 | Y58: 0 | Z58: 0 | AA58: 0 | AB58: 0 | AC58: 0 | AD58: 115200 | AE58: 0 | AF58: 0 | AG58: 0 | AH58: 0 | AI58: 0 | AJ58: 0 | AK58: 0 | AL58: 0 | AM58: 0 | AN58: 0 | AO58: 0 | AP58: 0 | AQ58: 0 | AR58: 0 | AS58: 0 | AT58: 0 | AU58: 0 | AV58: 0 | AW58: 0 | AX58: 0 | AY58: 0 | AZ58: 0 | BA58: 0 | BB58: 0 | BC58: 0 | BD58: 0 | BE58: 0 | BF58: 0 | BG58: 0 | BH58: 0 | BI58: 0 | BJ58: 0 | BK58: 0 | BL58: 0 | BM58: 0 | BN58: 0 | BO58: 0 | BP58: 0 | BQ58: 0 | BR58: 0 | BS58: =BS35*$D58 -> 0 | BT58: 0 | BU58: 0 | BV58: 0 | BW58: 0 | BX58: 0 | BY58: 0 | BZ58: 0 | CA58: 0 | CB58: 0 | CC58: 0 | CD58: 0 | CE58: 0 | CF58: 0 | CG58: 0 | CH58: 0 | CI58: 0 | CJ58: 0 | CK58: 0 | CL58: 0 | CM58: 0 | CN58: 0 | CO58: 0 | CP58: 0 | CQ58: 0 | CR58: 0 | CS58: 0 | CT58: 0 | CU58: 0 | CV58: 0 | CW58: 0 | CX58: 0 | CY58: 0 | CZ58: 0 | DA58: 0 | DB58: 0 | DC58: 0 | DD58: 0 | DE58: 0 | DF58: 0 | DG58: 0 | DH58: 0 | DI58: 0 | DJ58: 0 | DK58: 0 | DL58: 0 | DM58: 0 | DN58: 0 | DO58: 0 | DP58: 0 | DQ58: 0 | DR58: 0 | DS58: 0 | DT58: 0 | DU58: 0 | DV58: 0
B59: ADDITIONAL PLANNING COSTS SUMMARY | D59: ='Tax Assumptions'!$D$10 -> 0.1 | E59: 1125000 | G59: =G36*$D59 -> 0 | H59: 0 | I59: 0 | J59: 0 | K59: 0 | L59: 0 | M59: 0 | N59: 0 | O59: 0 | P59: 1125000 | Q59: 0 | R59: 0 | S59: 0 | T59: 0 | U59: 0 | V59: 0 | W59: 0 | X59: 0 | Y59: 0 | Z59: 0 | AA59: 0 | AB59: 0 | AC59: 0 | AD59: 0 | AE59: 0 | AF59: 0 | AG59: 0 | AH59: 0 | AI59: 0 | AJ59: 0 | AK59: 0 | AL59: 0 | AM59: 0 | AN59: 0 | AO59: 0 | AP59: 0 | AQ59: 0 | AR59: 0 | AS59: 0 | AT59: 0 | AU59: 0 | AV59: 0 | AW59: 0 | AX59: 0 | AY59: 0 | AZ59: 0 | BA59: 0 | BB59: 0 | BC59: 0 | BD59: 0 | BE59: 0 | BF59: 0 | BG59: 0 | BH59: 0 | BI59: 0 | BJ59: 0 | BK59: 0 | BL59: 0 | BM59: 0 | BN59: 0 | BO59: 0 | BP59: 0 | BQ59: 0 | BR59: 0 | BS59: =BS36*$D59 -> 0 | BT59: 0 | BU59: 0 | BV59: 0 | BW59: 0 | BX59: 0 | BY59: 0 | BZ59: 0 | CA59: 0 | CB59: 0 | CC59: 0 | CD59: 0 | CE59: 0 | CF59: 0 | CG59: 0 | CH59: 0 | CI59: 0 | CJ59: 0 | CK59: 0 | CL59: 0 | CM59: 0 | CN59: 0 | CO59: 0 | CP59: 0 | CQ59: 0 | CR59: 0 | CS59: 0 | CT59: 0 | CU59: 0 | CV59: 0 | CW59: 0 | CX59: 0 | CY59: 0 | CZ59: 0 | DA59: 0 | DB59: 0 | DC59: 0 | DD59: 0 | DE59: 0 | DF59: 0 | DG59: 0 | DH59: 0 | DI59: 0 | DJ59: 0 | DK59: 0 | DL59: 0 | DM59: 0 | DN59: 0 | DO59: 0 | DP59: 0 | DQ59: 0 | DR59: 0 | DS59: 0 | DT59: 0 | DU59: 0 | DV59: 0
B60: Construction Monitoring Summary | D60: ='Tax Assumptions'!$D$10 -> 0.1 | E60: 0 | G60: =G37*$D60 -> 0 | H60: 0 | I60: 0 | J60: 0 | K60: 0 | L60: 0 | M60: 0 | N60: 0 | O60: 0 | P60: 0 | Q60: 0 | R60: 0 | S60: 0 | T60: 0 | U60: 0 | V60: 0 | W60: 0 | X60: 0 | Y60: 0 | Z60: 0 | AA60: 0 | AB60: 0 | AC60: 0 | AD60: 0 | AE60: 0 | AF60: 0 | AG60: 0 | AH60: 0 | AI60: 0 | AJ60: 0 | AK60: 0 | AL60: 0 | AM60: 0 | AN60: 0 | AO60: 0 | AP60: 0 | AQ60: 0 | AR60: 0 | AS60: 0 | AT60: 0 | AU60: 0 | AV60: 0 | AW60: 0 | AX60: 0 | AY60: 0 | AZ60: 0 | BA60: 0 | BB60: 0 | BC60: 0 | BD60: 0 | BE60: 0 | BF60: 0 | BG60: 0 | BH60: 0 | BI60: 0 | BJ60: 0 | BK60: 0 | BL60: 0 | BM60: 0 | BN60: 0 | BO60: 0 | BP60: 0 | BQ60: 0 | BR60: 0 | BS60: =BS37*$D60 -> 0 | BT60: 0 | BU60: 0 | BV60: 0 | BW60: 0 | BX60: 0 | BY60: 0 | BZ60: 0 | CA60: 0 | CB60: 0 | CC60: 0 | CD60: 0 | CE60: 0 | CF60: 0 | CG60: 0 | CH60: 0 | CI60: 0 | CJ60: 0 | CK60: 0 | CL60: 0 | CM60: 0 | CN60: 0 | CO60: 0 | CP60: 0 | CQ60: 0 | CR60: 0 | CS60: 0 | CT60: 0 | CU60: 0 | CV60: 0 | CW60: 0 | CX60: 0 | CY60: 0 | CZ60: 0 | DA60: 0 | DB60: 0 | DC60: 0 | DD60: 0 | DE60: 0 | DF60: 0 | DG60: 0 | DH60: 0 | DI60: 0 | DJ60: 0 | DK60: 0 | DL60: 0 | DM60: 0 | DN60: 0 | DO60: 0 | DP60: 0 | DQ60: 0 | DR60: 0 | DS60: 0 | DT60: 0 | DU60: 0 | DV60: 0
B61: Project Management & Co-ordination | D61: ='Tax Assumptions'!$D$10 -> 0.1 | E61: 0 | G61: =G38*$D61 -> 0 | H61: 0 | I61: 0 | J61: 0 | K61: 0 | L61: 0 | M61: 0 | N61: 0 | O61: 0 | P61: 0 | Q61: 0 | R61: 0 | S61: 0 | T61: 0 | U61: 0 | V61: 0 | W61: 0 | X61: 0 | Y61: 0 | Z61: 0 | AA61: 0 | AB61: 0 | AC61: 0 | AD61: 0 | AE61: 0 | AF61: 0 | AG61: 0 | AH61: 0 | AI61: 0 | AJ61: 0 | AK61: 0 | AL61: 0 | AM61: 0 | AN61: 0 | AO61: 0 | AP61: 0 | AQ61: 0 | AR61: 0 | AS61: 0 | AT61: 0 | AU61: 0 | AV61: 0 | AW61: 0 | AX61: 0 | AY61: 0 | AZ61: 0 | BA61: 0 | BB61: 0 | BC61: 0 | BD61: 0 | BE61: 0 | BF61: 0 | BG61: 0 | BH61: 0 | BI61: 0 | BJ61: 0 | BK61: 0 | BL61: 0 | BM61: 0 | BN61: 0 | BO61: 0 | BP61: 0 | BQ61: 0 | BR61: 0 | BS61: =BS38*$D61 -> 0 | BT61: 0 | BU61: 0 | BV61: 0 | BW61: 0 | BX61: 0 | BY61: 0 | BZ61: 0 | CA61: 0 | CB61: 0 | CC61: 0 | CD61: 0 | CE61: 0 | CF61: 0 | CG61: 0 | CH61: 0 | CI61: 0 | CJ61: 0 | CK61: 0 | CL61: 0 | CM61: 0 | CN61: 0 | CO61: 0 | CP61: 0 | CQ61: 0 | CR61: 0 | CS61: 0 | CT61: 0 | CU61: 0 | CV61: 0 | CW61: 0 | CX61: 0 | CY61: 0 | CZ61: 0 | DA61: 0 | DB61: 0 | DC61: 0 | DD61: 0 | DE61: 0 | DF61: 0 | DG61: 0 | DH61: 0 | DI61: 0 | DJ61: 0 | DK61: 0 | DL61: 0 | DM61: 0 | DN61: 0 | DO61: 0 | DP61: 0 | DQ61: 0 | DR61: 0 | DS61: 0 | DT61: 0 | DU61: 0 | DV61: 0
B62: Water monitoring | D62: ='Tax Assumptions'!$D$10 -> 0.1 | E62: 0 | G62: =G39*$D62 -> 0 | H62: 0 | I62: 0 | J62: 0 | K62: 0 | L62: 0 | M62: 0 | N62: 0 | O62: 0 | P62: 0 | Q62: 0 | R62: 0 | S62: 0 | T62: 0 | U62: 0 | V62: 0 | W62: 0 | X62: 0 | Y62: 0 | Z62: 0 | AA62: 0 | AB62: 0 | AC62: 0 | AD62: 0 | AE62: 0 | AF62: 0 | AG62: 0 | AH62: 0 | AI62: 0 | AJ62: 0 | AK62: 0 | AL62: 0 | AM62: 0 | AN62: 0 | AO62: 0 | AP62: 0 | AQ62: 0 | AR62: 0 | AS62: 0 | AT62: 0 | AU62: 0 | AV62: 0 | AW62: 0 | AX62: 0 | AY62: 0 | AZ62: 0 | BA62: 0 | BB62: 0 | BC62: 0 | BD62: 0 | BE62: 0 | BF62: 0 | BG62: 0 | BH62: 0 | BI62: 0 | BJ62: 0 | BK62: 0 | BL62: 0 | BM62: 0 | BN62: 0 | BO62: 0 | BP62: 0 | BQ62: 0 | BR62: 0 | BS62: =BS39*$D62 -> 0 | BT62: 0 | BU62: 0 | BV62: 0 | BW62: 0 | BX62: 0 | BY62: 0 | BZ62: 0 | CA62: 0 | CB62: 0 | CC62: 0 | CD62: 0 | CE62: 0 | CF62: 0 | CG62: 0 | CH62: 0 | CI62: 0 | CJ62: 0 | CK62: 0 | CL62: 0 | CM62: 0 | CN62: 0 | CO62: 0 | CP62: 0 | CQ62: 0 | CR62: 0 | CS62: 0 | CT62: 0 | CU62: 0 | CV62: 0 | CW62: 0 | CX62: 0 | CY62: 0 | CZ62: 0 | DA62: 0 | DB62: 0 | DC62: 0 | DD62: 0 | DE62: 0 | DF62: 0 | DG62: 0 | DH62: 0 | DI62: 0 | DJ62: 0 | DK62: 0 | DL62: 0 | DM62: 0 | DN62: 0 | DO62: 0 | DP62: 0 | DQ62: 0 | DR62: 0 | DS62: 0 | DT62: 0 | DU62: 0 | DV62: 0
B63: Independent engineers | D63: ='Tax Assumptions'!$D$10 -> 0.1 | E63: 0 | G63: =G40*$D63 -> 0 | H63: 0 | I63: 0 | J63: 0 | K63: 0 | L63: 0 | M63: 0 | N63: 0 | O63: 0 | P63: 0 | Q63: 0 | R63: 0 | S63: 0 | T63: 0 | U63: 0 | V63: 0 | W63: 0 | X63: 0 | Y63: 0 | Z63: 0 | AA63: 0 | AB63: 0 | AC63: 0 | AD63: 0 | AE63: 0 | AF63: 0 | AG63: 0 | AH63: 0 | AI63: 0 | AJ63: 0 | AK63: 0 | AL63: 0 | AM63: 0 | AN63: 0 | AO63: 0 | AP63: 0 | AQ63: 0 | AR63: 0 | AS63: 0 | AT63: 0 | AU63: 0 | AV63: 0 | AW63: 0 | AX63: 0 | AY63: 0 | AZ63: 0 | BA63: 0 | BB63: 0 | BC63: 0 | BD63: 0 | BE63: 0 | BF63: 0 | BG63: 0 | BH63: 0 | BI63: 0 | BJ63: 0 | BK63: 0 | BL63: 0 | BM63: 0 | BN63: 0 | BO63: 0 | BP63: 0 | BQ63: 0 | BR63: 0 | BS63: =BS40*$D63 -> 0 | BT63: 0 | BU63: 0 | BV63: 0 | BW63: 0 | BX63: 0 | BY63: 0 | BZ63: 0 | CA63: 0 | CB63: 0 | CC63: 0 | CD63: 0 | CE63: 0 | CF63: 0 | CG63: 0 | CH63: 0 | CI63: 0 | CJ63: 0 | CK63: 0 | CL63: 0 | CM63: 0 | CN63: 0 | CO63: 0 | CP63: 0 | CQ63: 0 | CR63: 0 | CS63: 0 | CT63: 0 | CU63: 0 | CV63: 0 | CW63: 0 | CX63: 0 | CY63: 0 | CZ63: 0 | DA63: 0 | DB63: 0 | DC63: 0 | DD63: 0 | DE63: 0 | DF63: 0 | DG63: 0 | DH63: 0 | DI63: 0 | DJ63: 0 | DK63: 0 | DL63: 0 | DM63: 0 | DN63: 0 | DO63: 0 | DP63: 0 | DQ63: 0 | DR63: 0 | DS63: 0 | DT63: 0 | DU63: 0 | DV63: 0
B64: Insurances | D64: ='Tax Assumptions'!$D$10 -> 0.1 | E64: 0 | G64: =G41*$D64 -> 0 | H64: 0 | I64: 0 | J64: 0 | K64: 0 | L64: 0 | M64: 0 | N64: 0 | O64: 0 | P64: 0 | Q64: 0 | R64: 0 | S64: 0 | T64: 0 | U64: 0 | V64: 0 | W64: 0 | X64: 0 | Y64: 0 | Z64: 0 | AA64: 0 | AB64: 0 | AC64: 0 | AD64: 0 | AE64: 0 | AF64: 0 | AG64: 0 | AH64: 0 | AI64: 0 | AJ64: 0 | AK64: 0 | AL64: 0 | AM64: 0 | AN64: 0 | AO64: 0 | AP64: 0 | AQ64: 0 | AR64: 0 | AS64: 0 | AT64: 0 | AU64: 0 | AV64: 0 | AW64: 0 | AX64: 0 | AY64: 0 | AZ64: 0 | BA64: 0 | BB64: 0 | BC64: 0 | BD64: 0 | BE64: 0 | BF64: 0 | BG64: 0 | BH64: 0 | BI64: 0 | BJ64: 0 | BK64: 0 | BL64: 0 | BM64: 0 | BN64: 0 | BO64: 0 | BP64: 0 | BQ64: 0 | BR64: 0 | BS64: =BS41*$D64 -> 0 | BT64: 0 | BU64: 0 | BV64: 0 | BW64: 0 | BX64: 0 | BY64: 0 | BZ64: 0 | CA64: 0 | CB64: 0 | CC64: 0 | CD64: 0 | CE64: 0 | CF64: 0 | CG64: 0 | CH64: 0 | CI64: 0 | CJ64: 0 | CK64: 0 | CL64: 0 | CM64: 0 | CN64: 0 | CO64: 0 | CP64: 0 | CQ64: 0 | CR64: 0 | CS64: 0 | CT64: 0 | CU64: 0 | CV64: 0 | CW64: 0 | CX64: 0 | CY64: 0 | CZ64: 0 | DA64: 0 | DB64: 0 | DC64: 0 | DD64: 0 | DE64: 0 | DF64: 0 | DG64: 0 | DH64: 0 | DI64: 0 | DJ64: 0 | DK64: 0 | DL64: 0 | DM64: 0 | DN64: 0 | DO64: 0 | DP64: 0 | DQ64: 0 | DR64: 0 | DS64: 0 | DT64: 0 | DU64: 0 | DV64: 0
B65: Electrical engineering infrastructure | D65: ='Tax Assumptions'!$D$10 -> 0.1 | E65: 1177200 | G65: =G42*$D65 -> 0 | H65: 0 | I65: 0 | J65: 0 | K65: 0 | L65: 0 | M65: 0 | N65: 0 | O65: 0 | P65: 0 | Q65: 0 | R65: 824040 | S65: 0 | T65: 0 | U65: 0 | V65: 0 | W65: 0 | X65: 0 | Y65: 0 | Z65: 0 | AA65: 0 | AB65: 0 | AC65: 0 | AD65: 353160 | AE65: 0 | AF65: 0 | AG65: 0 | AH65: 0 | AI65: 0 | AJ65: 0 | AK65: 0 | AL65: 0 | AM65: 0 | AN65: 0 | AO65: 0 | AP65: 0 | AQ65: 0 | AR65: 0 | AS65: 0 | AT65: 0 | AU65: 0 | AV65: 0 | AW65: 0 | AX65: 0 | AY65: 0 | AZ65: 0 | BA65: 0 | BB65: 0 | BC65: 0 | BD65: 0 | BE65: 0 | BF65: 0 | BG65: 0 | BH65: 0 | BI65: 0 | BJ65: 0 | BK65: 0 | BL65: 0 | BM65: 0 | BN65: 0 | BO65: 0 | BP65: 0 | BQ65: 0 | BR65: 0 | BS65: =BS42*$D65 -> 0 | BT65: 0 | BU65: 0 | BV65: 0 | BW65: 0 | BX65: 0 | BY65: 0 | BZ65: 0 | CA65: 0 | CB65: 0 | CC65: 0 | CD65: 0 | CE65: 0 | CF65: 0 | CG65: 0 | CH65: 0 | CI65: 0 | CJ65: 0 | CK65: 0 | CL65: 0 | CM65: 0 | CN65: 0 | CO65: 0 | CP65: 0 | CQ65: 0 | CR65: 0 | CS65: 0 | CT65: 0 | CU65: 0 | CV65: 0 | CW65: 0 | CX65: 0 | CY65: 0 | CZ65: 0 | DA65: 0 | DB65: 0 | DC65: 0 | DD65: 0 | DE65: 0 | DF65: 0 | DG65: 0 | DH65: 0 | DI65: 0 | DJ65: 0 | DK65: 0 | DL65: 0 | DM65: 0 | DN65: 0 | DO65: 0 | DP65: 0 | DQ65: 0 | DR65: 0 | DS65: 0 | DT65: 0 | DU65: 0 | DV65: 0
B66: Electrical engineering consultant | D66: ='Tax Assumptions'!$D$10 -> 0.1 | E66: 0 | G66: =G43*$D66 -> 0 | H66: 0 | I66: 0 | J66: 0 | K66: 0 | L66: 0 | M66: 0 | N66: 0 | O66: 0 | P66: 0 | Q66: 0 | R66: 0 | S66: 0 | T66: 0 | U66: 0 | V66: 0 | W66: 0 | X66: 0 | Y66: 0 | Z66: 0 | AA66: 0 | AB66: 0 | AC66: 0 | AD66: 0 | AE66: 0 | AF66: 0 | AG66: 0 | AH66: 0 | AI66: 0 | AJ66: 0 | AK66: 0 | AL66: 0 | AM66: 0 | AN66: 0 | AO66: 0 | AP66: 0 | AQ66: 0 | AR66: 0 | AS66: 0 | AT66: 0 | AU66: 0 | AV66: 0 | AW66: 0 | AX66: 0 | AY66: 0 | AZ66: 0 | BA66: 0 | BB66: 0 | BC66: 0 | BD66: 0 | BE66: 0 | BF66: 0 | BG66: 0 | BH66: 0 | BI66: 0 | BJ66: 0 | BK66: 0 | BL66: 0 | BM66: 0 | BN66: 0 | BO66: 0 | BP66: 0 | BQ66: 0 | BR66: 0 | BS66: =BS43*$D66 -> 0 | BT66: 0 | BU66: 0 | BV66: 0 | BW66: 0 | BX66: 0 | BY66: 0 | BZ66: 0 | CA66: 0 | CB66: 0 | CC66: 0 | CD66: 0 | CE66: 0 | CF66: 0 | CG66: 0 | CH66: 0 | CI66: 0 | CJ66: 0 | CK66: 0 | CL66: 0 | CM66: 0 | CN66: 0 | CO66: 0 | CP66: 0 | CQ66: 0 | CR66: 0 | CS66: 0 | CT66: 0 | CU66: 0 | CV66: 0 | CW66: 0 | CX66: 0 | CY66: 0 | CZ66: 0 | DA66: 0 | DB66: 0 | DC66: 0 | DD66: 0 | DE66: 0 | DF66: 0 | DG66: 0 | DH66: 0 | DI66: 0 | DJ66: 0 | DK66: 0 | DL66: 0 | DM66: 0 | DN66: 0 | DO66: 0 | DP66: 0 | DQ66: 0 | DR66: 0 | DS66: 0 | DT66: 0 | DU66: 0 | DV66: 0
B67: Grid Connection supply | D67: ='Tax Assumptions'!$D$10 -> 0.1 | E67: 304452 | G67: =G44*$D67 -> 0 | H67: 0 | I67: 0 | J67: 0 | K67: 0 | L67: 0 | M67: 0 | N67: 0 | O67: 0 | P67: 0 | Q67: 0 | R67: 0 | S67: 0 | T67: 0 | U67: 0 | V67: 0 | W67: 0 | X67: 0 | Y67: 0 | Z67: 0 | AA67: 152226 | AB67: 0 | AC67: 0 | AD67: 152226 | AE67: 0 | AF67: 0 | AG67: 0 | AH67: 0 | AI67: 0 | AJ67: 0 | AK67: 0 | AL67: 0 | AM67: 0 | AN67: 0 | AO67: 0 | AP67: 0 | AQ67: 0 | AR67: 0 | AS67: 0 | AT67: 0 | AU67: 0 | AV67: 0 | AW67: 0 | AX67: 0 | AY67: 0 | AZ67: 0 | BA67: 0 | BB67: 0 | BC67: 0 | BD67: 0 | BE67: 0 | BF67: 0 | BG67: 0 | BH67: 0 | BI67: 0 | BJ67: 0 | BK67: 0 | BL67: 0 | BM67: 0 | BN67: 0 | BO67: 0 | BP67: 0 | BQ67: 0 | BR67: 0 | BS67: =BS44*$D67 -> 0 | BT67: 0 | BU67: 0 | BV67: 0 | BW67: 0 | BX67: 0 | BY67: 0 | BZ67: 0 | CA67: 0 | CB67: 0 | CC67: 0 | CD67: 0 | CE67: 0 | CF67: 0 | CG67: 0 | CH67: 0 | CI67: 0 | CJ67: 0 | CK67: 0 | CL67: 0 | CM67: 0 | CN67: 0 | CO67: 0 | CP67: 0 | CQ67: 0 | CR67: 0 | CS67: 0 | CT67: 0 | CU67: 0 | CV67: 0 | CW67: 0 | CX67: 0 | CY67: 0 | CZ67: 0 | DA67: 0 | DB67: 0 | DC67: 0 | DD67: 0 | DE67: 0 | DF67: 0 | DG67: 0 | DH67: 0 | DI67: 0 | DJ67: 0 | DK67: 0 | DL67: 0 | DM67: 0 | DN67: 0 | DO67: 0 | DP67: 0 | DQ67: 0 | DR67: 0 | DS67: 0 | DT67: 0 | DU67: 0 | DV67: 0
B68: Civil works contract | D68: ='Tax Assumptions'!$D$10 -> 0.1 | E68: 1202400 | G68: =G45*$D68 -> 0 | H68: 0 | I68: 0 | J68: 0 | K68: 0 | L68: 0 | M68: 0 | N68: 0 | O68: 0 | P68: 0 | Q68: 0 | R68: 0 | S68: 0 | T68: 120240 | U68: 240480 | V68: 240480 | W68: 360720 | X68: 240480 | Y68: 0 | Z68: 0 | AA68: 0 | AB68: 0 | AC68: 0 | AD68: 0 | AE68: 0 | AF68: 0 | AG68: 0 | AH68: 0 | AI68: 0 | AJ68: 0 | AK68: 0 | AL68: 0 | AM68: 0 | AN68: 0 | AO68: 0 | AP68: 0 | AQ68: 0 | AR68: 0 | AS68: 0 | AT68: 0 | AU68: 0 | AV68: 0 | AW68: 0 | AX68: 0 | AY68: 0 | AZ68: 0 | BA68: 0 | BB68: 0 | BC68: 0 | BD68: 0 | BE68: 0 | BF68: 0 | BG68: 0 | BH68: 0 | BI68: 0 | BJ68: 0 | BK68: 0 | BL68: 0 | BM68: 0 | BN68: 0 | BO68: 0 | BP68: 0 | BQ68: 0 | BR68: 0 | BS68: =BS45*$D68 -> 0 | BT68: 0 | BU68: 0 | BV68: 0 | BW68: 0 | BX68: 0 | BY68: 0 | BZ68: 0 | CA68: 0 | CB68: 0 | CC68: 0 | CD68: 0 | CE68: 0 | CF68: 0 | CG68: 0 | CH68: 0 | CI68: 0 | CJ68: 0 | CK68: 0 | CL68: 0 | CM68: 0 | CN68: 0 | CO68: 0 | CP68: 0 | CQ68: 0 | CR68: 0 | CS68: 0 | CT68: 0 | CU68: 0 | CV68: 0 | CW68: 0 | CX68: 0 | CY68: 0 | CZ68: 0 | DA68: 0 | DB68: 0 | DC68: 0 | DD68: 0 | DE68: 0 | DF68: 0 | DG68: 0 | DH68: 0 | DI68: 0 | DJ68: 0 | DK68: 0 | DL68: 0 | DM68: 0 | DN68: 0 | DO68: 0 | DP68: 0 | DQ68: 0 | DR68: 0 | DS68: 0 | DT68: 0 | DU68: 0 | DV68: 0
B69: Telecommunications | D69: ='Tax Assumptions'!$D$10 -> 0.1 | E69: 0 | G69: =G46*$D69 -> 0 | H69: 0 | I69: 0 | J69: 0 | K69: 0 | L69: 0 | M69: 0 | N69: 0 | O69: 0 | P69: 0 | Q69: 0 | R69: 0 | S69: 0 | T69: 0 | U69: 0 | V69: 0 | W69: 0 | X69: 0 | Y69: 0 | Z69: 0 | AA69: 0 | AB69: 0 | AC69: 0 | AD69: 0 | AE69: 0 | AF69: 0 | AG69: 0 | AH69: 0 | AI69: 0 | AJ69: 0 | AK69: 0 | AL69: 0 | AM69: 0 | AN69: 0 | AO69: 0 | AP69: 0 | AQ69: 0 | AR69: 0 | AS69: 0 | AT69: 0 | AU69: 0 | AV69: 0 | AW69: 0 | AX69: 0 | AY69: 0 | AZ69: 0 | BA69: 0 | BB69: 0 | BC69: 0 | BD69: 0 | BE69: 0 | BF69: 0 | BG69: 0 | BH69: 0 | BI69: 0 | BJ69: 0 | BK69: 0 | BL69: 0 | BM69: 0 | BN69: 0 | BO69: 0 | BP69: 0 | BQ69: 0 | BR69: 0 | BS69: =BS46*$D69 -> 0 | BT69: 0 | BU69: 0 | BV69: 0 | BW69: 0 | BX69: 0 | BY69: 0 | BZ69: 0 | CA69: 0 | CB69: 0 | CC69: 0 | CD69: 0 | CE69: 0 | CF69: 0 | CG69: 0 | CH69: 0 | CI69: 0 | CJ69: 0 | CK69: 0 | CL69: 0 | CM69: 0 | CN69: 0 | CO69: 0 | CP69: 0 | CQ69: 0 | CR69: 0 | CS69: 0 | CT69: 0 | CU69: 0 | CV69: 0 | CW69: 0 | CX69: 0 | CY69: 0 | CZ69: 0 | DA69: 0 | DB69: 0 | DC69: 0 | DD69: 0 | DE69: 0 | DF69: 0 | DG69: 0 | DH69: 0 | DI69: 0 | DJ69: 0 | DK69: 0 | DL69: 0 | DM69: 0 | DN69: 0 | DO69: 0 | DP69: 0 | DQ69: 0 | DR69: 0 | DS69: 0 | DT69: 0 | DU69: 0 | DV69: 0
B70: Landscaping | D70: ='Tax Assumptions'!$D$10 -> 0.1 | E70: 1608480 | G70: =G47*$D70 -> 0 | H70: 0 | I70: 0 | J70: 0 | K70: 0 | L70: 0 | M70: 0 | N70: 0 | O70: 0 | P70: 0 | Q70: 0 | R70: 0 | S70: 0 | T70: 1608480 | U70: 0 | V70: 0 | W70: 0 | X70: 0 | Y70: 0 | Z70: 0 | AA70: 0 | AB70: 0 | AC70: 0 | AD70: 0 | AE70: 0 | AF70: 0 | AG70: 0 | AH70: 0 | AI70: 0 | AJ70: 0 | AK70: 0 | AL70: 0 | AM70: 0 | AN70: 0 | AO70: 0 | AP70: 0 | AQ70: 0 | AR70: 0 | AS70: 0 | AT70: 0 | AU70: 0 | AV70: 0 | AW70: 0 | AX70: 0 | AY70: 0 | AZ70: 0 | BA70: 0 | BB70: 0 | BC70: 0 | BD70: 0 | BE70: 0 | BF70: 0 | BG70: 0 | BH70: 0 | BI70: 0 | BJ70: 0 | BK70: 0 | BL70: 0 | BM70: 0 | BN70: 0 | BO70: 0 | BP70: 0 | BQ70: 0 | BR70: 0 | BS70: =BS47*$D70 -> 0 | BT70: 0 | BU70: 0 | BV70: 0 | BW70: 0 | BX70: 0 | BY70: 0 | BZ70: 0 | CA70: 0 | CB70: 0 | CC70: 0 | CD70: 0 | CE70: 0 | CF70: 0 | CG70: 0 | CH70: 0 | CI70: 0 | CJ70: 0 | CK70: 0 | CL70: 0 | CM70: 0 | CN70: 0 | CO70: 0 | CP70: 0 | CQ70: 0 | CR70: 0 | CS70: 0 | CT70: 0 | CU70: 0 | CV70: 0 | CW70: 0 | CX70: 0 | CY70: 0 | CZ70: 0 | DA70: 0 | DB70: 0 | DC70: 0 | DD70: 0 | DE70: 0 | DF70: 0 | DG70: 0 | DH70: 0 | DI70: 0 | DJ70: 0 | DK70: 0 | DL70: 0 | DM70: 0 | DN70: 0 | DO70: 0 | DP70: 0 | DQ70: 0 | DR70: 0 | DS70: 0 | DT70: 0 | DU70: 0 | DV70: 0
B71: Miscellaneous | D71: ='Tax Assumptions'!$D$10 -> 0.1 | E71: 2245541.04 | G71: =G48*$D71 -> 0 | H71: 0 | I71: 0 | J71: 0 | K71: 0 | L71: 0 | M71: 0 | N71: 0 | O71: 0 | P71: 0 | Q71: 0 | R71: 0 | S71: 0 | T71: 2245541.04 | U71: 0 | V71: 0 | W71: 0 | X71: 0 | Y71: 0 | Z71: 0 | AA71: 0 | AB71: 0 | AC71: 0 | AD71: 0 | AE71: 0 | AF71: 0 | AG71: 0 | AH71: 0 | AI71: 0 | AJ71: 0 | AK71: 0 | AL71: 0 | AM71: 0 | AN71: 0 | AO71: 0 | AP71: 0 | AQ71: 0 | AR71: 0 | AS71: 0 | AT71: 0 | AU71: 0 | AV71: 0 | AW71: 0 | AX71: 0 | AY71: 0 | AZ71: 0 | BA71: 0 | BB71: 0 | BC71: 0 | BD71: 0 | BE71: 0 | BF71: 0 | BG71: 0 | BH71: 0 | BI71: 0 | BJ71: 0 | BK71: 0 | BL71: 0 | BM71: 0 | BN71: 0 | BO71: 0 | BP71: 0 | BQ71: 0 | BR71: 0 | BS71: =BS48*$D71 -> 0 | BT71: 0 | BU71: 0 | BV71: 0 | BW71: 0 | BX71: 0 | BY71: 0 | BZ71: 0 | CA71: 0 | CB71: 0 | CC71: 0 | CD71: 0 | CE71: 0 | CF71: 0 | CG71: 0 | CH71: 0 | CI71: 0 | CJ71: 0 | CK71: 0 | CL71: 0 | CM71: 0 | CN71: 0 | CO71: 0 | CP71: 0 | CQ71: 0 | CR71: 0 | CS71: 0 | CT71: 0 | CU71: 0 | CV71: 0 | CW71: 0 | CX71: 0 | CY71: 0 | CZ71: 0 | DA71: 0 | DB71: 0 | DC71: 0 | DD71: 0 | DE71: 0 | DF71: 0 | DG71: 0 | DH71: 0 | DI71: 0 | DJ71: 0 | DK71: 0 | DL71: 0 | DM71: 0 | DN71: 0 | DO71: 0 | DP71: 0 | DQ71: 0 | DR71: 0 | DS71: 0 | DT71: 0 | DU71: 0 | DV71: 0
B72: Contingency | D72: ='Tax Assumptions'!$D$10 -> 0.1 | E72: 831663.036 | G72: =G49*$D72 -> 0 | H72: 0 | I72: 0 | J72: 0 | K72: 0 | L72: 0 | M72: 0 | N72: 0 | O72: 0 | P72: 0 | Q72: 0 | R72: 0 | S72: 69610.19611 | T72: 69277.5309 | U72: 69277.5309 | V72: 69277.5309 | W72: 69277.5309 | X72: 69277.5309 | Y72: 69277.5309 | Z72: 69277.5309 | AA72: 69277.5309 | AB72: 69277.5309 | AC72: 69277.5309 | AD72: 69277.5309 | AE72: 0 | AF72: 0 | AG72: 0 | AH72: 0 | AI72: 0 | AJ72: 0 | AK72: 0 | AL72: 0 | AM72: 0 | AN72: 0 | AO72: 0 | AP72: 0 | AQ72: 0 | AR72: 0 | AS72: 0 | AT72: 0 | AU72: 0 | AV72: 0 | AW72: 0 | AX72: 0 | AY72: 0 | AZ72: 0 | BA72: 0 | BB72: 0 | BC72: 0 | BD72: 0 | BE72: 0 | BF72: 0 | BG72: 0 | BH72: 0 | BI72: 0 | BJ72: 0 | BK72: 0 | BL72: 0 | BM72: 0 | BN72: 0 | BO72: 0 | BP72: 0 | BQ72: 0 | BR72: 0 | BS72: =BS49*$D72 -> 0 | BT72: 0 | BU72: 0 | BV72: 0 | BW72: 0 | BX72: 0 | BY72: 0 | BZ72: 0 | CA72: 0 | CB72: 0 | CC72: 0 | CD72: 0 | CE72: 0 | CF72: 0 | CG72: 0 | CH72: 0 | CI72: 0 | CJ72: 0 | CK72: 0 | CL72: 0 | CM72: 0 | CN72: 0 | CO72: 0 | CP72: 0 | CQ72: 0 | CR72: 0 | CS72: 0 | CT72: 0 | CU72: 0 | CV72: 0 | CW72: 0 | CX72: 0 | CY72: 0 | CZ72: 0 | DA72: 0 | DB72: 0 | DC72: 0 | DD72: 0 | DE72: 0 | DF72: 0 | DG72: 0 | DH72: 0 | DI72: 0 | DJ72: 0 | DK72: 0 | DL72: 0 | DM72: 0 | DN72: 0 | DO72: 0 | DP72: 0 | DQ72: 0 | DR72: 0 | DS72: 0 | DT72: 0 | DU72: 0 | DV72: 0
B74: Total Vat Cost | E74: 18589923.76 | G74: =SUM(G56:G73) -> 0 | H74: =SUM(H56:H73) -> 0 | I74: 0 | J74: 0 | K74: 0 | L74: 0 | P74: 1125000 | Q74: 0 | R74: 1126738.152 | S74: 1416209.334 | T74: 4171357.708 | U74: 439402.6562 | V74: 439402.6562 | W74: 1372162.656 | X74: 439402.6562 | Y74: 1011442.656 | Z74: 605182.6562 | AA74: 757408.6562 | AB74: 605182.6562 | AC74: 1417702.656 | AD74: 3663328.656 | AE74: 0 | AF74: 0 | AG74: 0 | AH74: 0 | AI74: 0 | AJ74: 0 | AK74: 0 | AL74: 0 | AM74: 0 | AN74: 0 | AO74: 0 | AP74: 0 | AQ74: 0 | AR74: 0 | AS74: 0 | AT74: 0 | AU74: 0 | AV74: 0 | AW74: 0 | AX74: 0 | AY74: 0 | AZ74: 0 | BA74: 0 | BB74: 0 | BC74: 0 | BD74: 0 | BE74: 0 | BF74: =SUM(BF56:BF73) -> 0 | BG74: 0 | BH74: 0 | BI74: 0 | BJ74: 0 | BK74: 0 | BL74: 0 | BM74: 0 | BN74: 0 | BO74: 0 | BP74: 0 | BQ74: 0 | BR74: 0 | BS74: 0 | BT74: 0 | BU74: 0 | BV74: 0 | BW74: 0 | BX74: 0 | BY74: 0 | BZ74: =SUM(BZ56:BZ73) -> 0 | CA74: 0 | CB74: 0 | CC74: 0 | CD74: 0 | CE74: 0 | CF74: 0 | CG74: 0 | CH74: 0 | CI74: 0 | CJ74: 0 | CK74: 0 | CL74: 0 | CM74: 0 | CN74: 0 | CO74: 0 | CP74: 0 | CQ74: 0 | CR74: 0 | CS74: 0 | CT74: 0 | CU74: 0 | CV74: 0 | CW74: 0 | CX74: 0 | CY74: =SUM(CY56:CY73) -> 0 | CZ74: 0 | DA74: 0 | DB74: 0 | DC74: 0 | DD74: 0 | DE74: 0 | DF74: 0 | DG74: 0 | DH74: 0 | DI74: 0 | DJ74: 0 | DK74: 0 | DL74: 0 | DM74: 0 | DN74: 0 | DO74: 0 | DP74: =SUM(DP56:DP73) -> 0 | DQ74: 0 | DR74: 0 | DS74: 0 | DT74: 0 | DU74: 0 | DV74: =SUM(DV56:DV73) -> 0
B76: VAT Refunds - Construction | D76: =-'Tax Assumptions'!D11 -> -2 | E76: =SUM(G76:IV76) -> 18589923.76 | H76: =IF(H3>-$G$76,OFFSET(H74,0,$D$76))*H4 -> 0 | I76: =IF(I3>-$G$76,OFFSET(I74,0,$D$76))*I4 -> 0 | J76: 0 | K76: 0 | L76: 0 | M76: 0 | N76: 0 | O76: 0 | P76: 0 | Q76: 0 | R76: 1125000 | S76: 0 | T76: 1126738.152 | U76: 1416209.334 | V76: 4171357.708 | W76: 439402.6562 | X76: 439402.6562 | Y76: 1372162.656 | Z76: 439402.6562 | AA76: 1011442.656 | AB76: 605182.6562 | AC76: 757408.6562 | AD76: 605182.6562 | AE76: 1417702.656 | AF76: 3663328.656 | AG76: 0 | AH76: 0 | AI76: 0 | AJ76: 0 | AK76: 0 | AL76: 0 | AM76: 0 | AN76: 0 | AO76: 0 | AP76: 0 | AQ76: 0 | AR76: 0 | AS76: 0 | AT76: 0 | AU76: 0 | AV76: 0 | AW76: 0 | AX76: 0 | AY76: 0 | AZ76: 0 | BA76: 0 | BB76: 0 | BC76: 0 | BD76: 0 | BE76: 0 | BF76: 0 | BG76: 0 | BH76: 0 | BI76: 0 | BJ76: 0 | BK76: 0 | BL76: 0 | BM76: 0 | BN76: 0 | BO76: 0 | BP76: 0 | BQ76: 0 | BR76: 0 | BS76: 0 | BT76: 0 | BU76: =IF(BU3>-$G$76,OFFSET(BU74,0,$D$76))*BU4 -> 0 | BV76: 0 | BW76: 0 | BX76: 0 | BY76: 0 | BZ76: 0 | CA76: 0 | CB76: 0 | CC76: 0 | CD76: 0 | CE76: 0 | CF76: 0 | CG76: 0 | CH76: 0 | CI76: 0 | CJ76: 0 | CK76: 0 | CL76: 0 | CM76: 0 | CN76: 0 | CO76: 0 | CP76: 0 | CQ76: 0 | CR76: 0 | CS76: 0 | CT76: 0 | CU76: 0 | CV76: 0 | CW76: 0 | CX76: 0 | CY76: 0 | CZ76: 0 | DA76: 0 | DB76: 0 | DC76: 0 | DD76: 0 | DE76: 0 | DF76: 0 | DG76: 0 | DH76: 0 | DI76: 0 | DJ76: 0 | DK76: 0 | DL76: 0 | DM76: 0 | DN76: 0 | DO76: 0 | DP76: 0 | DQ76: 0 | DR76: 0 | DS76: 0 | DT76: 0 | DU76: 0 | DV76: 0
B77: VAT Refunds - Beginning of Operation | E77: =E74-E76 -> 0 | H77: =$E$77*H5 -> 0 | I77: =$E$77*I5 -> 0 | J77: 0 | K77: 0 | L77: 0 | M77: 0 | N77: 0 | O77: 0 | P77: 0 | Q77: 0 | R77: 0 | S77: 0 | T77: 0 | U77: 0 | V77: 0 | W77: 0 | X77: 0 | Y77: 0 | Z77: 0 | AA77: 0 | AB77: 0 | AC77: 0 | AD77: 0 | AE77: 0 | AF77: 0 | AG77: 0 | AH77: 0 | AI77: 0 | AJ77: 0 | AK77: 0 | AL77: 0 | AM77: 0 | AN77: 0 | AO77: 0 | AP77: 0 | AQ77: 0 | AR77: 0 | AS77: 0 | AT77: 0 | AU77: 0 | AV77: 0 | AW77: 0 | AX77: 0 | AY77: 0 | AZ77: 0 | BA77: 0 | BB77: 0 | BC77: 0 | BD77: 0 | BE77: 0 | BF77: 0 | BG77: 0 | BH77: 0 | BI77: 0 | BJ77: 0 | BK77: 0 | BL77: 0 | BM77: 0 | BN77: 0 | BO77: 0 | BP77: 0 | BQ77: 0 | BR77: 0 | BS77: 0 | BT77: 0 | BU77: =$E$77*BU5 -> 0 | BV77: 0 | BW77: 0 | BX77: 0 | BY77: 0 | BZ77: 0 | CA77: 0 | CB77: 0 | CC77: 0 | CD77: 0 | CE77: 0 | CF77: 0 | CG77: 0 | CH77: 0 | CI77: 0 | CJ77: 0 | CK77: 0 | CL77: 0 | CM77: 0 | CN77: 0 | CO77: 0 | CP77: 0 | CQ77: 0 | CR77: 0 | CS77: 0 | CT77: 0 | CU77: 0 | CV77: 0 | CW77: 0 | CX77: 0 | CY77: 0 | CZ77: 0 | DA77: 0 | DB77: 0 | DC77: 0 | DD77: 0 | DE77: 0 | DF77: 0 | DG77: 0 | DH77: 0 | DI77: 0 | DJ77: 0 | DK77: 0 | DL77: 0 | DM77: 0 | DN77: 0 | DO77: 0 | DP77: 0 | DQ77: 0 | DR77: 0 | DS77: 0 | DT77: 0 | DU77: 0 | DV77: 0
B78: Total VAT Refunds | E78: =SUM(H78:DV78) -> 18589923.76 | H78: =H76+H77 -> 0 | I78: =I76+I77 -> 0 | J78: 0 | K78: 0 | L78: 0 | M78: 0 | N78: 0 | O78: 0 | P78: 0 | Q78: 0 | R78: =R76+R77 -> 1125000 | S78: 0 | T78: 1126738.152 | U78: 1416209.334 | V78: 4171357.708 | W78: 439402.6562 | X78: 439402.6562 | Y78: 1372162.656 | Z78: 439402.6562 | AA78: 1011442.656 | AB78: 605182.6562 | AC78: 757408.6562 | AD78: 605182.6562 | AE78: 1417702.656 | AF78: 3663328.656 | AG78: 0 | AH78: 0 | AI78: 0 | AJ78: 0 | AK78: 0 | AL78: 0 | AM78: 0 | AN78: 0 | AO78: 0 | AP78: 0 | AQ78: 0 | AR78: 0 | AS78: 0 | AT78: 0 | AU78: 0 | AV78: 0 | AW78: 0 | AX78: 0 | AY78: 0 | AZ78: 0 | BA78: 0 | BB78: 0 | BC78: 0 | BD78: 0 | BE78: 0 | BF78: 0 | BG78: 0 | BH78: 0 | BI78: 0 | BJ78: 0 | BK78: 0 | BL78: 0 | BM78: 0 | BN78: 0 | BO78: 0 | BP78: 0 | BQ78: 0 | BR78: 0 | BS78: 0 | BT78: 0 | BU78: =BU76+BU77 -> 0 | BV78: 0 | BW78: 0 | BX78: 0 | BY78: 0 | BZ78: 0 | CA78: 0 | CB78: 0 | CC78: 0 | CD78: 0 | CE78: 0 | CF78: 0 | CG78: 0 | CH78: 0 | CI78: 0 | CJ78: 0 | CK78: 0 | CL78: 0 | CM78: 0 | CN78: 0 | CO78: 0 | CP78: 0 | CQ78: 0 | CR78: 0 | CS78: 0 | CT78: 0 | CU78: 0 | CV78: 0 | CW78: 0 | CX78: 0 | CY78: 0 | CZ78: 0 | DA78: 0 | DB78: 0 | DC78: 0 | DD78: 0 | DE78: 0 | DF78: 0 | DG78: 0 | DH78: 0 | DI78: 0 | DJ78: 0 | DK78: 0 | DL78: 0 | DM78: 0 | DN78: 0 | DO78: 0 | DP78: 0 | DQ78: 0 | DR78: 0 | DS78: 0 | DT78: 0 | DU78: 0 | DV78: 0
E79: =E78-E76 -> 0
B81: Price per MW | E81: 0
B99: Semi annual mutiple | G99: 0.5 | H99: 0.5 | I99: 0.5 | J99: 0.5 | K99: 0.5 | L99: 0.5 | M99: 1 | N99: 1 | O99: 1 | P99: 1 | Q99: 1 | R99: 1 | S99: 1.5 | T99: 1.5 | U99: 1.5 | V99: 1.5 | W99: 1.5 | X99: 1.5 | Y99: 2 | Z99: 2 | AA99: 2 | AB99: 2 | AC99: 2 | AD99: 2 | AE99: 2.5 | AF99: 2.5 | AG99: 2.5 | AH99: 2.5 | AI99: 2.5 | AJ99: 2.5 | AK99: 3 | AL99: 3 | AM99: 3 | AN99: 3 | AO99: 3 | AP99: 3 | AQ99: 3.5 | AR99: 3.5 | AS99: 3.5 | AT99: 3.5 | AU99: 3.5 | AV99: 3.5 | AW99: 4 | AX99: 4 | AY99: 4 | AZ99: 4 | BA99: 4 | BB99: 4 | BC99: 4.5 | BD99: 4.5 | BE99: 4.5 | BF99: 4.5 | BG99: 4.5 | BH99: 4.5 | BI99: 5 | BJ99: 5 | BK99: 5 | BL99: 5 | BM99: 5 | BN99: 5 | BO99: 5.5 | BP99: 5.5 | BQ99: 5.5 | BR99: 5.5 | BS99: 5.5 | BT99: 5.5 | BU99: 6 | BV99: 6 | BW99: 6 | BX99: 6 | BY99: 6 | BZ99: 6 | CA99: 6.5 | CB99: 6.5 | CC99: 6.5 | CD99: 6.5 | CE99: 6.5 | CF99: 6.5 | CG99: 7 | CH99: 7 | CI99: 7 | CJ99: 7 | CK99: 7 | CL99: 7 | CM99: 7.5 | CN99: 7.5 | CO99: 7.5 | CP99: 7.5 | CQ99: 7.5 | CR99: 7.5 | CS99: 8 | CT99: 8 | CU99: 8 | CV99: 8 | CW99: 8 | CX99: 8 | CY99: 8.5 | CZ99: 8.5 | DA99: 8.5 | DB99: 8.5 | DC99: 8.5 | DD99: 8.5 | DE99: 9 | DF99: 9 | DG99: 9 | DH99: 9 | DI99: 9 | DJ99: 9 | DK99: 9.5 | DL99: 9.5 | DM99: 9.5 | DN99: 9.5 | DO99: 9.5 | DP99: 9.5 | DQ99: 10 | DR99: 10 | DS99: 10 | DT99: 10 | DU99: 10 | DV99: 10

Sheet EBITDA
D2: Year | J2: ='Timing and Operations'!F5 -> 2017-06-01 | K2: =J3+1 -> 2017-12-01 | L2: =K3+1 -> 2018-06-01 | M2: 2018-12-01 | N2: 2019-06-01 | O2: 2019-12-01 | P2: 2020-06-01 | Q2: 2020-12-01 | R2: 2021-06-01 | S2: 2021-12-01 | T2: 2022-06-01 | U2: 2022-12-01 | V2: 2023-06-01 | W2: 2023-12-01 | X2: 2024-06-01 | Y2: 2024-12-01 | Z2: 2025-06-01 | AA2: 2025-12-01 | AB2: 2026-06-01 | AC2: 2026-12-01 | AD2: 2027-06-01 | AE2: 2027-12-01 | AF2: 2028-06-01 | AG2: 2028-12-01 | AH2: 2029-06-01 | AI2: 2029-12-01 | AJ2: 2030-06-01 | AK2: 2030-12-01 | AL2: 2031-06-01 | AM2: 2031-12-01 | AN2: 2032-06-01 | AO2: 2032-12-01 | AP2: 2033-06-01 | AQ2: 2033-12-01 | AR2: 2034-06-01 | AS2: 2034-12-01 | AT2: 2035-06-01 | AU2: 2035-12-01 | AV2: 2036-06-01 | AW2: 2036-12-01 | AX2: 2037-06-01 | AY2: 2037-12-01 | AZ2: 2038-06-01 | BA2: 2038-12-01 | BB2: 2039-06-01 | BC2: 2039-12-01 | BD2: 2040-06-01 | BE2: 2040-12-01 | BF2: 2041-06-01 | BG2: 2041-12-01 | BH2: 2042-06-01 | BI2: 2042-12-01 | BJ2: 2043-06-01 | BK2: 2043-12-01 | BL2: 2044-06-01 | BM2: 2044-12-01 | BN2: 2045-06-01 | BO2: 2045-12-01 | BP2: 2046-06-01 | BQ2: 2046-12-01
D3: Last day of Period | G3: ='Timing and Operations'!J3 -> 0.0878556639 | J3: =EOMONTH(J2,5) -> 2017-11-30 | K3: =EOMONTH(K2,5) -> 2018-05-31 | L3: =EOMONTH(L2,5) -> 2018-11-30 | M3: 2019-05-31 | N3: 2019-11-30 | O3: 2020-05-31 | P3: 2020-11-30 | Q3: 2021-05-31 | R3: 2021-11-30 | S3: 2022-05-31 | T3: 2022-11-30 | U3: 2023-05-31 | V3: 2023-11-30 | W3: 2024-05-31 | X3: 2024-11-30 | Y3: 2025-05-31 | Z3: 2025-11-30 | AA3: 2026-05-31 | AB3: 2026-11-30 | AC3: 2027-05-31 | AD3: 2027-11-30 | AE3: 2028-05-31 | AF3: 2028-11-30 | AG3: 2029-05-31 | AH3: 2029-11-30 | AI3: 2030-05-31 | AJ3: 2030-11-30 | AK3: 2031-05-31 | AL3: 2031-11-30 | AM3: 2032-05-31 | AN3: 2032-11-30 | AO3: 2033-05-31 | AP3: 2033-11-30 | AQ3: 2034-05-31 | AR3: 2034-11-30 | AS3: 2035-05-31 | AT3: 2035-11-30 | AU3: 2036-05-31 | AV3: 2036-11-30 | AW3: 2037-05-31 | AX3: 2037-11-30 | AY3: 2038-05-31 | AZ3: 2038-11-30 | BA3: 2039-05-31 | BB3: 2039-11-30 | BC3: 2040-05-31 | BD3: 2040-11-30 | BE3: 2041-05-31 | BF3: 2041-11-30 | BG3: 2042-05-31 | BH3: 2042-11-30 | BI3: 2043-05-31 | BJ3: 2043-11-30 | BK3: 2044-05-31 | BL3: 2044-11-30 | BM3: 2045-05-31 | BN3: 2045-11-30 | BO3: 2046-05-31 | BP3: 2046-11-30 | BQ3: 2047-05-31
D4: Period | J4: =I4+1 -> 1 | K4: 2 | L4: 3 | M4: 4 | N4: 5 | O4: 6 | P4: 7 | Q4: 8 | R4: 9 | S4: 10 | T4: 11 | U4: 12 | V4: 13 | W4: 14 | X4: 15 | Y4: 16 | Z4: 17 | AA4: 18 | AB4: 19 | AC4: 20 | AD4: 21 | AE4: 22 | AF4: 23 | AG4: 24 | AH4: 25 | AI4: 26 | AJ4: 27 | AK4: 28 | AL4: 29 | AM4: 30 | AN4: 31 | AO4: 32 | AP4: =AO4+1 -> 33 | AQ4: 34 | AR4: 35 | AS4: 36 | AT4: 37 | AU4: 38 | AV4: 39 | AW4: 40 | AX4: 41 | AY4: 42 | AZ4: 43 | BA4: 44 | BB4: 45 | BC4: 46 | BD4: 47 | BE4: 48 | BF4: 49 | BG4: 50 | BH4: 51 | BI4: 52 | BJ4: 53 | BK4: 54 | BL4: 55 | BM4: 56 | BN4: 57 | BO4: 58 | BP4: 59 | BQ4: 60
A5: Section 1: Dates and Switches
E6: Operating Life Switch | G6: ='Timing and Operations'!F5 -> 2017-06-01 | H6: ='Timing and Operations'!F6 -> 2042-05-31 | J6: =AND(J2>=$G$6,J2<$H$6) -> TRUE | K6: TRUE | L6: TRUE | M6: TRUE | N6: TRUE | O6: TRUE | P6: TRUE | Q6: TRUE | R6: TRUE | S6: TRUE | T6: TRUE | U6: TRUE | V6: TRUE | W6: TRUE | X6: TRUE | Y6: TRUE | Z6: TRUE | AA6: TRUE | AB6: TRUE | AC6: TRUE | AD6: TRUE | AE6: TRUE | AF6: TRUE | AG6: TRUE | AH6: TRUE | AI6: TRUE | AJ6: TRUE | AK6: TRUE | AL6: TRUE | AM6: TRUE | AN6: TRUE | AO6: TRUE | AP6: =AND(AP2>=$G$6,AP2<$H$6) -> TRUE | AQ6: TRUE | AR6: TRUE | AS6: TRUE | AT6: TRUE | AU6: TRUE | AV6: TRUE | AW6: TRUE | AX6: TRUE | AY6: TRUE | AZ6: TRUE | BA6: TRUE | BB6: TRUE | BC6: TRUE | BD6: TRUE | BE6: TRUE | BF6: TRUE | BG6: TRUE | BH6: FALSE | BI6: FALSE | BJ6: FALSE | BK6: FALSE | BL6: FALSE | BM6: FALSE | BN6: FALSE | BO6: FALSE | BP6: FALSE | BQ6: FALSE
E7: PPA Switch | G7: =G6 -> 2017-06-01 | H7: ='Timing and Operations'!F18 -> 2042-05-31 | J7: =AND(J$2>=$G7,J$2<=$H7) -> TRUE | K7: TRUE | L7: TRUE | M7: TRUE | N7: TRUE | O7: TRUE | P7: TRUE | Q7: TRUE | R7: TRUE | S7: TRUE | T7: =AND(T$2>=$G7,T$2<=$H7) -> TRUE | U7: TRUE | V7: TRUE | W7: TRUE | X7: TRUE | Y7: TRUE | Z7: TRUE | AA7: TRUE | AB7: TRUE | AC7: TRUE | AD7: =AND(AD$2>=$G7,AD$2<=$H7) -> TRUE | AE7: TRUE | AF7: TRUE | AG7: TRUE | AH7: TRUE | AI7: TRUE | AJ7: TRUE | AK7: TRUE | AL7: TRUE | AM7: TRUE | AN7: =AND(AN$2>=$G7,AN$2<=$H7) -> TRUE | AO7: TRUE | AP7: TRUE | AQ7: TRUE | AR7: TRUE | AS7: TRUE | AT7: TRUE | AU7: TRUE | AV7: TRUE | AW7: TRUE | AX7: =AND(AX$2>=$G7,AX$2<=$H7) -> TRUE | AY7: TRUE | AZ7: TRUE | BA7: TRUE | BB7: TRUE | BC7: TRUE | BD7: TRUE | BE7: TRUE | BF7: TRUE | BG7: TRUE | BH7: =AND(BH$2>=$G7,BH$2<=$H7) -> FALSE | BI7: FALSE | BJ7: FALSE | BK7: FALSE | BL7: FALSE | BM7: FALSE | BN7: FALSE | BO7: FALSE | BP7: FALSE | BQ7: FALSE
E8: Post PPA Switch | G8: ='Timing and Operations'!G160 -> 2042-06-01 | H8: =H6 -> 2042-05-31 | J8: FALSE | K8: FALSE | L8: FALSE | M8: FALSE | N8: FALSE | O8: FALSE | P8: FALSE | Q8: FALSE | R8: FALSE | S8: FALSE | T8: FALSE | U8: FALSE | V8: FALSE | W8: FALSE | X8: FALSE | Y8: FALSE | Z8: FALSE | AA8: FALSE | AB8: FALSE | AC8: FALSE | AD8: FALSE | AE8: FALSE | AF8: FALSE | AG8: FALSE | AH8: FALSE | AI8: FALSE | AJ8: FALSE | AK8: FALSE | AL8: FALSE | AM8: FALSE | AN8: FALSE | AO8: FALSE | AP8: FALSE | AQ8: FALSE | AR8: FALSE | AS8: FALSE | AT8: FALSE | AU8: FALSE | AV8: FALSE | AW8: FALSE | AX8: FALSE | AY8: FALSE | AZ8: FALSE | BA8: FALSE | BB8: FALSE | BC8: FALSE | BD8: FALSE | BE8: FALSE | BF8: FALSE | BG8: FALSE | BH8: FALSE | BI8: FALSE | BJ8: FALSE | BK8: FALSE | BL8: FALSE | BM8: FALSE | BN8: FALSE | BO8: FALSE | BP8: FALSE | BQ8: FALSE
E9: Start of inflation | H9: ='Timing and Operations'!G88 -> 2015-01-01 | J9: =J2=$H$9 -> FALSE | K9: FALSE | L9: FALSE | M9: FALSE | N9: FALSE | O9: FALSE | P9: FALSE | Q9: FALSE | R9: FALSE | S9: FALSE | T9: FALSE | U9: FALSE | V9: FALSE | W9: FALSE | X9: FALSE | Y9: FALSE | Z9: FALSE | AA9: FALSE | AB9: FALSE | AC9: FALSE | AD9: FALSE | AE9: FALSE | AF9: FALSE | AG9: FALSE | AH9: FALSE | AI9: FALSE | AJ9: FALSE | AK9: FALSE | AL9: FALSE | AM9: FALSE | AN9: FALSE | AO9: FALSE | AP9: =AP2=$H$9 -> FALSE | AQ9: FALSE | AR9: FALSE | AS9: FALSE | AT9: FALSE | AU9: FALSE | AV9: FALSE | AW9: FALSE | AX9: FALSE | AY9: FALSE | AZ9: FALSE | BA9: FALSE | BB9: FALSE | BC9: FALSE | BD9: FALSE | BE9: FALSE | BF9: FALSE | BG9: FALSE | BH9: FALSE | BI9: FALSE | BJ9: FALSE | BK9: FALSE | BL9: FALSE | BM9: FALSE | BN9: FALSE | BO9: FALSE | BP9: FALSE | BQ9: FALSE
E10: Period for applying inflation | H10: =H9 -> 2015-01-01 | J10: =J2>=$H$10 -> TRUE | K10: TRUE | L10: TRUE | M10: TRUE | N10: TRUE | O10: TRUE | P10: TRUE | Q10: TRUE | R10: TRUE | S10: TRUE | T10: TRUE | U10: TRUE | V10: TRUE | W10: TRUE | X10: TRUE | Y10: TRUE | Z10: TRUE | AA10: TRUE | AB10: TRUE | AC10: TRUE | AD10: TRUE | AE10: TRUE | AF10: TRUE | AG10: TRUE | AH10: TRUE | AI10: TRUE | AJ10: TRUE | AK10: TRUE | AL10: TRUE | AM10: TRUE | AN10: TRUE | AO10: TRUE | AP10: =AP2>=$H$10 -> TRUE | AQ10: TRUE | AR10: TRUE | AS10: TRUE | AT10: TRUE | AU10: TRUE | AV10: TRUE | AW10: TRUE | AX10: TRUE | AY10: TRUE | AZ10: TRUE | BA10: TRUE | BB10: TRUE | BC10: TRUE | BD10: TRUE | BE10: TRUE | BF10: TRUE | BG10: TRUE | BH10: TRUE | BI10: TRUE | BJ10: TRUE | BK10: TRUE | BL10: TRUE | BM10: TRUE | BN10: TRUE | BO10: TRUE | BP10: TRUE | BQ10: TRUE
D12: Inflation Indicies
E13: Annual Cost Inflation Rate | G13: Code | H13: ='Timing and Operations'!F91 -> 2 | J13: =LOOKUP(J2,'Timing and Operations'!$G$89:$BN$89,'Timing and Operations'!$G$95:$BN$95) -> 0.0206 | K13: =LOOKUP(K2,'Timing and Operations'!$G$89:$BN$89,'Timing and Operations'!$G$95:$BN$95) -> 0.0206 | L13: =LOOKUP(L2,'Timing and Operations'!$G$89:$BN$89,'Timing and Operations'!$G$95:$BN$95) -> 0.02101425658 | M13: =LOOKUP(M2,'Timing and Operations'!$G$89:$BN$89,'Timing and Operations'!$G$95:$BN$95) -> 0.02101425658 | N13: =LOOKUP(N2,'Timing and Operations'!$G$89:$BN$89,'Timing and Operations'!$G$95:$BN$95) -> 0.02143679829 | O13: =LOOKUP(O2,'Timing and Operations'!$G$89:$BN$89,'Timing and Operations'!$G$95:$BN$95) -> 0.02143679829 | P13: =LOOKUP(P2,'Timing and Operations'!$G$89:$BN$89,'Timing and Operations'!$G$95:$BN$95) -> 0.02186779083 | Q13: =LOOKUP(Q2,'Timing and Operations'!$G$89:$BN$89,'Timing and Operations'!$G$95:$BN$95) -> 0.02186779083 | R13: =LOOKUP(R2,'Timing and Operations'!$G$89:$BN$89,'Timing and Operations'!$G$95:$BN$95) -> 0.02230740323 | S13: =LOOKUP(S2,'Timing and Operations'!$G$89:$BN$89,'Timing and Operations'!$G$95:$BN$95) -> 0.02230740323 | T13: =LOOKUP(T2,'Timing and Operations'!$G$89:$BN$89,'Timing and Operations'!$G$95:$BN$95) -> 0.02275580787 | U13: =LOOKUP(U2,'Timing and Operations'!$G$89:$BN$89,'Timing and Operations'!$G$95:$BN$95) -> 0.02275580787 | V13: =LOOKUP(V2,'Timing and Operations'!$G$89:$BN$89,'Timing and Operations'!$G$95:$BN$95) -> 0.0232131806 | W13: =LOOKUP(W2,'Timing and Operations'!$G$89:$BN$89,'Timing and Operations'!$G$95:$BN$95) -> 0.0232131806 | X13: =LOOKUP(X2,'Timing and Operations'!$G$89:$BN$89,'Timing and Operations'!$G$95:$BN$95) -> 0.02367970079 | Y13: =LOOKUP(Y2,'Timing and Operations'!$G$89:$BN$89,'Timing and Operations'!$G$95:$BN$95) -> 0.02367970079 | Z13: =LOOKUP(Z2,'Timing and Operations'!$G$89:$BN$89,'Timing and Operations'!$G$95:$BN$95) -> 0.02415555139 | AA13: =LOOKUP(AA2,'Timing and Operations'!$G$89:$BN$89,'Timing and Operations'!$G$95:$BN$95) -> 0.02415555139 | AB13: =LOOKUP(AB2,'Timing and Operations'!$G$89:$BN$89,'Timing and Operations'!$G$95:$BN$95) -> 0.02464091899 | AC13: =LOOKUP(AC2,'Timing and Operations'!$G$89:$BN$89,'Timing and Operations'!$G$95:$BN$95) -> 0.02464091899 | AD13: =LOOKUP(AD2,'Timing and Operations'!$G$89:$BN$89,'Timing and Operations'!$G$95:$BN$95) -> 0.02513599395 | AE13: =LOOKUP(AE2,'Timing and Operations'!$G$89:$BN$89,'Timing and Operations'!$G$95:$BN$95) -> 0.02513599395 | AF13: =LOOKUP(AF2,'Timing and Operations'!$G$89:$BN$89,'Timing and Operations'!$G$95:$BN$95) -> 0.02564097041 | AG13: =LOOKUP(AG2,'Timing and Operations'!$G$89:$BN$89,'Timing and Operations'!$G$95:$BN$95) -> 0.02564097041 | AH13: =LOOKUP(AH2,'Timing and Operations'!$G$89:$BN$89,'Timing and Operations'!$G$95:$BN$95) -> 0.02615604639 | AI13: =LOOKUP(AI2,'Timing and Operations'!$G$89:$BN$89,'Timing and Operations'!$G$95:$BN$95) -> 0.02615604639 | AJ13: =LOOKUP(AJ2,'Timing and Operations'!$G$89:$BN$89,'Timing and Operations'!$G$95:$BN$95) -> 0.0266814239 | AK13: =LOOKUP(AK2,'Timing and Operations'!$G$89:$BN$89,'Timing and Operations'!$G$95:$BN$95) -> 0.0266814239 | AL13: =LOOKUP(AL2,'Timing and Operations'!$G$89:$BN$89,'Timing and Operations'!$G$95:$BN$95) -> 0.02721730895 | AM13: =LOOKUP(AM2,'Timing and Operations'!$G$89:$BN$89,'Timing and Operations'!$G$95:$BN$95) -> 0.02721730895 | AN13: =LOOKUP(AN2,'Timing and Operations'!$G$89:$BN$89,'Timing and Operations'!$G$95:$BN$95) -> 0.02776391171 | AO13: =LOOKUP(AO2,'Timing and Operations'!$G$89:$BN$89,'Timing and Operations'!$G$95:$BN$95) -> 0.02776391171 | AP13: =LOOKUP(AP2,'Timing and Operations'!$G$89:$BN$89,'Timing and Operations'!$G$95:$BN$95) -> 0.02832144652 | AQ13: =LOOKUP(AQ2,'Timing and Operations'!$G$89:$BN$89,'Timing and Operations'!$G$95:$BN$95) -> 0.02832144652 | AR13: =LOOKUP(AR2,'Timing and Operations'!$G$89:$BN$89,'Timing and Operations'!$G$95:$BN$95) -> 0.02889013203 | AS13: =LOOKUP(AS2,'Timing and Operations'!$G$89:$BN$89,'Timing and Operations'!$G$95:$BN$95) -> 0.02889013203 | AT13: =LOOKUP(AT2,'Timing and Operations'!$G$89:$BN$89,'Timing and Operations'!$G$95:$BN$95) -> 0.02947019125 | AU13: =LOOKUP(AU2,'Timing and Operations'!$G$89:$BN$89,'Timing and Operations'!$G$95:$BN$95) -> 0.02947019125 | AV13: =LOOKUP(AV2,'Timing and Operations'!$G$89:$BN$89,'Timing and Operations'!$G$95:$BN$95) -> 0.03006185165 | AW13: =LOOKUP(AW2,'Timing and Operations'!$G$89:$BN$89,'Timing and Operations'!$G$95:$BN$95) -> 0.03006185165 | AX13: =LOOKUP(AX2,'Timing and Operations'!$G$89:$BN$89,'Timing and Operations'!$G$95:$BN$95) -> 0.03066534526 | AY13: =LOOKUP(AY2,'Timing and Operations'!$G$89:$BN$89,'Timing and Operations'!$G$95:$BN$95) -> 0.03066534526 | AZ13: =LOOKUP(AZ2,'Timing and Operations'!$G$89:$BN$89,'Timing and Operations'!$G$95:$BN$95) -> 0.03128090874 | BA13: =LOOKUP(BA2,'Timing and Operations'!$G$89:$BN$89,'Timing and Operations'!$G$95:$BN$95) -> 0.03128090874 | BB13: =LOOKUP(BB2,'Timing and Operations'!$G$89:$BN$89,'Timing and Operations'!$G$95:$BN$95) -> 0.03128090874 | BC13: =LOOKUP(BC2,'Timing and Operations'!$G$89:$BN$89,'Timing and Operations'!$G$95:$BN$95) -> 0.03128090874 | BD13: =LOOKUP(BD2,'Timing and Operations'!$G$89:$BN$89,'Timing and Operations'!$G$95:$BN$95) -> 0.03128090874 | BE13: =LOOKUP(BE2,'Timing and Operations'!$G$89:$BN$89,'Timing and Operations'!$G$95:$BN$95) -> 0.03128090874 | BF13: =LOOKUP(BF2,'Timing and Operations'!$G$89:$BN$89,'Timing and Operations'!$G$95:$BN$95) -> 0.03128090874 | BG13: =LOOKUP(BG2,'Timing and Operations'!$G$89:$BN$89,'Timing and Operations'!$G$95:$BN$95) -> 0.03128090874 | BH13: =LOOKUP(BH2,'Timing and Operations'!$G$89:$BN$89,'Timing and Operations'!$G$95:$BN$95) -> 0.03128090874 | BI13: =LOOKUP(BI2,'Timing and Operations'!$G$89:$BN$89,'Timing and Operations'!$G$95:$BN$95) -> 0.03128090874 | BJ13: =LOOKUP(BJ2,'Timing and Operations'!$G$89:$BN$89,'Timing and Operations'!$G$95:$BN$95) -> 0.03128090874 | BK13: =LOOKUP(BK2,'Timing and Operations'!$G$89:$BN$89,'Timing and Operations'!$G$95:$BN$95) -> 0.03128090874 | BL13: =LOOKUP(BL2,'Timing and Operations'!$G$89:$BN$89,'Timing and Operations'!$G$95:$BN$95) -> 0.03128090874 | BM13: =LOOKUP(BM2,'Timing and Operations'!$G$89:$BN$89,'Timing and Operations'!$G$95:$BN$95) -> 0.03128090874 | BN13: =LOOKUP(BN2,'Timing and Operations'!$G$89:$BN$89,'Timing and Operations'!$G$95:$BN$95) -> 0.03128090874 | BO13: =LOOKUP(BO2,'Timing and Operations'!$G$89:$BN$89,'Timing and Operations'!$G$95:$BN$95) -> 0.03128090874 | BP13: =LOOKUP(BP2,'Timing and Operations'!$G$89:$BN$89,'Timing and Operations'!$G$95:$BN$95) -> 0.03128090874 | BQ13: =LOOKUP(BQ2,'Timing and Operations'!$G$89:$BN$89,'Timing and Operations'!$G$95:$BN$95) -> 0.03128090874
E14: Periodic Inflation Rate | J14: =(1+J13)^('Timing and Operations'!$F$11/12)-1 -> 0.01024749443 | K14: =(1+K13)^(6/12)-1 -> 0.01024749443 | L14: 0.0104525009 | M14: 0.0104525009 | N14: 0.01066156466 | O14: 0.01066156466 | P14: 0.01087476516 | Q14: 0.01087476516 | R14: 0.01109218335 | S14: 0.01109218335 | T14: 0.01131390175 | U14: 0.01131390175 | V14: 0.01154000445 | W14: 0.01154000445 | X14: 0.01177057715 | Y14: 0.01177057715 | Z14: 0.01200570719 | AA14: 0.01200570719 | AB14: 0.01224548356 | AC14: 0.01224548356 | AD14: 0.01248999696 | AE14: 0.01248999696 | AF14: 0.01273933981 | AG14: 0.01273933981 | AH14: 0.01299360629 | AI14: 0.01299360629 | AJ14: 0.01325289237 | AK14: 0.01325289237 | AL14: 0.01351729583 | AM14: 0.01351729583 | AN14: 0.01378691632 | AO14: 0.01378691632 | AP14: 0.01406185537 | AQ14: =(1+AQ13)^(6/12)-1 -> 0.01406185537 | AR14: 0.01434221643 | AS14: 0.01434221643 | AT14: 0.0146281049 | AU14: 0.0146281049 | AV14: 0.01491962817 | AW14: 0.01491962817 | AX14: 0.01521689567 | AY14: 0.01521689567 | AZ14: 0.01552001888 | BA14: 0.01552001888 | BB14: 0.01552001888 | BC14: 0.01552001888 | BD14: 0.01552001888 | BE14: 0.01552001888 | BF14: 0.01552001888 | BG14: 0.01552001888 | BH14: 0.01552001888 | BI14: 0.01552001888 | BJ14: 0.01552001888 | BK14: 0.01552001888 | BL14: 0.01552001888 | BM14: 0.01552001888 | BN14: 0.01552001888 | BO14: 0.01552001888 | BP14: 0.01552001888 | BQ14: 0.01552001888
E15: Inflation Index for Operating Costs | I15: 1 | J15: =I15*(1+J14*J10) -> 1.010247494 | K15: 1.0206 | L15: 1.031267822 | M15: 1.04204715 | N15: 1.053157003 | O15: 1.064385305 | P15: 1.075960245 | Q15: 1.08766106 | R15: 1.099725596 | S15: 1.111923954 | T15: 1.124504152 | U15: 1.137226682 | V15: 1.150350283 | W15: 1.16362533 | X15: 1.177321872 | Y15: 1.19117963 | Z15: 1.205480584 | AA15: 1.21995323 | AB15: 1.234892148 | AC15: 1.250013999 | AD15: 1.26562667 | AE15: 1.281434344 | AF15: 1.297758971 | AG15: 1.314291564 | AH15: 1.331368951 | AI15: 1.348668235 | AJ15: 1.36654199 | AK15: 1.384652624 | AL15: 1.403369383 | AM15: 1.422339142 | AN15: 1.441948813 | AO15: 1.46182884 | AP15: =AO15*(1+AP14*AP10) -> 1.482384866 | AQ15: 1.503229948 | AR15: 1.524789597 | AS15: 1.546658459 | AT15: 1.569283141 | AU15: 1.59223878 | AV15: 1.61599439 | AW15: 1.640104426 | AX15: 1.665061724 | AY15: 1.690398794 | AZ15: 1.716633815 | BA15: 1.743276005 | BB15: 1.770331681 | BC15: 1.797807262 | BD15: 1.825709265 | BE15: 1.854044307 | BF15: 1.88281911 | BG15: 1.912040498 | BH15: 1.941715403 | BI15: 1.971850862 | BJ15: 2.002454025 | BK15: 2.033532149 | BL15: 2.065092607 | BM15: 2.097142883 | BN15: 2.12969058 | BO15: 2.162743418 | BP15: 2.196309237 | BQ15: 2.230395997
E17: Annual Inflation Rate Revenues | H17: =Sensitivities!J38 -> 2 | J17: =LOOKUP(J2,'Timing and Operations'!89:89,'Timing and Operations'!101:101) -> 0.0206 | K17: =LOOKUP(K2,'Timing and Operations'!89:89,'Timing and Operations'!101:101) -> 0.0206 | L17: =LOOKUP(L2,'Timing and Operations'!89:89,'Timing and Operations'!101:101) -> 0.02101425658 | M17: =LOOKUP(M2,'Timing and Operations'!89:89,'Timing and Operations'!101:101) -> 0.02101425658 | N17: =LOOKUP(N2,'Timing and Operations'!89:89,'Timing and Operations'!101:101) -> 0.02143679829 | O17: =LOOKUP(O2,'Timing and Operations'!89:89,'Timing and Operations'!101:101) -> 0.02143679829 | P17: =LOOKUP(P2,'Timing and Operations'!89:89,'Timing and Operations'!101:101) -> 0.02186779083 | Q17: =LOOKUP(Q2,'Timing and Operations'!89:89,'Timing and Operations'!101:101) -> 0.02186779083 | R17: =LOOKUP(R2,'Timing and Operations'!89:89,'Timing and Operations'!101:101) -> 0.02230740323 | S17: =LOOKUP(S2,'Timing and Operations'!89:89,'Timing and Operations'!101:101) -> 0.02230740323 | T17: =LOOKUP(T2,'Timing and Operations'!89:89,'Timing and Operations'!101:101) -> 0.02275580787 | U17: =LOOKUP(U2,'Timing and Operations'!89:89,'Timing and Operations'!101:101) -> 0.02275580787 | V17: =LOOKUP(V2,'Timing and Operations'!89:89,'Timing and Operations'!101:101) -> 0.0232131806 | W17: =LOOKUP(W2,'Timing and Operations'!89:89,'Timing and Operations'!101:101) -> 0.0232131806 | X17: =LOOKUP(X2,'Timing and Operations'!89:89,'Timing and Operations'!101:101) -> 0.02367970079 | Y17: =LOOKUP(Y2,'Timing and Operations'!89:89,'Timing and Operations'!101:101) -> 0.02367970079 | Z17: =LOOKUP(Z2,'Timing and Operations'!89:89,'Timing and Operations'!101:101) -> 0.02415555139 | AA17: =LOOKUP(AA2,'Timing and Operations'!89:89,'Timing and Operations'!101:101) -> 0.02415555139 | AB17: =LOOKUP(AB2,'Timing and Operations'!89:89,'Timing and Operations'!101:101) -> 0.02464091899 | AC17: =LOOKUP(AC2,'Timing and Operations'!89:89,'Timing and Operations'!101:101) -> 0.02464091899 | AD17: =LOOKUP(AD2,'Timing and Operations'!89:89,'Timing and Operations'!101:101) -> 0.02513599395 | AE17: =LOOKUP(AE2,'Timing and Operations'!89:89,'Timing and Operations'!101:101) -> 0.02513599395 | AF17: =LOOKUP(AF2,'Timing and Operations'!89:89,'Timing and Operations'!101:101) -> 0.02564097041 | AG17: =LOOKUP(AG2,'Timing and Operations'!89:89,'Timing and Operations'!101:101) -> 0.02564097041 | AH17: =LOOKUP(AH2,'Timing and Operations'!89:89,'Timing and Operations'!101:101) -> 0.02615604639 | AI17: =LOOKUP(AI2,'Timing and Operations'!89:89,'Timing and Operations'!101:101) -> 0.02615604639 | AJ17: =LOOKUP(AJ2,'Timing and Operations'!89:89,'Timing and Operations'!101:101) -> 0.0266814239 | AK17: =LOOKUP(AK2,'Timing and Operations'!89:89,'Timing and Operations'!101:101) -> 0.0266814239 | AL17: =LOOKUP(AL2,'Timing and Operations'!89:89,'Timing and Operations'!101:101) -> 0.02721730895 | AM17: =LOOKUP(AM2,'Timing and Operations'!89:89,'Timing and Operations'!101:101) -> 0.02721730895 | AN17: =LOOKUP(AN2,'Timing and Operations'!89:89,'Timing and Operations'!101:101) -> 0.02776391171 | AO17: =LOOKUP(AO2,'Timing and Operations'!89:89,'Timing and Operations'!101:101) -> 0.02776391171 | AP17: =LOOKUP(AP2,'Timing and Operations'!89:89,'Timing and Operations'!101:101) -> 0.02832144652 | AQ17: =LOOKUP(AQ2,'Timing and Operations'!89:89,'Timing and Operations'!101:101) -> 0.02832144652 | AR17: =LOOKUP(AR2,'Timing and Operations'!89:89,'Timing and Operations'!101:101) -> 0.02889013203 | AS17: =LOOKUP(AS2,'Timing and Operations'!89:89,'Timing and Operations'!101:101) -> 0.02889013203 | AT17: =LOOKUP(AT2,'Timing and Operations'!89:89,'Timing and Operations'!101:101) -> 0.02947019125 | AU17: =LOOKUP(AU2,'Timing and Operations'!89:89,'Timing and Operations'!101:101) -> 0.02947019125 | AV17: =LOOKUP(AV2,'Timing and Operations'!89:89,'Timing and Operations'!101:101) -> 0.03006185165 | AW17: =LOOKUP(AW2,'Timing and Operations'!89:89,'Timing and Operations'!101:101) -> 0.03006185165 | AX17: =LOOKUP(AX2,'Timing and Operations'!89:89,'Timing and Operations'!101:101) -> 0.03066534526 | AY17: =LOOKUP(AY2,'Timing and Operations'!89:89,'Timing and Operations'!101:101) -> 0.03066534526 | AZ17: =LOOKUP(AZ2,'Timing and Operations'!89:89,'Timing and Operations'!101:101) -> 0.03128090874 | BA17: =LOOKUP(BA2,'Timing and Operations'!89:89,'Timing and Operations'!101:101) -> 0.03128090874 | BB17: =LOOKUP(BB2,'Timing and Operations'!89:89,'Timing and Operations'!101:101) -> 0.03128090874 | BC17: =LOOKUP(BC2,'Timing and Operations'!89:89,'Timing and Operations'!101:101) -> 0.03128090874 | BD17: =LOOKUP(BD2,'Timing and Operations'!89:89,'Timing and Operations'!101:101) -> 0.03128090874 | BE17: =LOOKUP(BE2,'Timing and Operations'!89:89,'Timing and Operations'!101:101) -> 0.03128090874 | BF17: =LOOKUP(BF2,'Timing and Operations'!89:89,'Timing and Operations'!101:101) -> 0.03128090874 | BG17: =LOOKUP(BG2,'Timing and Operations'!89:89,'Timing and Operations'!101:101) -> 0.03128090874 | BH17: =LOOKUP(BH2,'Timing and Operations'!89:89,'Timing and Operations'!101:101) -> 0.03128090874 | BI17: =LOOKUP(BI2,'Timing and Operations'!89:89,'Timing and Operations'!101:101) -> 0.03128090874 | BJ17: =LOOKUP(BJ2,'Timing and Operations'!89:89,'Timing and Operations'!101:101) -> 0.03128090874 | BK17: =LOOKUP(BK2,'Timing and Operations'!89:89,'Timing and Operations'!101:101) -> 0.03128090874 | BL17: =LOOKUP(BL2,'Timing and Operations'!89:89,'Timing and Operations'!101:101) -> 0.03128090874 | BM17: =LOOKUP(BM2,'Timing and Operations'!89:89,'Timing and Operations'!101:101) -> 0.03128090874 | BN17: =LOOKUP(BN2,'Timing and Operations'!89:89,'Timing and Operations'!101:101) -> 0.03128090874 | BO17: =LOOKUP(BO2,'Timing and Operations'!89:89,'Timing and Operations'!101:101) -> 0.03128090874 | BP17: =LOOKUP(BP2,'Timing and Operations'!89:89,'Timing and Operations'!101:101) -> 0.03128090874 | BQ17: =LOOKUP(BQ2,'Timing and Operations'!89:89,'Timing and Operations'!101:101) -> 0.03128090874
E18: Periodic Inflation Rate | J18: =(1+J17)^('Timing and Operations'!$F$11/12)-1 -> 0.01024749443 | K18: =(1+K17)^('Timing and Operations'!$F$11/12)-1 -> 0.01024749443 | L18: =(1+L17)^('Timing and Operations'!$F$11/12)-1 -> 0.0104525009 | M18: =(1+M17)^('Timing and Operations'!$F$11/12)-1 -> 0.0104525009 | N18: =(1+N17)^('Timing and Operations'!$F$11/12)-1 -> 0.01066156466 | O18: =(1+O17)^('Timing and Operations'!$F$11/12)-1 -> 0.01066156466 | P18: =(1+P17)^('Timing and Operations'!$F$11/12)-1 -> 0.01087476516 | Q18: =(1+Q17)^('Timing and Operations'!$F$11/12)-1 -> 0.01087476516 | R18: =(1+R17)^('Timing and Operations'!$F$11/12)-1 -> 0.01109218335 | S18: =(1+S17)^('Timing and Operations'!$F$11/12)-1 -> 0.01109218335 | T18: =(1+T17)^('Timing and Operations'!$F$11/12)-1 -> 0.01131390175 | U18: =(1+U17)^('Timing and Operations'!$F$11/12)-1 -> 0.01131390175 | V18: =(1+V17)^('Timing and Operations'!$F$11/12)-1 -> 0.01154000445 | W18: =(1+W17)^('Timing and Operations'!$F$11/12)-1 -> 0.01154000445 | X18: =(1+X17)^('Timing and Operations'!$F$11/12)-1 -> 0.01177057715 | Y18: =(1+Y17)^('Timing and Operations'!$F$11/12)-1 -> 0.01177057715 | Z18: =(1+Z17)^('Timing and Operations'!$F$11/12)-1 -> 0.01200570719 | AA18: =(1+AA17)^('Timing and Operations'!$F$11/12)-1 -> 0.01200570719 | AB18: =(1+AB17)^('Timing and Operations'!$F$11/12)-1 -> 0.01224548356 | AC18: =(1+AC17)^('Timing and Operations'!$F$11/12)-1 -> 0.01224548356 | AD18: =(1+AD17)^('Timing and Operations'!$F$11/12)-1 -> 0.01248999696 | AE18: =(1+AE17)^('Timing and Operations'!$F$11/12)-1 -> 0.01248999696 | AF18: =(1+AF17)^('Timing and Operations'!$F$11/12)-1 -> 0.01273933981 | AG18: =(1+AG17)^('Timing and Operations'!$F$11/12)-1 -> 0.01273933981 | AH18: =(1+AH17)^('Timing and Operations'!$F$11/12)-1 -> 0.01299360629 | AI18: =(1+AI17)^('Timing and Operations'!$F$11/12)-1 -> 0.01299360629 | AJ18: =(1+AJ17)^('Timing and Operations'!$F$11/12)-1 -> 0.01325289237 | AK18: =(1+AK17)^('Timing and Operations'!$F$11/12)-1 -> 0.01325289237 | AL18: =(1+AL17)^('Timing and Operations'!$F$11/12)-1 -> 0.01351729583 | AM18: =(1+AM17)^('Timing and Operations'!$F$11/12)-1 -> 0.01351729583 | AN18: =(1+AN17)^('Timing and Operations'!$F$11/12)-1 -> 0.01378691632 | AO18: =(1+AO17)^('Timing and Operations'!$F$11/12)-1 -> 0.01378691632 | AP18: =(1+AP17)^('Timing and Operations'!$F$11/12)-1 -> 0.01406185537 | AQ18: =(1+AQ17)^('Timing and Operations'!$F$11/12)-1 -> 0.01406185537 | AR18: =(1+AR17)^('Timing and Operations'!$F$11/12)-1 -> 0.01434221643 | AS18: =(1+AS17)^('Timing and Operations'!$F$11/12)-1 -> 0.01434221643 | AT18: =(1+AT17)^('Timing and Operations'!$F$11/12)-1 -> 0.0146281049 | AU18: =(1+AU17)^('Timing and Operations'!$F$11/12)-1 -> 0.0146281049 | AV18: =(1+AV17)^('Timing and Operations'!$F$11/12)-1 -> 0.01491962817 | AW18: =(1+AW17)^('Timing and Operations'!$F$11/12)-1 -> 0.01491962817 | AX18: =(1+AX17)^('Timing and Operations'!$F$11/12)-1 -> 0.01521689567 | AY18: =(1+AY17)^('Timing and Operations'!$F$11/12)-1 -> 0.01521689567 | AZ18: =(1+AZ17)^('Timing and Operations'!$F$11/12)-1 -> 0.01552001888 | BA18: =(1+BA17)^('Timing and Operations'!$F$11/12)-1 -> 0.01552001888 | BB18: =(1+BB17)^('Timing and Operations'!$F$11/12)-1 -> 0.01552001888 | BC18: =(1+BC17)^('Timing and Operations'!$F$11/12)-1 -> 0.01552001888 | BD18: =(1+BD17)^('Timing and Operations'!$F$11/12)-1 -> 0.01552001888 | BE18: =(1+BE17)^('Timing and Operations'!$F$11/12)-1 -> 0.01552001888 | BF18: =(1+BF17)^('Timing and Operations'!$F$11/12)-1 -> 0.01552001888 | BG18: =(1+BG17)^('Timing and Operations'!$F$11/12)-1 -> 0.01552001888 | BH18: =(1+BH17)^('Timing and Operations'!$F$11/12)-1 -> 0.01552001888 | BI18: =(1+BI17)^('Timing and Operations'!$F$11/12)-1 -> 0.01552001888 | BJ18: =(1+BJ17)^('Timing and Operations'!$F$11/12)-1 -> 0.01552001888 | BK18: =(1+BK17)^('Timing and Operations'!$F$11/12)-1 -> 0.01552001888 | BL18: =(1+BL17)^('Timing and Operations'!$F$11/12)-1 -> 0.01552001888 | BM18: =(1+BM17)^('Timing and Operations'!$F$11/12)-1 -> 0.01552001888 | BN18: =(1+BN17)^('Timing and Operations'!$F$11/12)-1 -> 0.01552001888 | BO18: =(1+BO17)^('Timing and Operations'!$F$11/12)-1 -> 0.01552001888 | BP18: =(1+BP17)^('Timing and Operations'!$F$11/12)-1 -> 0.01552001888 | BQ18: =(1+BQ17)^('Timing and Operations'!$F$11/12)-1 -> 0.01552001888
E19: Inflation Index for Revenue | I19: 1 | J19: =I19*(1+J18*J10) -> 1.010247494 | K19: 1.0206 | L19: 1.031267822 | M19: 1.04204715 | N19: 1.053157003 | O19: 1.064385305 | P19: 1.075960245 | Q19: 1.08766106 | R19: 1.099725596 | S19: 1.111923954 | T19: 1.124504152 | U19: 1.137226682 | V19: 1.150350283 | W19: 1.16362533 | X19: 1.177321872 | Y19: 1.19117963 | Z19: 1.205480584 | AA19: 1.21995323 | AB19: 1.234892148 | AC19: 1.250013999 | AD19: 1.26562667 | AE19: 1.281434344 | AF19: 1.297758971 | AG19: 1.314291564 | AH19: 1.331368951 | AI19: 1.348668235 | AJ19: 1.36654199 | AK19: 1.384652624 | AL19: 1.403369383 | AM19: 1.422339142 | AN19: 1.441948813 | AO19: 1.46182884 | AP19: =AO19*(1+AP18*AP10) -> 1.482384866 | AQ19: 1.503229948 | AR19: 1.524789597 | AS19: 1.546658459 | AT19: 1.569283141 | AU19: 1.59223878 | AV19: 1.61599439 | AW19: 1.640104426 | AX19: 1.665061724 | AY19: 1.690398794 | AZ19: 1.716633815 | BA19: 1.743276005 | BB19: 1.770331681 | BC19: 1.797807262 | BD19: 1.825709265 | BE19: 1.854044307 | BF19: 1.88281911 | BG19: 1.912040498 | BH19: 1.941715403 | BI19: 1.971850862 | BJ19: 2.002454025 | BK19: 2.033532149 | BL19: 2.065092607 | BM19: 2.097142883 | BN19: 2.12969058 | BO19: 2.162743418 | BP19: 2.196309237 | BQ19: 2.230395997
E23: Energy Output (P50 Case) | G23: ='Timing and Operations'!G39 -> 116400 | H23: =SUM(J23:BQ23) -> 5820000 | J23: =$G23*J$6 -> 116400 | K23: 116400 | L23: 116400 | M23: 116400 | N23: 116400 | O23: 116400 | P23: 116400 | Q23: 116400 | R23: 116400 | S23: 116400 | T23: =$G23*T$6 -> 116400 | U23: 116400 | V23: 116400 | W23: 116400 | X23: 116400 | Y23: 116400 | Z23: 116400 | AA23: 116400 | AB23: 116400 | AC23: 116400 | AD23: =$G23*AD$6 -> 116400 | AE23: 116400 | AF23: 116400 | AG23: 116400 | AH23: 116400 | AI23: 116400 | AJ23: 116400 | AK23: 116400 | AL23: 116400 | AM23: 116400 | AN23: =$G23*AN$6 -> 116400 | AO23: 116400 | AP23: 116400 | AQ23: 116400 | AR23: 116400 | AS23: 116400 | AT23: 116400 | AU23: 116400 | AV23: 116400 | AW23: 116400 | AX23: =$G23*AX$6 -> 116400 | AY23: 116400 | AZ23: 116400 | BA23: 116400 | BB23: 116400 | BC23: 116400 | BD23: 116400 | BE23: 116400 | BF23: 116400 | BG23: 116400 | BH23: =$G23*BH$6 -> 0 | BI23: 0 | BJ23: 0 | BK23: 0 | BL23: 0 | BM23: 0 | BN23: 0 | BO23: 0 | BP23: 0 | BQ23: 0
E24: Energy Output (P75 Case) | G24: ='Timing and Operations'!G40 -> 108600 | H24: =SUM(J24:BQ24) -> 5430000 | J24: 108600 | K24: 108600 | L24: 108600 | M24: 108600 | N24: 108600 | O24: 108600 | P24: 108600 | Q24: 108600 | R24: 108600 | S24: 108600 | T24: 108600 | U24: 108600 | V24: 108600 | W24: 108600 | X24: 108600 | Y24: 108600 | Z24: 108600 | AA24: 108600 | AB24: 108600 | AC24: 108600 | AD24: 108600 | AE24: 108600 | AF24: 108600 | AG24: 108600 | AH24: 108600 | AI24: 108600 | AJ24: 108600 | AK24: 108600 | AL24: 108600 | AM24: 108600 | AN24: 108600 | AO24: 108600 | AP24: 108600 | AQ24: 108600 | AR24: 108600 | AS24: 108600 | AT24: 108600 | AU24: 108600 | AV24: 108600 | AW24: 108600 | AX24: 108600 | AY24: 108600 | AZ24: 108600 | BA24: 108600 | BB24: 108600 | BC24: 108600 | BD24: 108600 | BE24: 108600 | BF24: 108600 | BG24: 108600 | BH24: 0 | BI24: 0 | BJ24: 0 | BK24: 0 | BL24: 0 | BM24: 0 | BN24: 0 | BO24: 0 | BP24: 0 | BQ24: 0
E25: Energy Output (P90 Case) | G25: ='Timing and Operations'!G41 -> 102000 | H25: =SUM(J25:BQ25) -> 5100000 | J25: 102000 | K25: 102000 | L25: 102000 | M25: 102000 | N25: 102000 | O25: 102000 | P25: 102000 | Q25: 102000 | R25: 102000 | S25: 102000 | T25: 102000 | U25: 102000 | V25: 102000 | W25: 102000 | X25: 102000 | Y25: 102000 | Z25: 102000 | AA25: 102000 | AB25: 102000 | AC25: 102000 | AD25: 102000 | AE25: 102000 | AF25: 102000 | AG25: 102000 | AH25: 102000 | AI25: 102000 | AJ25: 102000 | AK25: 102000 | AL25: 102000 | AM25: 102000 | AN25: 102000 | AO25: 102000 | AP25: 102000 | AQ25: 102000 | AR25: 102000 | AS25: 102000 | AT25: 102000 | AU25: 102000 | AV25: 102000 | AW25: 102000 | AX25: 102000 | AY25: 102000 | AZ25: 102000 | BA25: 102000 | BB25: 102000 | BC25: 102000 | BD25: 102000 | BE25: 102000 | BF25: 102000 | BG25: 102000 | BH25: 0 | BI25: 0 | BJ25: 0 | BK25: 0 | BL25: 0 | BM25: 0 | BN25: 0 | BO25: 0 | BP25: 0 | BQ25: 0
E26: Energy Output (P99 Case) | G26: ='Timing and Operations'!G42 -> 91800 | H26: =SUM(J26:BQ26) -> 4590000 | J26: 91800 | K26: 91800 | L26: 91800 | M26: 91800 | N26: 91800 | O26: 91800 | P26: 91800 | Q26: 91800 | R26: 91800 | S26: 91800 | T26: 91800 | U26: 91800 | V26: 91800 | W26: 91800 | X26: 91800 | Y26: 91800 | Z26: 91800 | AA26: 91800 | AB26: 91800 | AC26: 91800 | AD26: 91800 | AE26: 91800 | AF26: 91800 | AG26: 91800 | AH26: 91800 | AI26: 91800 | AJ26: 91800 | AK26: 91800 | AL26: 91800 | AM26: 91800 | AN26: 91800 | AO26: 91800 | AP26: 91800 | AQ26: 91800 | AR26: 91800 | AS26: 91800 | AT26: 91800 | AU26: 91800 | AV26: 91800 | AW26: 91800 | AX26: 91800 | AY26: 91800 | AZ26: 91800 | BA26: 91800 | BB26: 91800 | BC26: 91800 | BD26: 91800 | BE26: 91800 | BF26: 91800 | BG26: 91800 | BH26: 0 | BI26: 0 | BJ26: 0 | BK26: 0 | BL26: 0 | BM26: 0 | BN26: 0 | BO26: 0 | BP26: 0 | BQ26: 0
D28: Output (mw/h) years 1-15
E29: Scenario 1 (P50) | J29: =J$213 -> 116400 | K29: 116400 | L29: 116400 | M29: 116400 | N29: 116400 | O29: 116400 | P29: 116400 | Q29: 116400 | R29: 116400 | S29: 116400 | T29: 116400 | U29: 116400 | V29: 116400 | W29: 116400 | X29: 116400 | Y29: 116400 | Z29: 116400 | AA29: 116400 | AB29: 116400 | AC29: 116400 | AD29: 116400 | AE29: 116400 | AF29: 116400 | AG29: 116400 | AH29: 116400 | AI29: 116400 | AJ29: 116400 | AK29: 116400 | AL29: 116400 | AM29: 116400 | AN29: 116400 | AO29: 116400 | AP29: =AP$213 -> 116400 | AQ29: 116400 | AR29: 116400 | AS29: 116400 | AT29: 116400 | AU29: 116400 | AV29: 116400 | AW29: 116400 | AX29: 116400 | AY29: 116400 | AZ29: 116400 | BA29: 116400 | BB29: 116400 | BC29: 116400 | BD29: 116400 | BE29: 116400 | BF29: 116400 | BG29: 116400 | BH29: 0 | BI29: 0 | BJ29: 0 | BK29: 0 | BL29: 0 | BM29: 0 | BN29: 0 | BO29: 0 | BP29: 0 | BQ29: 0
E30: Scenario 2 (P75) | J30: =J24 -> 108600 | K30: =K24 -> 108600 | L30: 108600 | M30: 108600 | N30: 108600 | O30: 108600 | P30: 108600 | Q30: 108600 | R30: 108600 | S30: 108600 | T30: 108600 | U30: 108600 | V30: 108600 | W30: 108600 | X30: 108600 | Y30: 108600 | Z30: 108600 | AA30: 108600 | AB30: 108600 | AC30: 108600 | AD30: 108600 | AE30: 108600 | AF30: 108600 | AG30: 108600 | AH30: 108600 | AI30: 108600 | AJ30: 108600 | AK30: 108600 | AL30: 108600 | AM30: 108600 | AN30: 108600 | AO30: 108600 | AP30: 108600 | AQ30: 108600 | AR30: 108600 | AS30: 108600 | AT30: 108600 | AU30: 108600 | AV30: 108600 | AW30: 108600 | AX30: 108600 | AY30: 108600 | AZ30: 108600 | BA30: 108600 | BB30: 108600 | BC30: 108600 | BD30: 108600 | BE30: 108600 | BF30: 108600 | BG30: 108600 | BH30: 0 | BI30: 0 | BJ30: 0 | BK30: 0 | BL30: 0 | BM30: 0 | BN30: 0 | BO30: 0 | BP30: 0 | BQ30: 0
E31: Scenario 3 (P90) | J31: =J$218 -> 102000 | K31: 102000 | L31: 102000 | M31: 102000 | N31: 102000 | O31: 102000 | P31: 102000 | Q31: 102000 | R31: 102000 | S31: 102000 | T31: 102000 | U31: 102000 | V31: 102000 | W31: 102000 | X31: 102000 | Y31: 102000 | Z31: 102000 | AA31: 102000 | AB31: 102000 | AC31: 102000 | AD31: 102000 | AE31: 102000 | AF31: 102000 | AG31: 102000 | AH31: 102000 | AI31: 102000 | AJ31: 102000 | AK31: 102000 | AL31: 102000 | AM31: 102000 | AN31: 102000 | AO31: 102000 | AP31: =AP$218 -> 102000 | AQ31: 102000 | AR31: 102000 | AS31: 102000 | AT31: 102000 | AU31: 102000 | AV31: 102000 | AW31: 102000 | AX31: 102000 | AY31: 102000 | AZ31: 102000 | BA31: 102000 | BB31: 102000 | BC31: 102000 | BD31: 102000 | BE31: 102000 | BF31: 102000 | BG31: 102000 | BH31: 0 | BI31: 0 | BJ31: 0 | BK31: 0 | BL31: 0 | BM31: 0 | BN31: 0 | BO31: 0 | BP31: 0 | BQ31: 0
E32: Scenario 4 (P99) | J32: =J$220 -> 91800 | K32: 91800 | L32: 91800 | M32: 91800 | N32: 91800 | O32: 91800 | P32: 91800 | Q32: 91800 | R32: 91800 | S32: 91800 | T32: 91800 | U32: 91800 | V32: 91800 | W32: 91800 | X32: 91800 | Y32: 91800 | Z32: 91800 | AA32: 91800 | AB32: 91800 | AC32: 91800 | AD32: 91800 | AE32: 91800 | AF32: 91800 | AG32: 91800 | AH32: 91800 | AI32: 91800 | AJ32: 91800 | AK32: 91800 | AL32: 91800 | AM32: 91800 | AN32: 91800 | AO32: 91800 | AP32: =AP$220 -> 91800 | AQ32: 91800 | AR32: 91800 | AS32: 91800 | AT32: 91800 | AU32: 91800 | AV32: 91800 | AW32: 91800 | AX32: 91800 | AY32: 91800 | AZ32: 91800 | BA32: 91800 | BB32: 91800 | BC32: 91800 | BD32: 91800 | BE32: 91800 | BF32: 91800 | BG32: 91800 | BH32: 0 | BI32: 0 | BJ32: 0 | BK32: 0 | BL32: 0 | BM32: 0 | BN32: 0 | BO32: 0 | BP32: 0 | BQ32: 0
E33: =CHOOSE(Sensitivities!$D$38,E29,E30,E31,E32) -> Scenario 2 (P75) | F33: =Sensitivities!D38 -> 2 | G33: =INDEX(Sensitivities!$C$65:$C$68,F33) -> P75 | J33: =INDEX(J29:J32,$F$33) -> 108600 | K33: 108600 | L33: 108600 | M33: 108600 | N33: 108600 | O33: 108600 | P33: 108600 | Q33: 108600 | R33: 108600 | S33: 108600 | T33: 108600 | U33: 108600 | V33: 108600 | W33: 108600 | X33: 108600 | Y33: 108600 | Z33: 108600 | AA33: 108600 | AB33: 108600 | AC33: 108600 | AD33: 108600 | AE33: 108600 | AF33: 108600 | AG33: 108600 | AH33: 108600 | AI33: 108600 | AJ33: 108600 | AK33: 108600 | AL33: 108600 | AM33: 108600 | AN33: 108600 | AO33: 108600 | AP33: =INDEX(AP29:AP32,$F$33) -> 108600 | AQ33: 108600 | AR33: 108600 | AS33: 108600 | AT33: 108600 | AU33: 108600 | AV33: 108600 | AW33: 108600 | AX33: 108600 | AY33: 108600 | AZ33: 108600 | BA33: 108600 | BB33: 108600 | BC33: 108600 | BD33: 108600 | BE33: 108600 | BF33: 108600 | BG33: 108600 | BH33: 0 | BI33: 0 | BJ33: 0 | BK33: 0 | BL33: 0 | BM33: 0 | BN33: 0 | BO33: 0 | BP33: 0 | BQ33: 0
E35: Gross Total Energy - Refit 1 | J35: =J33+J246 -> 108600 | K35: 108600 | L35: 108600 | M35: 108600 | N35: 108600 | O35: 108600 | P35: 108600 | Q35: 108600 | R35: 108600 | S35: 108600 | T35: 108600 | U35: 108600 | V35: 108600 | W35: 108600 | X35: 108600 | Y35: 108600 | Z35: 108600 | AA35: 108600 | AB35: 108600 | AC35: 108600 | AD35: 108600 | AE35: 108600 | AF35: 108600 | AG35: 108600 | AH35: 108600 | AI35: 108600 | AJ35: 108600 | AK35: 108600 | AL35: 108600 | AM35: 108600 | AN35: 108600 | AO35: 108600 | AP35: =AP33+AP246 -> 108600 | AQ35: 108600 | AR35: 108600 | AS35: 108600 | AT35: 108600 | AU35: 108600 | AV35: 108600 | AW35: 108600 | AX35: 108600 | AY35: 108600 | AZ35: 108600 | BA35: 108600 | BB35: 108600 | BC35: 108600 | BD35: 108600 | BE35: 108600 | BF35: 108600 | BG35: 108600 | BH35: 0 | BI35: 0 | BJ35: 0 | BK35: 0 | BL35: 0 | BM35: 0 | BN35: 0 | BO35: 0 | BP35: 0 | BQ35: 0
E36: Gross Total Energy - Refit 2 | J36: =J260+J253 -> 0 | K36: 0 | L36: 0 | M36: 0 | N36: 0 | O36: 0 | P36: 0 | Q36: 0 | R36: 0 | S36: 0 | T36: 0 | U36: 0 | V36: 0 | W36: 0 | X36: 0 | Y36: 0 | Z36: 0 | AA36: 0 | AB36: 0 | AC36: 0 | AD36: 0 | AE36: 0 | AF36: 0 | AG36: 0 | AH36: 0 | AI36: 0 | AJ36: 0 | AK36: 0 | AL36: 0 | AM36: 0 | AN36: 0 | AO36: 0 | AP36: =AP260+AP253 -> 0 | AQ36: 0 | AR36: 0 | AS36: 0 | AT36: 0 | AU36: 0 | AV36: 0 | AW36: 0 | AX36: 0 | AY36: 0 | AZ36: 0 | BA36: 0 | BB36: 0 | BC36: 0 | BD36: 0 | BE36: 0 | BF36: 0 | BG36: 0 | BH36: 0 | BI36: 0 | BJ36: 0 | BK36: 0 | BL36: 0 | BM36: 0 | BN36: 0 | BO36: 0 | BP36: 0 | BQ36: 0
D38: Reduction in Output from Energy Constraints
E39: ="Constraint"&" "&'Timing and Operations'!$I$332&"MW"&" "&"(Refit 1 or Gate 2)" -> Constraint 75MW (Refit 1 or Gate 2)
E40: Constraints in P90 and P99 Case | J40: =LOOKUP(J2,'Timing and Operations'!$E$70:$E$78,'Timing and Operations'!$G$70:$G$78) -> 0.02 | K40: =LOOKUP(K2,'Timing and Operations'!$E$70:$E$78,'Timing and Operations'!$G$70:$G$78) -> 0.02 | L40: =LOOKUP(L2,'Timing and Operations'!$E$70:$E$78,'Timing and Operations'!$G$70:$G$78) -> 0.031 | M40: =LOOKUP(M2,'Timing and Operations'!$E$70:$E$78,'Timing and Operations'!$G$70:$G$78) -> 0.031 | N40: =LOOKUP(N2,'Timing and Operations'!$E$70:$E$78,'Timing and Operations'!$G$70:$G$78) -> 0.031 | O40: =LOOKUP(O2,'Timing and Operations'!$E$70:$E$78,'Timing and Operations'!$G$70:$G$78) -> 0.031 | P40: =LOOKUP(P2,'Timing and Operations'!$E$70:$E$78,'Timing and Operations'!$G$70:$G$78) -> 0.037 | Q40: =LOOKUP(Q2,'Timing and Operations'!$E$70:$E$78,'Timing and Operations'!$G$70:$G$78) -> 0.037 | R40: =LOOKUP(R2,'Timing and Operations'!$E$70:$E$78,'Timing and Operations'!$G$70:$G$78) -> 0.037 | S40: =LOOKUP(S2,'Timing and Operations'!$E$70:$E$78,'Timing and Operations'!$G$70:$G$78) -> 0.037 | T40: =LOOKUP(T2,'Timing and Operations'!$E$70:$E$78,'Timing and Operations'!$G$70:$G$78) -> 0.037 | U40: =LOOKUP(U2,'Timing and Operations'!$E$70:$E$78,'Timing and Operations'!$G$70:$G$78) -> 0.037 | V40: =LOOKUP(V2,'Timing and Operations'!$E$70:$E$78,'Timing and Operations'!$G$70:$G$78) -> 0.037 | W40: =LOOKUP(W2,'Timing and Operations'!$E$70:$E$78,'Timing and Operations'!$G$70:$G$78) -> 0.037 | X40: =LOOKUP(X2,'Timing and Operations'!$E$70:$E$78,'Timing and Operations'!$G$70:$G$78) -> 0.037 | Y40: =LOOKUP(Y2,'Timing and Operations'!$E$70:$E$78,'Timing and Operations'!$G$70:$G$78) -> 0.037 | Z40: =LOOKUP(Z2,'Timing and Operations'!$E$70:$E$78,'Timing and Operations'!$G$70:$G$78) -> 0.037 | AA40: =LOOKUP(AA2,'Timing and Operations'!$E$70:$E$78,'Timing and Operations'!$G$70:$G$78) -> 0.037 | AB40: =LOOKUP(AB2,'Timing and Operations'!$E$70:$E$78,'Timing and Operations'!$G$70:$G$78) -> 0.037 | AC40: =LOOKUP(AC2,'Timing and Operations'!$E$70:$E$78,'Timing and Operations'!$G$70:$G$78) -> 0.037 | AD40: =LOOKUP(AD2,'Timing and Operations'!$E$70:$E$78,'Timing and Operations'!$G$70:$G$78) -> 0.037 | AE40: =LOOKUP(AE2,'Timing and Operations'!$E$70:$E$78,'Timing and Operations'!$G$70:$G$78) -> 0.037 | AF40: =LOOKUP(AF2,'Timing and Operations'!$E$70:$E$78,'Timing and Operations'!$G$70:$G$78) -> 0.037 | AG40: =LOOKUP(AG2,'Timing and Operations'!$E$70:$E$78,'Timing and Operations'!$G$70:$G$78) -> 0.037 | AH40: =LOOKUP(AH2,'Timing and Operations'!$E$70:$E$78,'Timing and Operations'!$G$70:$G$78) -> 0.037 | AI40: =LOOKUP(AI2,'Timing and Operations'!$E$70:$E$78,'Timing and Operations'!$G$70:$G$78) -> 0.037 | AJ40: =LOOKUP(AJ2,'Timing and Operations'!$E$70:$E$78,'Timing and Operations'!$G$70:$G$78) -> 0.037 | AK40: =LOOKUP(AK2,'Timing and Operations'!$E$70:$E$78,'Timing and Operations'!$G$70:$G$78) -> 0.037 | AL40: =LOOKUP(AL2,'Timing and Operations'!$E$70:$E$78,'Timing and Operations'!$G$70:$G$78) -> 0.037 | AM40: =LOOKUP(AM2,'Timing and Operations'!$E$70:$E$78,'Timing and Operations'!$G$70:$G$78) -> 0.037 | AN40: =LOOKUP(AN2,'Timing and Operations'!$E$70:$E$78,'Timing and Operations'!$G$70:$G$78) -> 0.037 | AO40: =LOOKUP(AO2,'Timing and Operations'!$E$70:$E$78,'Timing and Operations'!$G$70:$G$78) -> 0.037 | AP40: =LOOKUP(AP2,'Timing and Operations'!$E$70:$E$78,'Timing and Operations'!$G$70:$G$78) -> 0.037 | AQ40: =LOOKUP(AQ2,'Timing and Operations'!$E$70:$E$78,'Timing and Operations'!$G$70:$G$78) -> 0.037 | AR40: =LOOKUP(AR2,'Timing and Operations'!$E$70:$E$78,'Timing and Operations'!$G$70:$G$78) -> 0.037 | AS40: =LOOKUP(AS2,'Timing and Operations'!$E$70:$E$78,'Timing and Operations'!$G$70:$G$78) -> 0.037 | AT40: =LOOKUP(AT2,'Timing and Operations'!$E$70:$E$78,'Timing and Operations'!$G$70:$G$78) -> 0.037 | AU40: =LOOKUP(AU2,'Timing and Operations'!$E$70:$E$78,'Timing and Operations'!$G$70:$G$78) -> 0.037 | AV40: =LOOKUP(AV2,'Timing and Operations'!$E$70:$E$78,'Timing and Operations'!$G$70:$G$78) -> 0.037 | AW40: =LOOKUP(AW2,'Timing and Operations'!$E$70:$E$78,'Timing and Operations'!$G$70:$G$78) -> 0.037 | AX40: =LOOKUP(AX2,'Timing and Operations'!$E$70:$E$78,'Timing and Operations'!$G$70:$G$78) -> 0.037 | AY40: =LOOKUP(AY2,'Timing and Operations'!$E$70:$E$78,'Timing and Operations'!$G$70:$G$78) -> 0.037 | AZ40: =LOOKUP(AZ2,'Timing and Operations'!$E$70:$E$78,'Timing and Operations'!$G$70:$G$78) -> 0.037 | BA40: =LOOKUP(BA2,'Timing and Operations'!$E$70:$E$78,'Timing and Operations'!$G$70:$G$78) -> 0.037 | BB40: =LOOKUP(BB2,'Timing and Operations'!$E$70:$E$78,'Timing and Operations'!$G$70:$G$78) -> 0.037 | BC40: =LOOKUP(BC2,'Timing and Operations'!$E$70:$E$78,'Timing and Operations'!$G$70:$G$78) -> 0.037 | BD40: =LOOKUP(BD2,'Timing and Operations'!$E$70:$E$78,'Timing and Operations'!$G$70:$G$78) -> 0.037 | BE40: =LOOKUP(BE2,'Timing and Operations'!$E$70:$E$78,'Timing and Operations'!$G$70:$G$78) -> 0.037 | BF40: =LOOKUP(BF2,'Timing and Operations'!$E$70:$E$78,'Timing and Operations'!$G$70:$G$78) -> 0.037 | BG40: =LOOKUP(BG2,'Timing and Operations'!$E$70:$E$78,'Timing and Operations'!$G$70:$G$78) -> 0.037 | BH40: =LOOKUP(BH2,'Timing and Operations'!$E$70:$E$78,'Timing and Operations'!$G$70:$G$78) -> 0.037 | BI40: =LOOKUP(BI2,'Timing and Operations'!$E$70:$E$78,'Timing and Operations'!$G$70:$G$78) -> 0.037 | BJ40: =LOOKUP(BJ2,'Timing and Operations'!$E$70:$E$78,'Timing and Operations'!$G$70:$G$78) -> 0.037 | BK40: =LOOKUP(BK2,'Timing and Operations'!$E$70:$E$78,'Timing and Operations'!$G$70:$G$78) -> 0.037 | BL40: =LOOKUP(BL2,'Timing and Operations'!$E$70:$E$78,'Timing and Operations'!$G$70:$G$78) -> 0.037 | BM40: =LOOKUP(BM2,'Timing and Operations'!$E$70:$E$78,'Timing and Operations'!$G$70:$G$78) -> 0.037 | BN40: =LOOKUP(BN2,'Timing and Operations'!$E$70:$E$78,'Timing and Operations'!$G$70:$G$78) -> 0.037 | BO40: =LOOKUP(BO2,'Timing and Operations'!$E$70:$E$78,'Timing and Operations'!$G$70:$G$78) -> 0.037 | BP40: =LOOKUP(BP2,'Timing and Operations'!$E$70:$E$78,'Timing and Operations'!$G$70:$G$78) -> 0.037 | BQ40: =LOOKUP(BQ2,'Timing and Operations'!$E$70:$E$78,'Timing and Operations'!$G$70:$G$78) -> 0.037
E41: Constraints in P50 and P75 Case | J41: =LOOKUP(J2,'Timing and Operations'!$E$70:$E$78,'Timing and Operations'!$H$70:$H$78) -> 0.02 | K41: =LOOKUP(K2,'Timing and Operations'!$E$70:$E$78,'Timing and Operations'!$H$70:$H$78) -> 0.02 | L41: =LOOKUP(L2,'Timing and Operations'!$E$70:$E$78,'Timing and Operations'!$H$70:$H$78) -> 0.0315 | M41: =LOOKUP(M2,'Timing and Operations'!$E$70:$E$78,'Timing and Operations'!$H$70:$H$78) -> 0.0315 | N41: =LOOKUP(N2,'Timing and Operations'!$E$70:$E$78,'Timing and Operations'!$H$70:$H$78) -> 0.0315 | O41: =LOOKUP(O2,'Timing and Operations'!$E$70:$E$78,'Timing and Operations'!$H$70:$H$78) -> 0.0315 | P41: =LOOKUP(P2,'Timing and Operations'!$E$70:$E$78,'Timing and Operations'!$H$70:$H$78) -> 0.0365 | Q41: =LOOKUP(Q2,'Timing and Operations'!$E$70:$E$78,'Timing and Operations'!$H$70:$H$78) -> 0.0365 | R41: =LOOKUP(R2,'Timing and Operations'!$E$70:$E$78,'Timing and Operations'!$H$70:$H$78) -> 0.0365 | S41: =LOOKUP(S2,'Timing and Operations'!$E$70:$E$78,'Timing and Operations'!$H$70:$H$78) -> 0.0365 | T41: =LOOKUP(T2,'Timing and Operations'!$E$70:$E$78,'Timing and Operations'!$H$70:$H$78) -> 0.0365 | U41: =LOOKUP(U2,'Timing and Operations'!$E$70:$E$78,'Timing and Operations'!$H$70:$H$78) -> 0.0365 | V41: =LOOKUP(V2,'Timing and Operations'!$E$70:$E$78,'Timing and Operations'!$H$70:$H$78) -> 0.0365 | W41: =LOOKUP(W2,'Timing and Operations'!$E$70:$E$78,'Timing and Operations'!$H$70:$H$78) -> 0.0365 | X41: =LOOKUP(X2,'Timing and Operations'!$E$70:$E$78,'Timing and Operations'!$H$70:$H$78) -> 0.0365 | Y41: =LOOKUP(Y2,'Timing and Operations'!$E$70:$E$78,'Timing and Operations'!$H$70:$H$78) -> 0.0365 | Z41: =LOOKUP(Z2,'Timing and Operations'!$E$70:$E$78,'Timing and Operations'!$H$70:$H$78) -> 0.0365 | AA41: =LOOKUP(AA2,'Timing and Operations'!$E$70:$E$78,'Timing and Operations'!$H$70:$H$78) -> 0.0365 | AB41: =LOOKUP(AB2,'Timing and Operations'!$E$70:$E$78,'Timing and Operations'!$H$70:$H$78) -> 0.0365 | AC41: =LOOKUP(AC2,'Timing and Operations'!$E$70:$E$78,'Timing and Operations'!$H$70:$H$78) -> 0.0365 | AD41: =LOOKUP(AD2,'Timing and Operations'!$E$70:$E$78,'Timing and Operations'!$H$70:$H$78) -> 0.0365 | AE41: =LOOKUP(AE2,'Timing and Operations'!$E$70:$E$78,'Timing and Operations'!$H$70:$H$78) -> 0.0365 | AF41: =LOOKUP(AF2,'Timing and Operations'!$E$70:$E$78,'Timing and Operations'!$H$70:$H$78) -> 0.0365 | AG41: =LOOKUP(AG2,'Timing and Operations'!$E$70:$E$78,'Timing and Operations'!$H$70:$H$78) -> 0.0365 | AH41: =LOOKUP(AH2,'Timing and Operations'!$E$70:$E$78,'Timing and Operations'!$H$70:$H$78) -> 0.0365 | AI41: =LOOKUP(AI2,'Timing and Operations'!$E$70:$E$78,'Timing and Operations'!$H$70:$H$78) -> 0.0365 | AJ41: =LOOKUP(AJ2,'Timing and Operations'!$E$70:$E$78,'Timing and Operations'!$H$70:$H$78) -> 0.0365 | AK41: =LOOKUP(AK2,'Timing and Operations'!$E$70:$E$78,'Timing and Operations'!$H$70:$H$78) -> 0.0365 | AL41: =LOOKUP(AL2,'Timing and Operations'!$E$70:$E$78,'Timing and Operations'!$H$70:$H$78) -> 0.0365 | AM41: =LOOKUP(AM2,'Timing and Operations'!$E$70:$E$78,'Timing and Operations'!$H$70:$H$78) -> 0.0365 | AN41: =LOOKUP(AN2,'Timing and Operations'!$E$70:$E$78,'Timing and Operations'!$H$70:$H$78) -> 0.0365 | AO41: =LOOKUP(AO2,'Timing and Operations'!$E$70:$E$78,'Timing and Operations'!$H$70:$H$78) -> 0.0365 | AP41: =LOOKUP(AP2,'Timing and Operations'!$E$70:$E$78,'Timing and Operations'!$H$70:$H$78) -> 0.0365 | AQ41: =LOOKUP(AQ2,'Timing and Operations'!$E$70:$E$78,'Timing and Operations'!$H$70:$H$78) -> 0.0365 | AR41: =LOOKUP(AR2,'Timing and Operations'!$E$70:$E$78,'Timing and Operations'!$H$70:$H$78) -> 0.0365 | AS41: =LOOKUP(AS2,'Timing and Operations'!$E$70:$E$78,'Timing and Operations'!$H$70:$H$78) -> 0.0365 | AT41: =LOOKUP(AT2,'Timing and Operations'!$E$70:$E$78,'Timing and Operations'!$H$70:$H$78) -> 0.0365 | AU41: =LOOKUP(AU2,'Timing and Operations'!$E$70:$E$78,'Timing and Operations'!$H$70:$H$78) -> 0.0365 | AV41: =LOOKUP(AV2,'Timing and Operations'!$E$70:$E$78,'Timing and Operations'!$H$70:$H$78) -> 0.0365 | AW41: =LOOKUP(AW2,'Timing and Operations'!$E$70:$E$78,'Timing and Operations'!$H$70:$H$78) -> 0.0365 | AX41: =LOOKUP(AX2,'Timing and Operations'!$E$70:$E$78,'Timing and Operations'!$H$70:$H$78) -> 0.0365 | AY41: =LOOKUP(AY2,'Timing and Operations'!$E$70:$E$78,'Timing and Operations'!$H$70:$H$78) -> 0.0365 | AZ41: =LOOKUP(AZ2,'Timing and Operations'!$E$70:$E$78,'Timing and Operations'!$H$70:$H$78) -> 0.0365 | BA41: =LOOKUP(BA2,'Timing and Operations'!$E$70:$E$78,'Timing and Operations'!$H$70:$H$78) -> 0.0365 | BB41: =LOOKUP(BB2,'Timing and Operations'!$E$70:$E$78,'Timing and Operations'!$H$70:$H$78) -> 0.0365 | BC41: =LOOKUP(BC2,'Timing and Operations'!$E$70:$E$78,'Timing and Operations'!$H$70:$H$78) -> 0.0365 | BD41: =LOOKUP(BD2,'Timing and Operations'!$E$70:$E$78,'Timing and Operations'!$H$70:$H$78) -> 0.0365 | BE41: =LOOKUP(BE2,'Timing and Operations'!$E$70:$E$78,'Timing and Operations'!$H$70:$H$78) -> 0.0365 | BF41: =LOOKUP(BF2,'Timing and Operations'!$E$70:$E$78,'Timing and Operations'!$H$70:$H$78) -> 0.0365 | BG41: =LOOKUP(BG2,'Timing and Operations'!$E$70:$E$78,'Timing and Operations'!$H$70:$H$78) -> 0.0365 | BH41: =LOOKUP(BH2,'Timing and Operations'!$E$70:$E$78,'Timing and Operations'!$H$70:$H$78) -> 0.0365 | BI41: =LOOKUP(BI2,'Timing and Operations'!$E$70:$E$78,'Timing and Operations'!$H$70:$H$78) -> 0.0365 | BJ41: =LOOKUP(BJ2,'Timing and Operations'!$E$70:$E$78,'Timing and Operations'!$H$70:$H$78) -> 0.0365 | BK41: =LOOKUP(BK2,'Timing and Operations'!$E$70:$E$78,'Timing and Operations'!$H$70:$H$78) -> 0.0365 | BL41: =LOOKUP(BL2,'Timing and Operations'!$E$70:$E$78,'Timing and Operations'!$H$70:$H$78) -> 0.0365 | BM41: =LOOKUP(BM2,'Timing and Operations'!$E$70:$E$78,'Timing and Operations'!$H$70:$H$78) -> 0.0365 | BN41: =LOOKUP(BN2,'Timing and Operations'!$E$70:$E$78,'Timing and Operations'!$H$70:$H$78) -> 0.0365 | BO41: =LOOKUP(BO2,'Timing and Operations'!$E$70:$E$78,'Timing and Operations'!$H$70:$H$78) -> 0.0365 | BP41: =LOOKUP(BP2,'Timing and Operations'!$E$70:$E$78,'Timing and Operations'!$H$70:$H$78) -> 0.0365 | BQ41: =LOOKUP(BQ2,'Timing and Operations'!$E$70:$E$78,'Timing and Operations'!$H$70:$H$78) -> 0.0365
E42: Constraints Applied | F42: =INDEX(Sensitivities!$C$65:$C$68,EBITDA!G42) -> P75 | G42: =Sensitivities!D38 -> 2 | H42: =IF(G42<3,2,1) -> 2 | J42: =IF($H$42,J40,J41) -> 0.02 | K42: 0.02 | L42: 0.031 | M42: 0.031 | N42: 0.031 | O42: 0.031 | P42: 0.037 | Q42: 0.037 | R42: 0.037 | S42: 0.037 | T42: 0.037 | U42: 0.037 | V42: 0.037 | W42: 0.037 | X42: 0.037 | Y42: 0.037 | Z42: 0.037 | AA42: 0.037 | AB42: 0.037 | AC42: 0.037 | AD42: 0.037 | AE42: 0.037 | AF42: 0.037 | AG42: 0.037 | AH42: 0.037 | AI42: 0.037 | AJ42: 0.037 | AK42: 0.037 | AL42: 0.037 | AM42: 0.037 | AN42: 0.037 | AO42: 0.037 | AP42: =IF($H$42,AP40,AP41) -> 0.037 | AQ42: 0.037 | AR42: 0.037 | AS42: 0.037 | AT42: 0.037 | AU42: 0.037 | AV42: 0.037 | AW42: 0.037 | AX42: 0.037 | AY42: 0.037 | AZ42: 0.037 | BA42: 0.037 | BB42: 0.037 | BC42: 0.037 | BD42: 0.037 | BE42: 0.037 | BF42: 0.037 | BG42: 0.037 | BH42: 0.037 | BI42: 0.037 | BJ42: 0.037 | BK42: 0.037 | BL42: 0.037 | BM42: 0.037 | BN42: 0.037 | BO42: 0.037 | BP42: 0.037 | BQ42: 0.037
E44: ="Constraint"&" "&'Timing and Operations'!$I$332&"MW"&" "&"(Refit 1 or Gate 2)" -> Constraint 75MW (Refit 1 or Gate 2)
E45: Constraints in P90 and P99 Case | J45: =LOOKUP(J2,'Timing and Operations'!$E$70:$E$78,'Timing and Operations'!$G$357:$G$365) -> 0 | K45: =LOOKUP(K2,'Timing and Operations'!$E$70:$E$78,'Timing and Operations'!$G$357:$G$365) -> 0 | L45: =LOOKUP(L2,'Timing and Operations'!$E$70:$E$78,'Timing and Operations'!$G$357:$G$365) -> 0 | M45: =LOOKUP(M2,'Timing and Operations'!$E$70:$E$78,'Timing and Operations'!$G$357:$G$365) -> 0 | N45: =LOOKUP(N2,'Timing and Operations'!$E$70:$E$78,'Timing and Operations'!$G$357:$G$365) -> 0 | O45: =LOOKUP(O2,'Timing and Operations'!$E$70:$E$78,'Timing and Operations'!$G$357:$G$365) -> 0 | P45: =LOOKUP(P2,'Timing and Operations'!$E$70:$E$78,'Timing and Operations'!$G$357:$G$365) -> 0 | Q45: =LOOKUP(Q2,'Timing and Operations'!$E$70:$E$78,'Timing and Operations'!$G$357:$G$365) -> 0 | R45: =LOOKUP(R2,'Timing and Operations'!$E$70:$E$78,'Timing and Operations'!$G$357:$G$365) -> 0 | S45: =LOOKUP(S2,'Timing and Operations'!$E$70:$E$78,'Timing and Operations'!$G$357:$G$365) -> 0 | T45: =LOOKUP(T2,'Timing and Operations'!$E$70:$E$78,'Timing and Operations'!$G$357:$G$365) -> 0 | U45: =LOOKUP(U2,'Timing and Operations'!$E$70:$E$78,'Timing and Operations'!$G$357:$G$365) -> 0 | V45: =LOOKUP(V2,'Timing and Operations'!$E$70:$E$78,'Timing and Operations'!$G$357:$G$365) -> 0 | W45: =LOOKUP(W2,'Timing and Operations'!$E$70:$E$78,'Timing and Operations'!$G$357:$G$365) -> 0 | X45: =LOOKUP(X2,'Timing and Operations'!$E$70:$E$78,'Timing and Operations'!$G$357:$G$365) -> 0 | Y45: =LOOKUP(Y2,'Timing and Operations'!$E$70:$E$78,'Timing and Operations'!$G$357:$G$365) -> 0 | Z45: =LOOKUP(Z2,'Timing and Operations'!$E$70:$E$78,'Timing and Operations'!$G$357:$G$365) -> 0 | AA45: =LOOKUP(AA2,'Timing and Operations'!$E$70:$E$78,'Timing and Operations'!$G$357:$G$365) -> 0 | AB45: =LOOKUP(AB2,'Timing and Operations'!$E$70:$E$78,'Timing and Operations'!$G$357:$G$365) -> 0 | AC45: =LOOKUP(AC2,'Timing and Operations'!$E$70:$E$78,'Timing and Operations'!$G$357:$G$365) -> 0 | AD45: =LOOKUP(AD2,'Timing and Operations'!$E$70:$E$78,'Timing and Operations'!$G$357:$G$365) -> 0 | AE45: =LOOKUP(AE2,'Timing and Operations'!$E$70:$E$78,'Timing and Operations'!$G$357:$G$365) -> 0 | AF45: =LOOKUP(AF2,'Timing and Operations'!$E$70:$E$78,'Timing and Operations'!$G$357:$G$365) -> 0 | AG45: =LOOKUP(AG2,'Timing and Operations'!$E$70:$E$78,'Timing and Operations'!$G$357:$G$365) -> 0 | AH45: =LOOKUP(AH2,'Timing and Operations'!$E$70:$E$78,'Timing and Operations'!$G$357:$G$365) -> 0 | AI45: =LOOKUP(AI2,'Timing and Operations'!$E$70:$E$78,'Timing and Operations'!$G$357:$G$365) -> 0 | AJ45: =LOOKUP(AJ2,'Timing and Operations'!$E$70:$E$78,'Timing and Operations'!$G$357:$G$365) -> 0 | AK45: =LOOKUP(AK2,'Timing and Operations'!$E$70:$E$78,'Timing and Operations'!$G$357:$G$365) -> 0 | AL45: =LOOKUP(AL2,'Timing and Operations'!$E$70:$E$78,'Timing and Operations'!$G$357:$G$365) -> 0 | AM45: =LOOKUP(AM2,'Timing and Operations'!$E$70:$E$78,'Timing and Operations'!$G$357:$G$365) -> 0 | AN45: =LOOKUP(AN2,'Timing and Operations'!$E$70:$E$78,'Timing and Operations'!$G$357:$G$365) -> 0 | AO45: =LOOKUP(AO2,'Timing and Operations'!$E$70:$E$78,'Timing and Operations'!$G$357:$G$365) -> 0 | AP45: =LOOKUP(AP2,'Timing and Operations'!$E$70:$E$78,'Timing and Operations'!$G$357:$G$365) -> 0 | AQ45: =LOOKUP(AQ2,'Timing and Operations'!$E$70:$E$78,'Timing and Operations'!$G$357:$G$365) -> 0 | AR45: =LOOKUP(AR2,'Timing and Operations'!$E$70:$E$78,'Timing and Operations'!$G$357:$G$365) -> 0 | AS45: =LOOKUP(AS2,'Timing and Operations'!$E$70:$E$78,'Timing and Operations'!$G$357:$G$365) -> 0 | AT45: =LOOKUP(AT2,'Timing and Operations'!$E$70:$E$78,'Timing and Operations'!$G$357:$G$365) -> 0 | AU45: =LOOKUP(AU2,'Timing and Operations'!$E$70:$E$78,'Timing and Operations'!$G$357:$G$365) -> 0 | AV45: =LOOKUP(AV2,'Timing and Operations'!$E$70:$E$78,'Timing and Operations'!$G$357:$G$365) -> 0 | AW45: =LOOKUP(AW2,'Timing and Operations'!$E$70:$E$78,'Timing and Operations'!$G$357:$G$365) -> 0 | AX45: =LOOKUP(AX2,'Timing and Operations'!$E$70:$E$78,'Timing and Operations'!$G$357:$G$365) -> 0 | AY45: =LOOKUP(AY2,'Timing and Operations'!$E$70:$E$78,'Timing and Operations'!$G$357:$G$365) -> 0 | AZ45: =LOOKUP(AZ2,'Timing and Operations'!$E$70:$E$78,'Timing and Operations'!$G$357:$G$365) -> 0 | BA45: =LOOKUP(BA2,'Timing and Operations'!$E$70:$E$78,'Timing and Operations'!$G$357:$G$365) -> 0 | BB45: =LOOKUP(BB2,'Timing and Operations'!$E$70:$E$78,'Timing and Operations'!$G$357:$G$365) -> 0 | BC45: =LOOKUP(BC2,'Timing and Operations'!$E$70:$E$78,'Timing and Operations'!$G$357:$G$365) -> 0 | BD45: =LOOKUP(BD2,'Timing and Operations'!$E$70:$E$78,'Timing and Operations'!$G$357:$G$365) -> 0 | BE45: =LOOKUP(BE2,'Timing and Operations'!$E$70:$E$78,'Timing and Operations'!$G$357:$G$365) -> 0 | BF45: =LOOKUP(BF2,'Timing and Operations'!$E$70:$E$78,'Timing and Operations'!$G$357:$G$365) -> 0 | BG45: =LOOKUP(BG2,'Timing and Operations'!$E$70:$E$78,'Timing and Operations'!$G$357:$G$365) -> 0 | BH45: =LOOKUP(BH2,'Timing and Operations'!$E$70:$E$78,'Timing and Operations'!$G$357:$G$365) -> 0 | BI45: =LOOKUP(BI2,'Timing and Operations'!$E$70:$E$78,'Timing and Operations'!$G$357:$G$365) -> 0 | BJ45: =LOOKUP(BJ2,'Timing and Operations'!$E$70:$E$78,'Timing and Operations'!$G$357:$G$365) -> 0 | BK45: =LOOKUP(BK2,'Timing and Operations'!$E$70:$E$78,'Timing and Operations'!$G$357:$G$365) -> 0 | BL45: =LOOKUP(BL2,'Timing and Operations'!$E$70:$E$78,'Timing and Operations'!$G$357:$G$365) -> 0 | BM45: =LOOKUP(BM2,'Timing and Operations'!$E$70:$E$78,'Timing and Operations'!$G$357:$G$365) -> 0 | BN45: =LOOKUP(BN2,'Timing and Operations'!$E$70:$E$78,'Timing and Operations'!$G$357:$G$365) -> 0 | BO45: =LOOKUP(BO2,'Timing and Operations'!$E$70:$E$78,'Timing and Operations'!$G$357:$G$365) -> 0 | BP45: =LOOKUP(BP2,'Timing and Operations'!$E$70:$E$78,'Timing and Operations'!$G$357:$G$365) -> 0 | BQ45: =LOOKUP(BQ2,'Timing and Operations'!$E$70:$E$78,'Timing and Operations'!$G$357:$G$365) -> 0
E46: Constraints in P50 and P75 Case | J46: =LOOKUP(J2,'Timing and Operations'!$E$70:$E$78,'Timing and Operations'!$H$357:$H$365) -> 0 | K46: =LOOKUP(K2,'Timing and Operations'!$E$70:$E$78,'Timing and Operations'!$H$357:$H$365) -> 0 | L46: =LOOKUP(L2,'Timing and Operations'!$E$70:$E$78,'Timing and Operations'!$H$357:$H$365) -> 0 | M46: =LOOKUP(M2,'Timing and Operations'!$E$70:$E$78,'Timing and Operations'!$H$357:$H$365) -> 0 | N46: =LOOKUP(N2,'Timing and Operations'!$E$70:$E$78,'Timing and Operations'!$H$357:$H$365) -> 0 | O46: =LOOKUP(O2,'Timing and Operations'!$E$70:$E$78,'Timing and Operations'!$H$357:$H$365) -> 0 | P46: =LOOKUP(P2,'Timing and Operations'!$E$70:$E$78,'Timing and Operations'!$H$357:$H$365) -> 0 | Q46: =LOOKUP(Q2,'Timing and Operations'!$E$70:$E$78,'Timing and Operations'!$H$357:$H$365) -> 0 | R46: =LOOKUP(R2,'Timing and Operations'!$E$70:$E$78,'Timing and Operations'!$H$357:$H$365) -> 0 | S46: =LOOKUP(S2,'Timing and Operations'!$E$70:$E$78,'Timing and Operations'!$H$357:$H$365) -> 0 | T46: =LOOKUP(T2,'Timing and Operations'!$E$70:$E$78,'Timing and Operations'!$H$357:$H$365) -> 0 | U46: =LOOKUP(U2,'Timing and Operations'!$E$70:$E$78,'Timing and Operations'!$H$357:$H$365) -> 0 | V46: =LOOKUP(V2,'Timing and Operations'!$E$70:$E$78,'Timing and Operations'!$H$357:$H$365) -> 0 | W46: =LOOKUP(W2,'Timing and Operations'!$E$70:$E$78,'Timing and Operations'!$H$357:$H$365) -> 0 | X46: =LOOKUP(X2,'Timing and Operations'!$E$70:$E$78,'Timing and Operations'!$H$357:$H$365) -> 0 | Y46: =LOOKUP(Y2,'Timing and Operations'!$E$70:$E$78,'Timing and Operations'!$H$357:$H$365) -> 0 | Z46: =LOOKUP(Z2,'Timing and Operations'!$E$70:$E$78,'Timing and Operations'!$H$357:$H$365) -> 0 | AA46: =LOOKUP(AA2,'Timing and Operations'!$E$70:$E$78,'Timing and Operations'!$H$357:$H$365) -> 0 | AB46: =LOOKUP(AB2,'Timing and Operations'!$E$70:$E$78,'Timing and Operations'!$H$357:$H$365) -> 0 | AC46: =LOOKUP(AC2,'Timing and Operations'!$E$70:$E$78,'Timing and Operations'!$H$357:$H$365) -> 0 | AD46: =LOOKUP(AD2,'Timing and Operations'!$E$70:$E$78,'Timing and Operations'!$H$357:$H$365) -> 0 | AE46: =LOOKUP(AE2,'Timing and Operations'!$E$70:$E$78,'Timing and Operations'!$H$357:$H$365) -> 0 | AF46: =LOOKUP(AF2,'Timing and Operations'!$E$70:$E$78,'Timing and Operations'!$H$357:$H$365) -> 0 | AG46: =LOOKUP(AG2,'Timing and Operations'!$E$70:$E$78,'Timing and Operations'!$H$357:$H$365) -> 0 | AH46: =LOOKUP(AH2,'Timing and Operations'!$E$70:$E$78,'Timing and Operations'!$H$357:$H$365) -> 0 | AI46: =LOOKUP(AI2,'Timing and Operations'!$E$70:$E$78,'Timing and Operations'!$H$357:$H$365) -> 0 | AJ46: =LOOKUP(AJ2,'Timing and Operations'!$E$70:$E$78,'Timing and Operations'!$H$357:$H$365) -> 0 | AK46: =LOOKUP(AK2,'Timing and Operations'!$E$70:$E$78,'Timing and Operations'!$H$357:$H$365) -> 0 | AL46: =LOOKUP(AL2,'Timing and Operations'!$E$70:$E$78,'Timing and Operations'!$H$357:$H$365) -> 0 | AM46: =LOOKUP(AM2,'Timing and Operations'!$E$70:$E$78,'Timing and Operations'!$H$357:$H$365) -> 0 | AN46: =LOOKUP(AN2,'Timing and Operations'!$E$70:$E$78,'Timing and Operations'!$H$357:$H$365) -> 0 | AO46: =LOOKUP(AO2,'Timing and Operations'!$E$70:$E$78,'Timing and Operations'!$H$357:$H$365) -> 0 | AP46: =LOOKUP(AP2,'Timing and Operations'!$E$70:$E$78,'Timing and Operations'!$H$357:$H$365) -> 0 | AQ46: =LOOKUP(AQ2,'Timing and Operations'!$E$70:$E$78,'Timing and Operations'!$H$357:$H$365) -> 0 | AR46: =LOOKUP(AR2,'Timing and Operations'!$E$70:$E$78,'Timing and Operations'!$H$357:$H$365) -> 0 | AS46: =LOOKUP(AS2,'Timing and Operations'!$E$70:$E$78,'Timing and Operations'!$H$357:$H$365) -> 0 | AT46: =LOOKUP(AT2,'Timing and Operations'!$E$70:$E$78,'Timing and Operations'!$H$357:$H$365) -> 0 | AU46: =LOOKUP(AU2,'Timing and Operations'!$E$70:$E$78,'Timing and Operations'!$H$357:$H$365) -> 0 | AV46: =LOOKUP(AV2,'Timing and Operations'!$E$70:$E$78,'Timing and Operations'!$H$357:$H$365) -> 0 | AW46: =LOOKUP(AW2,'Timing and Operations'!$E$70:$E$78,'Timing and Operations'!$H$357:$H$365) -> 0 | AX46: =LOOKUP(AX2,'Timing and Operations'!$E$70:$E$78,'Timing and Operations'!$H$357:$H$365) -> 0 | AY46: =LOOKUP(AY2,'Timing and Operations'!$E$70:$E$78,'Timing and Operations'!$H$357:$H$365) -> 0 | AZ46: =LOOKUP(AZ2,'Timing and Operations'!$E$70:$E$78,'Timing and Operations'!$H$357:$H$365) -> 0 | BA46: =LOOKUP(BA2,'Timing and Operations'!$E$70:$E$78,'Timing and Operations'!$H$357:$H$365) -> 0 | BB46: =LOOKUP(BB2,'Timing and Operations'!$E$70:$E$78,'Timing and Operations'!$H$357:$H$365) -> 0 | BC46: =LOOKUP(BC2,'Timing and Operations'!$E$70:$E$78,'Timing and Operations'!$H$357:$H$365) -> 0 | BD46: =LOOKUP(BD2,'Timing and Operations'!$E$70:$E$78,'Timing and Operations'!$H$357:$H$365) -> 0 | BE46: =LOOKUP(BE2,'Timing and Operations'!$E$70:$E$78,'Timing and Operations'!$H$357:$H$365) -> 0 | BF46: =LOOKUP(BF2,'Timing and Operations'!$E$70:$E$78,'Timing and Operations'!$H$357:$H$365) -> 0 | BG46: =LOOKUP(BG2,'Timing and Operations'!$E$70:$E$78,'Timing and Operations'!$H$357:$H$365) -> 0 | BH46: =LOOKUP(BH2,'Timing and Operations'!$E$70:$E$78,'Timing and Operations'!$H$357:$H$365) -> 0 | BI46: =LOOKUP(BI2,'Timing and Operations'!$E$70:$E$78,'Timing and Operations'!$H$357:$H$365) -> 0 | BJ46: =LOOKUP(BJ2,'Timing and Operations'!$E$70:$E$78,'Timing and Operations'!$H$357:$H$365) -> 0 | BK46: =LOOKUP(BK2,'Timing and Operations'!$E$70:$E$78,'Timing and Operations'!$H$357:$H$365) -> 0 | BL46: =LOOKUP(BL2,'Timing and Operations'!$E$70:$E$78,'Timing and Operations'!$H$357:$H$365) -> 0 | BM46: =LOOKUP(BM2,'Timing and Operations'!$E$70:$E$78,'Timing and Operations'!$H$357:$H$365) -> 0 | BN46: =LOOKUP(BN2,'Timing and Operations'!$E$70:$E$78,'Timing and Operations'!$H$357:$H$365) -> 0 | BO46: =LOOKUP(BO2,'Timing and Operations'!$E$70:$E$78,'Timing and Operations'!$H$357:$H$365) -> 0 | BP46: =LOOKUP(BP2,'Timing and Operations'!$E$70:$E$78,'Timing and Operations'!$H$357:$H$365) -> 0 | BQ46: =LOOKUP(BQ2,'Timing and Operations'!$E$70:$E$78,'Timing and Operations'!$H$357:$H$365) -> 0
E47: Constraints Applied in | F47: =INDEX(Sensitivities!$C$65:$C$68,EBITDA!G47) -> P75 | G47: =G42 -> 2 | H47: =IF(G47<3,2,1) -> 2 | J47: =IF($H$42,J45,J46) -> 0 | K47: 0 | L47: 0 | M47: 0 | N47: 0 | O47: 0 | P47: 0 | Q47: 0 | R47: 0 | S47: 0 | T47: 0 | U47: 0 | V47: 0 | W47: 0 | X47: 0 | Y47: 0 | Z47: 0 | AA47: 0 | AB47: 0 | AC47: 0 | AD47: 0 | AE47: 0 | AF47: 0 | AG47: 0 | AH47: 0 | AI47: 0 | AJ47: 0 | AK47: 0 | AL47: 0 | AM47: 0 | AN47: 0 | AO47: 0 | AP47: =IF($H$42,AP45,AP46) -> 0 | AQ47: 0 | AR47: 0 | AS47: 0 | AT47: 0 | AU47: 0 | AV47: 0 | AW47: 0 | AX47: 0 | AY47: 0 | AZ47: 0 | BA47: 0 | BB47: 0 | BC47: 0 | BD47: 0 | BE47: 0 | BF47: 0 | BG47: 0 | BH47: 0 | BI47: 0 | BJ47: 0 | BK47: 0 | BL47: 0 | BM47: 0 | BN47: 0 | BO47: 0 | BP47: 0 | BQ47: 0
E49: Output (MWH) | J49: =J35*(1-J42)+J36*(1-J47) -> 106428 | K49: 106428 | L49: 105233.4 | M49: 105233.4 | N49: 105233.4 | O49: 105233.4 | P49: 104581.8 | Q49: 104581.8 | R49: 104581.8 | S49: 104581.8 | T49: 104581.8 | U49: 104581.8 | V49: 104581.8 | W49: 104581.8 | X49: 104581.8 | Y49: 104581.8 | Z49: 104581.8 | AA49: 104581.8 | AB49: 104581.8 | AC49: 104581.8 | AD49: 104581.8 | AE49: 104581.8 | AF49: 104581.8 | AG49: 104581.8 | AH49: 104581.8 | AI49: 104581.8 | AJ49: 104581.8 | AK49: 104581.8 | AL49: 104581.8 | AM49: 104581.8 | AN49: 104581.8 | AO49: 104581.8 | AP49: =AP35*(1-AP42)+AP36*(1-AP47) -> 104581.8 | AQ49: 104581.8 | AR49: 104581.8 | AS49: 104581.8 | AT49: 104581.8 | AU49: 104581.8 | AV49: 104581.8 | AW49: 104581.8 | AX49: 104581.8 | AY49: 104581.8 | AZ49: 104581.8 | BA49: 104581.8 | BB49: 104581.8 | BC49: 104581.8 | BD49: 104581.8 | BE49: 104581.8 | BF49: 104581.8 | BG49: 104581.8 | BH49: 0 | BI49: 0 | BJ49: 0 | BK49: 0 | BL49: 0 | BM49: 0 | BN49: 0 | BO49: 0 | BP49: 0 | BQ49: 0
E50: Hours in Period | J50: =(J3-J2)*24 -> 4368 | K50: 4344 | L50: 4368 | M50: 4344 | N50: 4368 | O50: 4368 | P50: 4368 | Q50: 4344 | R50: 4368 | S50: 4344 | T50: 4368 | U50: 4344 | V50: 4368 | W50: 4368 | X50: 4368 | Y50: 4344 | Z50: 4368 | AA50: 4344 | AB50: 4368 | AC50: 4344 | AD50: 4368 | AE50: 4368 | AF50: 4368 | AG50: 4344 | AH50: 4368 | AI50: 4344 | AJ50: 4368 | AK50: 4344 | AL50: 4368 | AM50: 4368 | AN50: 4368 | AO50: 4344 | AP50: =(AP3-AP2)*24 -> 4368 | AQ50: 4344 | AR50: 4368 | AS50: 4344 | AT50: 4368 | AU50: 4368 | AV50: 4368 | AW50: 4344 | AX50: 4368 | AY50: 4344 | AZ50: 4368 | BA50: 4344 | BB50: 4368 | BC50: 4368 | BD50: 4368 | BE50: 4344 | BF50: 4368 | BG50: 4344 | BH50: 4368 | BI50: 4344 | BJ50: 4368 | BK50: 4368 | BL50: 4368 | BM50: 4344 | BN50: 4368 | BO50: 4344 | BP50: 4368 | BQ50: 4344
E51: Capacity Factor | F51: MW | G51: ='Timing and Operations'!E24 -> 75 | H51: =AVERAGE(J51:BQ51) -> 0.3202918681 | J51: =IF(J49,J49/J50/$G$51) -> 0.3248717949 | K51: 0.3266666667 | L51: 0.3212252747 | M51: 0.323 | N51: 0.3212252747 | O51: 0.3212252747 | P51: 0.3192362637 | Q51: 0.321 | R51: 0.3192362637 | S51: 0.321 | T51: 0.3192362637 | U51: 0.321 | V51: 0.3192362637 | W51: 0.3192362637 | X51: 0.3192362637 | Y51: 0.321 | Z51: 0.3192362637 | AA51: 0.321 | AB51: 0.3192362637 | AC51: 0.321 | AD51: 0.3192362637 | AE51: 0.3192362637 | AF51: 0.3192362637 | AG51: 0.321 | AH51: 0.3192362637 | AI51: 0.321 | AJ51: 0.3192362637 | AK51: 0.321 | AL51: 0.3192362637 | AM51: 0.3192362637 | AN51: 0.3192362637 | AO51: 0.321 | AP51: =IF(AP49,AP49/AP50/$G$51) -> 0.3192362637 | AQ51: 0.321 | AR51: 0.3192362637 | AS51: 0.321 | AT51: 0.3192362637 | AU51: 0.3192362637 | AV51: 0.3192362637 | AW51: 0.321 | AX51: 0.3192362637 | AY51: 0.321 | AZ51: 0.3192362637 | BA51: 0.321 | BB51: 0.3192362637 | BC51: 0.3192362637 | BD51: 0.3192362637 | BE51: 0.321 | BF51: 0.3192362637 | BG51: 0.321 | BH51: FALSE | BI51: FALSE | BJ51: FALSE | BK51: FALSE | BL51: FALSE | BM51: FALSE | BN51: FALSE | BO51: FALSE | BP51: FALSE | BQ51: FALSE
E53: TLAF trigger | F53: Not in Output Calculation | J53: =IF(AND('Time SA'!H$1<'Timing and Operations'!$F$5,'Time SA'!H$2>'Timing and Operations'!$F$5),'Timing and Operations'!$F$19,IF(AND('Time SA'!H$1<'Timing and Operations'!$G$164,'Time SA'!H$2>'Timing and Operations'!$G$164),'Timing and Operations'!$F$19,IF(AND('Time SA'!H$1>='Timing and Operations'!$F$5,'Time SA'!H$2<='Timing and Operations'!$G$164),'Timing and Operations'!$F$19,0))) -> 0 | K53: =IF(AND('Time SA'!I$1<'Timing and Operations'!$F$5,'Time SA'!I$2>'Timing and Operations'!$F$5),'Timing and Operations'!$F$19,IF(AND('Time SA'!I$1<'Timing and Operations'!$G$164,'Time SA'!I$2>'Timing and Operations'!$G$164),'Timing and Operations'!$F$19,IF(AND('Time SA'!I$1>='Timing and Operations'!$F$5,'Time SA'!I$2<='Timing and Operations'!$G$164),'Timing and Operations'!$F$19,0))) -> 0 | L53: =IF(AND('Time SA'!J$1<'Timing and Operations'!$F$5,'Time SA'!J$2>'Timing and Operations'!$F$5),'Timing and Operations'!$F$19,IF(AND('Time SA'!J$1<'Timing and Operations'!$G$164,'Time SA'!J$2>'Timing and Operations'!$G$164),'Timing and Operations'!$F$19,IF(AND('Time SA'!J$1>='Timing and Operations'!$F$5,'Time SA'!J$2<='Timing and Operations'!$G$164),'Timing and Operations'!$F$19,0))) -> 0 | M53: =IF(AND('Time SA'!K$1<'Timing and Operations'!$F$5,'Time SA'!K$2>'Timing and Operations'!$F$5),'Timing and Operations'!$F$19,IF(AND('Time SA'!K$1<'Timing and Operations'!$G$164,'Time SA'!K$2>'Timing and Operations'!$G$164),'Timing and Operations'!$F$19,IF(AND('Time SA'!K$1>='Timing and Operations'!$F$5,'Time SA'!K$2<='Timing and Operations'!$G$164),'Timing and Operations'!$F$19,0))) -> 0 | N53: =IF(AND('Time SA'!L$1<'Timing and Operations'!$F$5,'Time SA'!L$2>'Timing and Operations'!$F$5),'Timing and Operations'!$F$19,IF(AND('Time SA'!L$1<'Timing and Operations'!$G$164,'Time SA'!L$2>'Timing and Operations'!$G$164),'Timing and Operations'!$F$19,IF(AND('Time SA'!L$1>='Timing and Operations'!$F$5,'Time SA'!L$2<='Timing and Operations'!$G$164),'Timing and Operations'!$F$19,0))) -> 0.02 | O53: =IF(AND('Time SA'!M$1<'Timing and Operations'!$F$5,'Time SA'!M$2>'Timing and Operations'!$F$5),'Timing and Operations'!$F$19,IF(AND('Time SA'!M$1<'Timing and Operations'!$G$164,'Time SA'!M$2>'Timing and Operations'!$G$164),'Timing and Operations'!$F$19,IF(AND('Time SA'!M$1>='Timing and Operations'!$F$5,'Time SA'!M$2<='Timing and Operations'!$G$164),'Timing and Operations'!$F$19,0))) -> 0.02 | P53: =IF(AND('Time SA'!N$1<'Timing and Operations'!$F$5,'Time SA'!N$2>'Timing and Operations'!$F$5),'Timing and Operations'!$F$19,IF(AND('Time SA'!N$1<'Timing and Operations'!$G$164,'Time SA'!N$2>'Timing and Operations'!$G$164),'Timing and Operations'!$F$19,IF(AND('Time SA'!N$1>='Timing and Operations'!$F$5,'Time SA'!N$2<='Timing and Operations'!$G$164),'Timing and Operations'!$F$19,0))) -> 0.02 | Q53: =IF(AND('Time SA'!O$1<'Timing and Operations'!$F$5,'Time SA'!O$2>'Timing and Operations'!$F$5),'Timing and Operations'!$F$19,IF(AND('Time SA'!O$1<'Timing and Operations'!$G$164,'Time SA'!O$2>'Timing and Operations'!$G$164),'Timing and Operations'!$F$19,IF(AND('Time SA'!O$1>='Timing and Operations'!$F$5,'Time SA'!O$2<='Timing and Operations'!$G$164),'Timing and Operations'!$F$19,0))) -> 0.02 | R53: =IF(AND('Time SA'!P$1<'Timing and Operations'!$F$5,'Time SA'!P$2>'Timing and Operations'!$F$5),'Timing and Operations'!$F$19,IF(AND('Time SA'!P$1<'Timing and Operations'!$G$164,'Time SA'!P$2>'Timing and Operations'!$G$164),'Timing and Operations'!$F$19,IF(AND('Time SA'!P$1>='Timing and Operations'!$F$5,'Time SA'!P$2<='Timing and Operations'!$G$164),'Timing and Operations'!$F$19,0))) -> 0.02 | S53: =IF(AND('Time SA'!Q$1<'Timing and Operations'!$F$5,'Time SA'!Q$2>'Timing and Operations'!$F$5),'Timing and Operations'!$F$19,IF(AND('Time SA'!Q$1<'Timing and Operations'!$G$164,'Time SA'!Q$2>'Timing and Operations'!$G$164),'Timing and Operations'!$F$19,IF(AND('Time SA'!Q$1>='Timing and Operations'!$F$5,'Time SA'!Q$2<='Timing and Operations'!$G$164),'Timing and Operations'!$F$19,0))) -> 0.02 | T53: =IF(AND('Time SA'!R$1<'Timing and Operations'!$F$5,'Time SA'!R$2>'Timing and Operations'!$F$5),'Timing and Operations'!$F$19,IF(AND('Time SA'!R$1<'Timing and Operations'!$G$164,'Time SA'!R$2>'Timing and Operations'!$G$164),'Timing and Operations'!$F$19,IF(AND('Time SA'!R$1>='Timing and Operations'!$F$5,'Time SA'!R$2<='Timing and Operations'!$G$164),'Timing and Operations'!$F$19,0))) -> 0.02 | U53: =IF(AND('Time SA'!S$1<'Timing and Operations'!$F$5,'Time SA'!S$2>'Timing and Operations'!$F$5),'Timing and Operations'!$F$19,IF(AND('Time SA'!S$1<'Timing and Operations'!$G$164,'Time SA'!S$2>'Timing and Operations'!$G$164),'Timing and Operations'!$F$19,IF(AND('Time SA'!S$1>='Timing and Operations'!$F$5,'Time SA'!S$2<='Timing and Operations'!$G$164),'Timing and Operations'!$F$19,0))) -> 0.02 | V53: =IF(AND('Time SA'!T$1<'Timing and Operations'!$F$5,'Time SA'!T$2>'Timing and Operations'!$F$5),'Timing and Operations'!$F$19,IF(AND('Time SA'!T$1<'Timing and Operations'!$G$164,'Time SA'!T$2>'Timing and Operations'!$G$164),'Timing and Operations'!$F$19,IF(AND('Time SA'!T$1>='Timing and Operations'!$F$5,'Time SA'!T$2<='Timing and Operations'!$G$164),'Timing and Operations'!$F$19,0))) -> 0.02 | W53: =IF(AND('Time SA'!U$1<'Timing and Operations'!$F$5,'Time SA'!U$2>'Timing and Operations'!$F$5),'Timing and Operations'!$F$19,IF(AND('Time SA'!U$1<'Timing and Operations'!$G$164,'Time SA'!U$2>'Timing and Operations'!$G$164),'Timing and Operations'!$F$19,IF(AND('Time SA'!U$1>='Timing and Operations'!$F$5,'Time SA'!U$2<='Timing and Operations'!$G$164),'Timing and Operations'!$F$19,0))) -> 0.02 | X53: =IF(AND('Time SA'!V$1<'Timing and Operations'!$F$5,'Time SA'!V$2>'Timing and Operations'!$F$5),'Timing and Operations'!$F$19,IF(AND('Time SA'!V$1<'Timing and Operations'!$G$164,'Time SA'!V$2>'Timing and Operations'!$G$164),'Timing and Operations'!$F$19,IF(AND('Time SA'!V$1>='Timing and Operations'!$F$5,'Time SA'!V$2<='Timing and Operations'!$G$164),'Timing and Operations'!$F$19,0))) -> 0.02 | Y53: =IF(AND('Time SA'!W$1<'Timing and Operations'!$F$5,'Time SA'!W$2>'Timing and Operations'!$F$5),'Timing and Operations'!$F$19,IF(AND('Time SA'!W$1<'Timing and Operations'!$G$164,'Time SA'!W$2>'Timing and Operations'!$G$164),'Timing and Operations'!$F$19,IF(AND('Time SA'!W$1>='Timing and Operations'!$F$5,'Time SA'!W$2<='Timing and Operations'!$G$164),'Timing and Operations'!$F$19,0))) -> 0.02 | Z53: =IF(AND('Time SA'!X$1<'Timing and Operations'!$F$5,'Time SA'!X$2>'Timing and Operations'!$F$5),'Timing and Operations'!$F$19,IF(AND('Time SA'!X$1<'Timing and Operations'!$G$164,'Time SA'!X$2>'Timing and Operations'!$G$164),'Timing and Operations'!$F$19,IF(AND('Time SA'!X$1>='Timing and Operations'!$F$5,'Time SA'!X$2<='Timing and Operations'!$G$164),'Timing and Operations'!$F$19,0))) -> 0.02 | AA53: =IF(AND('Time SA'!Y$1<'Timing and Operations'!$F$5,'Time SA'!Y$2>'Timing and Operations'!$F$5),'Timing and Operations'!$F$19,IF(AND('Time SA'!Y$1<'Timing and Operations'!$G$164,'Time SA'!Y$2>'Timing and Operations'!$G$164),'Timing and Operations'!$F$19,IF(AND('Time SA'!Y$1>='Timing and Operations'!$F$5,'Time SA'!Y$2<='Timing and Operations'!$G$164),'Timing and Operations'!$F$19,0))) -> 0.02 | AB53: =IF(AND('Time SA'!Z$1<'Timing and Operations'!$F$5,'Time SA'!Z$2>'Timing and Operations'!$F$5),'Timing and Operations'!$F$19,IF(AND('Time SA'!Z$1<'Timing and Operations'!$G$164,'Time SA'!Z$2>'Timing and Operations'!$G$164),'Timing and Operations'!$F$19,IF(AND('Time SA'!Z$1>='Timing and Operations'!$F$5,'Time SA'!Z$2<='Timing and Operations'!$G$164),'Timing and Operations'!$F$19,0))) -> 0.02 | AC53: =IF(AND('Time SA'!AA$1<'Timing and Operations'!$F$5,'Time SA'!AA$2>'Timing and Operations'!$F$5),'Timing and Operations'!$F$19,IF(AND('Time SA'!AA$1<'Timing and Operations'!$G$164,'Time SA'!AA$2>'Timing and Operations'!$G$164),'Timing and Operations'!$F$19,IF(AND('Time SA'!AA$1>='Timing and Operations'!$F$5,'Time SA'!AA$2<='Timing and Operations'!$G$164),'Timing and Operations'!$F$19,0))) -> 0.02 | AD53: =IF(AND('Time SA'!AB$1<'Timing and Operations'!$F$5,'Time SA'!AB$2>'Timing and Operations'!$F$5),'Timing and Operations'!$F$19,IF(AND('Time SA'!AB$1<'Timing and Operations'!$G$164,'Time SA'!AB$2>'Timing and Operations'!$G$164),'Timing and Operations'!$F$19,IF(AND('Time SA'!AB$1>='Timing and Operations'!$F$5,'Time SA'!AB$2<='Timing and Operations'!$G$164),'Timing and Operations'!$F$19,0))) -> 0.02 | AE53: =IF(AND('Time SA'!AC$1<'Timing and Operations'!$F$5,'Time SA'!AC$2>'Timing and Operations'!$F$5),'Timing and Operations'!$F$19,IF(AND('Time SA'!AC$1<'Timing and Operations'!$G$164,'Time SA'!AC$2>'Timing and Operations'!$G$164),'Timing and Operations'!$F$19,IF(AND('Time SA'!AC$1>='Timing and Operations'!$F$5,'Time SA'!AC$2<='Timing and Operations'!$G$164),'Timing and Operations'!$F$19,0))) -> 0.02 | AF53: =IF(AND('Time SA'!AD$1<'Timing and Operations'!$F$5,'Time SA'!AD$2>'Timing and Operations'!$F$5),'Timing and Operations'!$F$19,IF(AND('Time SA'!AD$1<'Timing and Operations'!$G$164,'Time SA'!AD$2>'Timing and Operations'!$G$164),'Timing and Operations'!$F$19,IF(AND('Time SA'!AD$1>='Timing and Operations'!$F$5,'Time SA'!AD$2<='Timing and Operations'!$G$164),'Timing and Operations'!$F$19,0))) -> 0.02 | AG53: =IF(AND('Time SA'!AE$1<'Timing and Operations'!$F$5,'Time SA'!AE$2>'Timing and Operations'!$F$5),'Timing and Operations'!$F$19,IF(AND('Time SA'!AE$1<'Timing and Operations'!$G$164,'Time SA'!AE$2>'Timing and Operations'!$G$164),'Timing and Operations'!$F$19,IF(AND('Time SA'!AE$1>='Timing and Operations'!$F$5,'Time SA'!AE$2<='Timing and Operations'!$G$164),'Timing and Operations'!$F$19,0))) -> 0.02 | AH53: =IF(AND('Time SA'!AF$1<'Timing and Operations'!$F$5,'Time SA'!AF$2>'Timing and Operations'!$F$5),'Timing and Operations'!$F$19,IF(AND('Time SA'!AF$1<'Timing and Operations'!$G$164,'Time SA'!AF$2>'Timing and Operations'!$G$164),'Timing and Operations'!$F$19,IF(AND('Time SA'!AF$1>='Timing and Operations'!$F$5,'Time SA'!AF$2<='Timing and Operations'!$G$164),'Timing and Operations'!$F$19,0))) -> 0.02 | AI53: =IF(AND('Time SA'!AG$1<'Timing and Operations'!$F$5,'Time SA'!AG$2>'Timing and Operations'!$F$5),'Timing and Operations'!$F$19,IF(AND('Time SA'!AG$1<'Timing and Operations'!$G$164,'Time SA'!AG$2>'Timing and Operations'!$G$164),'Timing and Operations'!$F$19,IF(AND('Time SA'!AG$1>='Timing and Operations'!$F$5,'Time SA'!AG$2<='Timing and Operations'!$G$164),'Timing and Operations'!$F$19,0))) -> 0.02 | AJ53: =IF(AND('Time SA'!AH$1<'Timing and Operations'!$F$5,'Time SA'!AH$2>'Timing and Operations'!$F$5),'Timing and Operations'!$F$19,IF(AND('Time SA'!AH$1<'Timing and Operations'!$G$164,'Time SA'!AH$2>'Timing and Operations'!$G$164),'Timing and Operations'!$F$19,IF(AND('Time SA'!AH$1>='Timing and Operations'!$F$5,'Time SA'!AH$2<='Timing and Operations'!$G$164),'Timing and Operations'!$F$19,0))) -> 0.02 | AK53: =IF(AND('Time SA'!AI$1<'Timing and Operations'!$F$5,'Time SA'!AI$2>'Timing and Operations'!$F$5),'Timing and Operations'!$F$19,IF(AND('Time SA'!AI$1<'Timing and Operations'!$G$164,'Time SA'!AI$2>'Timing and Operations'!$G$164),'Timing and Operations'!$F$19,IF(AND('Time SA'!AI$1>='Timing and Operations'!$F$5,'Time SA'!AI$2<='Timing and Operations'!$G$164),'Timing and Operations'!$F$19,0))) -> 0.02 | AL53: =IF(AND('Time SA'!AJ$1<'Timing and Operations'!$F$5,'Time SA'!AJ$2>'Timing and Operations'!$F$5),'Timing and Operations'!$F$19,IF(AND('Time SA'!AJ$1<'Timing and Operations'!$G$164,'Time SA'!AJ$2>'Timing and Operations'!$G$164),'Timing and Operations'!$F$19,IF(AND('Time SA'!AJ$1>='Timing and Operations'!$F$5,'Time SA'!AJ$2<='Timing and Operations'!$G$164),'Timing and Operations'!$F$19,0))) -> 0.02 | AM53: =IF(AND('Time SA'!AK$1<'Timing and Operations'!$F$5,'Time SA'!AK$2>'Timing and Operations'!$F$5),'Timing and Operations'!$F$19,IF(AND('Time SA'!AK$1<'Timing and Operations'!$G$164,'Time SA'!AK$2>'Timing and Operations'!$G$164),'Timing and Operations'!$F$19,IF(AND('Time SA'!AK$1>='Timing and Operations'!$F$5,'Time SA'!AK$2<='Timing and Operations'!$G$164),'Timing and Operations'!$F$19,0))) -> 0.02 | AN53: =IF(AND('Time SA'!AL$1<'Timing and Operations'!$F$5,'Time SA'!AL$2>'Timing and Operations'!$F$5),'Timing and Operations'!$F$19,IF(AND('Time SA'!AL$1<'Timing and Operations'!$G$164,'Time SA'!AL$2>'Timing and Operations'!$G$164),'Timing and Operations'!$F$19,IF(AND('Time SA'!AL$1>='Timing and Operations'!$F$5,'Time SA'!AL$2<='Timing and Operations'!$G$164),'Timing and Operations'!$F$19,0))) -> 0.02 | AO53: =IF(AND('Time SA'!AM$1<'Timing and Operations'!$F$5,'Time SA'!AM$2>'Timing and Operations'!$F$5),'Timing and Operations'!$F$19,IF(AND('Time SA'!AM$1<'Timing and Operations'!$G$164,'Time SA'!AM$2>'Timing and Operations'!$G$164),'Timing and Operations'!$F$19,IF(AND('Time SA'!AM$1>='Timing and Operations'!$F$5,'Time SA'!AM$2<='Timing and Operations'!$G$164),'Timing and Operations'!$F$19,0))) -> 0.02 | AP53: =IF(AND('Time SA'!AN$1<'Timing and Operations'!$F$5,'Time SA'!AN$2>'Timing and Operations'!$F$5),'Timing and Operations'!$F$19,IF(AND('Time SA'!AN$1<'Timing and Operations'!$G$164,'Time SA'!AN$2>'Timing and Operations'!$G$164),'Timing and Operations'!$F$19,IF(AND('Time SA'!AN$1>='Timing and Operations'!$F$5,'Time SA'!AN$2<='Timing and Operations'!$G$164),'Timing and Operations'!$F$19,0))) -> 0.02 | AQ53: =IF(AND('Time SA'!AO$1<'Timing and Operations'!$F$5,'Time SA'!AO$2>'Timing and Operations'!$F$5),'Timing and Operations'!$F$19,IF(AND('Time SA'!AO$1<'Timing and Operations'!$G$164,'Time SA'!AO$2>'Timing and Operations'!$G$164),'Timing and Operations'!$F$19,IF(AND('Time SA'!AO$1>='Timing and Operations'!$F$5,'Time SA'!AO$2<='Timing and Operations'!$G$164),'Timing and Operations'!$F$19,0))) -> 0.02 | AR53: =IF(AND('Time SA'!AP$1<'Timing and Operations'!$F$5,'Time SA'!AP$2>'Timing and Operations'!$F$5),'Timing and Operations'!$F$19,IF(AND('Time SA'!AP$1<'Timing and Operations'!$G$164,'Time SA'!AP$2>'Timing and Operations'!$G$164),'Timing and Operations'!$F$19,IF(AND('Time SA'!AP$1>='Timing and Operations'!$F$5,'Time SA'!AP$2<='Timing and Operations'!$G$164),'Timing and Operations'!$F$19,0))) -> 0.02 | AS53: =IF(AND('Time SA'!AQ$1<'Timing and Operations'!$F$5,'Time SA'!AQ$2>'Timing and Operations'!$F$5),'Timing and Operations'!$F$19,IF(AND('Time SA'!AQ$1<'Timing and Operations'!$G$164,'Time SA'!AQ$2>'Timing and Operations'!$G$164),'Timing and Operations'!$F$19,IF(AND('Time SA'!AQ$1>='Timing and Operations'!$F$5,'Time SA'!AQ$2<='Timing and Operations'!$G$164),'Timing and Operations'!$F$19,0))) -> 0.02 | AT53: =IF(AND('Time SA'!AR$1<'Timing and Operations'!$F$5,'Time SA'!AR$2>'Timing and Operations'!$F$5),'Timing and Operations'!$F$19,IF(AND('Time SA'!AR$1<'Timing and Operations'!$G$164,'Time SA'!AR$2>'Timing and Operations'!$G$164),'Timing and Operations'!$F$19,IF(AND('Time SA'!AR$1>='Timing and Operations'!$F$5,'Time SA'!AR$2<='Timing and Operations'!$G$164),'Timing and Operations'!$F$19,0))) -> 0.02 | AU53: =IF(AND('Time SA'!AS$1<'Timing and Operations'!$F$5,'Time SA'!AS$2>'Timing and Operations'!$F$5),'Timing and Operations'!$F$19,IF(AND('Time SA'!AS$1<'Timing and Operations'!$G$164,'Time SA'!AS$2>'Timing and Operations'!$G$164),'Timing and Operations'!$F$19,IF(AND('Time SA'!AS$1>='Timing and Operations'!$F$5,'Time SA'!AS$2<='Timing and Operations'!$G$164),'Timing and Operations'!$F$19,0))) -> 0.02 | AV53: =IF(AND('Time SA'!AT$1<'Timing and Operations'!$F$5,'Time SA'!AT$2>'Timing and Operations'!$F$5),'Timing and Operations'!$F$19,IF(AND('Time SA'!AT$1<'Timing and Operations'!$G$164,'Time SA'!AT$2>'Timing and Operations'!$G$164),'Timing and Operations'!$F$19,IF(AND('Time SA'!AT$1>='Timing and Operations'!$F$5,'Time SA'!AT$2<='Timing and Operations'!$G$164),'Timing and Operations'!$F$19,0))) -> 0.02 | AW53: =IF(AND('Time SA'!AU$1<'Timing and Operations'!$F$5,'Time SA'!AU$2>'Timing and Operations'!$F$5),'Timing and Operations'!$F$19,IF(AND('Time SA'!AU$1<'Timing and Operations'!$G$164,'Time SA'!AU$2>'Timing and Operations'!$G$164),'Timing and Operations'!$F$19,IF(AND('Time SA'!AU$1>='Timing and Operations'!$F$5,'Time SA'!AU$2<='Timing and Operations'!$G$164),'Timing and Operations'!$F$19,0))) -> 0.02 | AX53: =IF(AND('Time SA'!AV$1<'Timing and Operations'!$F$5,'Time SA'!AV$2>'Timing and Operations'!$F$5),'Timing and Operations'!$F$19,IF(AND('Time SA'!AV$1<'Timing and Operations'!$G$164,'Time SA'!AV$2>'Timing and Operations'!$G$164),'Timing and Operations'!$F$19,IF(AND('Time SA'!AV$1>='Timing and Operations'!$F$5,'Time SA'!AV$2<='Timing and Operations'!$G$164),'Timing and Operations'!$F$19,0))) -> 0.02 | AY53: =IF(AND('Time SA'!AW$1<'Timing and Operations'!$F$5,'Time SA'!AW$2>'Timing and Operations'!$F$5),'Timing and Operations'!$F$19,IF(AND('Time SA'!AW$1<'Timing and Operations'!$G$164,'Time SA'!AW$2>'Timing and Operations'!$G$164),'Timing and Operations'!$F$19,IF(AND('Time SA'!AW$1>='Timing and Operations'!$F$5,'Time SA'!AW$2<='Timing and Operations'!$G$164),'Timing and Operations'!$F$19,0))) -> 0.02 | AZ53: =IF(AND('Time SA'!AX$1<'Timing and Operations'!$F$5,'Time SA'!AX$2>'Timing and Operations'!$F$5),'Timing and Operations'!$F$19,IF(AND('Time SA'!AX$1<'Timing and Operations'!$G$164,'Time SA'!AX$2>'Timing and Operations'!$G$164),'Timing and Operations'!$F$19,IF(AND('Time SA'!AX$1>='Timing and Operations'!$F$5,'Time SA'!AX$2<='Timing and Operations'!$G$164),'Timing and Operations'!$F$19,0))) -> 0.02 | BA53: =IF(AND('Time SA'!AY$1<'Timing and Operations'!$F$5,'Time SA'!AY$2>'Timing and Operations'!$F$5),'Timing and Operations'!$F$19,IF(AND('Time SA'!AY$1<'Timing and Operations'!$G$164,'Time SA'!AY$2>'Timing and Operations'!$G$164),'Timing and Operations'!$F$19,IF(AND('Time SA'!AY$1>='Timing and Operations'!$F$5,'Time SA'!AY$2<='Timing and Operations'!$G$164),'Timing and Operations'!$F$19,0))) -> 0.02 | BB53: =IF(AND('Time SA'!AZ$1<'Timing and Operations'!$F$5,'Time SA'!AZ$2>'Timing and Operations'!$F$5),'Timing and Operations'!$F$19,IF(AND('Time SA'!AZ$1<'Timing and Operations'!$G$164,'Time SA'!AZ$2>'Timing and Operations'!$G$164),'Timing and Operations'!$F$19,IF(AND('Time SA'!AZ$1>='Timing and Operations'!$F$5,'Time SA'!AZ$2<='Timing and Operations'!$G$164),'Timing and Operations'!$F$19,0))) -> 0.02 | BC53: =IF(AND('Time SA'!BA$1<'Timing and Operations'!$F$5,'Time SA'!BA$2>'Timing and Operations'!$F$5),'Timing and Operations'!$F$19,IF(AND('Time SA'!BA$1<'Timing and Operations'!$G$164,'Time SA'!BA$2>'Timing and Operations'!$G$164),'Timing and Operations'!$F$19,IF(AND('Time SA'!BA$1>='Timing and Operations'!$F$5,'Time SA'!BA$2<='Timing and Operations'!$G$164),'Timing and Operations'!$F$19,0))) -> 0.02 | BD53: =IF(AND('Time SA'!BB$1<'Timing and Operations'!$F$5,'Time SA'!BB$2>'Timing and Operations'!$F$5),'Timing and Operations'!$F$19,IF(AND('Time SA'!BB$1<'Timing and Operations'!$G$164,'Time SA'!BB$2>'Timing and Operations'!$G$164),'Timing and Operations'!$F$19,IF(AND('Time SA'!BB$1>='Timing and Operations'!$F$5,'Time SA'!BB$2<='Timing and Operations'!$G$164),'Timing and Operations'!$F$19,0))) -> 0.02 | BE53: =IF(AND('Time SA'!BC$1<'Timing and Operations'!$F$5,'Time SA'!BC$2>'Timing and Operations'!$F$5),'Timing and Operations'!$F$19,IF(AND('Time SA'!BC$1<'Timing and Operations'!$G$164,'Time SA'!BC$2>'Timing and Operations'!$G$164),'Timing and Operations'!$F$19,IF(AND('Time SA'!BC$1>='Timing and Operations'!$F$5,'Time SA'!BC$2<='Timing and Operations'!$G$164),'Timing and Operations'!$F$19,0))) -> 0.02 | BF53: =IF(AND('Time SA'!BD$1<'Timing and Operations'!$F$5,'Time SA'!BD$2>'Timing and Operations'!$F$5),'Timing and Operations'!$F$19,IF(AND('Time SA'!BD$1<'Timing and Operations'!$G$164,'Time SA'!BD$2>'Timing and Operations'!$G$164),'Timing and Operations'!$F$19,IF(AND('Time SA'!BD$1>='Timing and Operations'!$F$5,'Time SA'!BD$2<='Timing and Operations'!$G$164),'Timing and Operations'!$F$19,0))) -> 0.02 | BG53: =IF(AND('Time SA'!BE$1<'Timing and Operations'!$F$5,'Time SA'!BE$2>'Timing and Operations'!$F$5),'Timing and Operations'!$F$19,IF(AND('Time SA'!BE$1<'Timing and Operations'!$G$164,'Time SA'!BE$2>'Timing and Operations'!$G$164),'Timing and Operations'!$F$19,IF(AND('Time SA'!BE$1>='Timing and Operations'!$F$5,'Time SA'!BE$2<='Timing and Operations'!$G$164),'Timing and Operations'!$F$19,0))) -> 0.02 | BH53: =IF(AND('Time SA'!BF$1<'Timing and Operations'!$F$5,'Time SA'!BF$2>'Timing and Operations'!$F$5),'Timing and Operations'!$F$19,IF(AND('Time SA'!BF$1<'Timing and Operations'!$G$164,'Time SA'!BF$2>'Timing and Operations'!$G$164),'Timing and Operations'!$F$19,IF(AND('Time SA'!BF$1>='Timing and Operations'!$F$5,'Time SA'!BF$2<='Timing and Operations'!$G$164),'Timing and Operations'!$F$19,0))) -> 0.02 | BI53: =IF(AND('Time SA'!BG$1<'Timing and Operations'!$F$5,'Time SA'!BG$2>'Timing and Operations'!$F$5),'Timing and Operations'!$F$19,IF(AND('Time SA'!BG$1<'Timing and Operations'!$G$164,'Time SA'!BG$2>'Timing and Operations'!$G$164),'Timing and Operations'!$F$19,IF(AND('Time SA'!BG$1>='Timing and Operations'!$F$5,'Time SA'!BG$2<='Timing and Operations'!$G$164),'Timing and Operations'!$F$19,0))) -> 0.02 | BJ53: =IF(AND('Time SA'!BH$1<'Timing and Operations'!$F$5,'Time SA'!BH$2>'Timing and Operations'!$F$5),'Timing and Operations'!$F$19,IF(AND('Time SA'!BH$1<'Timing and Operations'!$G$164,'Time SA'!BH$2>'Timing and Operations'!$G$164),'Timing and Operations'!$F$19,IF(AND('Time SA'!BH$1>='Timing and Operations'!$F$5,'Time SA'!BH$2<='Timing and Operations'!$G$164),'Timing and Operations'!$F$19,0))) -> 0.02 | BK53: =IF(AND('Time SA'!BI$1<'Timing and Operations'!$F$5,'Time SA'!BI$2>'Timing and Operations'!$F$5),'Timing and Operations'!$F$19,IF(AND('Time SA'!BI$1<'Timing and Operations'!$G$164,'Time SA'!BI$2>'Timing and Operations'!$G$164),'Timing and Operations'!$F$19,IF(AND('Time SA'!BI$1>='Timing and Operations'!$F$5,'Time SA'!BI$2<='Timing and Operations'!$G$164),'Timing and Operations'!$F$19,0))) -> 0.02 | BL53: =IF(AND('Time SA'!BJ$1<'Timing and Operations'!$F$5,'Time SA'!BJ$2>'Timing and Operations'!$F$5),'Timing and Operations'!$F$19,IF(AND('Time SA'!BJ$1<'Timing and Operations'!$G$164,'Time SA'!BJ$2>'Timing and Operations'!$G$164),'Timing and Operations'!$F$19,IF(AND('Time SA'!BJ$1>='Timing and Operations'!$F$5,'Time SA'!BJ$2<='Timing and Operations'!$G$164),'Timing and Operations'!$F$19,0))) -> 0.02 | BM53: =IF(AND('Time SA'!BK$1<'Timing and Operations'!$F$5,'Time SA'!BK$2>'Timing and Operations'!$F$5),'Timing and Operations'!$F$19,IF(AND('Time SA'!BK$1<'Timing and Operations'!$G$164,'Time SA'!BK$2>'Timing and Operations'!$G$164),'Timing and Operations'!$F$19,IF(AND('Time SA'!BK$1>='Timing and Operations'!$F$5,'Time SA'!BK$2<='Timing and Operations'!$G$164),'Timing and Operations'!$F$19,0))) -> 0 | BN53: =IF(AND('Time SA'!BL$1<'Timing and Operations'!$F$5,'Time SA'!BL$2>'Timing and Operations'!$F$5),'Timing and Operations'!$F$19,IF(AND('Time SA'!BL$1<'Timing and Operations'!$G$164,'Time SA'!BL$2>'Timing and Operations'!$G$164),'Timing and Operations'!$F$19,IF(AND('Time SA'!BL$1>='Timing and Operations'!$F$5,'Time SA'!BL$2<='Timing and Operations'!$G$164),'Timing and Operations'!$F$19,0))) -> 0 | BO53: =IF(AND('Time SA'!BM$1<'Timing and Operations'!$F$5,'Time SA'!BM$2>'Timing and Operations'!$F$5),'Timing and Operations'!$F$19,IF(AND('Time SA'!BM$1<'Timing and Operations'!$G$164,'Time SA'!BM$2>'Timing and Operations'!$G$164),'Timing and Operations'!$F$19,IF(AND('Time SA'!BM$1>='Timing and Operations'!$F$5,'Time SA'!BM$2<='Timing and Operations'!$G$164),'Timing and Operations'!$F$19,0))) -> 0 | BP53: =IF(AND('Time SA'!BN$1<'Timing and Operations'!$F$5,'Time SA'!BN$2>'Timing and Operations'!$F$5),'Timing and Operations'!$F$19,IF(AND('Time SA'!BN$1<'Timing and Operations'!$G$164,'Time SA'!BN$2>'Timing and Operations'!$G$164),'Timing and Operations'!$F$19,IF(AND('Time SA'!BN$1>='Timing and Operations'!$F$5,'Time SA'!BN$2<='Timing and Operations'!$G$164),'Timing and Operations'!$F$19,0))) -> 0 | BQ53: =IF(AND('Time SA'!BO$1<'Timing and Operations'!$F$5,'Time SA'!BO$2>'Timing and Operations'!$F$5),'Timing and Operations'!$F$19,IF(AND('Time SA'!BO$1<'Timing and Operations'!$G$164,'Time SA'!BO$2>'Timing and Operations'!$G$164),'Timing and Operations'!$F$19,IF(AND('Time SA'!BO$1>='Timing and Operations'!$F$5,'Time SA'!BO$2<='Timing and Operations'!$G$164),'Timing and Operations'!$F$19,0))) -> 0
E54: TUoS trigger | J54: =IF(AND('Time SA'!H$1<'Timing and Operations'!$F$5,'Time SA'!H$2>'Timing and Operations'!$F$5),'Timing and Operations'!$G$167,IF(AND('Time SA'!H$1<'Timing and Operations'!$G$164,'Time SA'!H$2>'Timing and Operations'!$G$164),'Timing and Operations'!$G$167,IF(AND('Time SA'!H$1>='Timing and Operations'!$F$5,'Time SA'!H$2<='Timing and Operations'!$G$164),'Timing and Operations'!$G$167,0))) -> 0 | K54: =IF(AND('Time SA'!I$1<'Timing and Operations'!$F$5,'Time SA'!I$2>'Timing and Operations'!$F$5),'Timing and Operations'!$G$167,IF(AND('Time SA'!I$1<'Timing and Operations'!$G$164,'Time SA'!I$2>'Timing and Operations'!$G$164),'Timing and Operations'!$G$167,IF(AND('Time SA'!I$1>='Timing and Operations'!$F$5,'Time SA'!I$2<='Timing and Operations'!$G$164),'Timing and Operations'!$G$167,0))) -> 0 | L54: =IF(AND('Time SA'!J$1<'Timing and Operations'!$F$5,'Time SA'!J$2>'Timing and Operations'!$F$5),'Timing and Operations'!$G$167,IF(AND('Time SA'!J$1<'Timing and Operations'!$G$164,'Time SA'!J$2>'Timing and Operations'!$G$164),'Timing and Operations'!$G$167,IF(AND('Time SA'!J$1>='Timing and Operations'!$F$5,'Time SA'!J$2<='Timing and Operations'!$G$164),'Timing and Operations'!$G$167,0))) -> 0 | M54: =IF(AND('Time SA'!K$1<'Timing and Operations'!$F$5,'Time SA'!K$2>'Timing and Operations'!$F$5),'Timing and Operations'!$G$167,IF(AND('Time SA'!K$1<'Timing and Operations'!$G$164,'Time SA'!K$2>'Timing and Operations'!$G$164),'Timing and Operations'!$G$167,IF(AND('Time SA'!K$1>='Timing and Operations'!$F$5,'Time SA'!K$2<='Timing and Operations'!$G$164),'Timing and Operations'!$G$167,0))) -> 0 | N54: =IF(AND('Time SA'!L$1<'Timing and Operations'!$F$5,'Time SA'!L$2>'Timing and Operations'!$F$5),'Timing and Operations'!$G$167,IF(AND('Time SA'!L$1<'Timing and Operations'!$G$164,'Time SA'!L$2>'Timing and Operations'!$G$164),'Timing and Operations'!$G$167,IF(AND('Time SA'!L$1>='Timing and Operations'!$F$5,'Time SA'!L$2<='Timing and Operations'!$G$164),'Timing and Operations'!$G$167,0))) -> 0 | O54: =IF(AND('Time SA'!M$1<'Timing and Operations'!$F$5,'Time SA'!M$2>'Timing and Operations'!$F$5),'Timing and Operations'!$G$167,IF(AND('Time SA'!M$1<'Timing and Operations'!$G$164,'Time SA'!M$2>'Timing and Operations'!$G$164),'Timing and Operations'!$G$167,IF(AND('Time SA'!M$1>='Timing and Operations'!$F$5,'Time SA'!M$2<='Timing and Operations'!$G$164),'Timing and Operations'!$G$167,0))) -> 0 | P54: =IF(AND('Time SA'!N$1<'Timing and Operations'!$F$5,'Time SA'!N$2>'Timing and Operations'!$F$5),'Timing and Operations'!$G$167,IF(AND('Time SA'!N$1<'Timing and Operations'!$G$164,'Time SA'!N$2>'Timing and Operations'!$G$164),'Timing and Operations'!$G$167,IF(AND('Time SA'!N$1>='Timing and Operations'!$F$5,'Time SA'!N$2<='Timing and Operations'!$G$164),'Timing and Operations'!$G$167,0))) -> 0 | Q54: =IF(AND('Time SA'!O$1<'Timing and Operations'!$F$5,'Time SA'!O$2>'Timing and Operations'!$F$5),'Timing and Operations'!$G$167,IF(AND('Time SA'!O$1<'Timing and Operations'!$G$164,'Time SA'!O$2>'Timing and Operations'!$G$164),'Timing and Operations'!$G$167,IF(AND('Time SA'!O$1>='Timing and Operations'!$F$5,'Time SA'!O$2<='Timing and Operations'!$G$164),'Timing and Operations'!$G$167,0))) -> 0 | R54: =IF(AND('Time SA'!P$1<'Timing and Operations'!$F$5,'Time SA'!P$2>'Timing and Operations'!$F$5),'Timing and Operations'!$G$167,IF(AND('Time SA'!P$1<'Timing and Operations'!$G$164,'Time SA'!P$2>'Timing and Operations'!$G$164),'Timing and Operations'!$G$167,IF(AND('Time SA'!P$1>='Timing and Operations'!$F$5,'Time SA'!P$2<='Timing and Operations'!$G$164),'Timing and Operations'!$G$167,0))) -> 0 | S54: =IF(AND('Time SA'!Q$1<'Timing and Operations'!$F$5,'Time SA'!Q$2>'Timing and Operations'!$F$5),'Timing and Operations'!$G$167,IF(AND('Time SA'!Q$1<'Timing and Operations'!$G$164,'Time SA'!Q$2>'Timing and Operations'!$G$164),'Timing and Operations'!$G$167,IF(AND('Time SA'!Q$1>='Timing and Operations'!$F$5,'Time SA'!Q$2<='Timing and Operations'!$G$164),'Timing and Operations'!$G$167,0))) -> 0 | T54: =IF(AND('Time SA'!R$1<'Timing and Operations'!$F$5,'Time SA'!R$2>'Timing and Operations'!$F$5),'Timing and Operations'!$G$167,IF(AND('Time SA'!R$1<'Timing and Operations'!$G$164,'Time SA'!R$2>'Timing and Operations'!$G$164),'Timing and Operations'!$G$167,IF(AND('Time SA'!R$1>='Timing and Operations'!$F$5,'Time SA'!R$2<='Timing and Operations'!$G$164),'Timing and Operations'!$G$167,0))) -> 0 | U54: =IF(AND('Time SA'!S$1<'Timing and Operations'!$F$5,'Time SA'!S$2>'Timing and Operations'!$F$5),'Timing and Operations'!$G$167,IF(AND('Time SA'!S$1<'Timing and Operations'!$G$164,'Time SA'!S$2>'Timing and Operations'!$G$164),'Timing and Operations'!$G$167,IF(AND('Time SA'!S$1>='Timing and Operations'!$F$5,'Time SA'!S$2<='Timing and Operations'!$G$164),'Timing and Operations'!$G$167,0))) -> 0 | V54: =IF(AND('Time SA'!T$1<'Timing and Operations'!$F$5,'Time SA'!T$2>'Timing and Operations'!$F$5),'Timing and Operations'!$G$167,IF(AND('Time SA'!T$1<'Timing and Operations'!$G$164,'Time SA'!T$2>'Timing and Operations'!$G$164),'Timing and Operations'!$G$167,IF(AND('Time SA'!T$1>='Timing and Operations'!$F$5,'Time SA'!T$2<='Timing and Operations'!$G$164),'Timing and Operations'!$G$167,0))) -> 0 | W54: =IF(AND('Time SA'!U$1<'Timing and Operations'!$F$5,'Time SA'!U$2>'Timing and Operations'!$F$5),'Timing and Operations'!$G$167,IF(AND('Time SA'!U$1<'Timing and Operations'!$G$164,'Time SA'!U$2>'Timing and Operations'!$G$164),'Timing and Operations'!$G$167,IF(AND('Time SA'!U$1>='Timing and Operations'!$F$5,'Time SA'!U$2<='Timing and Operations'!$G$164),'Timing and Operations'!$G$167,0))) -> 0 | X54: =IF(AND('Time SA'!V$1<'Timing and Operations'!$F$5,'Time SA'!V$2>'Timing and Operations'!$F$5),'Timing and Operations'!$G$167,IF(AND('Time SA'!V$1<'Timing and Operations'!$G$164,'Time SA'!V$2>'Timing and Operations'!$G$164),'Timing and Operations'!$G$167,IF(AND('Time SA'!V$1>='Timing and Operations'!$F$5,'Time SA'!V$2<='Timing and Operations'!$G$164),'Timing and Operations'!$G$167,0))) -> 0 | Y54: =IF(AND('Time SA'!W$1<'Timing and Operations'!$F$5,'Time SA'!W$2>'Timing and Operations'!$F$5),'Timing and Operations'!$G$167,IF(AND('Time SA'!W$1<'Timing and Operations'!$G$164,'Time SA'!W$2>'Timing and Operations'!$G$164),'Timing and Operations'!$G$167,IF(AND('Time SA'!W$1>='Timing and Operations'!$F$5,'Time SA'!W$2<='Timing and Operations'!$G$164),'Timing and Operations'!$G$167,0))) -> 0 | Z54: =IF(AND('Time SA'!X$1<'Timing and Operations'!$F$5,'Time SA'!X$2>'Timing and Operations'!$F$5),'Timing and Operations'!$G$167,IF(AND('Time SA'!X$1<'Timing and Operations'!$G$164,'Time SA'!X$2>'Timing and Operations'!$G$164),'Timing and Operations'!$G$167,IF(AND('Time SA'!X$1>='Timing and Operations'!$F$5,'Time SA'!X$2<='Timing and Operations'!$G$164),'Timing and Operations'!$G$167,0))) -> 0 | AA54: =IF(AND('Time SA'!Y$1<'Timing and Operations'!$F$5,'Time SA'!Y$2>'Timing and Operations'!$F$5),'Timing and Operations'!$G$167,IF(AND('Time SA'!Y$1<'Timing and Operations'!$G$164,'Time SA'!Y$2>'Timing and Operations'!$G$164),'Timing and Operations'!$G$167,IF(AND('Time SA'!Y$1>='Timing and Operations'!$F$5,'Time SA'!Y$2<='Timing and Operations'!$G$164),'Timing and Operations'!$G$167,0))) -> 0 | AB54: =IF(AND('Time SA'!Z$1<'Timing and Operations'!$F$5,'Time SA'!Z$2>'Timing and Operations'!$F$5),'Timing and Operations'!$G$167,IF(AND('Time SA'!Z$1<'Timing and Operations'!$G$164,'Time SA'!Z$2>'Timing and Operations'!$G$164),'Timing and Operations'!$G$167,IF(AND('Time SA'!Z$1>='Timing and Operations'!$F$5,'Time SA'!Z$2<='Timing and Operations'!$G$164),'Timing and Operations'!$G$167,0))) -> 0 | AC54: =IF(AND('Time SA'!AA$1<'Timing and Operations'!$F$5,'Time SA'!AA$2>'Timing and Operations'!$F$5),'Timing and Operations'!$G$167,IF(AND('Time SA'!AA$1<'Timing and Operations'!$G$164,'Time SA'!AA$2>'Timing and Operations'!$G$164),'Timing and Operations'!$G$167,IF(AND('Time SA'!AA$1>='Timing and Operations'!$F$5,'Time SA'!AA$2<='Timing and Operations'!$G$164),'Timing and Operations'!$G$167,0))) -> 0 | AD54: =IF(AND('Time SA'!AB$1<'Timing and Operations'!$F$5,'Time SA'!AB$2>'Timing and Operations'!$F$5),'Timing and Operations'!$G$167,IF(AND('Time SA'!AB$1<'Timing and Operations'!$G$164,'Time SA'!AB$2>'Timing and Operations'!$G$164),'Timing and Operations'!$G$167,IF(AND('Time SA'!AB$1>='Timing and Operations'!$F$5,'Time SA'!AB$2<='Timing and Operations'!$G$164),'Timing and Operations'!$G$167,0))) -> 0 | AE54: =IF(AND('Time SA'!AC$1<'Timing and Operations'!$F$5,'Time SA'!AC$2>'Timing and Operations'!$F$5),'Timing and Operations'!$G$167,IF(AND('Time SA'!AC$1<'Timing and Operations'!$G$164,'Time SA'!AC$2>'Timing and Operations'!$G$164),'Timing and Operations'!$G$167,IF(AND('Time SA'!AC$1>='Timing and Operations'!$F$5,'Time SA'!AC$2<='Timing and Operations'!$G$164),'Timing and Operations'!$G$167,0))) -> 0 | AF54: =IF(AND('Time SA'!AD$1<'Timing and Operations'!$F$5,'Time SA'!AD$2>'Timing and Operations'!$F$5),'Timing and Operations'!$G$167,IF(AND('Time SA'!AD$1<'Timing and Operations'!$G$164,'Time SA'!AD$2>'Timing and Operations'!$G$164),'Timing and Operations'!$G$167,IF(AND('Time SA'!AD$1>='Timing and Operations'!$F$5,'Time SA'!AD$2<='Timing and Operations'!$G$164),'Timing and Operations'!$G$167,0))) -> 0 | AG54: =IF(AND('Time SA'!AE$1<'Timing and Operations'!$F$5,'Time SA'!AE$2>'Timing and Operations'!$F$5),'Timing and Operations'!$G$167,IF(AND('Time SA'!AE$1<'Timing and Operations'!$G$164,'Time SA'!AE$2>'Timing and Operations'!$G$164),'Timing and Operations'!$G$167,IF(AND('Time SA'!AE$1>='Timing and Operations'!$F$5,'Time SA'!AE$2<='Timing and Operations'!$G$164),'Timing and Operations'!$G$167,0))) -> 0 | AH54: =IF(AND('Time SA'!AF$1<'Timing and Operations'!$F$5,'Time SA'!AF$2>'Timing and Operations'!$F$5),'Timing and Operations'!$G$167,IF(AND('Time SA'!AF$1<'Timing and Operations'!$G$164,'Time SA'!AF$2>'Timing and Operations'!$G$164),'Timing and Operations'!$G$167,IF(AND('Time SA'!AF$1>='Timing and Operations'!$F$5,'Time SA'!AF$2<='Timing and Operations'!$G$164),'Timing and Operations'!$G$167,0))) -> 0 | AI54: =IF(AND('Time SA'!AG$1<'Timing and Operations'!$F$5,'Time SA'!AG$2>'Timing and Operations'!$F$5),'Timing and Operations'!$G$167,IF(AND('Time SA'!AG$1<'Timing and Operations'!$G$164,'Time SA'!AG$2>'Timing and Operations'!$G$164),'Timing and Operations'!$G$167,IF(AND('Time SA'!AG$1>='Timing and Operations'!$F$5,'Time SA'!AG$2<='Timing and Operations'!$G$164),'Timing and Operations'!$G$167,0))) -> 0 | AJ54: =IF(AND('Time SA'!AH$1<'Timing and Operations'!$F$5,'Time SA'!AH$2>'Timing and Operations'!$F$5),'Timing and Operations'!$G$167,IF(AND('Time SA'!AH$1<'Timing and Operations'!$G$164,'Time SA'!AH$2>'Timing and Operations'!$G$164),'Timing and Operations'!$G$167,IF(AND('Time SA'!AH$1>='Timing and Operations'!$F$5,'Time SA'!AH$2<='Timing and Operations'!$G$164),'Timing and Operations'!$G$167,0))) -> 0 | AK54: =IF(AND('Time SA'!AI$1<'Timing and Operations'!$F$5,'Time SA'!AI$2>'Timing and Operations'!$F$5),'Timing and Operations'!$G$167,IF(AND('Time SA'!AI$1<'Timing and Operations'!$G$164,'Time SA'!AI$2>'Timing and Operations'!$G$164),'Timing and Operations'!$G$167,IF(AND('Time SA'!AI$1>='Timing and Operations'!$F$5,'Time SA'!AI$2<='Timing and Operations'!$G$164),'Timing and Operations'!$G$167,0))) -> 0 | AL54: =IF(AND('Time SA'!AJ$1<'Timing and Operations'!$F$5,'Time SA'!AJ$2>'Timing and Operations'!$F$5),'Timing and Operations'!$G$167,IF(AND('Time SA'!AJ$1<'Timing and Operations'!$G$164,'Time SA'!AJ$2>'Timing and Operations'!$G$164),'Timing and Operations'!$G$167,IF(AND('Time SA'!AJ$1>='Timing and Operations'!$F$5,'Time SA'!AJ$2<='Timing and Operations'!$G$164),'Timing and Operations'!$G$167,0))) -> 0 | AM54: =IF(AND('Time SA'!AK$1<'Timing and Operations'!$F$5,'Time SA'!AK$2>'Timing and Operations'!$F$5),'Timing and Operations'!$G$167,IF(AND('Time SA'!AK$1<'Timing and Operations'!$G$164,'Time SA'!AK$2>'Timing and Operations'!$G$164),'Timing and Operations'!$G$167,IF(AND('Time SA'!AK$1>='Timing and Operations'!$F$5,'Time SA'!AK$2<='Timing and Operations'!$G$164),'Timing and Operations'!$G$167,0))) -> 0 | AN54: =IF(AND('Time SA'!AL$1<'Timing and Operations'!$F$5,'Time SA'!AL$2>'Timing and Operations'!$F$5),'Timing and Operations'!$G$167,IF(AND('Time SA'!AL$1<'Timing and Operations'!$G$164,'Time SA'!AL$2>'Timing and Operations'!$G$164),'Timing and Operations'!$G$167,IF(AND('Time SA'!AL$1>='Timing and Operations'!$F$5,'Time SA'!AL$2<='Timing and Operations'!$G$164),'Timing and Operations'!$G$167,0))) -> 0 | AO54: =IF(AND('Time SA'!AM$1<'Timing and Operations'!$F$5,'Time SA'!AM$2>'Timing and Operations'!$F$5),'Timing and Operations'!$G$167,IF(AND('Time SA'!AM$1<'Timing and Operations'!$G$164,'Time SA'!AM$2>'Timing and Operations'!$G$164),'Timing and Operations'!$G$167,IF(AND('Time SA'!AM$1>='Timing and Operations'!$F$5,'Time SA'!AM$2<='Timing and Operations'!$G$164),'Timing and Operations'!$G$167,0))) -> 0 | AP54: =IF(AND('Time SA'!AN$1<'Timing and Operations'!$F$5,'Time SA'!AN$2>'Timing and Operations'!$F$5),'Timing and Operations'!$G$167,IF(AND('Time SA'!AN$1<'Timing and Operations'!$G$164,'Time SA'!AN$2>'Timing and Operations'!$G$164),'Timing and Operations'!$G$167,IF(AND('Time SA'!AN$1>='Timing and Operations'!$F$5,'Time SA'!AN$2<='Timing and Operations'!$G$164),'Timing and Operations'!$G$167,0))) -> 0 | AQ54: =IF(AND('Time SA'!AO$1<'Timing and Operations'!$F$5,'Time SA'!AO$2>'Timing and Operations'!$F$5),'Timing and Operations'!$G$167,IF(AND('Time SA'!AO$1<'Timing and Operations'!$G$164,'Time SA'!AO$2>'Timing and Operations'!$G$164),'Timing and Operations'!$G$167,IF(AND('Time SA'!AO$1>='Timing and Operations'!$F$5,'Time SA'!AO$2<='Timing and Operations'!$G$164),'Timing and Operations'!$G$167,0))) -> 0 | AR54: =IF(AND('Time SA'!AP$1<'Timing and Operations'!$F$5,'Time SA'!AP$2>'Timing and Operations'!$F$5),'Timing and Operations'!$G$167,IF(AND('Time SA'!AP$1<'Timing and Operations'!$G$164,'Time SA'!AP$2>'Timing and Operations'!$G$164),'Timing and Operations'!$G$167,IF(AND('Time SA'!AP$1>='Timing and Operations'!$F$5,'Time SA'!AP$2<='Timing and Operations'!$G$164),'Timing and Operations'!$G$167,0))) -> 0 | AS54: =IF(AND('Time SA'!AQ$1<'Timing and Operations'!$F$5,'Time SA'!AQ$2>'Timing and Operations'!$F$5),'Timing and Operations'!$G$167,IF(AND('Time SA'!AQ$1<'Timing and Operations'!$G$164,'Time SA'!AQ$2>'Timing and Operations'!$G$164),'Timing and Operations'!$G$167,IF(AND('Time SA'!AQ$1>='Timing and Operations'!$F$5,'Time SA'!AQ$2<='Timing and Operations'!$G$164),'Timing and Operations'!$G$167,0))) -> 0 | AT54: =IF(AND('Time SA'!AR$1<'Timing and Operations'!$F$5,'Time SA'!AR$2>'Timing and Operations'!$F$5),'Timing and Operations'!$G$167,IF(AND('Time SA'!AR$1<'Timing and Operations'!$G$164,'Time SA'!AR$2>'Timing and Operations'!$G$164),'Timing and Operations'!$G$167,IF(AND('Time SA'!AR$1>='Timing and Operations'!$F$5,'Time SA'!AR$2<='Timing and Operations'!$G$164),'Timing and Operations'!$G$167,0))) -> 0 | AU54: =IF(AND('Time SA'!AS$1<'Timing and Operations'!$F$5,'Time SA'!AS$2>'Timing and Operations'!$F$5),'Timing and Operations'!$G$167,IF(AND('Time SA'!AS$1<'Timing and Operations'!$G$164,'Time SA'!AS$2>'Timing and Operations'!$G$164),'Timing and Operations'!$G$167,IF(AND('Time SA'!AS$1>='Timing and Operations'!$F$5,'Time SA'!AS$2<='Timing and Operations'!$G$164),'Timing and Operations'!$G$167,0))) -> 0 | AV54: =IF(AND('Time SA'!AT$1<'Timing and Operations'!$F$5,'Time SA'!AT$2>'Timing and Operations'!$F$5),'Timing and Operations'!$G$167,IF(AND('Time SA'!AT$1<'Timing and Operations'!$G$164,'Time SA'!AT$2>'Timing and Operations'!$G$164),'Timing and Operations'!$G$167,IF(AND('Time SA'!AT$1>='Timing and Operations'!$F$5,'Time SA'!AT$2<='Timing and Operations'!$G$164),'Timing and Operations'!$G$167,0))) -> 0 | AW54: =IF(AND('Time SA'!AU$1<'Timing and Operations'!$F$5,'Time SA'!AU$2>'Timing and Operations'!$F$5),'Timing and Operations'!$G$167,IF(AND('Time SA'!AU$1<'Timing and Operations'!$G$164,'Time SA'!AU$2>'Timing and Operations'!$G$164),'Timing and Operations'!$G$167,IF(AND('Time SA'!AU$1>='Timing and Operations'!$F$5,'Time SA'!AU$2<='Timing and Operations'!$G$164),'Timing and Operations'!$G$167,0))) -> 0 | AX54: =IF(AND('Time SA'!AV$1<'Timing and Operations'!$F$5,'Time SA'!AV$2>'Timing and Operations'!$F$5),'Timing and Operations'!$G$167,IF(AND('Time SA'!AV$1<'Timing and Operations'!$G$164,'Time SA'!AV$2>'Timing and Operations'!$G$164),'Timing and Operations'!$G$167,IF(AND('Time SA'!AV$1>='Timing and Operations'!$F$5,'Time SA'!AV$2<='Timing and Operations'!$G$164),'Timing and Operations'!$G$167,0))) -> 0 | AY54: =IF(AND('Time SA'!AW$1<'Timing and Operations'!$F$5,'Time SA'!AW$2>'Timing and Operations'!$F$5),'Timing and Operations'!$G$167,IF(AND('Time SA'!AW$1<'Timing and Operations'!$G$164,'Time SA'!AW$2>'Timing and Operations'!$G$164),'Timing and Operations'!$G$167,IF(AND('Time SA'!AW$1>='Timing and Operations'!$F$5,'Time SA'!AW$2<='Timing and Operations'!$G$164),'Timing and Operations'!$G$167,0))) -> 0 | AZ54: =IF(AND('Time SA'!AX$1<'Timing and Operations'!$F$5,'Time SA'!AX$2>'Timing and Operations'!$F$5),'Timing and Operations'!$G$167,IF(AND('Time SA'!AX$1<'Timing and Operations'!$G$164,'Time SA'!AX$2>'Timing and Operations'!$G$164),'Timing and Operations'!$G$167,IF(AND('Time SA'!AX$1>='Timing and Operations'!$F$5,'Time SA'!AX$2<='Timing and Operations'!$G$164),'Timing and Operations'!$G$167,0))) -> 0 | BA54: =IF(AND('Time SA'!AY$1<'Timing and Operations'!$F$5,'Time SA'!AY$2>'Timing and Operations'!$F$5),'Timing and Operations'!$G$167,IF(AND('Time SA'!AY$1<'Timing and Operations'!$G$164,'Time SA'!AY$2>'Timing and Operations'!$G$164),'Timing and Operations'!$G$167,IF(AND('Time SA'!AY$1>='Timing and Operations'!$F$5,'Time SA'!AY$2<='Timing and Operations'!$G$164),'Timing and Operations'!$G$167,0))) -> 0 | BB54: =IF(AND('Time SA'!AZ$1<'Timing and Operations'!$F$5,'Time SA'!AZ$2>'Timing and Operations'!$F$5),'Timing and Operations'!$G$167,IF(AND('Time SA'!AZ$1<'Timing and Operations'!$G$164,'Time SA'!AZ$2>'Timing and Operations'!$G$164),'Timing and Operations'!$G$167,IF(AND('Time SA'!AZ$1>='Timing and Operations'!$F$5,'Time SA'!AZ$2<='Timing and Operations'!$G$164),'Timing and Operations'!$G$167,0))) -> 0 | BC54: =IF(AND('Time SA'!BA$1<'Timing and Operations'!$F$5,'Time SA'!BA$2>'Timing and Operations'!$F$5),'Timing and Operations'!$G$167,IF(AND('Time SA'!BA$1<'Timing and Operations'!$G$164,'Time SA'!BA$2>'Timing and Operations'!$G$164),'Timing and Operations'!$G$167,IF(AND('Time SA'!BA$1>='Timing and Operations'!$F$5,'Time SA'!BA$2<='Timing and Operations'!$G$164),'Timing and Operations'!$G$167,0))) -> 0 | BD54: =IF(AND('Time SA'!BB$1<'Timing and Operations'!$F$5,'Time SA'!BB$2>'Timing and Operations'!$F$5),'Timing and Operations'!$G$167,IF(AND('Time SA'!BB$1<'Timing and Operations'!$G$164,'Time SA'!BB$2>'Timing and Operations'!$G$164),'Timing and Operations'!$G$167,IF(AND('Time SA'!BB$1>='Timing and Operations'!$F$5,'Time SA'!BB$2<='Timing and Operations'!$G$164),'Timing and Operations'!$G$167,0))) -> 0 | BE54: =IF(AND('Time SA'!BC$1<'Timing and Operations'!$F$5,'Time SA'!BC$2>'Timing and Operations'!$F$5),'Timing and Operations'!$G$167,IF(AND('Time SA'!BC$1<'Timing and Operations'!$G$164,'Time SA'!BC$2>'Timing and Operations'!$G$164),'Timing and Operations'!$G$167,IF(AND('Time SA'!BC$1>='Timing and Operations'!$F$5,'Time SA'!BC$2<='Timing and Operations'!$G$164),'Timing and Operations'!$G$167,0))) -> 0 | BF54: =IF(AND('Time SA'!BD$1<'Timing and Operations'!$F$5,'Time SA'!BD$2>'Timing and Operations'!$F$5),'Timing and Operations'!$G$167,IF(AND('Time SA'!BD$1<'Timing and Operations'!$G$164,'Time SA'!BD$2>'Timing and Operations'!$G$164),'Timing and Operations'!$G$167,IF(AND('Time SA'!BD$1>='Timing and Operations'!$F$5,'Time SA'!BD$2<='Timing and Operations'!$G$164),'Timing and Operations'!$G$167,0))) -> 0 | BG54: =IF(AND('Time SA'!BE$1<'Timing and Operations'!$F$5,'Time SA'!BE$2>'Timing and Operations'!$F$5),'Timing and Operations'!$G$167,IF(AND('Time SA'!BE$1<'Timing and Operations'!$G$164,'Time SA'!BE$2>'Timing and Operations'!$G$164),'Timing and Operations'!$G$167,IF(AND('Time SA'!BE$1>='Timing and Operations'!$F$5,'Time SA'!BE$2<='Timing and Operations'!$G$164),'Timing and Operations'!$G$167,0))) -> 0 | BH54: =IF(AND('Time SA'!BF$1<'Timing and Operations'!$F$5,'Time SA'!BF$2>'Timing and Operations'!$F$5),'Timing and Operations'!$G$167,IF(AND('Time SA'!BF$1<'Timing and Operations'!$G$164,'Time SA'!BF$2>'Timing and Operations'!$G$164),'Timing and Operations'!$G$167,IF(AND('Time SA'!BF$1>='Timing and Operations'!$F$5,'Time SA'!BF$2<='Timing and Operations'!$G$164),'Timing and Operations'!$G$167,0))) -> 0 | BI54: =IF(AND('Time SA'!BG$1<'Timing and Operations'!$F$5,'Time SA'!BG$2>'Timing and Operations'!$F$5),'Timing and Operations'!$G$167,IF(AND('Time SA'!BG$1<'Timing and Operations'!$G$164,'Time SA'!BG$2>'Timing and Operations'!$G$164),'Timing and Operations'!$G$167,IF(AND('Time SA'!BG$1>='Timing and Operations'!$F$5,'Time SA'!BG$2<='Timing and Operations'!$G$164),'Timing and Operations'!$G$167,0))) -> 0 | BJ54: =IF(AND('Time SA'!BH$1<'Timing and Operations'!$F$5,'Time SA'!BH$2>'Timing and Operations'!$F$5),'Timing and Operations'!$G$167,IF(AND('Time SA'!BH$1<'Timing and Operations'!$G$164,'Time SA'!BH$2>'Timing and Operations'!$G$164),'Timing and Operations'!$G$167,IF(AND('Time SA'!BH$1>='Timing and Operations'!$F$5,'Time SA'!BH$2<='Timing and Operations'!$G$164),'Timing and Operations'!$G$167,0))) -> 0 | BK54: =IF(AND('Time SA'!BI$1<'Timing and Operations'!$F$5,'Time SA'!BI$2>'Timing and Operations'!$F$5),'Timing and Operations'!$G$167,IF(AND('Time SA'!BI$1<'Timing and Operations'!$G$164,'Time SA'!BI$2>'Timing and Operations'!$G$164),'Timing and Operations'!$G$167,IF(AND('Time SA'!BI$1>='Timing and Operations'!$F$5,'Time SA'!BI$2<='Timing and Operations'!$G$164),'Timing and Operations'!$G$167,0))) -> 0 | BL54: =IF(AND('Time SA'!BJ$1<'Timing and Operations'!$F$5,'Time SA'!BJ$2>'Timing and Operations'!$F$5),'Timing and Operations'!$G$167,IF(AND('Time SA'!BJ$1<'Timing and Operations'!$G$164,'Time SA'!BJ$2>'Timing and Operations'!$G$164),'Timing and Operations'!$G$167,IF(AND('Time SA'!BJ$1>='Timing and Operations'!$F$5,'Time SA'!BJ$2<='Timing and Operations'!$G$164),'Timing and Operations'!$G$167,0))) -> 0 | BM54: =IF(AND('Time SA'!BK$1<'Timing and Operations'!$F$5,'Time SA'!BK$2>'Timing and Operations'!$F$5),'Timing and Operations'!$G$167,IF(AND('Time SA'!BK$1<'Timing and Operations'!$G$164,'Time SA'!BK$2>'Timing and Operations'!$G$164),'Timing and Operations'!$G$167,IF(AND('Time SA'!BK$1>='Timing and Operations'!$F$5,'Time SA'!BK$2<='Timing and Operations'!$G$164),'Timing and Operations'!$G$167,0))) -> 0 | BN54: =IF(AND('Time SA'!BL$1<'Timing and Operations'!$F$5,'Time SA'!BL$2>'Timing and Operations'!$F$5),'Timing and Operations'!$G$167,IF(AND('Time SA'!BL$1<'Timing and Operations'!$G$164,'Time SA'!BL$2>'Timing and Operations'!$G$164),'Timing and Operations'!$G$167,IF(AND('Time SA'!BL$1>='Timing and Operations'!$F$5,'Time SA'!BL$2<='Timing and Operations'!$G$164),'Timing and Operations'!$G$167,0))) -> 0 | BO54: =IF(AND('Time SA'!BM$1<'Timing and Operations'!$F$5,'Time SA'!BM$2>'Timing and Operations'!$F$5),'Timing and Operations'!$G$167,IF(AND('Time SA'!BM$1<'Timing and Operations'!$G$164,'Time SA'!BM$2>'Timing and Operations'!$G$164),'Timing and Operations'!$G$167,IF(AND('Time SA'!BM$1>='Timing and Operations'!$F$5,'Time SA'!BM$2<='Timing and Operations'!$G$164),'Timing and Operations'!$G$167,0))) -> 0 | BP54: =IF(AND('Time SA'!BN$1<'Timing and Operations'!$F$5,'Time SA'!BN$2>'Timing and Operations'!$F$5),'Timing and Operations'!$G$167,IF(AND('Time SA'!BN$1<'Timing and Operations'!$G$164,'Time SA'!BN$2>'Timing and Operations'!$G$164),'Timing and Operations'!$G$167,IF(AND('Time SA'!BN$1>='Timing and Operations'!$F$5,'Time SA'!BN$2<='Timing and Operations'!$G$164),'Timing and Operations'!$G$167,0))) -> 0 | BQ54: =IF(AND('Time SA'!BO$1<'Timing and Operations'!$F$5,'Time SA'!BO$2>'Timing and Operations'!$F$5),'Timing and Operations'!$G$167,IF(AND('Time SA'!BO$1<'Timing and Operations'!$G$164,'Time SA'!BO$2>'Timing and Operations'!$G$164),'Timing and Operations'!$G$167,IF(AND('Time SA'!BO$1>='Timing and Operations'!$F$5,'Time SA'!BO$2<='Timing and Operations'!$G$164),'Timing and Operations'!$G$167,0))) -> 0
E55: TLAF | F55: Not in Output Calculation | J55: =J$53 -> 0 | K55: 0 | L55: 0 | M55: 0 | N55: 0.02 | O55: 0.02 | P55: 0.02 | Q55: 0.02 | R55: 0.02 | S55: 0.02 | T55: 0.02 | U55: 0.02 | V55: 0.02 | W55: 0.02 | X55: 0.02 | Y55: 0.02 | Z55: 0.02 | AA55: 0.02 | AB55: 0.02 | AC55: 0.02 | AD55: 0.02 | AE55: 0.02 | AF55: 0.02 | AG55: 0.02 | AH55: 0.02 | AI55: 0.02 | AJ55: 0.02 | AK55: 0.02 | AL55: 0.02 | AM55: 0.02 | AN55: 0.02 | AO55: 0.02 | AP55: =AP$53 -> 0.02 | AQ55: 0.02 | AR55: 0.02 | AS55: 0.02 | AT55: 0.02 | AU55: 0.02 | AV55: 0.02 | AW55: 0.02 | AX55: 0.02 | AY55: 0.02 | AZ55: 0.02 | BA55: 0.02 | BB55: 0.02 | BC55: 0.02 | BD55: 0.02 | BE55: 0.02 | BF55: 0.02 | BG55: 0.02 | BH55: 0.02 | BI55: 0.02 | BJ55: 0.02 | BK55: 0.02 | BL55: 0.02 | BM55: 0 | BN55: 0 | BO55: 0 | BP55: 0 | BQ55: 0
D58: Price during Operations calc's
E59: PPA Price | H59: ='Timing and Operations'!F15 -> 91 | J59: =$H$59 -> 91 | K59: 91 | L59: 91 | M59: 91 | N59: 91 | O59: 91 | P59: 91 | Q59: 91 | R59: 91 | S59: 91 | T59: 91 | U59: 91 | V59: 91 | W59: 91 | X59: 91 | Y59: 91 | Z59: 91 | AA59: 91 | AB59: 91 | AC59: 91 | AD59: 91 | AE59: 91 | AF59: 91 | AG59: 91 | AH59: 91 | AI59: 91 | AJ59: 91 | AK59: 91 | AL59: 91 | AM59: 91 | AN59: 91 | AO59: 91 | AP59: =$H$59 -> 91 | AQ59: 91 | AR59: 91 | AS59: 91 | AT59: 91 | AU59: 91 | AV59: 91 | AW59: 91 | AX59: 91 | AY59: 91 | AZ59: 91 | BA59: 91 | BB59: 91 | BC59: 91 | BD59: 91 | BE59: 91 | BF59: 91 | BG59: 91 | BH59: 91 | BI59: 91 | BJ59: 91 | BK59: 91 | BL59: 91 | BM59: 91 | BN59: 91 | BO59: 91 | BP59: 91 | BQ59: 91
E60: Inflated Price | J60: =J$59*J$6*J$19 -> 91.93252199 | K60: 92.8746 | L60: 93.84537184 | M60: 94.82629067 | N60: 95.8372873 | O60: 96.85906274 | P60: 97.9123823 | Q60: 98.97715646 | R60: 100.0750292 | S60: 101.1850798 | T60: 102.3298779 | U60: 103.487628 | V60: 104.6818757 | W60: 105.889905 | X60: 107.1362903 | Y60: 108.3973463 | Z60: 109.6987331 | AA60: 111.015744 | AB60: 112.3751854 | AC60: 113.7512739 | AD60: 115.172027 | AE60: 116.6105253 | AF60: 118.0960664 | AG60: 119.6005323 | AH60: 121.1545745 | AI60: 122.7288094 | AJ60: 124.3553211 | AK60: 126.0033887 | AL60: 127.7066138 | AM60: 129.4328619 | AN60: 131.2173419 | AO60: 133.0264245 | AP60: =AP$59*AP$6*AP$19 -> 134.8970228 | AQ60: 136.7939252 | AR60: 138.7558533 | AS60: 140.7459198 | AT60: 142.8047659 | AU60: 144.893729 | AV60: 147.0554895 | AW60: 149.2495027 | AX60: 151.5206169 | AY60: 153.8262903 | AZ60: 156.2136772 | BA60: 158.6381164 | BB60: 161.100183 | BC60: 163.6004609 | BD60: 166.1395431 | BE60: 168.718032 | BF60: 171.336539 | BG60: 173.9956853 | BH60: 0 | BI60: 0 | BJ60: 0 | BK60: 0 | BL60: 0 | BM60: 0 | BN60: 0 | BO60: 0 | BP60: 0 | BQ60: 0
E61: Price after Discount | J61: =J289*J$291 -> 68.76721881 | K61: 69.4719105 | L61: 69.18054682 | M61: 69.90365654 | N61: 72.77146989 | O61: 73.54732762 | P61: 75.1806763 | Q61: 75.9982485 | R61: 78.33577839 | S61: 79.20469321 | T61: 80.79295804 | U61: 81.70704163 | V61: 83.98159278 | W61: 84.95074073 | X61: 88.10320454 | Y61: 89.1402301 | Z61: 91.30830282 | AA61: 92.40452357 | AB61: 94.35926105 | AC61: 95.51473583 | AD61: 97.44741323 | AE61: 98.66453113 | AF61: 100.1184358 | AG61: 101.3938786 | AH61: 104.2670036 | AI61: 105.621808 | AJ61: 108.7203273 | AK61: 110.1611861 | AL61: 112.5406969 | AM61: 114.0619428 | AN61: 117.5411891 | AO61: 119.1617196 | AP61: =AP289*AP$291 -> 124.1031294 | AQ61: 125.8482497 | AR61: 130.3011933 | AS61: 132.1700012 | AT61: 138.0630295 | AU61: 140.08263 | AV61: 145.3130237 | AW61: 147.48104 | AX61: 155.1527092 | AY61: 157.5136517 | AZ61: 181.3631953 | BA61: 184.1779555 | BB61: 187.0364009 | BC61: 189.9392093 | BD61: 192.8870695 | BE61: 195.8806804 | BF61: 198.9207523 | BG61: 202.0080061 | BH61: 0 | BI61: 0 | BJ61: 0 | BK61: 0 | BL61: 0 | BM61: 0 | BN61: 0 | BO61: 0 | BP61: 0 | BQ61: 0
E62: Price after Discount | J62: =J$289*J$292 -> 0 | K62: 0 | L62: 0 | M62: 0 | N62: 0 | O62: 0 | P62: 0 | Q62: 0 | R62: 0 | S62: 0 | T62: 0 | U62: 0 | V62: 0 | W62: 0 | X62: 0 | Y62: 0 | Z62: 0 | AA62: 0 | AB62: 0 | AC62: 0 | AD62: 0 | AE62: 0 | AF62: 0 | AG62: 0 | AH62: 0 | AI62: 0 | AJ62: 0 | AK62: 0 | AL62: 0 | AM62: 0 | AN62: 0 | AO62: 0 | AP62: =AP$289*AP$292 -> 0 | AQ62: 0 | AR62: 0 | AS62: 0 | AT62: 0 | AU62: 0 | AV62: 0 | AW62: 0 | AX62: 0 | AY62: 0 | AZ62: 0 | BA62: 0 | BB62: 0 | BC62: 0 | BD62: 0 | BE62: 0 | BF62: 0 | BG62: 0 | BH62: 0 | BI62: 0 | BJ62: 0 | BK62: 0 | BL62: 0 | BM62: 0 | BN62: 0 | BO62: 0 | BP62: 0 | BQ62: 0
E63: =CHOOSE(Sensitivities!$H$38,E304,E305) -> Price (DSCR PPA Price) years 1-15 | H63: =Sensitivities!H38 -> 1 | J63: =J60*J7+J8*J61 -> 91.93252199 | K63: =K60*K7+K8*K61 -> 92.8746 | L63: 93.84537184 | M63: 94.82629067 | N63: 95.8372873 | O63: 96.85906274 | P63: 97.9123823 | Q63: 98.97715646 | R63: 100.0750292 | S63: 101.1850798 | T63: 102.3298779 | U63: 103.487628 | V63: 104.6818757 | W63: 105.889905 | X63: 107.1362903 | Y63: 108.3973463 | Z63: 109.6987331 | AA63: 111.015744 | AB63: 112.3751854 | AC63: 113.7512739 | AD63: 115.172027 | AE63: 116.6105253 | AF63: 118.0960664 | AG63: 119.6005323 | AH63: 121.1545745 | AI63: 122.7288094 | AJ63: 124.3553211 | AK63: 126.0033887 | AL63: 127.7066138 | AM63: 129.4328619 | AN63: 131.2173419 | AO63: 133.0264245 | AP63: 134.8970228 | AQ63: 136.7939252 | AR63: 138.7558533 | AS63: 140.7459198 | AT63: 142.8047659 | AU63: 144.893729 | AV63: 147.0554895 | AW63: 149.2495027 | AX63: 151.5206169 | AY63: 153.8262903 | AZ63: 156.2136772 | BA63: 158.6381164 | BB63: 161.100183 | BC63: 163.6004609 | BD63: 166.1395431 | BE63: 168.718032 | BF63: 171.336539 | BG63: 173.9956853 | BH63: 0 | BI63: 0 | BJ63: 0 | BK63: 0 | BL63: 0 | BM63: 0 | BN63: 0 | BO63: 0 | BP63: 0 | BQ63: 0
E65: Supplier Payment for Compensation | H65: 41.04 | J65: =$H$65*J15 -> 41.46055717 | K65: 41.885424 | L65: 42.32323143 | M65: 42.76561505 | N65: 43.22156342 | O65: 43.68237291 | P65: 44.15740846 | Q65: 44.6376099 | R65: 45.13273846 | S65: 45.63335907 | T65: 46.14965041 | U65: 46.67178302 | V65: 47.2103756 | W65: 47.75518355 | X65: 48.31728962 | Y65: 48.886012 | Z65: 49.47292315 | AA65: 50.06688058 | AB65: 50.67997374 | AC65: 51.30057453 | AD65: 51.94131855 | AE65: 52.59006546 | AF65: 53.26002817 | AG65: 53.93852577 | AH65: 54.63938174 | AI65: 55.34934435 | AJ65: 56.08288326 | AK65: 56.82614367 | AL65: 57.59427947 | AM65: 58.37279838 | AN65: 59.17757927 | AO65: 59.9934556 | AP65: =$H$65*AP15 -> 60.8370749 | AQ65: 61.69255705 | AR65: 62.57736505 | AS65: 63.47486316 | AT65: 64.40338012 | AU65: 65.34547952 | AV65: 66.32040978 | AW65: 67.30988563 | AX65: 68.33413314 | AY65: 69.37396652 | AZ65: 70.45065179 | BA65: 71.54404723 | BB65: 72.65441219 | BC65: 73.78201004 | BD65: 74.92710823 | BE65: 76.08997837 | BF65: 77.27089627 | BG65: 78.47014204 | BH65: 79.68800012 | BI65: 80.92475939 | BJ65: 82.18071318 | BK65: 83.4561594 | BL65: 84.75140057 | BM65: 86.06674391 | BN65: 87.4025014 | BO65: 88.75898987 | BP65: 90.13653107 | BQ65: 91.53545173
E66: Constraint Compensation | H66: YES
E68: Revenue earned during operations | F68: Simplify this Formula | J68: =((J$63*J$33+J$311*J$246)*(1-0)*(1-J$55)*(1-J326))+((J$317*J$253+J$324*J$260)*(1-0)*(1-J$55)*(1-J326)) -> 9983871.888 | K68: 10086181.56 | L68: 10191607.38 | M68: 10298135.17 | N68: 10199770.81 | O68: 10308516.33 | P68: 10420619.02 | Q68: 10533940.81 | R68: 10650785.21 | S68: 10768925.67 | T68: 10890764.24 | U68: 11013981.28 | V68: 11141082.67 | W68: 11269650.81 | X68: 11402301.11 | Y68: 11536512.77 | Z68: 11675016.77 | AA68: 11815183.6 | AB68: 11959866.24 | AC68: 12106320.58 | AD68: 12257528.49 | AE68: 12410624.98 | AF68: 12568728.15 | AG68: 12728845.45 | AH68: 12765296.67 | AI68: 12931163.91 | AJ68: 13102539.23 | AK68: 13276185.77 | AL68: 13455643.9 | AM68: 13637527.82 | AN68: 13825547.28 | AO68: 14016158.94 | AP68: =((AP$63*AP$33+AP$311*AP$246)*(1-0)*(1-AP$55)*(1-AP326))+((AP$317*AP$253+AP$324*AP$260)*(1-0)*(1-AP$55)*(1-AP326)) -> 14213252.14 | AQ68: 14413116.84 | AR68: 14619832.88 | AS68: 14829513.68 | AT68: 15046441.37 | AU68: 15266542.29 | AV68: 15494313.42 | AW68: 15725482.82 | AX68: 15964775.85 | AY68: 16207710.18 | AZ68: 16459254.15 | BA68: 16714702.08 | BB68: 16974114.57 | BC68: 17237553.15 | BD68: 17505080.3 | BE68: 17776759.48 | BF68: 18052655.12 | BG68: 18332832.67 | BH68: 0 | BI68: 0 | BJ68: 0 | BK68: 0 | BL68: 0 | BM68: 0 | BN68: 0 | BO68: 0 | BP68: 0 | BQ68: 0
E70: LCOE | F70: 0.1 | H70: =XNPV(F70,J68:BQ68,J3:BQ3)/XNPV(F70,J49:BQ49,J3:BQ3) -> 113.1002765
E71: Real LCOE | F71: 0.08 | H71: =XNPV(F70,J68:BQ68,J3:BQ3)/XNPV(F71,J49:BQ49,J3:BQ3) -> 97.54515512
D74: Operating Expenses
E75: Service & availability switches
E76: Service availability - Phase 1 | J76: =IF(AND('Time SA'!H$1<'Timing and Operations'!$E$45,'Time SA'!H$2>'Timing and Operations'!$E$45),1-YEARFRAC('Timing and Operations'!$E$45,'Time SA'!H$1)*2,IF(AND('Time SA'!H$1<'Timing and Operations'!$F$45,'Time SA'!H$2>'Timing and Operations'!$F$45),1-YEARFRAC('Timing and Operations'!$F$45,'Time SA'!H$2)*2,IF(AND('Time SA'!H$1>='Timing and Operations'!$E$45,'Time SA'!H$2<='Timing and Operations'!$F$45),1,0))) -> 1 | K76: =IF(AND('Time SA'!I$1<'Timing and Operations'!$E$45,'Time SA'!I$2>'Timing and Operations'!$E$45),1-YEARFRAC('Timing and Operations'!$E$45,'Time SA'!I$1)*2,IF(AND('Time SA'!I$1<'Timing and Operations'!$F$45,'Time SA'!I$2>'Timing and Operations'!$F$45),1-YEARFRAC('Timing and Operations'!$F$45,'Time SA'!I$2)*2,IF(AND('Time SA'!I$1>='Timing and Operations'!$E$45,'Time SA'!I$2<='Timing and Operations'!$F$45),1,0))) -> 1 | L76: =IF(AND('Time SA'!J$1<'Timing and Operations'!$E$45,'Time SA'!J$2>'Timing and Operations'!$E$45),1-YEARFRAC('Timing and Operations'!$E$45,'Time SA'!J$1)*2,IF(AND('Time SA'!J$1<'Timing and Operations'!$F$45,'Time SA'!J$2>'Timing and Operations'!$F$45),1-YEARFRAC('Timing and Operations'!$F$45,'Time SA'!J$2)*2,IF(AND('Time SA'!J$1>='Timing and Operations'!$E$45,'Time SA'!J$2<='Timing and Operations'!$F$45),1,0))) -> 1 | M76: =IF(AND('Time SA'!K$1<'Timing and Operations'!$E$45,'Time SA'!K$2>'Timing and Operations'!$E$45),1-YEARFRAC('Timing and Operations'!$E$45,'Time SA'!K$1)*2,IF(AND('Time SA'!K$1<'Timing and Operations'!$F$45,'Time SA'!K$2>'Timing and Operations'!$F$45),1-YEARFRAC('Timing and Operations'!$F$45,'Time SA'!K$2)*2,IF(AND('Time SA'!K$1>='Timing and Operations'!$E$45,'Time SA'!K$2<='Timing and Operations'!$F$45),1,0))) -> 1 | N76: =IF(AND('Time SA'!L$1<'Timing and Operations'!$E$45,'Time SA'!L$2>'Timing and Operations'!$E$45),1-YEARFRAC('Timing and Operations'!$E$45,'Time SA'!L$1)*2,IF(AND('Time SA'!L$1<'Timing and Operations'!$F$45,'Time SA'!L$2>'Timing and Operations'!$F$45),1-YEARFRAC('Timing and Operations'!$F$45,'Time SA'!L$2)*2,IF(AND('Time SA'!L$1>='Timing and Operations'!$E$45,'Time SA'!L$2<='Timing and Operations'!$F$45),1,0))) -> 1 | O76: =IF(AND('Time SA'!M$1<'Timing and Operations'!$E$45,'Time SA'!M$2>'Timing and Operations'!$E$45),1-YEARFRAC('Timing and Operations'!$E$45,'Time SA'!M$1)*2,IF(AND('Time SA'!M$1<'Timing and Operations'!$F$45,'Time SA'!M$2>'Timing and Operations'!$F$45),1-YEARFRAC('Timing and Operations'!$F$45,'Time SA'!M$2)*2,IF(AND('Time SA'!M$1>='Timing and Operations'!$E$45,'Time SA'!M$2<='Timing and Operations'!$F$45),1,0))) -> 1 | P76: =IF(AND('Time SA'!N$1<'Timing and Operations'!$E$45,'Time SA'!N$2>'Timing and Operations'!$E$45),1-YEARFRAC('Timing and Operations'!$E$45,'Time SA'!N$1)*2,IF(AND('Time SA'!N$1<'Timing and Operations'!$F$45,'Time SA'!N$2>'Timing and Operations'!$F$45),1-YEARFRAC('Timing and Operations'!$F$45,'Time SA'!N$2)*2,IF(AND('Time SA'!N$1>='Timing and Operations'!$E$45,'Time SA'!N$2<='Timing and Operations'!$F$45),1,0))) -> 1 | Q76: =IF(AND('Time SA'!O$1<'Timing and Operations'!$E$45,'Time SA'!O$2>'Timing and Operations'!$E$45),1-YEARFRAC('Timing and Operations'!$E$45,'Time SA'!O$1)*2,IF(AND('Time SA'!O$1<'Timing and Operations'!$F$45,'Time SA'!O$2>'Timing and Operations'!$F$45),1-YEARFRAC('Timing and Operations'!$F$45,'Time SA'!O$2)*2,IF(AND('Time SA'!O$1>='Timing and Operations'!$E$45,'Time SA'!O$2<='Timing and Operations'!$F$45),1,0))) -> 1 | R76: =IF(AND('Time SA'!P$1<'Timing and Operations'!$E$45,'Time SA'!P$2>'Timing and Operations'!$E$45),1-YEARFRAC('Timing and Operations'!$E$45,'Time SA'!P$1)*2,IF(AND('Time SA'!P$1<'Timing and Operations'!$F$45,'Time SA'!P$2>'Timing and Operations'!$F$45),1-YEARFRAC('Timing and Operations'!$F$45,'Time SA'!P$2)*2,IF(AND('Time SA'!P$1>='Timing and Operations'!$E$45,'Time SA'!P$2<='Timing and Operations'!$F$45),1,0))) -> 1 | S76: =IF(AND('Time SA'!Q$1<'Timing and Operations'!$E$45,'Time SA'!Q$2>'Timing and Operations'!$E$45),1-YEARFRAC('Timing and Operations'!$E$45,'Time SA'!Q$1)*2,IF(AND('Time SA'!Q$1<'Timing and Operations'!$F$45,'Time SA'!Q$2>'Timing and Operations'!$F$45),1-YEARFRAC('Timing and Operations'!$F$45,'Time SA'!Q$2)*2,IF(AND('Time SA'!Q$1>='Timing and Operations'!$E$45,'Time SA'!Q$2<='Timing and Operations'!$F$45),1,0))) -> 1 | T76: =IF(AND('Time SA'!R$1<'Timing and Operations'!$E$45,'Time SA'!R$2>'Timing and Operations'!$E$45),1-YEARFRAC('Timing and Operations'!$E$45,'Time SA'!R$1)*2,IF(AND('Time SA'!R$1<'Timing and Operations'!$F$45,'Time SA'!R$2>'Timing and Operations'!$F$45),1-YEARFRAC('Timing and Operations'!$F$45,'Time SA'!R$2)*2,IF(AND('Time SA'!R$1>='Timing and Operations'!$E$45,'Time SA'!R$2<='Timing and Operations'!$F$45),1,0))) -> 0 | U76: =IF(AND('Time SA'!S$1<'Timing and Operations'!$E$45,'Time SA'!S$2>'Timing and Operations'!$E$45),1-YEARFRAC('Timing and Operations'!$E$45,'Time SA'!S$1)*2,IF(AND('Time SA'!S$1<'Timing and Operations'!$F$45,'Time SA'!S$2>'Timing and Operations'!$F$45),1-YEARFRAC('Timing and Operations'!$F$45,'Time SA'!S$2)*2,IF(AND('Time SA'!S$1>='Timing and Operations'!$E$45,'Time SA'!S$2<='Timing and Operations'!$F$45),1,0))) -> 0 | V76: =IF(AND('Time SA'!T$1<'Timing and Operations'!$E$45,'Time SA'!T$2>'Timing and Operations'!$E$45),1-YEARFRAC('Timing and Operations'!$E$45,'Time SA'!T$1)*2,IF(AND('Time SA'!T$1<'Timing and Operations'!$F$45,'Time SA'!T$2>'Timing and Operations'!$F$45),1-YEARFRAC('Timing and Operations'!$F$45,'Time SA'!T$2)*2,IF(AND('Time SA'!T$1>='Timing and Operations'!$E$45,'Time SA'!T$2<='Timing and Operations'!$F$45),1,0))) -> 0 | W76: =IF(AND('Time SA'!U$1<'Timing and Operations'!$E$45,'Time SA'!U$2>'Timing and Operations'!$E$45),1-YEARFRAC('Timing and Operations'!$E$45,'Time SA'!U$1)*2,IF(AND('Time SA'!U$1<'Timing and Operations'!$F$45,'Time SA'!U$2>'Timing and Operations'!$F$45),1-YEARFRAC('Timing and Operations'!$F$45,'Time SA'!U$2)*2,IF(AND('Time SA'!U$1>='Timing and Operations'!$E$45,'Time SA'!U$2<='Timing and Operations'!$F$45),1,0))) -> 0 | X76: =IF(AND('Time SA'!V$1<'Timing and Operations'!$E$45,'Time SA'!V$2>'Timing and Operations'!$E$45),1-YEARFRAC('Timing and Operations'!$E$45,'Time SA'!V$1)*2,IF(AND('Time SA'!V$1<'Timing and Operations'!$F$45,'Time SA'!V$2>'Timing and Operations'!$F$45),1-YEARFRAC('Timing and Operations'!$F$45,'Time SA'!V$2)*2,IF(AND('Time SA'!V$1>='Timing and Operations'!$E$45,'Time SA'!V$2<='Timing and Operations'!$F$45),1,0))) -> 0 | Y76: =IF(AND('Time SA'!W$1<'Timing and Operations'!$E$45,'Time SA'!W$2>'Timing and Operations'!$E$45),1-YEARFRAC('Timing and Operations'!$E$45,'Time SA'!W$1)*2,IF(AND('Time SA'!W$1<'Timing and Operations'!$F$45,'Time SA'!W$2>'Timing and Operations'!$F$45),1-YEARFRAC('Timing and Operations'!$F$45,'Time SA'!W$2)*2,IF(AND('Time SA'!W$1>='Timing and Operations'!$E$45,'Time SA'!W$2<='Timing and Operations'!$F$45),1,0))) -> 0 | Z76: =IF(AND('Time SA'!X$1<'Timing and Operations'!$E$45,'Time SA'!X$2>'Timing and Operations'!$E$45),1-YEARFRAC('Timing and Operations'!$E$45,'Time SA'!X$1)*2,IF(AND('Time SA'!X$1<'Timing and Operations'!$F$45,'Time SA'!X$2>'Timing and Operations'!$F$45),1-YEARFRAC('Timing and Operations'!$F$45,'Time SA'!X$2)*2,IF(AND('Time SA'!X$1>='Timing and Operations'!$E$45,'Time SA'!X$2<='Timing and Operations'!$F$45),1,0))) -> 0 | AA76: =IF(AND('Time SA'!Y$1<'Timing and Operations'!$E$45,'Time SA'!Y$2>'Timing and Operations'!$E$45),1-YEARFRAC('Timing and Operations'!$E$45,'Time SA'!Y$1)*2,IF(AND('Time SA'!Y$1<'Timing and Operations'!$F$45,'Time SA'!Y$2>'Timing and Operations'!$F$45),1-YEARFRAC('Timing and Operations'!$F$45,'Time SA'!Y$2)*2,IF(AND('Time SA'!Y$1>='Timing and Operations'!$E$45,'Time SA'!Y$2<='Timing and Operations'!$F$45),1,0))) -> 0 | AB76: =IF(AND('Time SA'!Z$1<'Timing and Operations'!$E$45,'Time SA'!Z$2>'Timing and Operations'!$E$45),1-YEARFRAC('Timing and Operations'!$E$45,'Time SA'!Z$1)*2,IF(AND('Time SA'!Z$1<'Timing and Operations'!$F$45,'Time SA'!Z$2>'Timing and Operations'!$F$45),1-YEARFRAC('Timing and Operations'!$F$45,'Time SA'!Z$2)*2,IF(AND('Time SA'!Z$1>='Timing and Operations'!$E$45,'Time SA'!Z$2<='Timing and Operations'!$F$45),1,0))) -> 0 | AC76: =IF(AND('Time SA'!AA$1<'Timing and Operations'!$E$45,'Time SA'!AA$2>'Timing and Operations'!$E$45),1-YEARFRAC('Timing and Operations'!$E$45,'Time SA'!AA$1)*2,IF(AND('Time SA'!AA$1<'Timing and Operations'!$F$45,'Time SA'!AA$2>'Timing and Operations'!$F$45),1-YEARFRAC('Timing and Operations'!$F$45,'Time SA'!AA$2)*2,IF(AND('Time SA'!AA$1>='Timing and Operations'!$E$45,'Time SA'!AA$2<='Timing and Operations'!$F$45),1,0))) -> 0 | AD76: =IF(AND('Time SA'!AB$1<'Timing and Operations'!$E$45,'Time SA'!AB$2>'Timing and Operations'!$E$45),1-YEARFRAC('Timing and Operations'!$E$45,'Time SA'!AB$1)*2,IF(AND('Time SA'!AB$1<'Timing and Operations'!$F$45,'Time SA'!AB$2>'Timing and Operations'!$F$45),1-YEARFRAC('Timing and Operations'!$F$45,'Time SA'!AB$2)*2,IF(AND('Time SA'!AB$1>='Timing and Operations'!$E$45,'Time SA'!AB$2<='Timing and Operations'!$F$45),1,0))) -> 0 | AE76: =IF(AND('Time SA'!AC$1<'Timing and Operations'!$E$45,'Time SA'!AC$2>'Timing and Operations'!$E$45),1-YEARFRAC('Timing and Operations'!$E$45,'Time SA'!AC$1)*2,IF(AND('Time SA'!AC$1<'Timing and Operations'!$F$45,'Time SA'!AC$2>'Timing and Operations'!$F$45),1-YEARFRAC('Timing and Operations'!$F$45,'Time SA'!AC$2)*2,IF(AND('Time SA'!AC$1>='Timing and Operations'!$E$45,'Time SA'!AC$2<='Timing and Operations'!$F$45),1,0))) -> 0 | AF76: =IF(AND('Time SA'!AD$1<'Timing and Operations'!$E$45,'Time SA'!AD$2>'Timing and Operations'!$E$45),1-YEARFRAC('Timing and Operations'!$E$45,'Time SA'!AD$1)*2,IF(AND('Time SA'!AD$1<'Timing and Operations'!$F$45,'Time SA'!AD$2>'Timing and Operations'!$F$45),1-YEARFRAC('Timing and Operations'!$F$45,'Time SA'!AD$2)*2,IF(AND('Time SA'!AD$1>='Timing and Operations'!$E$45,'Time SA'!AD$2<='Timing and Operations'!$F$45),1,0))) -> 0 | AG76: =IF(AND('Time SA'!AE$1<'Timing and Operations'!$E$45,'Time SA'!AE$2>'Timing and Operations'!$E$45),1-YEARFRAC('Timing and Operations'!$E$45,'Time SA'!AE$1)*2,IF(AND('Time SA'!AE$1<'Timing and Operations'!$F$45,'Time SA'!AE$2>'Timing and Operations'!$F$45),1-YEARFRAC('Timing and Operations'!$F$45,'Time SA'!AE$2)*2,IF(AND('Time SA'!AE$1>='Timing and Operations'!$E$45,'Time SA'!AE$2<='Timing and Operations'!$F$45),1,0))) -> 0 | AH76: =IF(AND('Time SA'!AF$1<'Timing and Operations'!$E$45,'Time SA'!AF$2>'Timing and Operations'!$E$45),1-YEARFRAC('Timing and Operations'!$E$45,'Time SA'!AF$1)*2,IF(AND('Time SA'!AF$1<'Timing and Operations'!$F$45,'Time SA'!AF$2>'Timing and Operations'!$F$45),1-YEARFRAC('Timing and Operations'!$F$45,'Time SA'!AF$2)*2,IF(AND('Time SA'!AF$1>='Timing and Operations'!$E$45,'Time SA'!AF$2<='Timing and Operations'!$F$45),1,0))) -> 0 | AI76: =IF(AND('Time SA'!AG$1<'Timing and Operations'!$E$45,'Time SA'!AG$2>'Timing and Operations'!$E$45),1-YEARFRAC('Timing and Operations'!$E$45,'Time SA'!AG$1)*2,IF(AND('Time SA'!AG$1<'Timing and Operations'!$F$45,'Time SA'!AG$2>'Timing and Operations'!$F$45),1-YEARFRAC('Timing and Operations'!$F$45,'Time SA'!AG$2)*2,IF(AND('Time SA'!AG$1>='Timing and Operations'!$E$45,'Time SA'!AG$2<='Timing and Operations'!$F$45),1,0))) -> 0 | AJ76: =IF(AND('Time SA'!AH$1<'Timing and Operations'!$E$45,'Time SA'!AH$2>'Timing and Operations'!$E$45),1-YEARFRAC('Timing and Operations'!$E$45,'Time SA'!AH$1)*2,IF(AND('Time SA'!AH$1<'Timing and Operations'!$F$45,'Time SA'!AH$2>'Timing and Operations'!$F$45),1-YEARFRAC('Timing and Operations'!$F$45,'Time SA'!AH$2)*2,IF(AND('Time SA'!AH$1>='Timing and Operations'!$E$45,'Time SA'!AH$2<='Timing and Operations'!$F$45),1,0))) -> 0 | AK76: =IF(AND('Time SA'!AI$1<'Timing and Operations'!$E$45,'Time SA'!AI$2>'Timing and Operations'!$E$45),1-YEARFRAC('Timing and Operations'!$E$45,'Time SA'!AI$1)*2,IF(AND('Time SA'!AI$1<'Timing and Operations'!$F$45,'Time SA'!AI$2>'Timing and Operations'!$F$45),1-YEARFRAC('Timing and Operations'!$F$45,'Time SA'!AI$2)*2,IF(AND('Time SA'!AI$1>='Timing and Operations'!$E$45,'Time SA'!AI$2<='Timing and Operations'!$F$45),1,0))) -> 0 | AL76: =IF(AND('Time SA'!AJ$1<'Timing and Operations'!$E$45,'Time SA'!AJ$2>'Timing and Operations'!$E$45),1-YEARFRAC('Timing and Operations'!$E$45,'Time SA'!AJ$1)*2,IF(AND('Time SA'!AJ$1<'Timing and Operations'!$F$45,'Time SA'!AJ$2>'Timing and Operations'!$F$45),1-YEARFRAC('Timing and Operations'!$F$45,'Time SA'!AJ$2)*2,IF(AND('Time SA'!AJ$1>='Timing and Operations'!$E$45,'Time SA'!AJ$2<='Timing and Operations'!$F$45),1,0))) -> 0 | AM76: =IF(AND('Time SA'!AK$1<'Timing and Operations'!$E$45,'Time SA'!AK$2>'Timing and Operations'!$E$45),1-YEARFRAC('Timing and Operations'!$E$45,'Time SA'!AK$1)*2,IF(AND('Time SA'!AK$1<'Timing and Operations'!$F$45,'Time SA'!AK$2>'Timing and Operations'!$F$45),1-YEARFRAC('Timing and Operations'!$F$45,'Time SA'!AK$2)*2,IF(AND('Time SA'!AK$1>='Timing and Operations'!$E$45,'Time SA'!AK$2<='Timing and Operations'!$F$45),1,0))) -> 0 | AN76: =IF(AND('Time SA'!AL$1<'Timing and Operations'!$E$45,'Time SA'!AL$2>'Timing and Operations'!$E$45),1-YEARFRAC('Timing and Operations'!$E$45,'Time SA'!AL$1)*2,IF(AND('Time SA'!AL$1<'Timing and Operations'!$F$45,'Time SA'!AL$2>'Timing and Operations'!$F$45),1-YEARFRAC('Timing and Operations'!$F$45,'Time SA'!AL$2)*2,IF(AND('Time SA'!AL$1>='Timing and Operations'!$E$45,'Time SA'!AL$2<='Timing and Operations'!$F$45),1,0))) -> 0 | AO76: =IF(AND('Time SA'!AM$1<'Timing and Operations'!$E$45,'Time SA'!AM$2>'Timing and Operations'!$E$45),1-YEARFRAC('Timing and Operations'!$E$45,'Time SA'!AM$1)*2,IF(AND('Time SA'!AM$1<'Timing and Operations'!$F$45,'Time SA'!AM$2>'Timing and Operations'!$F$45),1-YEARFRAC('Timing and Operations'!$F$45,'Time SA'!AM$2)*2,IF(AND('Time SA'!AM$1>='Timing and Operations'!$E$45,'Time SA'!AM$2<='Timing and Operations'!$F$45),1,0))) -> 0 | AP76: =IF(AND('Time SA'!AN$1<'Timing and Operations'!$E$45,'Time SA'!AN$2>'Timing and Operations'!$E$45),1-YEARFRAC('Timing and Operations'!$E$45,'Time SA'!AN$1)*2,IF(AND('Time SA'!AN$1<'Timing and Operations'!$F$45,'Time SA'!AN$2>'Timing and Operations'!$F$45),1-YEARFRAC('Timing and Operations'!$F$45,'Time SA'!AN$2)*2,IF(AND('Time SA'!AN$1>='Timing and Operations'!$E$45,'Time SA'!AN$2<='Timing and Operations'!$F$45),1,0))) -> 0 | AQ76: =IF(AND('Time SA'!AO$1<'Timing and Operations'!$E$45,'Time SA'!AO$2>'Timing and Operations'!$E$45),1-YEARFRAC('Timing and Operations'!$E$45,'Time SA'!AO$1)*2,IF(AND('Time SA'!AO$1<'Timing and Operations'!$F$45,'Time SA'!AO$2>'Timing and Operations'!$F$45),1-YEARFRAC('Timing and Operations'!$F$45,'Time SA'!AO$2)*2,IF(AND('Time SA'!AO$1>='Timing and Operations'!$E$45,'Time SA'!AO$2<='Timing and Operations'!$F$45),1,0))) -> 0 | AR76: =IF(AND('Time SA'!AP$1<'Timing and Operations'!$E$45,'Time SA'!AP$2>'Timing and Operations'!$E$45),1-YEARFRAC('Timing and Operations'!$E$45,'Time SA'!AP$1)*2,IF(AND('Time SA'!AP$1<'Timing and Operations'!$F$45,'Time SA'!AP$2>'Timing and Operations'!$F$45),1-YEARFRAC('Timing and Operations'!$F$45,'Time SA'!AP$2)*2,IF(AND('Time SA'!AP$1>='Timing and Operations'!$E$45,'Time SA'!AP$2<='Timing and Operations'!$F$45),1,0))) -> 0 | AS76: =IF(AND('Time SA'!AQ$1<'Timing and Operations'!$E$45,'Time SA'!AQ$2>'Timing and Operations'!$E$45),1-YEARFRAC('Timing and Operations'!$E$45,'Time SA'!AQ$1)*2,IF(AND('Time SA'!AQ$1<'Timing and Operations'!$F$45,'Time SA'!AQ$2>'Timing and Operations'!$F$45),1-YEARFRAC('Timing and Operations'!$F$45,'Time SA'!AQ$2)*2,IF(AND('Time SA'!AQ$1>='Timing and Operations'!$E$45,'Time SA'!AQ$2<='Timing and Operations'!$F$45),1,0))) -> 0 | AT76: =IF(AND('Time SA'!AR$1<'Timing and Operations'!$E$45,'Time SA'!AR$2>'Timing and Operations'!$E$45),1-YEARFRAC('Timing and Operations'!$E$45,'Time SA'!AR$1)*2,IF(AND('Time SA'!AR$1<'Timing and Operations'!$F$45,'Time SA'!AR$2>'Timing and Operations'!$F$45),1-YEARFRAC('Timing and Operations'!$F$45,'Time SA'!AR$2)*2,IF(AND('Time SA'!AR$1>='Timing and Operations'!$E$45,'Time SA'!AR$2<='Timing and Operations'!$F$45),1,0))) -> 0 | AU76: =IF(AND('Time SA'!AS$1<'Timing and Operations'!$E$45,'Time SA'!AS$2>'Timing and Operations'!$E$45),1-YEARFRAC('Timing and Operations'!$E$45,'Time SA'!AS$1)*2,IF(AND('Time SA'!AS$1<'Timing and Operations'!$F$45,'Time SA'!AS$2>'Timing and Operations'!$F$45),1-YEARFRAC('Timing and Operations'!$F$45,'Time SA'!AS$2)*2,IF(AND('Time SA'!AS$1>='Timing and Operations'!$E$45,'Time SA'!AS$2<='Timing and Operations'!$F$45),1,0))) -> 0 | AV76: =IF(AND('Time SA'!AT$1<'Timing and Operations'!$E$45,'Time SA'!AT$2>'Timing and Operations'!$E$45),1-YEARFRAC('Timing and Operations'!$E$45,'Time SA'!AT$1)*2,IF(AND('Time SA'!AT$1<'Timing and Operations'!$F$45,'Time SA'!AT$2>'Timing and Operations'!$F$45),1-YEARFRAC('Timing and Operations'!$F$45,'Time SA'!AT$2)*2,IF(AND('Time SA'!AT$1>='Timing and Operations'!$E$45,'Time SA'!AT$2<='Timing and Operations'!$F$45),1,0))) -> 0 | AW76: =IF(AND('Time SA'!AU$1<'Timing and Operations'!$E$45,'Time SA'!AU$2>'Timing and Operations'!$E$45),1-YEARFRAC('Timing and Operations'!$E$45,'Time SA'!AU$1)*2,IF(AND('Time SA'!AU$1<'Timing and Operations'!$F$45,'Time SA'!AU$2>'Timing and Operations'!$F$45),1-YEARFRAC('Timing and Operations'!$F$45,'Time SA'!AU$2)*2,IF(AND('Time SA'!AU$1>='Timing and Operations'!$E$45,'Time SA'!AU$2<='Timing and Operations'!$F$45),1,0))) -> 0 | AX76: =IF(AND('Time SA'!AV$1<'Timing and Operations'!$E$45,'Time SA'!AV$2>'Timing and Operations'!$E$45),1-YEARFRAC('Timing and Operations'!$E$45,'Time SA'!AV$1)*2,IF(AND('Time SA'!AV$1<'Timing and Operations'!$F$45,'Time SA'!AV$2>'Timing and Operations'!$F$45),1-YEARFRAC('Timing and Operations'!$F$45,'Time SA'!AV$2)*2,IF(AND('Time SA'!AV$1>='Timing and Operations'!$E$45,'Time SA'!AV$2<='Timing and Operations'!$F$45),1,0))) -> 0 | AY76: =IF(AND('Time SA'!AW$1<'Timing and Operations'!$E$45,'Time SA'!AW$2>'Timing and Operations'!$E$45),1-YEARFRAC('Timing and Operations'!$E$45,'Time SA'!AW$1)*2,IF(AND('Time SA'!AW$1<'Timing and Operations'!$F$45,'Time SA'!AW$2>'Timing and Operations'!$F$45),1-YEARFRAC('Timing and Operations'!$F$45,'Time SA'!AW$2)*2,IF(AND('Time SA'!AW$1>='Timing and Operations'!$E$45,'Time SA'!AW$2<='Timing and Operations'!$F$45),1,0))) -> 0 | AZ76: =IF(AND('Time SA'!AX$1<'Timing and Operations'!$E$45,'Time SA'!AX$2>'Timing and Operations'!$E$45),1-YEARFRAC('Timing and Operations'!$E$45,'Time SA'!AX$1)*2,IF(AND('Time SA'!AX$1<'Timing and Operations'!$F$45,'Time SA'!AX$2>'Timing and Operations'!$F$45),1-YEARFRAC('Timing and Operations'!$F$45,'Time SA'!AX$2)*2,IF(AND('Time SA'!AX$1>='Timing and Operations'!$E$45,'Time SA'!AX$2<='Timing and Operations'!$F$45),1,0))) -> 0 | BA76: =IF(AND('Time SA'!AY$1<'Timing and Operations'!$E$45,'Time SA'!AY$2>'Timing and Operations'!$E$45),1-YEARFRAC('Timing and Operations'!$E$45,'Time SA'!AY$1)*2,IF(AND('Time SA'!AY$1<'Timing and Operations'!$F$45,'Time SA'!AY$2>'Timing and Operations'!$F$45),1-YEARFRAC('Timing and Operations'!$F$45,'Time SA'!AY$2)*2,IF(AND('Time SA'!AY$1>='Timing and Operations'!$E$45,'Time SA'!AY$2<='Timing and Operations'!$F$45),1,0))) -> 0 | BB76: =IF(AND('Time SA'!AZ$1<'Timing and Operations'!$E$45,'Time SA'!AZ$2>'Timing and Operations'!$E$45),1-YEARFRAC('Timing and Operations'!$E$45,'Time SA'!AZ$1)*2,IF(AND('Time SA'!AZ$1<'Timing and Operations'!$F$45,'Time SA'!AZ$2>'Timing and Operations'!$F$45),1-YEARFRAC('Timing and Operations'!$F$45,'Time SA'!AZ$2)*2,IF(AND('Time SA'!AZ$1>='Timing and Operations'!$E$45,'Time SA'!AZ$2<='Timing and Operations'!$F$45),1,0))) -> 0 | BC76: =IF(AND('Time SA'!BA$1<'Timing and Operations'!$E$45,'Time SA'!BA$2>'Timing and Operations'!$E$45),1-YEARFRAC('Timing and Operations'!$E$45,'Time SA'!BA$1)*2,IF(AND('Time SA'!BA$1<'Timing and Operations'!$F$45,'Time SA'!BA$2>'Timing and Operations'!$F$45),1-YEARFRAC('Timing and Operations'!$F$45,'Time SA'!BA$2)*2,IF(AND('Time SA'!BA$1>='Timing and Operations'!$E$45,'Time SA'!BA$2<='Timing and Operations'!$F$45),1,0))) -> 0 | BD76: =IF(AND('Time SA'!BB$1<'Timing and Operations'!$E$45,'Time SA'!BB$2>'Timing and Operations'!$E$45),1-YEARFRAC('Timing and Operations'!$E$45,'Time SA'!BB$1)*2,IF(AND('Time SA'!BB$1<'Timing and Operations'!$F$45,'Time SA'!BB$2>'Timing and Operations'!$F$45),1-YEARFRAC('Timing and Operations'!$F$45,'Time SA'!BB$2)*2,IF(AND('Time SA'!BB$1>='Timing and Operations'!$E$45,'Time SA'!BB$2<='Timing and Operations'!$F$45),1,0))) -> 0 | BE76: =IF(AND('Time SA'!BC$1<'Timing and Operations'!$E$45,'Time SA'!BC$2>'Timing and Operations'!$E$45),1-YEARFRAC('Timing and Operations'!$E$45,'Time SA'!BC$1)*2,IF(AND('Time SA'!BC$1<'Timing and Operations'!$F$45,'Time SA'!BC$2>'Timing and Operations'!$F$45),1-YEARFRAC('Timing and Operations'!$F$45,'Time SA'!BC$2)*2,IF(AND('Time SA'!BC$1>='Timing and Operations'!$E$45,'Time SA'!BC$2<='Timing and Operations'!$F$45),1,0))) -> 0 | BF76: =IF(AND('Time SA'!BD$1<'Timing and Operations'!$E$45,'Time SA'!BD$2>'Timing and Operations'!$E$45),1-YEARFRAC('Timing and Operations'!$E$45,'Time SA'!BD$1)*2,IF(AND('Time SA'!BD$1<'Timing and Operations'!$F$45,'Time SA'!BD$2>'Timing and Operations'!$F$45),1-YEARFRAC('Timing and Operations'!$F$45,'Time SA'!BD$2)*2,IF(AND('Time SA'!BD$1>='Timing and Operations'!$E$45,'Time SA'!BD$2<='Timing and Operations'!$F$45),1,0))) -> 0 | BG76: =IF(AND('Time SA'!BE$1<'Timing and Operations'!$E$45,'Time SA'!BE$2>'Timing and Operations'!$E$45),1-YEARFRAC('Timing and Operations'!$E$45,'Time SA'!BE$1)*2,IF(AND('Time SA'!BE$1<'Timing and Operations'!$F$45,'Time SA'!BE$2>'Timing and Operations'!$F$45),1-YEARFRAC('Timing and Operations'!$F$45,'Time SA'!BE$2)*2,IF(AND('Time SA'!BE$1>='Timing and Operations'!$E$45,'Time SA'!BE$2<='Timing and Operations'!$F$45),1,0))) -> 0 | BH76: =IF(AND('Time SA'!BF$1<'Timing and Operations'!$E$45,'Time SA'!BF$2>'Timing and Operations'!$E$45),1-YEARFRAC('Timing and Operations'!$E$45,'Time SA'!BF$1)*2,IF(AND('Time SA'!BF$1<'Timing and Operations'!$F$45,'Time SA'!BF$2>'Timing and Operations'!$F$45),1-YEARFRAC('Timing and Operations'!$F$45,'Time SA'!BF$2)*2,IF(AND('Time SA'!BF$1>='Timing and Operations'!$E$45,'Time SA'!BF$2<='Timing and Operations'!$F$45),1,0))) -> 0 | BI76: =IF(AND('Time SA'!BG$1<'Timing and Operations'!$E$45,'Time SA'!BG$2>'Timing and Operations'!$E$45),1-YEARFRAC('Timing and Operations'!$E$45,'Time SA'!BG$1)*2,IF(AND('Time SA'!BG$1<'Timing and Operations'!$F$45,'Time SA'!BG$2>'Timing and Operations'!$F$45),1-YEARFRAC('Timing and Operations'!$F$45,'Time SA'!BG$2)*2,IF(AND('Time SA'!BG$1>='Timing and Operations'!$E$45,'Time SA'!BG$2<='Timing and Operations'!$F$45),1,0))) -> 0 | BJ76: =IF(AND('Time SA'!BH$1<'Timing and Operations'!$E$45,'Time SA'!BH$2>'Timing and Operations'!$E$45),1-YEARFRAC('Timing and Operations'!$E$45,'Time SA'!BH$1)*2,IF(AND('Time SA'!BH$1<'Timing and Operations'!$F$45,'Time SA'!BH$2>'Timing and Operations'!$F$45),1-YEARFRAC('Timing and Operations'!$F$45,'Time SA'!BH$2)*2,IF(AND('Time SA'!BH$1>='Timing and Operations'!$E$45,'Time SA'!BH$2<='Timing and Operations'!$F$45),1,0))) -> 0 | BK76: =IF(AND('Time SA'!BI$1<'Timing and Operations'!$E$45,'Time SA'!BI$2>'Timing and Operations'!$E$45),1-YEARFRAC('Timing and Operations'!$E$45,'Time SA'!BI$1)*2,IF(AND('Time SA'!BI$1<'Timing and Operations'!$F$45,'Time SA'!BI$2>'Timing and Operations'!$F$45),1-YEARFRAC('Timing and Operations'!$F$45,'Time SA'!BI$2)*2,IF(AND('Time SA'!BI$1>='Timing and Operations'!$E$45,'Time SA'!BI$2<='Timing and Operations'!$F$45),1,0))) -> 0 | BL76: =IF(AND('Time SA'!BJ$1<'Timing and Operations'!$E$45,'Time SA'!BJ$2>'Timing and Operations'!$E$45),1-YEARFRAC('Timing and Operations'!$E$45,'Time SA'!BJ$1)*2,IF(AND('Time SA'!BJ$1<'Timing and Operations'!$F$45,'Time SA'!BJ$2>'Timing and Operations'!$F$45),1-YEARFRAC('Timing and Operations'!$F$45,'Time SA'!BJ$2)*2,IF(AND('Time SA'!BJ$1>='Timing and Operations'!$E$45,'Time SA'!BJ$2<='Timing and Operations'!$F$45),1,0))) -> 0 | BM76: =IF(AND('Time SA'!BK$1<'Timing and Operations'!$E$45,'Time SA'!BK$2>'Timing and Operations'!$E$45),1-YEARFRAC('Timing and Operations'!$E$45,'Time SA'!BK$1)*2,IF(AND('Time SA'!BK$1<'Timing and Operations'!$F$45,'Time SA'!BK$2>'Timing and Operations'!$F$45),1-YEARFRAC('Timing and Operations'!$F$45,'Time SA'!BK$2)*2,IF(AND('Time SA'!BK$1>='Timing and Operations'!$E$45,'Time SA'!BK$2<='Timing and Operations'!$F$45),1,0))) -> 0 | BN76: =IF(AND('Time SA'!BL$1<'Timing and Operations'!$E$45,'Time SA'!BL$2>'Timing and Operations'!$E$45),1-YEARFRAC('Timing and Operations'!$E$45,'Time SA'!BL$1)*2,IF(AND('Time SA'!BL$1<'Timing and Operations'!$F$45,'Time SA'!BL$2>'Timing and Operations'!$F$45),1-YEARFRAC('Timing and Operations'!$F$45,'Time SA'!BL$2)*2,IF(AND('Time SA'!BL$1>='Timing and Operations'!$E$45,'Time SA'!BL$2<='Timing and Operations'!$F$45),1,0))) -> 0 | BO76: =IF(AND('Time SA'!BM$1<'Timing and Operations'!$E$45,'Time SA'!BM$2>'Timing and Operations'!$E$45),1-YEARFRAC('Timing and Operations'!$E$45,'Time SA'!BM$1)*2,IF(AND('Time SA'!BM$1<'Timing and Operations'!$F$45,'Time SA'!BM$2>'Timing and Operations'!$F$45),1-YEARFRAC('Timing and Operations'!$F$45,'Time SA'!BM$2)*2,IF(AND('Time SA'!BM$1>='Timing and Operations'!$E$45,'Time SA'!BM$2<='Timing and Operations'!$F$45),1,0))) -> 0 | BP76: =IF(AND('Time SA'!BN$1<'Timing and Operations'!$E$45,'Time SA'!BN$2>'Timing and Operations'!$E$45),1-YEARFRAC('Timing and Operations'!$E$45,'Time SA'!BN$1)*2,IF(AND('Time SA'!BN$1<'Timing and Operations'!$F$45,'Time SA'!BN$2>'Timing and Operations'!$F$45),1-YEARFRAC('Timing and Operations'!$F$45,'Time SA'!BN$2)*2,IF(AND('Time SA'!BN$1>='Timing and Operations'!$E$45,'Time SA'!BN$2<='Timing and Operations'!$F$45),1,0))) -> 0 | BQ76: =IF(AND('Time SA'!BO$1<'Timing and Operations'!$E$45,'Time SA'!BO$2>'Timing and Operations'!$E$45),1-YEARFRAC('Timing and Operations'!$E$45,'Time SA'!BO$1)*2,IF(AND('Time SA'!BO$1<'Timing and Operations'!$F$45,'Time SA'!BO$2>'Timing and Operations'!$F$45),1-YEARFRAC('Timing and Operations'!$F$45,'Time SA'!BO$2)*2,IF(AND('Time SA'!BO$1>='Timing and Operations'!$E$45,'Time SA'!BO$2<='Timing and Operations'!$F$45),1,0))) -> 0
E77: Service availability - Phase 2 | J77: =IF(AND('Time SA'!H$1<'Timing and Operations'!$E$46,'Time SA'!H$2>'Timing and Operations'!$E$46),1-YEARFRAC('Timing and Operations'!$E$46,'Time SA'!H$1)*2,IF(AND('Time SA'!H$1<'Timing and Operations'!$F$46,'Time SA'!H$2>'Timing and Operations'!$F$46),1-YEARFRAC('Timing and Operations'!$F$46,'Time SA'!H$2)*2,IF(AND('Time SA'!H$1>='Timing and Operations'!$E$46,'Time SA'!H$2<='Timing and Operations'!$F$46),1,0))) -> 0 | K77: =IF(AND('Time SA'!I$1<'Timing and Operations'!$E$46,'Time SA'!I$2>'Timing and Operations'!$E$46),1-YEARFRAC('Timing and Operations'!$E$46,'Time SA'!I$1)*2,IF(AND('Time SA'!I$1<'Timing and Operations'!$F$46,'Time SA'!I$2>'Timing and Operations'!$F$46),1-YEARFRAC('Timing and Operations'!$F$46,'Time SA'!I$2)*2,IF(AND('Time SA'!I$1>='Timing and Operations'!$E$46,'Time SA'!I$2<='Timing and Operations'!$F$46),1,0))) -> 0 | L77: =IF(AND('Time SA'!J$1<'Timing and Operations'!$E$46,'Time SA'!J$2>'Timing and Operations'!$E$46),1-YEARFRAC('Timing and Operations'!$E$46,'Time SA'!J$1)*2,IF(AND('Time SA'!J$1<'Timing and Operations'!$F$46,'Time SA'!J$2>'Timing and Operations'!$F$46),1-YEARFRAC('Timing and Operations'!$F$46,'Time SA'!J$2)*2,IF(AND('Time SA'!J$1>='Timing and Operations'!$E$46,'Time SA'!J$2<='Timing and Operations'!$F$46),1,0))) -> 0 | M77: =IF(AND('Time SA'!K$1<'Timing and Operations'!$E$46,'Time SA'!K$2>'Timing and Operations'!$E$46),1-YEARFRAC('Timing and Operations'!$E$46,'Time SA'!K$1)*2,IF(AND('Time SA'!K$1<'Timing and Operations'!$F$46,'Time SA'!K$2>'Timing and Operations'!$F$46),1-YEARFRAC('Timing and Operations'!$F$46,'Time SA'!K$2)*2,IF(AND('Time SA'!K$1>='Timing and Operations'!$E$46,'Time SA'!K$2<='Timing and Operations'!$F$46),1,0))) -> 0 | N77: =IF(AND('Time SA'!L$1<'Timing and Operations'!$E$46,'Time SA'!L$2>'Timing and Operations'!$E$46),1-YEARFRAC('Timing and Operations'!$E$46,'Time SA'!L$1)*2,IF(AND('Time SA'!L$1<'Timing and Operations'!$F$46,'Time SA'!L$2>'Timing and Operations'!$F$46),1-YEARFRAC('Timing and Operations'!$F$46,'Time SA'!L$2)*2,IF(AND('Time SA'!L$1>='Timing and Operations'!$E$46,'Time SA'!L$2<='Timing and Operations'!$F$46),1,0))) -> 0 | O77: =IF(AND('Time SA'!M$1<'Timing and Operations'!$E$46,'Time SA'!M$2>'Timing and Operations'!$E$46),1-YEARFRAC('Timing and Operations'!$E$46,'Time SA'!M$1)*2,IF(AND('Time SA'!M$1<'Timing and Operations'!$F$46,'Time SA'!M$2>'Timing and Operations'!$F$46),1-YEARFRAC('Timing and Operations'!$F$46,'Time SA'!M$2)*2,IF(AND('Time SA'!M$1>='Timing and Operations'!$E$46,'Time SA'!M$2<='Timing and Operations'!$F$46),1,0))) -> 0 | P77: =IF(AND('Time SA'!N$1<'Timing and Operations'!$E$46,'Time SA'!N$2>'Timing and Operations'!$E$46),1-YEARFRAC('Timing and Operations'!$E$46,'Time SA'!N$1)*2,IF(AND('Time SA'!N$1<'Timing and Operations'!$F$46,'Time SA'!N$2>'Timing and Operations'!$F$46),1-YEARFRAC('Timing and Operations'!$F$46,'Time SA'!N$2)*2,IF(AND('Time SA'!N$1>='Timing and Operations'!$E$46,'Time SA'!N$2<='Timing and Operations'!$F$46),1,0))) -> 0 | Q77: =IF(AND('Time SA'!O$1<'Timing and Operations'!$E$46,'Time SA'!O$2>'Timing and Operations'!$E$46),1-YEARFRAC('Timing and Operations'!$E$46,'Time SA'!O$1)*2,IF(AND('Time SA'!O$1<'Timing and Operations'!$F$46,'Time SA'!O$2>'Timing and Operations'!$F$46),1-YEARFRAC('Timing and Operations'!$F$46,'Time SA'!O$2)*2,IF(AND('Time SA'!O$1>='Timing and Operations'!$E$46,'Time SA'!O$2<='Timing and Operations'!$F$46),1,0))) -> 0 | R77: =IF(AND('Time SA'!P$1<'Timing and Operations'!$E$46,'Time SA'!P$2>'Timing and Operations'!$E$46),1-YEARFRAC('Timing and Operations'!$E$46,'Time SA'!P$1)*2,IF(AND('Time SA'!P$1<'Timing and Operations'!$F$46,'Time SA'!P$2>'Timing and Operations'!$F$46),1-YEARFRAC('Timing and Operations'!$F$46,'Time SA'!P$2)*2,IF(AND('Time SA'!P$1>='Timing and Operations'!$E$46,'Time SA'!P$2<='Timing and Operations'!$F$46),1,0))) -> 0 | S77: =IF(AND('Time SA'!Q$1<'Timing and Operations'!$E$46,'Time SA'!Q$2>'Timing and Operations'!$E$46),1-YEARFRAC('Timing and Operations'!$E$46,'Time SA'!Q$1)*2,IF(AND('Time SA'!Q$1<'Timing and Operations'!$F$46,'Time SA'!Q$2>'Timing and Operations'!$F$46),1-YEARFRAC('Timing and Operations'!$F$46,'Time SA'!Q$2)*2,IF(AND('Time SA'!Q$1>='Timing and Operations'!$E$46,'Time SA'!Q$2<='Timing and Operations'!$F$46),1,0))) -> 0 | T77: =IF(AND('Time SA'!R$1<'Timing and Operations'!$E$46,'Time SA'!R$2>'Timing and Operations'!$E$46),1-YEARFRAC('Timing and Operations'!$E$46,'Time SA'!R$1)*2,IF(AND('Time SA'!R$1<'Timing and Operations'!$F$46,'Time SA'!R$2>'Timing and Operations'!$F$46),1-YEARFRAC('Timing and Operations'!$F$46,'Time SA'!R$2)*2,IF(AND('Time SA'!R$1>='Timing and Operations'!$E$46,'Time SA'!R$2<='Timing and Operations'!$F$46),1,0))) -> 1 | U77: =IF(AND('Time SA'!S$1<'Timing and Operations'!$E$46,'Time SA'!S$2>'Timing and Operations'!$E$46),1-YEARFRAC('Timing and Operations'!$E$46,'Time SA'!S$1)*2,IF(AND('Time SA'!S$1<'Timing and Operations'!$F$46,'Time SA'!S$2>'Timing and Operations'!$F$46),1-YEARFRAC('Timing and Operations'!$F$46,'Time SA'!S$2)*2,IF(AND('Time SA'!S$1>='Timing and Operations'!$E$46,'Time SA'!S$2<='Timing and Operations'!$F$46),1,0))) -> 1 | V77: =IF(AND('Time SA'!T$1<'Timing and Operations'!$E$46,'Time SA'!T$2>'Timing and Operations'!$E$46),1-YEARFRAC('Timing and Operations'!$E$46,'Time SA'!T$1)*2,IF(AND('Time SA'!T$1<'Timing and Operations'!$F$46,'Time SA'!T$2>'Timing and Operations'!$F$46),1-YEARFRAC('Timing and Operations'!$F$46,'Time SA'!T$2)*2,IF(AND('Time SA'!T$1>='Timing and Operations'!$E$46,'Time SA'!T$2<='Timing and Operations'!$F$46),1,0))) -> 1 | W77: =IF(AND('Time SA'!U$1<'Timing and Operations'!$E$46,'Time SA'!U$2>'Timing and Operations'!$E$46),1-YEARFRAC('Timing and Operations'!$E$46,'Time SA'!U$1)*2,IF(AND('Time SA'!U$1<'Timing and Operations'!$F$46,'Time SA'!U$2>'Timing and Operations'!$F$46),1-YEARFRAC('Timing and Operations'!$F$46,'Time SA'!U$2)*2,IF(AND('Time SA'!U$1>='Timing and Operations'!$E$46,'Time SA'!U$2<='Timing and Operations'!$F$46),1,0))) -> 1 | X77: =IF(AND('Time SA'!V$1<'Timing and Operations'!$E$46,'Time SA'!V$2>'Timing and Operations'!$E$46),1-YEARFRAC('Timing and Operations'!$E$46,'Time SA'!V$1)*2,IF(AND('Time SA'!V$1<'Timing and Operations'!$F$46,'Time SA'!V$2>'Timing and Operations'!$F$46),1-YEARFRAC('Timing and Operations'!$F$46,'Time SA'!V$2)*2,IF(AND('Time SA'!V$1>='Timing and Operations'!$E$46,'Time SA'!V$2<='Timing and Operations'!$F$46),1,0))) -> 1 | Y77: =IF(AND('Time SA'!W$1<'Timing and Operations'!$E$46,'Time SA'!W$2>'Timing and Operations'!$E$46),1-YEARFRAC('Timing and Operations'!$E$46,'Time SA'!W$1)*2,IF(AND('Time SA'!W$1<'Timing and Operations'!$F$46,'Time SA'!W$2>'Timing and Operations'!$F$46),1-YEARFRAC('Timing and Operations'!$F$46,'Time SA'!W$2)*2,IF(AND('Time SA'!W$1>='Timing and Operations'!$E$46,'Time SA'!W$2<='Timing and Operations'!$F$46),1,0))) -> 1 | Z77: =IF(AND('Time SA'!X$1<'Timing and Operations'!$E$46,'Time SA'!X$2>'Timing and Operations'!$E$46),1-YEARFRAC('Timing and Operations'!$E$46,'Time SA'!X$1)*2,IF(AND('Time SA'!X$1<'Timing and Operations'!$F$46,'Time SA'!X$2>'Timing and Operations'!$F$46),1-YEARFRAC('Timing and Operations'!$F$46,'Time SA'!X$2)*2,IF(AND('Time SA'!X$1>='Timing and Operations'!$E$46,'Time SA'!X$2<='Timing and Operations'!$F$46),1,0))) -> 1 | AA77: =IF(AND('Time SA'!Y$1<'Timing and Operations'!$E$46,'Time SA'!Y$2>'Timing and Operations'!$E$46),1-YEARFRAC('Timing and Operations'!$E$46,'Time SA'!Y$1)*2,IF(AND('Time SA'!Y$1<'Timing and Operations'!$F$46,'Time SA'!Y$2>'Timing and Operations'!$F$46),1-YEARFRAC('Timing and Operations'!$F$46,'Time SA'!Y$2)*2,IF(AND('Time SA'!Y$1>='Timing and Operations'!$E$46,'Time SA'!Y$2<='Timing and Operations'!$F$46),1,0))) -> 1 | AB77: =IF(AND('Time SA'!Z$1<'Timing and Operations'!$E$46,'Time SA'!Z$2>'Timing and Operations'!$E$46),1-YEARFRAC('Timing and Operations'!$E$46,'Time SA'!Z$1)*2,IF(AND('Time SA'!Z$1<'Timing and Operations'!$F$46,'Time SA'!Z$2>'Timing and Operations'!$F$46),1-YEARFRAC('Timing and Operations'!$F$46,'Time SA'!Z$2)*2,IF(AND('Time SA'!Z$1>='Timing and Operations'!$E$46,'Time SA'!Z$2<='Timing and Operations'!$F$46),1,0))) -> 1 | AC77: =IF(AND('Time SA'!AA$1<'Timing and Operations'!$E$46,'Time SA'!AA$2>'Timing and Operations'!$E$46),1-YEARFRAC('Timing and Operations'!$E$46,'Time SA'!AA$1)*2,IF(AND('Time SA'!AA$1<'Timing and Operations'!$F$46,'Time SA'!AA$2>'Timing and Operations'!$F$46),1-YEARFRAC('Timing and Operations'!$F$46,'Time SA'!AA$2)*2,IF(AND('Time SA'!AA$1>='Timing and Operations'!$E$46,'Time SA'!AA$2<='Timing and Operations'!$F$46),1,0))) -> 1 | AD77: =IF(AND('Time SA'!AB$1<'Timing and Operations'!$E$46,'Time SA'!AB$2>'Timing and Operations'!$E$46),1-YEARFRAC('Timing and Operations'!$E$46,'Time SA'!AB$1)*2,IF(AND('Time SA'!AB$1<'Timing and Operations'!$F$46,'Time SA'!AB$2>'Timing and Operations'!$F$46),1-YEARFRAC('Timing and Operations'!$F$46,'Time SA'!AB$2)*2,IF(AND('Time SA'!AB$1>='Timing and Operations'!$E$46,'Time SA'!AB$2<='Timing and Operations'!$F$46),1,0))) -> 0 | AE77: =IF(AND('Time SA'!AC$1<'Timing and Operations'!$E$46,'Time SA'!AC$2>'Timing and Operations'!$E$46),1-YEARFRAC('Timing and Operations'!$E$46,'Time SA'!AC$1)*2,IF(AND('Time SA'!AC$1<'Timing and Operations'!$F$46,'Time SA'!AC$2>'Timing and Operations'!$F$46),1-YEARFRAC('Timing and Operations'!$F$46,'Time SA'!AC$2)*2,IF(AND('Time SA'!AC$1>='Timing and Operations'!$E$46,'Time SA'!AC$2<='Timing and Operations'!$F$46),1,0))) -> 0 | AF77: =IF(AND('Time SA'!AD$1<'Timing and Operations'!$E$46,'Time SA'!AD$2>'Timing and Operations'!$E$46),1-YEARFRAC('Timing and Operations'!$E$46,'Time SA'!AD$1)*2,IF(AND('Time SA'!AD$1<'Timing and Operations'!$F$46,'Time SA'!AD$2>'Timing and Operations'!$F$46),1-YEARFRAC('Timing and Operations'!$F$46,'Time SA'!AD$2)*2,IF(AND('Time SA'!AD$1>='Timing and Operations'!$E$46,'Time SA'!AD$2<='Timing and Operations'!$F$46),1,0))) -> 0 | AG77: =IF(AND('Time SA'!AE$1<'Timing and Operations'!$E$46,'Time SA'!AE$2>'Timing and Operations'!$E$46),1-YEARFRAC('Timing and Operations'!$E$46,'Time SA'!AE$1)*2,IF(AND('Time SA'!AE$1<'Timing and Operations'!$F$46,'Time SA'!AE$2>'Timing and Operations'!$F$46),1-YEARFRAC('Timing and Operations'!$F$46,'Time SA'!AE$2)*2,IF(AND('Time SA'!AE$1>='Timing and Operations'!$E$46,'Time SA'!AE$2<='Timing and Operations'!$F$46),1,0))) -> 0 | AH77: =IF(AND('Time SA'!AF$1<'Timing and Operations'!$E$46,'Time SA'!AF$2>'Timing and Operations'!$E$46),1-YEARFRAC('Timing and Operations'!$E$46,'Time SA'!AF$1)*2,IF(AND('Time SA'!AF$1<'Timing and Operations'!$F$46,'Time SA'!AF$2>'Timing and Operations'!$F$46),1-YEARFRAC('Timing and Operations'!$F$46,'Time SA'!AF$2)*2,IF(AND('Time SA'!AF$1>='Timing and Operations'!$E$46,'Time SA'!AF$2<='Timing and Operations'!$F$46),1,0))) -> 0 | AI77: =IF(AND('Time SA'!AG$1<'Timing and Operations'!$E$46,'Time SA'!AG$2>'Timing and Operations'!$E$46),1-YEARFRAC('Timing and Operations'!$E$46,'Time SA'!AG$1)*2,IF(AND('Time SA'!AG$1<'Timing and Operations'!$F$46,'Time SA'!AG$2>'Timing and Operations'!$F$46),1-YEARFRAC('Timing and Operations'!$F$46,'Time SA'!AG$2)*2,IF(AND('Time SA'!AG$1>='Timing and Operations'!$E$46,'Time SA'!AG$2<='Timing and Operations'!$F$46),1,0))) -> 0 | AJ77: =IF(AND('Time SA'!AH$1<'Timing and Operations'!$E$46,'Time SA'!AH$2>'Timing and Operations'!$E$46),1-YEARFRAC('Timing and Operations'!$E$46,'Time SA'!AH$1)*2,IF(AND('Time SA'!AH$1<'Timing and Operations'!$F$46,'Time SA'!AH$2>'Timing and Operations'!$F$46),1-YEARFRAC('Timing and Operations'!$F$46,'Time SA'!AH$2)*2,IF(AND('Time SA'!AH$1>='Timing and Operations'!$E$46,'Time SA'!AH$2<='Timing and Operations'!$F$46),1,0))) -> 0 | AK77: =IF(AND('Time SA'!AI$1<'Timing and Operations'!$E$46,'Time SA'!AI$2>'Timing and Operations'!$E$46),1-YEARFRAC('Timing and Operations'!$E$46,'Time SA'!AI$1)*2,IF(AND('Time SA'!AI$1<'Timing and Operations'!$F$46,'Time SA'!AI$2>'Timing and Operations'!$F$46),1-YEARFRAC('Timing and Operations'!$F$46,'Time SA'!AI$2)*2,IF(AND('Time SA'!AI$1>='Timing and Operations'!$E$46,'Time SA'!AI$2<='Timing and Operations'!$F$46),1,0))) -> 0 | AL77: =IF(AND('Time SA'!AJ$1<'Timing and Operations'!$E$46,'Time SA'!AJ$2>'Timing and Operations'!$E$46),1-YEARFRAC('Timing and Operations'!$E$46,'Time SA'!AJ$1)*2,IF(AND('Time SA'!AJ$1<'Timing and Operations'!$F$46,'Time SA'!AJ$2>'Timing and Operations'!$F$46),1-YEARFRAC('Timing and Operations'!$F$46,'Time SA'!AJ$2)*2,IF(AND('Time SA'!AJ$1>='Timing and Operations'!$E$46,'Time SA'!AJ$2<='Timing and Operations'!$F$46),1,0))) -> 0 | AM77: =IF(AND('Time SA'!AK$1<'Timing and Operations'!$E$46,'Time SA'!AK$2>'Timing and Operations'!$E$46),1-YEARFRAC('Timing and Operations'!$E$46,'Time SA'!AK$1)*2,IF(AND('Time SA'!AK$1<'Timing and Operations'!$F$46,'Time SA'!AK$2>'Timing and Operations'!$F$46),1-YEARFRAC('Timing and Operations'!$F$46,'Time SA'!AK$2)*2,IF(AND('Time SA'!AK$1>='Timing and Operations'!$E$46,'Time SA'!AK$2<='Timing and Operations'!$F$46),1,0))) -> 0 | AN77: =IF(AND('Time SA'!AL$1<'Timing and Operations'!$E$46,'Time SA'!AL$2>'Timing and Operations'!$E$46),1-YEARFRAC('Timing and Operations'!$E$46,'Time SA'!AL$1)*2,IF(AND('Time SA'!AL$1<'Timing and Operations'!$F$46,'Time SA'!AL$2>'Timing and Operations'!$F$46),1-YEARFRAC('Timing and Operations'!$F$46,'Time SA'!AL$2)*2,IF(AND('Time SA'!AL$1>='Timing and Operations'!$E$46,'Time SA'!AL$2<='Timing and Operations'!$F$46),1,0))) -> 0 | AO77: =IF(AND('Time SA'!AM$1<'Timing and Operations'!$E$46,'Time SA'!AM$2>'Timing and Operations'!$E$46),1-YEARFRAC('Timing and Operations'!$E$46,'Time SA'!AM$1)*2,IF(AND('Time SA'!AM$1<'Timing and Operations'!$F$46,'Time SA'!AM$2>'Timing and Operations'!$F$46),1-YEARFRAC('Timing and Operations'!$F$46,'Time SA'!AM$2)*2,IF(AND('Time SA'!AM$1>='Timing and Operations'!$E$46,'Time SA'!AM$2<='Timing and Operations'!$F$46),1,0))) -> 0 | AP77: =IF(AND('Time SA'!AN$1<'Timing and Operations'!$E$46,'Time SA'!AN$2>'Timing and Operations'!$E$46),1-YEARFRAC('Timing and Operations'!$E$46,'Time SA'!AN$1)*2,IF(AND('Time SA'!AN$1<'Timing and Operations'!$F$46,'Time SA'!AN$2>'Timing and Operations'!$F$46),1-YEARFRAC('Timing and Operations'!$F$46,'Time SA'!AN$2)*2,IF(AND('Time SA'!AN$1>='Timing and Operations'!$E$46,'Time SA'!AN$2<='Timing and Operations'!$F$46),1,0))) -> 0 | AQ77: =IF(AND('Time SA'!AO$1<'Timing and Operations'!$E$46,'Time SA'!AO$2>'Timing and Operations'!$E$46),1-YEARFRAC('Timing and Operations'!$E$46,'Time SA'!AO$1)*2,IF(AND('Time SA'!AO$1<'Timing and Operations'!$F$46,'Time SA'!AO$2>'Timing and Operations'!$F$46),1-YEARFRAC('Timing and Operations'!$F$46,'Time SA'!AO$2)*2,IF(AND('Time SA'!AO$1>='Timing and Operations'!$E$46,'Time SA'!AO$2<='Timing and Operations'!$F$46),1,0))) -> 0 | AR77: =IF(AND('Time SA'!AP$1<'Timing and Operations'!$E$46,'Time SA'!AP$2>'Timing and Operations'!$E$46),1-YEARFRAC('Timing and Operations'!$E$46,'Time SA'!AP$1)*2,IF(AND('Time SA'!AP$1<'Timing and Operations'!$F$46,'Time SA'!AP$2>'Timing and Operations'!$F$46),1-YEARFRAC('Timing and Operations'!$F$46,'Time SA'!AP$2)*2,IF(AND('Time SA'!AP$1>='Timing and Operations'!$E$46,'Time SA'!AP$2<='Timing and Operations'!$F$46),1,0))) -> 0 | AS77: =IF(AND('Time SA'!AQ$1<'Timing and Operations'!$E$46,'Time SA'!AQ$2>'Timing and Operations'!$E$46),1-YEARFRAC('Timing and Operations'!$E$46,'Time SA'!AQ$1)*2,IF(AND('Time SA'!AQ$1<'Timing and Operations'!$F$46,'Time SA'!AQ$2>'Timing and Operations'!$F$46),1-YEARFRAC('Timing and Operations'!$F$46,'Time SA'!AQ$2)*2,IF(AND('Time SA'!AQ$1>='Timing and Operations'!$E$46,'Time SA'!AQ$2<='Timing and Operations'!$F$46),1,0))) -> 0 | AT77: =IF(AND('Time SA'!AR$1<'Timing and Operations'!$E$46,'Time SA'!AR$2>'Timing and Operations'!$E$46),1-YEARFRAC('Timing and Operations'!$E$46,'Time SA'!AR$1)*2,IF(AND('Time SA'!AR$1<'Timing and Operations'!$F$46,'Time SA'!AR$2>'Timing and Operations'!$F$46),1-YEARFRAC('Timing and Operations'!$F$46,'Time SA'!AR$2)*2,IF(AND('Time SA'!AR$1>='Timing and Operations'!$E$46,'Time SA'!AR$2<='Timing and Operations'!$F$46),1,0))) -> 0 | AU77: =IF(AND('Time SA'!AS$1<'Timing and Operations'!$E$46,'Time SA'!AS$2>'Timing and Operations'!$E$46),1-YEARFRAC('Timing and Operations'!$E$46,'Time SA'!AS$1)*2,IF(AND('Time SA'!AS$1<'Timing and Operations'!$F$46,'Time SA'!AS$2>'Timing and Operations'!$F$46),1-YEARFRAC('Timing and Operations'!$F$46,'Time SA'!AS$2)*2,IF(AND('Time SA'!AS$1>='Timing and Operations'!$E$46,'Time SA'!AS$2<='Timing and Operations'!$F$46),1,0))) -> 0 | AV77: =IF(AND('Time SA'!AT$1<'Timing and Operations'!$E$46,'Time SA'!AT$2>'Timing and Operations'!$E$46),1-YEARFRAC('Timing and Operations'!$E$46,'Time SA'!AT$1)*2,IF(AND('Time SA'!AT$1<'Timing and Operations'!$F$46,'Time SA'!AT$2>'Timing and Operations'!$F$46),1-YEARFRAC('Timing and Operations'!$F$46,'Time SA'!AT$2)*2,IF(AND('Time SA'!AT$1>='Timing and Operations'!$E$46,'Time SA'!AT$2<='Timing and Operations'!$F$46),1,0))) -> 0 | AW77: =IF(AND('Time SA'!AU$1<'Timing and Operations'!$E$46,'Time SA'!AU$2>'Timing and Operations'!$E$46),1-YEARFRAC('Timing and Operations'!$E$46,'Time SA'!AU$1)*2,IF(AND('Time SA'!AU$1<'Timing and Operations'!$F$46,'Time SA'!AU$2>'Timing and Operations'!$F$46),1-YEARFRAC('Timing and Operations'!$F$46,'Time SA'!AU$2)*2,IF(AND('Time SA'!AU$1>='Timing and Operations'!$E$46,'Time SA'!AU$2<='Timing and Operations'!$F$46),1,0))) -> 0 | AX77: =IF(AND('Time SA'!AV$1<'Timing and Operations'!$E$46,'Time SA'!AV$2>'Timing and Operations'!$E$46),1-YEARFRAC('Timing and Operations'!$E$46,'Time SA'!AV$1)*2,IF(AND('Time SA'!AV$1<'Timing and Operations'!$F$46,'Time SA'!AV$2>'Timing and Operations'!$F$46),1-YEARFRAC('Timing and Operations'!$F$46,'Time SA'!AV$2)*2,IF(AND('Time SA'!AV$1>='Timing and Operations'!$E$46,'Time SA'!AV$2<='Timing and Operations'!$F$46),1,0))) -> 0 | AY77: =IF(AND('Time SA'!AW$1<'Timing and Operations'!$E$46,'Time SA'!AW$2>'Timing and Operations'!$E$46),1-YEARFRAC('Timing and Operations'!$E$46,'Time SA'!AW$1)*2,IF(AND('Time SA'!AW$1<'Timing and Operations'!$F$46,'Time SA'!AW$2>'Timing and Operations'!$F$46),1-YEARFRAC('Timing and Operations'!$F$46,'Time SA'!AW$2)*2,IF(AND('Time SA'!AW$1>='Timing and Operations'!$E$46,'Time SA'!AW$2<='Timing and Operations'!$F$46),1,0))) -> 0 | AZ77: =IF(AND('Time SA'!AX$1<'Timing and Operations'!$E$46,'Time SA'!AX$2>'Timing and Operations'!$E$46),1-YEARFRAC('Timing and Operations'!$E$46,'Time SA'!AX$1)*2,IF(AND('Time SA'!AX$1<'Timing and Operations'!$F$46,'Time SA'!AX$2>'Timing and Operations'!$F$46),1-YEARFRAC('Timing and Operations'!$F$46,'Time SA'!AX$2)*2,IF(AND('Time SA'!AX$1>='Timing and Operations'!$E$46,'Time SA'!AX$2<='Timing and Operations'!$F$46),1,0))) -> 0 | BA77: =IF(AND('Time SA'!AY$1<'Timing and Operations'!$E$46,'Time SA'!AY$2>'Timing and Operations'!$E$46),1-YEARFRAC('Timing and Operations'!$E$46,'Time SA'!AY$1)*2,IF(AND('Time SA'!AY$1<'Timing and Operations'!$F$46,'Time SA'!AY$2>'Timing and Operations'!$F$46),1-YEARFRAC('Timing and Operations'!$F$46,'Time SA'!AY$2)*2,IF(AND('Time SA'!AY$1>='Timing and Operations'!$E$46,'Time SA'!AY$2<='Timing and Operations'!$F$46),1,0))) -> 0 | BB77: =IF(AND('Time SA'!AZ$1<'Timing and Operations'!$E$46,'Time SA'!AZ$2>'Timing and Operations'!$E$46),1-YEARFRAC('Timing and Operations'!$E$46,'Time SA'!AZ$1)*2,IF(AND('Time SA'!AZ$1<'Timing and Operations'!$F$46,'Time SA'!AZ$2>'Timing and Operations'!$F$46),1-YEARFRAC('Timing and Operations'!$F$46,'Time SA'!AZ$2)*2,IF(AND('Time SA'!AZ$1>='Timing and Operations'!$E$46,'Time SA'!AZ$2<='Timing and Operations'!$F$46),1,0))) -> 0 | BC77: =IF(AND('Time SA'!BA$1<'Timing and Operations'!$E$46,'Time SA'!BA$2>'Timing and Operations'!$E$46),1-YEARFRAC('Timing and Operations'!$E$46,'Time SA'!BA$1)*2,IF(AND('Time SA'!BA$1<'Timing and Operations'!$F$46,'Time SA'!BA$2>'Timing and Operations'!$F$46),1-YEARFRAC('Timing and Operations'!$F$46,'Time SA'!BA$2)*2,IF(AND('Time SA'!BA$1>='Timing and Operations'!$E$46,'Time SA'!BA$2<='Timing and Operations'!$F$46),1,0))) -> 0 | BD77: =IF(AND('Time SA'!BB$1<'Timing and Operations'!$E$46,'Time SA'!BB$2>'Timing and Operations'!$E$46),1-YEARFRAC('Timing and Operations'!$E$46,'Time SA'!BB$1)*2,IF(AND('Time SA'!BB$1<'Timing and Operations'!$F$46,'Time SA'!BB$2>'Timing and Operations'!$F$46),1-YEARFRAC('Timing and Operations'!$F$46,'Time SA'!BB$2)*2,IF(AND('Time SA'!BB$1>='Timing and Operations'!$E$46,'Time SA'!BB$2<='Timing and Operations'!$F$46),1,0))) -> 0 | BE77: =IF(AND('Time SA'!BC$1<'Timing and Operations'!$E$46,'Time SA'!BC$2>'Timing and Operations'!$E$46),1-YEARFRAC('Timing and Operations'!$E$46,'Time SA'!BC$1)*2,IF(AND('Time SA'!BC$1<'Timing and Operations'!$F$46,'Time SA'!BC$2>'Timing and Operations'!$F$46),1-YEARFRAC('Timing and Operations'!$F$46,'Time SA'!BC$2)*2,IF(AND('Time SA'!BC$1>='Timing and Operations'!$E$46,'Time SA'!BC$2<='Timing and Operations'!$F$46),1,0))) -> 0 | BF77: =IF(AND('Time SA'!BD$1<'Timing and Operations'!$E$46,'Time SA'!BD$2>'Timing and Operations'!$E$46),1-YEARFRAC('Timing and Operations'!$E$46,'Time SA'!BD$1)*2,IF(AND('Time SA'!BD$1<'Timing and Operations'!$F$46,'Time SA'!BD$2>'Timing and Operations'!$F$46),1-YEARFRAC('Timing and Operations'!$F$46,'Time SA'!BD$2)*2,IF(AND('Time SA'!BD$1>='Timing and Operations'!$E$46,'Time SA'!BD$2<='Timing and Operations'!$F$46),1,0))) -> 0 | BG77: =IF(AND('Time SA'!BE$1<'Timing and Operations'!$E$46,'Time SA'!BE$2>'Timing and Operations'!$E$46),1-YEARFRAC('Timing and Operations'!$E$46,'Time SA'!BE$1)*2,IF(AND('Time SA'!BE$1<'Timing and Operations'!$F$46,'Time SA'!BE$2>'Timing and Operations'!$F$46),1-YEARFRAC('Timing and Operations'!$F$46,'Time SA'!BE$2)*2,IF(AND('Time SA'!BE$1>='Timing and Operations'!$E$46,'Time SA'!BE$2<='Timing and Operations'!$F$46),1,0))) -> 0 | BH77: =IF(AND('Time SA'!BF$1<'Timing and Operations'!$E$46,'Time SA'!BF$2>'Timing and Operations'!$E$46),1-YEARFRAC('Timing and Operations'!$E$46,'Time SA'!BF$1)*2,IF(AND('Time SA'!BF$1<'Timing and Operations'!$F$46,'Time SA'!BF$2>'Timing and Operations'!$F$46),1-YEARFRAC('Timing and Operations'!$F$46,'Time SA'!BF$2)*2,IF(AND('Time SA'!BF$1>='Timing and Operations'!$E$46,'Time SA'!BF$2<='Timing and Operations'!$F$46),1,0))) -> 0 | BI77: =IF(AND('Time SA'!BG$1<'Timing and Operations'!$E$46,'Time SA'!BG$2>'Timing and Operations'!$E$46),1-YEARFRAC('Timing and Operations'!$E$46,'Time SA'!BG$1)*2,IF(AND('Time SA'!BG$1<'Timing and Operations'!$F$46,'Time SA'!BG$2>'Timing and Operations'!$F$46),1-YEARFRAC('Timing and Operations'!$F$46,'Time SA'!BG$2)*2,IF(AND('Time SA'!BG$1>='Timing and Operations'!$E$46,'Time SA'!BG$2<='Timing and Operations'!$F$46),1,0))) -> 0 | BJ77: =IF(AND('Time SA'!BH$1<'Timing and Operations'!$E$46,'Time SA'!BH$2>'Timing and Operations'!$E$46),1-YEARFRAC('Timing and Operations'!$E$46,'Time SA'!BH$1)*2,IF(AND('Time SA'!BH$1<'Timing and Operations'!$F$46,'Time SA'!BH$2>'Timing and Operations'!$F$46),1-YEARFRAC('Timing and Operations'!$F$46,'Time SA'!BH$2)*2,IF(AND('Time SA'!BH$1>='Timing and Operations'!$E$46,'Time SA'!BH$2<='Timing and Operations'!$F$46),1,0))) -> 0 | BK77: =IF(AND('Time SA'!BI$1<'Timing and Operations'!$E$46,'Time SA'!BI$2>'Timing and Operations'!$E$46),1-YEARFRAC('Timing and Operations'!$E$46,'Time SA'!BI$1)*2,IF(AND('Time SA'!BI$1<'Timing and Operations'!$F$46,'Time SA'!BI$2>'Timing and Operations'!$F$46),1-YEARFRAC('Timing and Operations'!$F$46,'Time SA'!BI$2)*2,IF(AND('Time SA'!BI$1>='Timing and Operations'!$E$46,'Time SA'!BI$2<='Timing and Operations'!$F$46),1,0))) -> 0 | BL77: =IF(AND('Time SA'!BJ$1<'Timing and Operations'!$E$46,'Time SA'!BJ$2>'Timing and Operations'!$E$46),1-YEARFRAC('Timing and Operations'!$E$46,'Time SA'!BJ$1)*2,IF(AND('Time SA'!BJ$1<'Timing and Operations'!$F$46,'Time SA'!BJ$2>'Timing and Operations'!$F$46),1-YEARFRAC('Timing and Operations'!$F$46,'Time SA'!BJ$2)*2,IF(AND('Time SA'!BJ$1>='Timing and Operations'!$E$46,'Time SA'!BJ$2<='Timing and Operations'!$F$46),1,0))) -> 0 | BM77: =IF(AND('Time SA'!BK$1<'Timing and Operations'!$E$46,'Time SA'!BK$2>'Timing and Operations'!$E$46),1-YEARFRAC('Timing and Operations'!$E$46,'Time SA'!BK$1)*2,IF(AND('Time SA'!BK$1<'Timing and Operations'!$F$46,'Time SA'!BK$2>'Timing and Operations'!$F$46),1-YEARFRAC('Timing and Operations'!$F$46,'Time SA'!BK$2)*2,IF(AND('Time SA'!BK$1>='Timing and Operations'!$E$46,'Time SA'!BK$2<='Timing and Operations'!$F$46),1,0))) -> 0 | BN77: =IF(AND('Time SA'!BL$1<'Timing and Operations'!$E$46,'Time SA'!BL$2>'Timing and Operations'!$E$46),1-YEARFRAC('Timing and Operations'!$E$46,'Time SA'!BL$1)*2,IF(AND('Time SA'!BL$1<'Timing and Operations'!$F$46,'Time SA'!BL$2>'Timing and Operations'!$F$46),1-YEARFRAC('Timing and Operations'!$F$46,'Time SA'!BL$2)*2,IF(AND('Time SA'!BL$1>='Timing and Operations'!$E$46,'Time SA'!BL$2<='Timing and Operations'!$F$46),1,0))) -> 0 | BO77: =IF(AND('Time SA'!BM$1<'Timing and Operations'!$E$46,'Time SA'!BM$2>'Timing and Operations'!$E$46),1-YEARFRAC('Timing and Operations'!$E$46,'Time SA'!BM$1)*2,IF(AND('Time SA'!BM$1<'Timing and Operations'!$F$46,'Time SA'!BM$2>'Timing and Operations'!$F$46),1-YEARFRAC('Timing and Operations'!$F$46,'Time SA'!BM$2)*2,IF(AND('Time SA'!BM$1>='Timing and Operations'!$E$46,'Time SA'!BM$2<='Timing and Operations'!$F$46),1,0))) -> 0 | BP77: =IF(AND('Time SA'!BN$1<'Timing and Operations'!$E$46,'Time SA'!BN$2>'Timing and Operations'!$E$46),1-YEARFRAC('Timing and Operations'!$E$46,'Time SA'!BN$1)*2,IF(AND('Time SA'!BN$1<'Timing and Operations'!$F$46,'Time SA'!BN$2>'Timing and Operations'!$F$46),1-YEARFRAC('Timing and Operations'!$F$46,'Time SA'!BN$2)*2,IF(AND('Time SA'!BN$1>='Timing and Operations'!$E$46,'Time SA'!BN$2<='Timing and Operations'!$F$46),1,0))) -> 0 | BQ77: =IF(AND('Time SA'!BO$1<'Timing and Operations'!$E$46,'Time SA'!BO$2>'Timing and Operations'!$E$46),1-YEARFRAC('Timing and Operations'!$E$46,'Time SA'!BO$1)*2,IF(AND('Time SA'!BO$1<'Timing and Operations'!$F$46,'Time SA'!BO$2>'Timing and Operations'!$F$46),1-YEARFRAC('Timing and Operations'!$F$46,'Time SA'!BO$2)*2,IF(AND('Time SA'!BO$1>='Timing and Operations'!$E$46,'Time SA'!BO$2<='Timing and Operations'!$F$46),1,0))) -> 0
